Workbook

Sheet Instructions
A2: Cost Allocation Model (“CA Model”) Version 3.0
A4: Instructions Sheet
A6: General:
A7: These instructions are included with the OEB CA Model version 3 as a reference for distributor staff and other users of the model.
A8: Version 3.0 is designed for use with 2013 rate applications. It is identical to Version 2 except for accommodating the deferred PP&E balance due to the transition to IFRS (account 1575).
A9: The instructions are organized by input sheet (I1 to I9), followed by suggestions of how to use output sheets O1, O3.1 and O3.6. The remaining output sheets and exhibit sheets (E1 to E5) and the procedure for closing the files are unchanged from version 1.2 of the cost allocation model except for incidental adjustments that do not require any attention from the model user.
A10: There are numerous references in these instructions to specific Excel cells in the Revenue Requirement Work Form (“RRWF”), which will be filed in support a cost-of-service distribution rate application at the same time as the CA Model. The cross-references to RRWF are intended to ensure consistency within the application. If the applicant plans on completing the Cost Allocation before the RRWF is complete, the best practice is to input the required information from the primary sources that will be used later in the RRWF. As an alternative, a less-than-best option is to leave the required inputs blank temporarily, and overlook the corresponding error messages in the rose-coloured diagnostic cells. Once the RRWF is completed, the necessary information should be included in the CA Model.
A12: ● A staff report "Board Staff Implementation of the Board’s Findings on the Review of Electricity Cost Allocation Policy" documents the rationale for changes in Version 2 relative to the previous model.
A14: The original model and related documents are on the web-site in EB-2005-0317; http://www.ontarioenergyboard.ca/OEB/Industry/Regulatory+Proceedings/Policy+Initiatives+and+Consultations/Archived+OEB+Key+Initiatives/Cost+Allocation+Review.
A16: Worksheet I1 Introduction
A17: This input worksheet is for basic information about the utility.
A18: ● Inputs to Cells B2, C9, C13 and C15 are carried forward to the heading on all worksheets, and do not require updating after the initial set-up.
A19: ● Include test year in Cell B2 e.g. ‘2012 COS Cost Allocation’.
A20: ● The date in Cell C15 should be updated every time a new run of the model is filed (Interrogatories, draft rate order, etc.).
A22: Worksheet I2 LDC Classes
A23: The rate classes are defined in this input worksheet.
A24: ● Input to Cell C-17 is copied to the header of all worksheets. When the CA Model is modified for a specific reason, such as a run using final proposed rates for the purposes of a draft rate order, a new description should be entered in Cell C-17.
A25: ● Cell C20 and below shows common rate class names. Substitute the proper name if applicable. Any input to Column D will appear as the column headings if different from Column C;
A26: ● In Column E, choose Yes or No as applicable for the proposed customer classes, and click Update.
A27: ● Do not include microFIT as a rate classification in CA Model until further notice in the Filing Requirements.
A28: ● If the distributor is a Host Distributor, select Yes for Embedded Distributor class. (For possible exception, see ‘Filing Requirements’ section 2.10.1).
A29: ● Be aware that the “Update” button hides and unhides columns, nothing more. If you have entered data for a class in an input sheet, the data will remain unlessl you delete it. (If you enter data for a class, subsequently change to ‘No’ for that class in I-2, and click Update but neglect to delete data, the hidden data will continue to affect range totals and allocators.).
A30: ● For the user’s convenience, a space is available at B46 to describe a scenario (customer classes, load data, choice of allocators, etc.) to keep track of alternative cost allocation outcomes as they are being studied. Cell C 17 should describe the scenario.
A32: Worksheet I3 Trial Balance Data
A33: ● The account balances are entered and adjusted in this input worksheet.
A35: ▪ At Cell F10, input the return on equity RRWF tab 9 'Revenue Requirement' cell F23;
A36: ▪ At Cell F11, input the forecast of PILs from RRWF tab 9 'Revenue Requirement' cell F19;
A37: ▪ At Cell F12, input Interest Cost from RRWF tab 9 'Revenue Requirement' cell F22;
A38: ▪ At Cell F13, input Return on Rate Base Associated with Deferred PP&E balance;
A39: ▪ Cell F14 should b entered equal to RRWF tab 9 'Service Revenue Requirement' cell F26;
A40: ▪ Cell F16 should be entere equal to RRWF tab 4 'Rate Base' cell G19
A41: ● Starting at Row 21, enter forecast amounts for USoA accounts. The CA Model has a few new Rows that have been added in worksheet I-3 and in the subsequent worksheets. These Rows are inserted to enable new accounts or finer granularity within existing accounts. In version 3, none of the new rows is used.
A42: ● Column D contains the forecast amounts for the test year, and is to match the amounts in the rate application. For asset accounts, enter the mid-year average amounts matching the corresponding amounts in the rate base;
A44: ● Cell D430 is Amortization on PP&E including the adjustment resulting from the amortization of Account 1575
A45: ● Column F is available to re-assign amounts among the accounts in Column D. Generally if costs are removed from one USoA account and added to another account, the rationale for the re-assignment is to be provided by the distributor in its prefiled evidence.
A46: ● Column F is especially useful for removing part of the cost from a parent account and adding the same amount into a sub-account that is allocated by a different allocator than the parent account. If the sub-account has been set up in version 2 of the model e.g. 4235-1, the rationale for making the adjustment in Column F is not required.
A47: ● Row 252 has been added, to allow for separate allocation of revenue from the SSS Administration Charge. Enter the amount of the sub-account at Cell F252 and enter negative the same amount (i.e. positive) in Cell F250. No explanation is required.
A48: ● Rows 265 and 266 have been added, to allow for separate allocation of the Account Set-Up Charges sub-account distinct from other revenue streams in Account 4235. Enter the sub-account amount at Cell F265 and F266 and enter negative the same amounts at F264. No explanation is required.
A49: ● Column I has drop-down menus in the new Rows. If necessary use the menu to select the allocator for the account that the distributor considers most appropriate. (The model on the website has an allocator already selected at the suggestion of the CA Working Group, but the distributor is ultimately responsible for selecting the most appropriate allocator considering how it uses the sub-account in question.).
A51: ● Column I provides a drop-down menu to select an allocator for any new IFRS-related accounts.
A52: ● Column G is used for costs that are directly allocated. Put the appropriate total amount in Column G, and repeat for the appropriate class in worksheet I9.
A53: ● Note that the model has Rows in I9 for most capital and OM&A accounts, but not revenue accounts. If an account has no corresponding Row in I9, the model does not provide a ready means of direct allocation.
A56: Worksheet I4 Break Out Assets
A57: This input worksheet is for breaking the asset accounts into a more granular level.
A58: ● Cell C12 requires data entry from the RRWF tab 4. Rate Base, Cell G14 to ensure consistency between the cost allocation model and the rest of the application.
A59: ● Note: In Cell L57, enter the annual depreciation expense adjustment resulting from amortization of account 1575
A61: Worksheet I5.1 Miscellaneous Data
A62: There are two new input cells in version 2 of the input worksheet:
A63: ● In Cell D19, enter the percentage of OM&A plus Cost of Power that is included as working capital, i.e. 15%, or a percentage based on the distributor’s lead-lag study; and
A64: ● Cell D21 yields a weighting factor to attribute pole access revenue in proportion to the corresponding costs. Considering all poles that yield pole rental revenue, enter the estimated percentage of NBV in poles that are at Secondary voltage, as distinct from the NBV of those at Primary voltage.
A66: Worksheet I5.2 Weighting Factors
A67: This worksheet is used to input each class’ weighting factor for services and Billing and Collection. Use a single factor suitable for the whole class. See examples in the boxes below.
A68: ● Row 11: calculate weighting factors reflecting only installed capital costs recorded in Account 1855 – Services.
A69: ● Row 15: calculate weighting factors reflecting costs in Account 5315 – Customer Billing, Account 5320 – Collecting, and Account 5340 – Miscellaneous Customer Account Expenses.
A70: ● Default weights are no longer provided in the model. The weights previously provided in version 1.2 can be found in the Board staff’s implementation documentation [EB-2010-0219].
A72: Example: Weighting Factor for Services:
A74: Assume that the amount recorded in 1855 for a typical residential customer is $1,000.
A75: Assume that there are 500 customers in the GS>50 class.
A76: Assume that 100 of them are industrial customers served by a single span of overhead conductor. The amount remaining on the books in Account 1855 is small, but the current cost of replacing the service including labour would be $5,000.
A77: Assume that 100 customers have underground service that required extensive permits, street repairs, and labour costs, as well as materials. The services are recent, and the amount recorded in 1855 averages $25,000.
A78: Assume 300 customers have no costs recorded in Account 1855, and would have no cost recorded even if replaced (per distributor’s accounting practice and conditions of service)
A79: Calculation:
A80: Ø [ (100 * $5,000) + (100 * $25,000) + (300 * $0) ] / 500 = $6,000 per customer
A81: Weighting factor for residential = $1,000/$1,000 = 1.00
A82: Weighting factor for GS>50 kW = $6,000/$1,000 = 6.00
A84: Example: Weighting Factor for Billing and Collecting:
A86: Assume that the Residential cost averaged over all residential customers is $1.50 for bill preparation and mailing, $0.50 to record revenue from a normal payment, and $1.00 per bill on average for other costs associated with collecting, etc. that are recorded in accounts 5315, 5320 and 5340. Total $3 per residential bill.
A87: Assume that there are 15 customers in the USL class:
A88: Assume that 5 of the customers have a large number of devices and the number of devices changes from time to time, so additional clerical attention is required each month amounting to $50 over the group ($10 per bill). Including $1.00 postage and incidental costs, the cost of billing is $11 per bill. Including the costs of recording revenue at the same as for residential @ $0.50 and there are no other collecting issues results in $11.50 per bill.
A89: Assume the other 10 USL customers have a small number of devices and require the same amount of effort as a typical residential customer. There are less issues with collecting, so the incidental costs are $0.50 per month. Total cost is $2.50 per bill
A90: Calculation:
A91: Ø [(5 * $11.50) + (10 * $2.50)] / 15 = $5.50 per bill.
A92: Weighting factor for Residential = $3.00 / $3.00 = 1.00
A93: Weighting factor for USL = $5.50 / $3.00 = 1.83
A95: Worksheet I6.1 Revenue
A96: This input sheet has been modified in version 2 to calculate the test year revenues based on the test year volumetric forecast and the current rates.
A97: ● Cells B10, B13, B16 and B19 are inputs from application exhibits: the first two from Exhibit 3 Load Forecast, and the latter two from the RRWF.
A98: ● CA Model version 2 has been adapted to calculate class revenues at existing rates and forecast billing quantities. (The previous versions required class revenues as inputs to worksheet O1.).
A99: ● Cell B10 – from Exhibit 3 of the application, input total energy from the test year load forecast, adjusted downward for distribution line losses.
A100: ● Cell B13 – from Exhibit 3 of the application, input the total billing demands of all demand-billed classes.
A101: ● Cell B16 –from RRWF tab 8 Revenue Deficiency/Sufficiency H16.
A102: ● Cell B19 – enter data from RRWF tab 8. Revenue Deficiency/Sufficiency F18.
A103: ● Rows 25 and 26: enter weather-normalized load after line losses. These quantities will be the results found in the distributor’s load forecast Exhibit 3.
A104: ● Rows 31, 44, 50 and 51 no longer play a role in the model, as long as Rows 25 and 26 are based on normalized weather load forecasts. Version 2 now relies on the distributor’s load forecast rather than the analysis provided originally by Hydro One.
A105: ● Rows 33-36 - enter the currently approved rates for each class;
A106: ● Row 37 – a placeholder Row for any other rate (e.g. separate rates per street lighting fixture and kW demand);
A107: ● Row 39– the revenue formula is based on fixed monthly revenue from billing the largest of customer / connection / devices from Rows 18, 19 and 21 in worksheet I6.2. If this is not appropriate for the distributor’s rate structure, the distributor should correct the formula for the applicable class(es) in Row 39. (For example, if USL is billed per customer, per device and per kW, the formula will require inputs from Rows 27, 33, 35, 37, and worksheet I6.2 Rows 18 & 21).
A108: ● As an alternative run of the CA Model, but not for submission with the application, to check the internal consistency of the application it may be informative to enter the rates that are being proposed in the application in Rows 33-36. See notes to Worksheet O-1 below.
A109: ● If the Conditions of Service for a class of large customers require that all customers supply their own transformation, Row 26 and/or Row 36 should be entered as zero for that class.
A111: Worksheet I6.2 Customer Data
A112: This input sheet is for inputting the various customer data by rate class, such as number of bill, number of customers, etc.
A113: ● Row 18 ‘Number of devices’ has been added in version 2 of the model. Generally this will require input for the Street Lighting and Unmetered Scattered Load classes;
A114: ● The number of devices (Row 18) should be equal to or greater than the number of connections (Row 19); and
A115: ● The number of connections should be equal to or greater than the number of customers (Row 21).
A117: Worksheet I7.1 Meter Capital
A118: The purpose of this input worksheet is to derive the weighting factor of each class for the allocator CWMC, which is used to allocate accounts 1860 Meters, 5065 Meter Expense, and 5175 Maintenance. It does not affect the deferral account 1555 Smart Meter Capital and Recovery VA.
A119: ● As a general rule, include one meter per customer in this worksheet, i.e. include smart meter or standard meter, not both.
A120: ● Replace meter descriptions in Column C with new descriptions that match the meters actually in use, and input the applicable average installed replacement cost of each type of meter.
A121: ● During the transitional period, until all smart meters are in the Rate Base, include in the documentation of the application an explanation of which unit cost is being used. Since the weighting factor will remain unchanged during the IRM period, the distributor may consider including smart meters rather than the soon-to-be-stranded meters, even though not all smart meters have been transferred to account 1860 at the time of the cost-of-service application.
A122: ● If the cost of equipment used to download billing data is included in Account 1860 – Meters, the cost of such equipment should be considered in this worksheet. Version 2 of the model does not make provision for doing this. The user may add a Row or Rows for the cost (cost per customer and number of customers) of such equipment. The additional Row(s) should be added above Row 37 in order to be included in the @sum function.
A123: ● Note that Account 1920 – Computer Hardware, Account 1925 – Computer Software and Account 1955 – Communications Equipment are allocated to the customer classes by the composite allocator Net Fixed Assets (excluding credit for capital contributions). If equipment for automated meter-reading and data storage are recorded in these accounts, the distributor may consider moving capital costs to Account 1860 – Meters in worksheet I-3 and reflecting this in the meter capital weighting factors, with the objective of reaching a more accurate allocation of these costs.
A124: ● Entries for USL, Street lighting and Sentinel Lighting in worksheet I7.1 and I7.2 are 0. For any cost of estimating or verifying unmetered loads, see note re direct allocation below, under worksheet I9.
A126: Worksheet I7.2 Meter Reading
A127: The purpose of this input worksheet is to derive the weighting factors for the allocator CWMR, which is used only to allocate costs that are recorded in account 5310 Meter Reading Expense. The data in Column C are relative amounts, with the typical Residential reading having a weight of 1.0.
A128: Version 2 of this worksheet has not been modified to reflect automated meter reading. The Rows in worksheet I7.2 reflect differences in customer density, relative difficulty in reaching the meter, and frequency of reading the meter in the respective classes. To the extent that these factors are now more nearly uniform due to automated meter reading, the distributor may find that the appropriate weights are close to 1.0 for all classes.
A130: Worksheet I8 Demand Data
A131: This input sheet is to record the various coincident and non-coincident peaks by rate class, which are used a cost allocators in the CA Model.
A132: ● No changes in version 2 of this worksheet.
A134: Worksheet I9 Direct Allocation
A135: This input worksheet allows for directly allocating costs to specific rate classes.
A136: ● Remember that costs associated with revising estimated consumption of unmetered loads may be allocated directly to the applicable class. [EB-2005-0317, Cost allocation Review, Board Directions, p. 87].
A137: ● Additional information on direct allocations can be found above in the notes for Column G in input sheet I3 Trial Balance.
A139: Worksheet O1
A140: This is an output worksheet that shows the allocated revenue requirements and the revenue-to-cost ratios by rate class. Use this sheet to check that the allocated costs reconcile to the filed evidence in the application.
A141: ● In these instructions for Worksheet 01, “RRWF” means RRWF tab 8. Revenue Sufficiency / Deficiency.
A142: ● “Appendix 2-Q” means Appendix 2-Q in 2013 Filing Requirements.
A143: ● Row 18 – Distribution Revenue at Existing Rates:
A144: ▪ Cell C18 should equal the total in RRWF Cell F17 – Distribution Revenue at Currently Approved Rates”, and
A145: ▪ Cells D18 and beyond are the inputs to Appendix 2-Q, Table B, Column 7B.
A146: ● Row 19 – Miscellaneous Revenue:
A147: ▪ Cell C19 should equal RRWF Cell F18,
A148: ▪ Cells D19 and beyond are the inputs to Appendix 2-Q, Table B, Column 7E,
A149: ▪ Note the diagnostic test in Row 20 for Miscellaneous Revenue. The model calculates the status quo rates from the test year Service Revenue Requirement less Miscellaneous Revenue. If Miscellaneous Revenue is entered inaccurately, the status quo rates and status quo ratios in Row 75 will also be inaccurate for the respective classes.
A150: ● Cell C21 – Total Revenue at Existing Rates should be equal to RRWF Cell F19;
A151: ● Row 23 – Distribution Revenue at Status Quo Rates”:
A152: ▪ Cell C23 should equal RRWF, sum of Cells H16 & H17
A153: ▪ Cells D23 and beyond are the hypothetical distribution revenue, by class, if there were no rate re-balancing. These cells are the inputs to Appendix 2-Q, Table B, Column 7C.
A154: ● Cell C25 should equal RRWF Cell H19 – Total Revenue.
A155: ● Row 40 – Revenue Requirement (includes NI):
A156: ▪ Cell C40 is the total revenue requirement, and should be equal to RRWF worksheet tab 9 Revenue Requirement, Cell F22; and
A157: ▪ Cells D40 and beyond are inputs to Appendix O, table (a), Column 7A.
A158: ● Row 75 – Revenue to Expenses Status Quo:
A159: ▪ Cell C75 should equal 100%, and
A160: ▪ Cells D75 and beyond are the inputs to Appendix 2-Q, table C, second column “Status Quo Ratios”.
A161: ● Cells C71 and C81 should equal the corresponding target returns on equity (RRWF Column H).
A163: The 2012 Filing Requirements do not require a version of the model with proposed rates. However, it may be helpful to the user to verify the proposed distribution rates and ratios by substituting proposed rates in place of currently approved ones.
A165: It may also be useful to run an updated version when preparing a Draft Rate Order:
A166: Ø At worksheet I3, modify Miscellaneous Income accounts if necessary, along with forecast capital and OM&A accounts, if any of these have changed as a result of a Decision or settlement agreement.
A167: Ø At worksheet I6.1, modify the class load forecast inputs if it has changed since the original application, at Rows 25 and 26.
A168: Ø At worksheet I6.1, substitute the proposed rates at Rows 33 – 36.
A169: Ø At worksheet I8, data may need to be changed if the load forecast has been changed.
A170: Ø On worksheet O1:
A171: ▪ Cell C22 should now equal 1.00 and Rows 18 and 23 should be identical.
A172: ▪ Cells D75 and beyond should show the proposed revenue to cost ratios.
A174: Worksheet O3.1
A175: The purpose of this output worksheet is to provide information on the cost per unit of providing customers with transformation service.
A176: ● Row 27, expresses the transformer costs in per kW terms. The amount found in Row 27 is not necessarily identical to the cost that would be saved if the customer provides its own transformer. While it is useful information, the value in Row 27 should not be presented as the sole evidence to support changing the Transformer Ownership Allowance.
A178: Worksheet O3.6
A179: The purpose of this output worksheet is to provide information to be used to update the provincial standard monthly charge for microFIT installations.
A180: ● Check that Cell 23 is equal to O-2 Cell D132 less Cell D81, which is an update of the information that underpins the current rate; and
A181: ● Cells C24 and C25 have been added in version 2 of the model per Board Report (p. 8).
A183: If the distributor intends to propose a microFIT charge based on its own costs, this will require sub-account information as per the Board’s FAQ # 18, December 23, 2010. The information from Worksheet O-3.6 will not likely be considered relevant for approval of a non-uniform charge.
A186: Worksheets E2 and E4
A187: Worksheet E2 shows the proportions allocated to each rate class by the various allocators. The allocators are linked to the USoA accounts in worksheet E4. In version 3 a new allocator “PP&E” has been added for the amortization of the deferred PP&E balance. The model defaults to the same proportions as Net Fixed Assets “NFA”. If the distributor is applying to allocate the PP&E balance in some other proportions, those proportions may be input directly in E2 by substituting the formula or entering percentages along last row of the worksheet.

Sheet I1 Intro
T1: EB-2006-0247
T2: EB-2007-0001
T3: EB-2007-0002
B4: Sheet I1 Utility Information Sheet | G4: Version | H4: 3 | T4: EB-2007-0003
B9: Name of LDC: | C9: Peterborough Distribution Inc.
B11: Application EB Number: | C11: EB-2012-0160
B13: Date of Submission: | C13: Ocotber 31, 2012
B16: Name: | C16: Amanda Jankowski
B18: Title: | C18: Manager, Finance and Regulatory Compliance
B20: Phone Number: | C20: (705) 748-9301, ext. 1272
B22: E-Mail Address: | C22: ajankowski@peterboroughutilities.ca
A25: Copyright
A26: This cost allocation model is protected by copyright and is being made available to you solely for the purpose of preparing or reviewing an cost allocation filing. You may use and copy this cost allocation model for that purpose, and provide a copy of this cost allocation model to any person that is advising or assisting you in that regard. Except as indicated above, any copying, reproduction, publication, sale, adaptation, translation, modification, reverse engineering or other use or dissemination of this cost allocation model without the express written consent of the Ontario Energy Board is prohibited. If you provide a copy of this cost allocation model to a person that is advising or assisting you in preparing or reviewing a cost allocation filing, you must ensure that the person understands and agrees to the restrictions noted above.
A29: **Please Note: Colour Coding Legend **
C30: Input Cells
C31: Output Cells
C32: Exhibition
C33: Brought Forward | D33: Brought Forward
C34: Calculation | D34: Calculation
C35: Diagnostic
A37: Brief Description of Each Worksheet's Function
A39: INPUTS | B39: I1 | C39: Intro | D39: Brief explanation of what the pages do.
B40: I2 | C40: LDC data and Classes | D40: Enter LDC specific information and number of classes etc
B41: I3 | C41: TB Data | D41: Forecast Trial Balance
B42: I4 | C42: BO ASSETS | D42: Break out assets into detail functions - bulk deliver, primary and secondary
B43: I5.1 | C43: Misc Data | D43: Input for miscellaneous data where necessary - TBD
B44: I5.2 | C44: Weighting Factors | D44: Invput for weighting factors to be applied to billing and services
B45: I6.1 | C45: Revenue | D45: Input rates and volumes for working up revenue
B46: I6.2 | C46: Customer Data | D46: Input customer related data for generating customer allocators
B47: I7.1 | C47: Meter Capital | D47: Input meter related data for calculating capital costs weighing factors
B48: I7.2 | C48: Meter Reading | D48: Input meter related data for calculating meter reading weighing factors
B49: I8 | C49: Demand Data | D49: Input demand allocators using load data and making LDC specific adjustments
B50: I9 | C50: Direct Allocation
A51: OUTPUTS | B51: O1 | C51: Revenue to cost | D51: Output showing revenue to cost ratios, inter class subsidy etc.
B52: O2 | C52: Fixed Charge | D52: Output showing the range for the Basic Customer charge - TBD
B53: O2.1 | C53: Line Transformer PLCC Adjustment
B54: O2.2 | C54: Primary Cost PLCC Adjustment
B55: O2.3 | C55: Secondary Cost PLCC Adjustment
B56: O3.1 | C56: Line Tran Unit Cost
B57: O3.2 | C57: Substat Tran Unit Cost
B58: O3.3 | C58: Primary Cost Pool
B59: O3.4 | C59: Secondary Cost Pool
B60: O3.5 | C60: USL Metering Credit
B61: O3.6 | C61: MicroFIT Charges
B62: O4 | C62: Summary by Class | D62: Output showing summary of all allocation by class and by US of A
B63: O5 | C63: Detail by Class | D63: Output showing details of individual allocation by class and by USofA
B64: O6 | C64: Source Data for E2
B65: O7 | C65: Amortization
A66: EXHIBITS | B66: E1 | C66: Categorization | D66: Exhibit showing how costs are categorized
B67: E2 | C67: Allocation Factors | D67: Exhibit summarizing all allocation factors created in I5 to I8 and present the findings in percentages
B68: E3 | C68: PLCC | D68: Backup documentation for calculating Peak Load Carrying Capability.
B69: E4 | C69: Trial Balance Index | D69: Exhibit showing 1. how accounts are grouped for reporting, how accounts are categorized and how accounts are allocated
B70: E5 | C70: Reconciliation | D70: Exhibit showing reconciliation of accounts included and excluded from the allocation study to TB balance

Sheet I2 LDC class
C5: Sheet I2 Class Selection - | D5: =C17 -> 
C16: Please Provide a summary of this Run
D19: Utility's Class Definition | E19: Current
B20: 1 | C20: Residential | E20: YES | Q20: yes
B21: 2 | C21: GS <50 | D21: General Service < 50 kW | E21: YES | Q21: yes
B22: 3 | C22: GS>50-Regular | D22: General Service > 50 kW | E22: YES | Q22: yes
B23: 4 | C23: GS> 50-TOU | E23: NO | Q23: yes
B24: 5 | C24: GS >50-Intermediate | E24: NO | Q24: yes
B25: 6 | C25: Large Use >5MW | E25: YES | Q25: yes
B26: 7 | C26: Street Light | D26: Street Lighting | E26: YES | Q26: yes
B27: 8 | C27: Sentinel | D27: Sentinel Lighting | E27: YES | Q27: yes
B28: 9 | C28: Unmetered Scattered Load | E28: YES | Q28: yes
B29: 10 | C29: Embedded Distributor | E29: NO | Q29: yes
B30: 11 | C30: Back-up/Standby Power | E30: NO | Q30: yes
B31: 12 | C31: Rate Class 1 | E31: NO | Q31: yes
B32: 13 | C32: Rate class 2 | E32: NO | Q32: yes
B33: 14 | C33: Rate class 3 | E33: NO | Q33: yes
B34: 15 | C34: Rate class 4 | E34: NO | Q34: yes
B35: 16 | C35: Rate class 5 | E35: NO | Q35: yes
B36: 17 | C36: Rate class 6 | E36: NO | Q36: yes
B37: 18 | C37: Rate class 7 | E37: NO | Q37: yes
B38: 19 | C38: Rate class 8 | E38: NO | Q38: yes
B39: 20 | C39: Rate class 9 | E39: NO | Q39: yes
A44: ** | B44: Space available for additional information about this run

Sheet I3 TB Data
B5: ="Sheet I3 Trial Balance Data - "& 'I2 LDC class'!$C$17 -> Sheet I3 Trial Balance Data -
D10: Return on Deemed Equity | F10: 2359554.012
D11: Income Taxes (Grossed up) | F11: 266650.4823
D12: Deemed Interest Expense | F12: 1632716.439
D13: Adjustment to Return on Rate Base associated with Deferred PP&E balance as a result of transition from CGAAP to MIFRS
D14: Service Revenue Requirement | F14: 16274784.93 | G14: From this Sheet | H14: Differences?
D15: Revenue Requirement to be Used in this model ($) | F15: =ROUND(F14,0) -> 16274785 | G15: =IF(ISERROR(ROUND(F10+F11+F12+ F13+SUM(H344:H358) + SUM(H360:H378)+H382+ SUM(H392:H424) + SUM(H430:H432) + SUM(H435:H437)+H448+SUM(H451:H454)+SUM(G344:G358) + SUM(G360:G378)+G382+ SUM(G392:G424) + SUM(G430:G432) + SUM(G435:G437)+G448+SUM(G451:G454),0)), "Error", ROUND(F10+F11+F12+ F13+SUM(H344:H358) + SUM(H360:H378)+H382+ SUM(H392:H424) + SUM(H430:H432) + SUM(H435:H437)+H448+SUM(H451:H454)+SUM(G344:G358) + SUM(G360:G378)+G382+ SUM(G392:G424) + SUM(G430:G432) + SUM(G435:G437)+G448+SUM(G451:G454),0)) -> 16274785 | H15: =IF(ROUND(F15-G15,-1)=0,"Rev Req Matches", "Rev Req does not match") -> Rev Req Matches | J15: =F15-G15 -> 0
D16: Rate Base ($) | F16: 65689142.88
D17: Rate Base to be Used in this model ($) | F17: =ROUND(F16,0) -> 65689143 | G17: =ROUND(H75+H88+SUM(H116:H130)+SUM(H134:H147)+SUM(H149:H151) + SUM(H153:H156) +H160+ H166+H167+G75+G88+SUM(G116:G130)+SUM(G134:G147)+SUM(G149:G151) + SUM(G153:G156) +G160+ G166+G167+(F15-F10-F11-F12-F13-SUM(H430:H433)-SUM(G430:G433) + SUM(H313:H317)+H319+H322+H323+H429+SUM(G313:G317)+G319+G322+G323+G429-G435-G436-G437-H435-H436-H437) * 'I5.1 Misc Data'!$D$19,0) -> 65689143 | H17: =IF(ROUND(F17-G17,-1)=0,"Rate Base Matches","Rate Base does not match") -> Rate Base Matches | J17: =F17-G17 -> 0 | K17: =J17*(100/13) -> 0
A19: Uniform System of Accounts - Detail Accounts
A20: USoA Account # | B20: Accounts | D20: Forecast Financial Statement | E20: Model Adjustments | F20: Reclassify accounts | G20: Direct Allocation | H20: Reclassified Balance
A21: 1005 | B21: Cash | H21: =+D21+E21+F21-G21 -> 0 | J21: Unclassified Asset
A22: 1010 | B22: Cash Advances and Working Funds | H22: =+D22+E22+F22-G22 -> 0 | J22: Unclassified Asset
A23: 1020 | B23: Interest Special Deposits | H23: 0 | J23: Unclassified Asset
A24: 1030 | B24: Dividend Special Deposits | H24: 0 | J24: Unclassified Asset
A25: 1040 | B25: Other Special Deposits | H25: 0 | J25: Unclassified Asset
A26: 1060 | B26: Term Deposits | H26: 0 | J26: Unclassified Asset
A27: 1070 | B27: Current Investments | H27: 0 | J27: Unclassified Asset
A28: 1100 | B28: Customer Accounts Receivable | H28: 0 | J28: Unclassified Asset
A29: 1102 | B29: Accounts Receivable - Services | H29: 0 | J29: Unclassified Asset
A30: 1104 | B30: Accounts Receivable - Recoverable Work | H30: 0 | J30: Unclassified Asset
A31: 1105 | B31: Accounts Receivable - Merchandise, Jobbing, etc. | H31: 0 | J31: Unclassified Asset
A32: 1110 | B32: Other Accounts Receivable | H32: 0 | J32: Unclassified Asset
A33: 1120 | B33: Accrued Utility Revenues | H33: 0 | J33: Unclassified Asset
A34: 1130 | B34: Accumulated Provision for Uncollectible Accounts--Credit | H34: 0 | J34: Unclassified Asset
A35: 1140 | B35: Interest and Dividends Receivable | H35: 0 | J35: Unclassified Asset
A36: 1150 | B36: Rents Receivable | H36: 0 | J36: Unclassified Asset
A37: 1170 | B37: Notes Receivable | H37: 0 | J37: Unclassified Asset
A38: 1180 | B38: Prepayments | H38: 0 | J38: Unclassified Asset
A39: 1190 | B39: Miscellaneous Current and Accrued Assets | H39: 0 | J39: Unclassified Asset
A40: 1200 | B40: Accounts Receivable from Associated Companies | H40: 0 | J40: Unclassified Asset
A41: 1210 | B41: Notes Receivable from Associated Companies | H41: 0 | J41: Unclassified Asset
A42: 1305 | B42: Fuel Stock | H42: 0 | J42: Unclassified Asset
A43: 1330 | B43: Plant Materials and Operating Supplies | H43: 0 | J43: Unclassified Asset
A44: 1340 | B44: Merchandise | H44: 0 | J44: Unclassified Asset
A45: 1350 | B45: Other Materials and Supplies | H45: 0 | J45: Unclassified Asset
A46: 1405 | B46: Long Term Investments in Non-Associated Companies | H46: 0 | J46: Unclassified Asset
A47: 1408 | B47: Long Term Receivable - Street Lighting Transfer | H47: 0 | J47: Unclassified Asset
A48: 1410 | B48: Other Special or Collateral Funds | H48: 0 | J48: Unclassified Asset
A49: 1415 | B49: Sinking Funds | H49: 0 | J49: Unclassified Asset
A50: 1425 | B50: Unamortized Debt Expense | H50: 0 | J50: Unclassified Asset
A51: 1445 | B51: Unamortized Discount on Long-Term Debt--Debit | H51: 0 | J51: Unclassified Asset
A52: 1455 | B52: Unamortized Deferred Foreign Currency Translation Gains and Losses | H52: 0 | J52: Unclassified Asset
A53: 1460 | B53: Other Non-Current Assets | H53: 0 | J53: Unclassified Asset
A54: 1465 | B54: O.M.E.R.S. Past Service Costs | H54: 0 | J54: Unclassified Asset
A55: 1470 | B55: Past Service Costs - Employee Future Benefits | H55: 0 | J55: Unclassified Asset
A56: 1475 | B56: Past Service Costs - Other Pension Plans | H56: 0 | J56: Unclassified Asset
A57: 1480 | B57: Portfolio Investments - Associated Companies | H57: 0 | J57: Unclassified Asset
A58: 1485 | B58: Investment in Associated Companies - Significant Influence | H58: 0 | J58: Unclassified Asset
A59: 1490 | B59: Investment in Subsidiary Companies | H59: 0 | J59: Unclassified Asset
A60: 1505 | B60: Unrecovered Plant and Regulatory Study Costs | H60: 0 | J60: Unclassified Asset
A61: 1508 | B61: Other Regulatory Assets | H61: 0 | J61: Unclassified Asset
A62: 1510 | B62: Preliminary Survey and Investigation Charges | H62: 0 | J62: Unclassified Asset
A63: 1515 | B63: Emission Allowance Inventory | H63: 0 | J63: Unclassified Asset
A64: 1516 | B64: Emission Allowances Withheld | H64: 0 | J64: Unclassified Asset
A65: 1518 | B65: RCVARetail | H65: 0 | J65: Unclassified Asset
A66: 1520 | B66: Power Purchase Variance Account | H66: 0 | J66: Unclassified Asset
A67: 1525 | B67: Miscellaneous Deferred Debits | H67: 0 | J67: Unclassified Asset
A68: 1530 | B68: Deferred Losses from Disposition of Utility Plant | H68: 0 | J68: Unclassified Asset
A69: 1540 | B69: Unamortized Loss on Reacquired Debt | H69: 0 | J69: Unclassified Asset
A70: 1545 | B70: Development Charge Deposits/ Receivables | H70: 0 | J70: Unclassified Asset
A71: 1548 | B71: RCVASTR | H71: 0 | J71: Unclassified Asset
A72: 1560 | B72: Deferred Development Costs | H72: 0 | J72: Unclassified Asset
A73: 1562 | B73: Deferred Payments in Lieu of Taxes | H73: 0 | J73: Unclassified Asset
A74: 1563 | B74: Account 1563 - Deferred PILs Contra Account | H74: 0 | J74: Unclassified Asset
A75: 1565 | B75: Conservation and Demand Management Expenditures and Recoveries | H75: 0 | J75: CDM Expenditures and Recoveries
A76: 1570 | B76: Qualifying Transition Costs | H76: 0 | J76: Unclassified Asset
A77: 1571 | B77: Pre-market Opening Energy Variance | H77: 0 | J77: Unclassified Asset
A78: 1572 | B78: Extraordinary Event Costs | H78: 0 | J78: Unclassified Asset
A79: 1574 | B79: Deferred Rate Impact Amounts | H79: 0 | J79: Unclassified Asset
A80: 1580 | B80: RSVAWMS | H80: 0 | J80: Unclassified Asset
A81: 1582 | B81: RSVAONE-TIME | H81: 0 | J81: Unclassified Asset
A82: 1584 | B82: RSVANW | H82: 0 | J82: Unclassified Asset
A83: 1586 | B83: RSVACN | H83: 0 | J83: Unclassified Asset
A84: 1588 | B84: RSVAPOWER | H84: 0 | J84: Unclassified Asset
A85: 1590 | B85: Recovery of Regulatory Asset Balances | H85: 0 | J85: Unclassified Asset
A86: 1605 | B86: Electric Plant in Service - Control Account | H86: =+D86+E86+F86-G86 -> 0 | J86: Unclassified Asset
A87: 1606 | B87: Organization | H87: 0 | J87: Non-Distribution Asset
A88: 1608 | B88: Franchises and Consents | H88: 0 | J88: Other Distribution Assets
A89: 1610 | B89: Miscellaneous Intangible Plant | H89: 0 | J89: Non-Distribution Asset
A90: 1615 | B90: Land | H90: 0 | J90: Non-Distribution Asset
A91: 1616 | B91: Land Rights | H91: 0 | J91: Non-Distribution Asset
A92: 1620 | B92: Buildings and Fixtures | H92: 0 | J92: Non-Distribution Asset
A93: 1630 | B93: Leasehold Improvements | H93: 0 | J93: Non-Distribution Asset
A94: 1635 | B94: Boiler Plant Equipment | H94: 0 | J94: Non-Distribution Asset
A95: 1640 | B95: Engines and Engine-Driven Generators | H95: 0 | J95: Non-Distribution Asset
A96: 1645 | B96: Turbogenerator Units | H96: 0 | J96: Non-Distribution Asset
A97: 1650 | B97: Reservoirs, Dams and Waterways | H97: 0 | J97: Non-Distribution Asset
A98: 1655 | B98: Water Wheels, Turbines and Generators | H98: 0 | J98: Non-Distribution Asset
A99: 1660 | B99: Roads, Railroads and Bridges | H99: 0 | J99: Non-Distribution Asset
A100: 1665 | B100: Fuel Holders, Producers and Accessories | H100: 0 | J100: Non-Distribution Asset
A101: 1670 | B101: Prime Movers | H101: 0 | J101: Non-Distribution Asset
A102: 1675 | B102: Generators | H102: 0 | J102: Non-Distribution Asset
A103: 1680 | B103: Accessory Electric Equipment | H103: 0 | J103: Non-Distribution Asset
A104: 1685 | B104: Miscellaneous Power Plant Equipment | H104: 0 | J104: Non-Distribution Asset
A105: 1705 | B105: Land | H105: 0 | J105: Non-Distribution Asset
A106: 1706 | B106: Land Rights | H106: 0 | J106: Non-Distribution Asset
A107: 1708 | B107: Buildings and Fixtures | H107: 0 | J107: Non-Distribution Asset
A108: 1710 | B108: Leasehold Improvements | H108: 0 | J108: Non-Distribution Asset
A109: 1715 | B109: Station Equipment | H109: 0 | J109: Non-Distribution Asset
A110: 1720 | B110: Towers and Fixtures | H110: 0 | J110: Non-Distribution Asset
A111: 1725 | B111: Poles and Fixtures | H111: 0 | J111: Non-Distribution Asset
A112: 1730 | B112: Overhead Conductors and Devices | H112: 0 | J112: Non-Distribution Asset
A113: 1735 | B113: Underground Conduit | H113: 0 | J113: Non-Distribution Asset
A114: 1740 | B114: Underground Conductors and Devices | H114: 0 | J114: Non-Distribution Asset
A115: 1745 | B115: Roads and Trails | H115: 0 | J115: Non-Distribution Asset
A116: 1805 | B116: Land | D116: 199968 | H116: 199968 | J116: Land and Buildings
A117: 1806 | B117: Land Rights | D117: 0 | H117: 0 | J117: Land and Buildings
A118: 1808 | B118: Buildings and Fixtures | D118: 486331 | H118: 486331 | J118: Land and Buildings
A119: 1810 | B119: Leasehold Improvements | D119: 0 | H119: 0 | J119: Land and Buildings
A120: 1815 | B120: Transformer Station Equipment - Normally Primary above 50 kV | D120: 0 | H120: 0 | J120: TS Primary Above 50
A121: 1820 | B121: Distribution Station Equipment - Normally Primary below 50 kV | D121: 3722995 | H121: 3722995 | J121: DS
A122: 1825 | B122: Storage Battery Equipment | D122: 0 | H122: 0 | J122: Other Distribution Assets
A123: 1830 | B123: Poles, Towers and Fixtures | D123: 24020183 | H123: 24020183 | J123: Poles, Wires
A124: 1835 | B124: Overhead Conductors and Devices | D124: 11526061 | H124: 11526061 | J124: Poles, Wires
A125: 1840 | B125: Underground Conduit | D125: 16544141 | H125: 16544141 | J125: Poles, Wires
A126: 1845 | B126: Underground Conductors and Devices | D126: 5755005 | H126: 5755005 | J126: Poles, Wires
A127: 1850 | B127: Line Transformers | D127: 20450652 | H127: 20450652 | J127: Line Transformers
A128: 1855 | B128: Services | D128: 15577849 | H128: 15577849 | J128: Services and Meters
A129: 1860 | B129: Meters | D129: 7009040 | H129: 7009040 | J129: Services and Meters
A130: 9999 | B130: IFRS Placeholder Asset Account | D130: 0 | H130: 0 | J130: IFRS Placeholder Asset Account
A131: 1865 | B131: Other Installations on Customer's Premises | D131: 0 | H131: 0 | J131: Non-Distribution Asset
A132: 1870 | B132: Leased Property on Customer Premises | D132: 0 | H132: 0 | J132: Non-Distribution Asset
A133: 1875 | B133: Street Lighting and Signal Systems | D133: 0 | H133: 0 | J133: Non-Distribution Asset
A134: 1905 | B134: Land | D134: 0 | H134: 0 | J134: Land and Buildings
A135: 1906 | B135: Land Rights | D135: 0 | H135: 0 | J135: Land and Buildings
A136: 1908 | B136: Buildings and Fixtures | D136: 0 | H136: 0 | J136: General Plant
A137: 1910 | B137: Leasehold Improvements | D137: 0 | H137: 0 | J137: General Plant
A138: 1915 | B138: Office Furniture and Equipment | D138: 0 | H138: 0 | J138: Equipment
A139: 1920 | B139: Computer Equipment - Hardware | D139: 44877 | H139: 44877 | J139: IT Assets
A140: 1925 | B140: Computer Software | D140: 1134711 | H140: 1134711 | J140: IT Assets
A141: 1930 | B141: Transportation Equipment | D141: 0 | H141: 0 | J141: Equipment
A142: 1935 | B142: Stores Equipment | D142: 0 | H142: 0 | J142: Equipment
A143: 1940 | B143: Tools, Shop and Garage Equipment | D143: 0 | H143: 0 | J143: Equipment
A144: 1945 | B144: Measurement and Testing Equipment | D144: 0 | H144: 0 | J144: Equipment
A145: 1950 | B145: Power Operated Equipment | D145: 82385 | H145: 82385 | J145: Equipment
A146: 1955 | B146: Communication Equipment | D146: 1638219 | H146: 1638219 | J146: Equipment
A147: 1960 | B147: Miscellaneous Equipment | D147: 0 | H147: 0 | J147: Equipment
A148: 1965 | B148: Water Heater Rental Units | D148: 0 | H148: 0 | J148: Non-Distribution Asset
A149: 1970 | B149: Load Management Controls - Customer Premises | D149: 0 | H149: 0 | J149: Other Distribution Assets
A150: 1975 | B150: Load Management Controls - Utility Premises | D150: 0 | H150: 0 | J150: Other Distribution Assets
A151: 1980 | B151: System Supervisory Equipment | D151: 0 | H151: =+D151+E151+F151-G151 -> 0 | J151: Other Distribution Assets
A152: 1985 | B152: Sentinel Lighting Rental Units | D152: 0 | H152: 0 | J152: Non-Distribution Asset
A153: 1990 | B153: Other Tangible Property | D153: 0 | H153: 0 | J153: Other Distribution Assets
A154: 1995 | B154: Contributions and Grants - Credit | D154: -13853111 | H154: -13853111 | J154: Contributions and Grants
A155: 2005 | B155: Property Under Capital Leases | H155: 0 | J155: Other Distribution Assets
A156: 2010 | B156: Electric Plant Purchased or Sold | H156: 0 | J156: Other Distribution Assets
A157: 2020 | B157: Experimental Electric Plant Unclassified | H157: 0 | J157: Non-Distribution Asset
A158: 2030 | B158: Electric Plant and Equipment Leased to Others | H158: 0 | J158: Non-Distribution Asset
A159: 2040 | B159: Electric Plant Held for Future Use | H159: 0 | J159: Non-Distribution Asset
A160: 2050 | B160: Completed Construction Not Classified--Electric | H160: 0 | J160: Other Distribution Assets
A161: 2055 | B161: Construction Work in Progress--Electric | H161: 0 | J161: Non-Distribution Asset
A162: 2060 | B162: Electric Plant Acquisition Adjustment | H162: 0 | J162: Unclassified Asset
A163: 2065 | B163: Other Electric Plant Adjustment | H163: 0 | J163: Non-Distribution Asset
A164: 2070 | B164: Other Utility Plant | H164: 0 | J164: Non-Distribution Asset
A165: 2075 | B165: Non-Utility Property Owned or Under Capital Leases | H165: 0 | J165: Non-Distribution Asset
A166: 2105 | B166: Accum. Amortization of Electric Utility Plant - Property, Plant, & Equipment | D166: -40738125.5 | H166: -40738125.5 | J166: Accumulated Amortization
A167: 2120 | B167: Accumulated Amortization of Electric Utility Plant - Intangibles | H167: 0 | J167: Accumulated Amortization
A168: 2140 | B168: Accumulated Amortization of Electric Plant Acquisition Adjustment | H168: 0 | J168: Unclassified Asset
A169: 2160 | B169: Accumulated Amortization of Other Utility Plant | H169: 0 | J169: Non-Distribution Asset
A170: 2180 | B170: Accumulated Amortization of Non-Utility Property | H170: 0 | J170: Non-Distribution Asset
A171: 2205 | B171: Accounts Payable | H171: 0 | J171: Liability
A172: 2208 | B172: Customer Credit Balances | H172: 0 | J172: Liability
A173: 2210 | B173: Current Portion of Customer Deposits | H173: 0 | J173: Liability
A174: 2215 | B174: Dividends Declared | H174: 0 | J174: Liability
A175: 2220 | B175: Miscellaneous Current and Accrued Liabilities | H175: 0 | J175: Liability
A176: 2225 | B176: Notes and Loans Payable | H176: 0 | J176: Liability
A177: 2240 | B177: Accounts Payable to Associated Companies | H177: 0 | J177: Liability
A178: 2242 | B178: Notes Payable to Associated Companies | H178: 0 | J178: Liability
A179: 2250 | B179: Debt Retirement Charges( DRC) Payable | H179: 0 | J179: Liability
A180: 2252 | B180: Transmission Charges Payable | H180: 0 | J180: Liability
A181: 2254 | B181: Electrical Safety Authority Fees Payable | H181: 0 | J181: Liability
A182: 2256 | B182: Independent Market Operator Fees and Penalties Payable | H182: 0 | J182: Liability
A183: 2260 | B183: Current Portion of Long Term Debt | H183: 0 | J183: Liability
A184: 2262 | B184: Ontario Hydro Debt - Current Portion | H184: 0 | J184: Liability
A185: 2264 | B185: Pensions and Employee Benefits - Current Portion | H185: 0 | J185: Liability
A186: 2268 | B186: Accrued Interest on Long Term Debt | H186: 0 | J186: Liability
A187: 2270 | B187: Matured Long Term Debt | H187: 0 | J187: Liability
A188: 2272 | B188: Matured Interest on Long Term Debt | H188: 0 | J188: Liability
A189: 2285 | B189: Obligations Under Capital Leases--Current | H189: 0 | J189: Liability
A190: 2290 | B190: Commodity Taxes | H190: 0 | J190: Liability
A191: 2292 | B191: Payroll Deductions / Expenses Payable | H191: 0 | J191: Liability
A192: 2294 | B192: Accrual for Taxes, Payments in Lieu of Taxes, Etc. | H192: 0 | J192: Liability
A193: 2296 | B193: Future Income Taxes - Current | H193: 0 | J193: Liability
A194: 2305 | B194: Accumulated Provision for Injuries and Damages | H194: 0 | J194: Liability
A195: 2306 | B195: Employee Future Benefits | H195: 0 | J195: Liability
A196: 2308 | B196: Other Pensions - Past Service Liability | H196: 0 | J196: Liability
A197: 2310 | B197: Vested Sick Leave Liability | H197: 0 | J197: Liability
A198: 2315 | B198: Accumulated Provision for Rate Refunds | H198: 0 | J198: Liability
A199: 2320 | B199: Other Miscellaneous Non-Current Liabilities | H199: 0 | J199: Liability
A200: 2325 | B200: Obligations Under Capital Lease--Non-Current | H200: 0 | J200: Liability
A201: 2330 | B201: Development Charge Fund | H201: 0 | J201: Liability
A202: 2335 | B202: Long Term Customer Deposits | H202: 0 | J202: Liability
A203: 2340 | B203: Collateral Funds Liability | H203: 0 | J203: Liability
A204: 2345 | B204: Unamortized Premium on Long Term Debt | H204: 0 | J204: Liability
A205: 2348 | B205: O.M.E.R.S. - Past Service Liability - Long Term Portion | H205: 0 | J205: Liability
A206: 2350 | B206: Future Income Tax - Non-Current | H206: 0 | J206: Liability
A207: 2405 | B207: Other Regulatory Liabilities | H207: 0 | J207: Liability
A208: 2410 | B208: Deferred Gains from Disposition of Utility Plant | H208: 0 | J208: Liability
A209: 2415 | B209: Unamortized Gain on Reacquired Debt | H209: 0 | J209: Liability
... 300 more rows

Sheet I4 BO ASSETS
B5: ="Sheet I4 Break Out Worksheet - "& 'I2 LDC class'!$C$17 -> Sheet I4 Break Out Worksheet -
A12: Enter Net Fixed Assets from the Revenue Requirement Work Form, Rate Base sheet, cell G15 | C12: 53601180.5
A14: RATE BASE AND DISTRIBUTION ASSETS | C14: BALANCE SHEET ITEMS | L14: EXPENSE ITEMS
L15: 5705 | M15: 5710 | N15: 5715 | O15: 5720
A16: Account | B16: Description | C16: Break out Functions | D16: BREAK OUT (%) | E16: BREAK OUT ($) | F16: After BO | G16: Contributed Capital - 1995 | H16: Accumulated Depreciation - 2105 Capital Contribution | I16: Accumulated Depreciation - 2105 Fixed Assets Only | J16: Accumulated Depreciation - 2120 | K16: Asset net of Accumulated Depreciation and Contributed Capital | L16: Amortization Expense - Property, Plant, and Equipment | M16: Amortization of Limited Term Electric Plant | N16: Amortization of Intangibles and Other Electric Plant | O16: Amortization of Electric Plant Acquisition Adjustments | R16: 2105 Accum Depr | S16: 5705 Gross Deprec | T16: Adjust Cap Contrib Depre
A17: 1565 | B17: Conservation and Demand Management | C17: =+'I3 TB Data'!H75 -> 0 | E17: 0 | F17: =+E17+C17 -> 0 | K17: =+F17+G17+H17+I17+J17 -> 0
A18: 1805 | B18: Land | C18: =+'I3 TB Data'!H116 -> 199968 | E18: =-SUM(E19:E20) -> -199968 | F18: =+E18+C18 -> 0 | Q18: 1805 | R18: 0 | S18: 0 | U18: =S18+T18 -> 0
A19: 1805-1 | B19: Land Station >50 kV | E19: =C18*D19 -> 0 | F19: =E19 -> 0 | K19: 0
A20: 1805-2 | B20: Land Station <50 kV | D20: =1-D19 -> 1 | E20: =C18*D20 -> 199968 | F20: =E20 -> 199968 | I20: =R18 -> 0 | K20: 199968 | L20: =U18 -> 0
A21: 1806 | B21: Land Rights | C21: =+'I3 TB Data'!H117 -> 0 | E21: =-SUM(E22:E23) -> 0 | F21: =+E21+C21 -> 0 | Q21: 1806 | R21: 0 | S21: 0 | U21: =S21+T21 -> 0
A22: 1806-1 | B22: Land Rights Station >50 kV | E22: =C21*D22 -> 0 | F22: =E22 -> 0 | K22: 0
A23: 1806-2 | B23: Land Rights Station <50 kV | D23: =1-D22 -> 1 | E23: =C21*D23 -> 0 | F23: =E23 -> 0 | K23: 0
A24: 1808 | B24: Buildings and Fixtures | C24: =+'I3 TB Data'!H118 -> 486331 | E24: =-SUM(E25:E26) -> -486331 | F24: =+E24+C24 -> 0 | Q24: 1808 | R24: -90339 | S24: 9482 | U24: =S24+T24 -> 9482
A25: 1808-1 | B25: Buildings and Fixtures > 50 kV | E25: =C24*D25 -> 0 | F25: =E25 -> 0 | K25: 0
A26: 1808-2 | B26: Buildings and Fixtures < 50 KV | D26: =1-D25 -> 1 | E26: =C24*D26 -> 486331 | F26: =E26 -> 486331 | I26: =R24 -> -90339 | K26: 395992 | L26: =U24 -> 9482
A27: 1810 | B27: Leasehold Improvements | C27: =+'I3 TB Data'!H119 -> 0 | E27: =-SUM(E28:E29) -> 0 | F27: =+E27+C27 -> 0 | Q27: 1810 | R27: 0 | S27: 0 | U27: =S27+T27 -> 0
A28: 1810-1 | B28: Leasehold Improvements >50 kV | E28: =C27*D28 -> 0 | F28: =E28 -> 0 | K28: 0
A29: 1810-2 | B29: Leasehold Improvements <50 kV | D29: =1-D28 -> 1 | E29: =C27*D29 -> 0 | F29: =E29 -> 0 | K29: 0
A30: 1815 | B30: Transformer Station Equipment - Normally Primary above 50 kV | C30: =+'I3 TB Data'!H120 -> 0 | E30: 0 | F30: =+E30+C30 -> 0 | K30: 0 | Q30: 1815
A31: 1820 | B31: Distribution Station Equipment - Normally Primary below 50 kV | C31: =+'I3 TB Data'!H121 -> 3722995 | E31: =-SUM(E32:E34) -> -3722995 | F31: =+E31+C31 -> 0 | K31: 0 | Q31: 1820 | R31: -1367936 | S31: 142806 | U31: =S31+T31 -> 142806
A32: 1820-1 | B32: Distribution Station Equipment - Normally Primary below 50 kV (Bulk) | E32: =C31*D32 -> 0 | F32: =E32 -> 0 | K32: 0
A33: 1820-2 | B33: Distribution Station Equipment - Normally Primary below 50 kV Primary) | D33: 0.72 | E33: =C31*D33 -> 2680556.4 | F33: =E33 -> 2680556.4 | I33: =R31*D33 -> -984913.92 | K33: 1695642.48 | L33: =U31*D33 -> 102820.32
A34: 1820-3 | B34: Distribution Station Equipment - Normally Primary below 50 kV (Wholesale Meters) | D34: =1-(D32+D33) -> 0.28 | E34: =C31*D34 -> 1042438.6 | F34: =E34 -> 1042438.6 | I34: =R31*D34 -> -383022.08 | K34: 659416.52 | L34: =U31*D34 -> 39985.68
A35: 1825 | B35: Storage Battery Equipment | C35: =+'I3 TB Data'!H122 -> 0 | E35: =-SUM(E36:E37) -> 0 | F35: =+E35+C35 -> 0 | Q35: 1825 | R35: 0 | S35: 0 | U35: =S35+T35 -> 0
A36: 1825-1 | B36: Storage Battery Equipment > 50 kV | E36: =C35*D36 -> 0 | F36: =E36 -> 0 | K36: 0
A37: 1825-2 | B37: Storage Battery Equipment <50 kV | D37: =1-D36 -> 1 | E37: =C35*D37 -> 0 | F37: =E37 -> 0 | K37: 0
A38: 1830 | B38: Poles, Towers and Fixtures | C38: =+'I3 TB Data'!H123 -> 24020183 | E38: =-SUM(E39:E41) -> -24020183 | F38: =+E38+C38 -> 0 | Q38: 1830 | R38: -11874006.5 | S38: 543558 | U38: =S38+T38-2825+1042 -> 541775
A39: 1830-3 | B39: Poles, Towers and Fixtures - Subtransmission Bulk Delivery | E39: =C38*D39 -> 0 | F39: =E39 -> 0 | K39: 0
A40: 1830-4 | B40: Poles, Towers and Fixtures - Primary | D40: 0.75 | E40: =C38*D40 -> 18015137.25 | F40: =E40 -> 18015137.25 | G40: -1173158.25 | H40: 0 | I40: =R38*D40 -> -8905504.875 | K40: 7936474.125 | L40: =U38*D40 -> 406331.25
A41: 1830-5 | B41: Poles, Towers and Fixtures - Secondary | D41: =1-(D39+D40) -> 0.25 | E41: =C38*D41 -> 6005045.75 | F41: =E41 -> 6005045.75 | G41: -391052.75 | H41: 0 | I41: =R38*D41 -> -2968501.625 | K41: 2645491.375 | L41: =U38*D41 -> 135443.75
A42: 1835 | B42: Overhead Conductors and Devices | C42: =+'I3 TB Data'!H124 -> 11526061 | E42: =-SUM(E43:E45) -> -11526061 | F42: =+E42+C42 -> 0 | Q42: 1835 | R42: -2690007 | S42: 206478 | U42: =S42+T42 -> 206478
A43: 1835-3 | B43: Overhead Conductors and Devices - Subtransmission Bulk Delivery | E43: =C42*D43 -> 0 | F43: =E43 -> 0 | K43: 0
A44: 1835-4 | B44: Overhead Conductors and Devices - Primary | D44: 0.75 | E44: =C42*D44 -> 8644545.75 | F44: =E44 -> 8644545.75 | G44: -558438.75 | H44: 0 | I44: =R42*D44 -> -2017505.25 | K44: 6068601.75 | L44: =U42*D44 -> 154858.5
A45: 1835-5 | B45: Overhead Conductors and Devices - Secondary | D45: =1-(D43+D44) -> 0.25 | E45: =C42*D45 -> 2881515.25 | F45: =E45 -> 2881515.25 | G45: -186146.25 | H45: 0 | I45: =R42*D45 -> -672501.75 | K45: 2022867.25 | L45: =U42*D45 -> 51619.5
A46: 1840 | B46: Underground Conduit | C46: =+'I3 TB Data'!H125 -> 16544141 | E46: =-SUM(E47:E49) -> -16544141 | F46: =+E46+C46 -> 0 | Q46: 1840 | R46: -6441587.5 | S46: 329225 | U46: =S46+T46 -> 329225
A47: 1840-3 | B47: Underground Conduit - Bulk Delivery | E47: =C46*D47 -> 0 | F47: =E47 -> 0 | K47: 0
A48: 1840-4 | B48: Underground Conduit - Primary | D48: 0.6 | E48: =C46*D48 -> 9926484.6 | F48: =E48 -> 9926484.6 | G48: -1349179.2 | H48: 0 | I48: =R46*D48 -> -3864952.5 | K48: 4712352.9 | L48: =U46*D48 -> 197535
A49: 1840-5 | B49: Underground Conduit - Secondary | D49: =1-(D47+D48) -> 0.4 | E49: =C46*D49 -> 6617656.4 | F49: =E49 -> 6617656.4 | G49: -899452.8 | H49: 0 | I49: =R46*D49 -> -2576635 | K49: 3141568.6 | L49: =U46*D49 -> 131690
A50: 1845 | B50: Underground Conductors and Devices | C50: =+'I3 TB Data'!H126 -> 5755005 | E50: =-SUM(E51:E53) -> -5755005 | F50: =+E50+C50 -> 0 | Q50: 1845 | R50: -907297.5 | S50: 94941 | U50: =S50+T50 -> 94941
A51: 1845-3 | B51: Underground Conductors and Devices - Bulk Delivery | E51: =C50*D51 -> 0 | F51: =E51 -> 0 | K51: 0
A52: 1845-4 | B52: Underground Conductors and Devices - Primary | D52: 0.4 | E52: =C50*D52 -> 2302002 | F52: =E52 -> 2302002 | G52: -797806.8 | H52: 0 | I52: =R50*D52 -> -362919 | K52: 1141276.2 | L52: =U50*D52 -> 37976.4
A53: 1845-5 | B53: Underground Conductors and Devices - Secondary | D53: =1-(D51+D52) -> 0.6 | E53: =C50*D53 -> 3453003 | F53: =E53 -> 3453003 | G53: -1196710.2 | H53: 0 | I53: =R50*D53 -> -544378.5 | K53: 1711914.3 | L53: =U50*D53 -> 56964.6
A54: 1850 | B54: Line Transformers | C54: =+'I3 TB Data'!H127 -> 20450652 | E54: 0 | F54: =+E54+C54 -> 20450652 | G54: -2123896 | H54: 0 | I54: =R54 -> -8536020.5 | K54: 9790735.5 | L54: =U54 -> 485443 | Q54: 1850 | R54: -8536020.5 | S54: 485443 | U54: =S54+T54 -> 485443
A55: 1855 | B55: Services | C55: =+'I3 TB Data'!H128 -> 15577849 | E55: 0 | F55: =+E55+C55 -> 15577849 | G55: -5174894 | H55: 0 | I55: =R55 -> -4305201 | K55: 6097754 | L55: =U55 -> 224042 | Q55: 1855 | R55: -4305201 | S55: 224042 | U55: =S55+T55 -> 224042
A56: 1860 | B56: Meters | C56: =+'I3 TB Data'!H129 -> 7009040 | E56: 0 | F56: =+E56+C56 -> 7009040 | G56: -2376 | H56: 0 | I56: -2223684 | K56: 4782980 | L56: 431960 | Q56: 1860 | R56: -2223684 | S56: 431960 | U56: 431960
A57: 9999 | B57: IFRS Placeholder Account | C57: =+'I3 TB Data'!H130 -> 0 | E57: 0 | F57: =+E57+C57 -> 0 | K57: =+F57+G57+H57+I57+J57 -> 0
B58: Total | C58: =SUM(C17:C57) -> 105292225 | E58: =SUM(E17:E57) -> 0 | F58: 105292225 | G58: -13853111 | H58: 0 | I58: -38436079 | J58: 0 | K58: =+F58+G58+H58+I58+J58 -> 53003035 | L58: =SUM(L17:L57) -> 2466152 | M58: =SUM(M17:M57) -> 0 | N58: =SUM(N17:N57) -> 0 | O58: =SUM(O17:O57) -> 0
B59: SUB TOTAL from I3 | C59: =+SUM('I3 TB Data'!H116:H129)+'I3 TB Data'!H75 -> 105292225 | E59: =IF(ROUND(E58,-1)<>0, "Breakout does not match Total", "") -> 
L60: 5705 | M60: 5710 | N60: 5715 | O60: 5720
A61: General Plant | C61: Break out Functions | G61: Contributed Capital - 1995 | H61: Accumulated Depreciation - 2105 Capital Contribution | I61: Accumulated Depreciation - 2105 Fixed Assets Only | J61: Accumulated Depreciation - 2120 | K61: Net Asset | L61: Amortization Expense - Property, Plant, and Equipment | M61: Amortization of Limited Term Electric Plant | N61: Amortization of Intangibles and Other Electric Plant | O61: Amortization of Electric Plant Acquisition Adjustments
A62: 1905 | B62: Land | C62: ='I3 TB Data'!H134 -> 0 | F62: =+E62+C62 -> 0 | I62: =R62 -> 0 | K62: =+F62+G62+H62+I62+J62 -> 0 | L62: =U62 -> 0 | Q62: 1905 | R62: 0 | S62: 0 | U62: =S62+T62 -> 0
A63: 1906 | B63: Land Rights | C63: ='I3 TB Data'!H135 -> 0 | F63: 0 | I63: 0 | K63: =+F63+G63+H63+I63+J63 -> 0 | L63: =U63 -> 0 | Q63: 1906 | R63: 0 | S63: 0 | U63: 0
A64: 1908 | B64: Buildings and Fixtures | C64: ='I3 TB Data'!H136 -> 0 | F64: 0 | I64: 0 | K64: =+F64+G64+H64+I64+J64 -> 0 | L64: 0 | Q64: 1908 | R64: 0 | S64: 0 | U64: 0
A65: 1910 | B65: Leasehold Improvements | C65: ='I3 TB Data'!H137 -> 0 | F65: 0 | I65: 0 | K65: 0 | L65: 0 | Q65: 1910 | R65: 0 | S65: 0 | U65: 0
A66: 1915 | B66: Office Furniture and Equipment | C66: ='I3 TB Data'!H138 -> 0 | F66: 0 | I66: 0 | K66: 0 | L66: 0 | Q66: 1915 | R66: 0 | S66: 0 | U66: 0
A67: 1920 | B67: Computer Equipment - Hardware | C67: ='I3 TB Data'!H139 -> 44877 | F67: 44877 | I67: =R67 -> -38326.5 | K67: 6550.5 | L67: 6735 | Q67: 1920 | R67: -38326.5 | S67: 6735 | U67: 6735
A68: 1925 | B68: Computer Software | C68: ='I3 TB Data'!H140 -> 1134711 | F68: 1134711 | I68: -592472.5 | K68: 542238.5 | L68: 195393 | Q68: 1925 | R68: -592472.5 | S68: 195393 | U68: 195393
A69: 1930 | B69: Transportation Equipment | C69: ='I3 TB Data'!H141 -> 0 | F69: 0 | I69: 0 | K69: 0 | L69: 0 | Q69: 1930 | R69: 0 | S69: 0 | U69: 0
A70: 1935 | B70: Stores Equipment | C70: ='I3 TB Data'!H142 -> 0 | F70: 0 | I70: 0 | K70: 0 | L70: 0 | Q70: 1935 | R70: 0 | S70: 0 | U70: 0
A71: 1940 | B71: Tools, Shop and Garage Equipment | C71: ='I3 TB Data'!H143 -> 0 | F71: 0 | I71: 0 | K71: 0 | L71: 0 | Q71: 1940 | R71: 0 | S71: 0 | U71: 0
A72: 1945 | B72: Measurement and Testing Equipment | C72: ='I3 TB Data'!H144 -> 0 | F72: 0 | I72: 0 | K72: 0 | L72: 0 | Q72: 1945 | R72: 0 | S72: 0 | U72: 0
A73: 1950 | B73: Power Operated Equipment | C73: ='I3 TB Data'!H145 -> 82385 | F73: 82385 | I73: 0 | K73: 82385 | L73: 0 | Q73: 1950 | R73: 0 | S73: 0 | U73: 0
A74: 1955 | B74: Communication Equipment | C74: ='I3 TB Data'!H146 -> 1638219 | F74: 1638219 | I74: 0 | K74: 1638219 | L74: 0 | Q74: 1955 | R74: 0 | S74: 0 | U74: 0
A75: 1960 | B75: Miscellaneous Equipment | C75: ='I3 TB Data'!H147 -> 0 | F75: 0 | I75: -82385 | K75: -82385 | L75: 0 | Q75: 1960 | R75: -82385 | S75: 0 | U75: 0
A76: 1970 | B76: Load Management Controls - Customer Premises | C76: ='I3 TB Data'!H149 -> 0 | F76: 0 | I76: -1588862.5 | K76: -1588862.5 | L76: 3793 | Q76: 1970 | R76: -1588862.5 | S76: 3793 | U76: 3793
A77: 1975 | B77: Load Management Controls - Utility Premises | C77: ='I3 TB Data'!H150 -> 0 | F77: 0 | I77: 0 | K77: 0 | L77: 0 | Q77: 1975 | R77: 0 | S77: 0 | U77: 0
A78: 1980 | B78: System Supervisory Equipment | C78: ='I3 TB Data'!H151 -> 0 | F78: 0 | I78: 0 | K78: 0 | L78: 0 | Q78: 1980 | R78: 0 | S78: 0 | U78: 0
A79: 1990 | B79: Other Tangible Property | C79: ='I3 TB Data'!H153 -> 0 | F79: 0 | I79: 0 | K79: 0 | L79: 0 | Q79: 1990 | R79: 0 | S79: 0 | U79: 0
A80: 2005 | B80: Property Under Capital Leases | C80: ='I3 TB Data'!H155 -> 0 | F80: 0 | I80: 0 | K80: 0 | L80: 0 | Q80: 2005 | R80: 0 | S80: 0 | U80: 0
A81: 2010 | B81: Electric Plant Purchased or Sold | C81: =+'I3 TB Data'!H156 -> 0 | F81: 0 | I81: 0 | K81: 0 | L81: 0 | Q81: 2010 | R81: 0 | S81: 0 | U81: 0
R82: =SUM(R17:R81) -> -40738125.5 | S82: =SUM(S18:S81) -> 2673856 | T82: =SUM(T18:T81) -> 0 | U82: =SUM(U18:U81) -> 2672073
B83: Total | C83: =SUM(C62:C81) -> 2900192 | E83: 0 | F83: 2900192 | G83: 0 | H83: 0 | I83: -2302046.5 | J83: =SUM(J62:J81) -> 0 | K83: 598145.5 | L83: 205921 | M83: 0 | N83: 0 | O83: 0 | T83: 0
B84: SUB TOTAL from I3 | C84: =+SUM('I3 TB Data'!H134:H153)+'I3 TB Data'!H155+'I3 TB Data'!H156 -> 2900192 | T84: =T82-T83 -> 0
B85: I3 Directly Allocated | C85: ='I3 TB Data'!G467 -> 0
B86: Grand Total | C86: =+C83+C58+C85 -> 108192417 | E86: =+E83+E58 -> 0 | F86: 108192417 | G86: -13853111 | H86: 0 | I86: -40738125.5 | J86: 0 | K86: =+K83+K58 -> 53601180.5 | L86: =+L83+L58 -> 2672073 | M86: =+M83+M58 -> 0 | N86: =+N83+N58 -> 0 | O86: =+O83+O58 -> 0
A87: To be Prorated
A89: 1995 | B89: Contributed Capital - 1995 | C89: =ROUND('I3 TB Data'!H154,0) -> -13853111 | G89: =-G83-G58 -> 13853111 | H89: =IF(ROUND(C89-G86,-1)<>0,"Error out of balance","Balanced") -> Balanced
A90: 2105 | B90: Accumulated Depreciation - 2105 | C90: =ROUND('I3 TB Data'!H166,0) -> -40738126 | I90: =-H83-H58+(-I83-I58) -> 40738125.5 | J90: =IF(ROUND(C90-H86-I86,-1)<>0,"Error out of balance","Balanced") -> Balanced
A91: 2120 | B91: Accumulated Depreciation - 2120 | C91: =ROUND('I3 TB Data'!H167,0) -> 0 | J91: =-J83-J58 -> 0 | K91: =IF(ROUND(C91-J86,-1)<>0,"Error out of balance","Balanced") -> Balanced
B92: Total | C92: =+SUM(C89:C91) -> -54591237
B93: Net Assets | C93: =+C86+C92 -> 53601180 | D93: =IF((ROUND(C93-C12,-1))<>0,"Net Fixed Assets Do Not Match","Net Fixed Assets Match") -> Net Fixed Assets Match
A95: Amortization Expenses
A96: 5705 | B96: Amortization Expense - Property, Plant, and Equipment | C96: =ROUND('I3 TB Data'!H430,0) -> 2672073 | L96: =-L83-L58 -> -2672073 | M96: =IF(ROUND(C96-L86,-1)<>0,"Error out of balance","Balanced") -> Balanced
A97: 5710 | B97: Amortization of Limited Term Electric Plant | C97: =ROUND('I3 TB Data'!H431,0) -> 0 | M97: =-M83-M58 -> 0 | N97: =IF(ROUND(C97-M86,-1)<>0,"Error out of balance","Balanced") -> Balanced
A98: 5715 | B98: Amortization of Intangibles and Other Electric Plant | C98: =ROUND('I3 TB Data'!H432,0) -> 0 | N98: =-N83-N58 -> 0 | O98: =IF(ROUND(C98-N86,-1)<>0,"Error out of balance","Balanced") -> Balanced
A99: 5720 | B99: Amortization of Electric Plant Acquisition Adjustments | C99: =ROUND('I3 TB Data'!H433,0) -> 0 | O99: =-O83-O58 -> 0 | P99: =IF(ROUND(C99-O86,-1)<>0,"Error out of balance","Balanced") -> Balanced
B100: Total Amortization Expense | C100: =+SUM(C96:C99) -> 2672073

Sheet I5.1 Misc Data
B5: ="Sheet I5.1 Miscellaneous Data Worksheet - "& 'I2 LDC class'!$C$17 -> Sheet I5.1 Miscellaneous Data Worksheet -
A15: kMs of Roads in Service Area Where Distribution Lines Exist | D15: 501
A17: Deemed Equity Component of Rate Base (%) | D17: 0.4
A19: Working Capital Allowance to be included in Rate Base | D19: 0.13
A21: Portion of pole leasing revenue from Secondary - Remainder assumed to be Primary (%) | D21: ='I4 BO ASSETS'!D41 -> 0.25
D24: 1 | E24: 2 | F24: 3 | G24: 4 | H24: 5 | I24: 6 | J24: 7 | K24: 8 | L24: 9 | M24: 10 | N24: 11 | O24: 12 | P24: 13 | Q24: 14 | R24: 15 | S24: 16 | T24: 17 | U24: 18 | V24: 19 | W24: 20
D25: =IF('I2 LDC class'!$D20="",'I2 LDC class'!$C20,'I2 LDC class'!$D20) -> Residential | E25: =IF('I2 LDC class'!$D21="",'I2 LDC class'!$C21,'I2 LDC class'!$D21) -> General Service < 50 kW | F25: =IF('I2 LDC class'!$D22="",'I2 LDC class'!$C22,'I2 LDC class'!$D22) -> General Service > 50 kW | G25: =IF('I2 LDC class'!$D23="",'I2 LDC class'!$C23,'I2 LDC class'!$D23) -> GS> 50-TOU | H25: =IF('I2 LDC class'!$D24="",'I2 LDC class'!$C24,'I2 LDC class'!$D24) -> GS >50-Intermediate | I25: =IF('I2 LDC class'!$D25="",'I2 LDC class'!$C25,'I2 LDC class'!$D25) -> Large Use >5MW | J25: =IF('I2 LDC class'!$D26="",'I2 LDC class'!$C26,'I2 LDC class'!$D26) -> Street Lighting | K25: =IF('I2 LDC class'!$D27="",'I2 LDC class'!$C27,'I2 LDC class'!$D27) -> Sentinel Lighting | L25: =IF('I2 LDC class'!$D28="",'I2 LDC class'!$C28,'I2 LDC class'!$D28) -> Unmetered Scattered Load | M25: =IF('I2 LDC class'!$D29="",'I2 LDC class'!$C29,'I2 LDC class'!$D29) -> Embedded Distributor | N25: =IF('I2 LDC class'!$D30="",'I2 LDC class'!$C30,'I2 LDC class'!$D30) -> Back-up/Standby Power | O25: =IF('I2 LDC class'!$D31="",'I2 LDC class'!$C31,'I2 LDC class'!$D31) -> Rate Class 1 | P25: =IF('I2 LDC class'!$D32="",'I2 LDC class'!$C32,'I2 LDC class'!$D32) -> Rate class 2 | Q25: =IF('I2 LDC class'!$D33="",'I2 LDC class'!$C33,'I2 LDC class'!$D33) -> Rate class 3 | R25: =IF('I2 LDC class'!$D34="",'I2 LDC class'!$C34,'I2 LDC class'!$D34) -> Rate class 4 | S25: =IF('I2 LDC class'!$D35="",'I2 LDC class'!$C35,'I2 LDC class'!$D35) -> Rate class 5 | T25: =IF('I2 LDC class'!$D36="",'I2 LDC class'!$C36,'I2 LDC class'!$D36) -> Rate class 6 | U25: =IF('I2 LDC class'!$D37="",'I2 LDC class'!$C37,'I2 LDC class'!$D37) -> Rate class 7 | V25: =IF('I2 LDC class'!$D38="",'I2 LDC class'!$C38,'I2 LDC class'!$D38) -> Rate class 8 | W25: =IF('I2 LDC class'!$D39="",'I2 LDC class'!$C39,'I2 LDC class'!$D39) -> Rate class 9
A26: Insert Approved Monthly Service Charge | D26: 11.91 | E26: 29.9 | F26: 247.49 | I26: 6311.79 | J26: 3.16 | K26: 3.73 | L26: 11.1

Sheet I5.2 Weighting Factors
A5: ="Sheet I5.2 Weighting Factors Worksheet - "& 'I2 LDC class'!$C$17 -> Sheet I5.2 Weighting Factors Worksheet -
D9: 1 | E9: 2 | F9: 3 | G9: 4 | H9: 5 | I9: 6 | J9: 7 | K9: 8 | L9: 9 | M9: 10 | N9: 11 | O9: 12 | P9: 13 | Q9: 14 | R9: 15 | S9: 16 | T9: 17 | U9: 18 | V9: 19 | W9: 20
D10: =IF('I2 LDC class'!$D20="",'I2 LDC class'!$C20,'I2 LDC class'!$D20) -> Residential | E10: =IF('I2 LDC class'!$D21="",'I2 LDC class'!$C21,'I2 LDC class'!$D21) -> General Service < 50 kW | F10: =IF('I2 LDC class'!$D22="",'I2 LDC class'!$C22,'I2 LDC class'!$D22) -> General Service > 50 kW | G10: =IF('I2 LDC class'!$D23="",'I2 LDC class'!$C23,'I2 LDC class'!$D23) -> GS> 50-TOU | H10: =IF('I2 LDC class'!$D24="",'I2 LDC class'!$C24,'I2 LDC class'!$D24) -> GS >50-Intermediate | I10: =IF('I2 LDC class'!$D25="",'I2 LDC class'!$C25,'I2 LDC class'!$D25) -> Large Use >5MW | J10: =IF('I2 LDC class'!$D26="",'I2 LDC class'!$C26,'I2 LDC class'!$D26) -> Street Lighting | K10: =IF('I2 LDC class'!$D27="",'I2 LDC class'!$C27,'I2 LDC class'!$D27) -> Sentinel Lighting | L10: =IF('I2 LDC class'!$D28="",'I2 LDC class'!$C28,'I2 LDC class'!$D28) -> Unmetered Scattered Load | M10: =IF('I2 LDC class'!$D29="",'I2 LDC class'!$C29,'I2 LDC class'!$D29) -> Embedded Distributor | N10: =IF('I2 LDC class'!$D30="",'I2 LDC class'!$C30,'I2 LDC class'!$D30) -> Back-up/Standby Power | O10: =IF('I2 LDC class'!$D31="",'I2 LDC class'!$C31,'I2 LDC class'!$D31) -> Rate Class 1 | P10: =IF('I2 LDC class'!$D32="",'I2 LDC class'!$C32,'I2 LDC class'!$D32) -> Rate class 2 | Q10: =IF('I2 LDC class'!$D33="",'I2 LDC class'!$C33,'I2 LDC class'!$D33) -> Rate class 3 | R10: =IF('I2 LDC class'!$D34="",'I2 LDC class'!$C34,'I2 LDC class'!$D34) -> Rate class 4 | S10: =IF('I2 LDC class'!$D35="",'I2 LDC class'!$C35,'I2 LDC class'!$D35) -> Rate class 5 | T10: =IF('I2 LDC class'!$D36="",'I2 LDC class'!$C36,'I2 LDC class'!$D36) -> Rate class 6 | U10: =IF('I2 LDC class'!$D37="",'I2 LDC class'!$C37,'I2 LDC class'!$D37) -> Rate class 7 | V10: =IF('I2 LDC class'!$D38="",'I2 LDC class'!$C38,'I2 LDC class'!$D38) -> Rate class 8 | W10: =IF('I2 LDC class'!$D39="",'I2 LDC class'!$C39,'I2 LDC class'!$D39) -> Rate class 9
A11: Insert Weighting Factor for Services | D11: 1 | E11: 6.61 | F11: 41.3 | I11: 0 | J11: 0 | K11: 0 | L11: 0.32 | X11: =X12 -> 0 | Y11: 0
A15: Insert Weighting Factor for Billing and Collecting | D15: 1 | E15: 0.87 | F15: 0.93 | I15: 0.74 | J15: 0.62 | K15: 0.82 | L15: 0.82 | X15: =X21 -> 0 | Y15: 0

Sheet I6.1 Revenue
A5: ="Sheet I6.1 Revenue Worksheet - "& 'I2 LDC class'!$C$17 -> Sheet I6.1 Revenue Worksheet -
A10: Total kWhs from Load Forecast | B10: 822696978.4
A13: Total kWs from Load Forecast | B13: 997679.0923
A16: Deficiency from RRWF | B16: -494790.1657
A19: Miscellaneous Revenue | B19: 1322234
D21: 1 | E21: 2 | F21: 3 | G21: 4 | H21: 5 | I21: 6 | J21: 7 | K21: 8 | L21: 9 | M21: 10 | N21: 11 | O21: 12 | P21: 13 | Q21: 14 | R21: 15 | S21: 16 | T21: 17 | U21: 18 | V21: 19 | W21: 20
B22: ID | C22: Total | D22: =IF('I2 LDC class'!$D20="",'I2 LDC class'!$C20,'I2 LDC class'!$D20) -> Residential | E22: =IF('I2 LDC class'!$D21="",'I2 LDC class'!$C21,'I2 LDC class'!$D21) -> General Service < 50 kW | F22: =IF('I2 LDC class'!$D22="",'I2 LDC class'!$C22,'I2 LDC class'!$D22) -> General Service > 50 kW | G22: =IF('I2 LDC class'!$D23="",'I2 LDC class'!$C23,'I2 LDC class'!$D23) -> GS> 50-TOU | H22: =IF('I2 LDC class'!$D24="",'I2 LDC class'!$C24,'I2 LDC class'!$D24) -> GS >50-Intermediate | I22: =IF('I2 LDC class'!$D25="",'I2 LDC class'!$C25,'I2 LDC class'!$D25) -> Large Use >5MW | J22: =IF('I2 LDC class'!$D26="",'I2 LDC class'!$C26,'I2 LDC class'!$D26) -> Street Lighting | K22: =IF('I2 LDC class'!$D27="",'I2 LDC class'!$C27,'I2 LDC class'!$D27) -> Sentinel Lighting | L22: =IF('I2 LDC class'!$D28="",'I2 LDC class'!$C28,'I2 LDC class'!$D28) -> Unmetered Scattered Load | M22: =IF('I2 LDC class'!$D29="",'I2 LDC class'!$C29,'I2 LDC class'!$D29) -> Embedded Distributor | N22: =IF('I2 LDC class'!$D30="",'I2 LDC class'!$C30,'I2 LDC class'!$D30) -> Back-up/Standby Power | O22: =IF('I2 LDC class'!$D31="",'I2 LDC class'!$C31,'I2 LDC class'!$D31) -> Rate Class 1 | P22: =IF('I2 LDC class'!$D32="",'I2 LDC class'!$C32,'I2 LDC class'!$D32) -> Rate class 2 | Q22: =IF('I2 LDC class'!$D33="",'I2 LDC class'!$C33,'I2 LDC class'!$D33) -> Rate class 3 | R22: =IF('I2 LDC class'!$D34="",'I2 LDC class'!$C34,'I2 LDC class'!$D34) -> Rate class 4 | S22: =IF('I2 LDC class'!$D35="",'I2 LDC class'!$C35,'I2 LDC class'!$D35) -> Rate class 5 | T22: =IF('I2 LDC class'!$D36="",'I2 LDC class'!$C36,'I2 LDC class'!$D36) -> Rate class 6 | U22: =IF('I2 LDC class'!$D37="",'I2 LDC class'!$C37,'I2 LDC class'!$D37) -> Rate class 7 | V22: =IF('I2 LDC class'!$D38="",'I2 LDC class'!$C38,'I2 LDC class'!$D38) -> Rate class 8 | W22: =IF('I2 LDC class'!$D39="",'I2 LDC class'!$C39,'I2 LDC class'!$D39) -> Rate class 9
A23: Billing Data
A25: Forecast kWh | B25: CEN | C25: =IF(ROUND(SUM(D25:W25),0)=ROUND(B10,0),SUM(D25:W25),"Error") -> 822696978.4 | D25: 295504809.5 | E25: 112640283.5 | F25: 352405231.9 | I25: 54338967.27 | J25: 5458081.929 | K25: 703467.6318 | L25: 1646136.65
A26: Forecast kW | B26: CDEM | C26: =IF(ROUND(SUM(D26:W26),0)=ROUND(B13,0),SUM(D26:W26),"Error") -> 997679.0923 | F26: 866177.5865 | I26: 114492.806 | J26: 14999.27658 | K26: 2009.423277
A27: Forecast kW, included in CDEM, of customers receiving line transformer allowance | C27: =+SUM(D27:W27) -> 250410.7903 | F27: 250410.7903
A28: Optional - Forecast kWh, included in CEN, from customers that receive a line transformation allowance on a kWh basis. In most cases this will not be applicable and will be left blank. | C28: =+SUM(D28:W28) -> 0
A29: KWh excluding KWh from Wholesale Market Participants | B29: CEN EWMP | C29: =+SUM(D29:W29) -> 822696978.4 | D29: =D25 -> 295504809.5 | E29: =E25 -> 112640283.5 | F29: =F25 -> 352405231.9 | I29: =I25 -> 54338967.27 | J29: =J25 -> 5458081.929 | K29: =K25 -> 703467.6318 | L29: =L25 -> 1646136.65 | M29: =M25 -> 0 | N29: 0 | O29: 0 | P29: 0 | Q29: 0 | R29: 0 | S29: 0 | T29: 0 | U29: 0 | V29: 0 | W29: 0
A31: kWh - 30 year weather normalized amount | C31: =+SUM(D31:W31) -> 822696978.4 | D31: =IF(ISERROR(D50/D51), "-", D50/D51) -> 295504809.5 | E31: =IF(ISERROR(E50/E51), "-", E50/E51) -> 112640283.5 | F31: =IF(ISERROR(F50/F51), "-", F50/F51) -> 352405231.9 | G31: - | H31: - | I31: 54338967.27 | J31: 5458081.929 | K31: 703467.6318 | L31: 1646136.65 | M31: - | N31: - | O31: - | P31: - | Q31: - | R31: - | S31: - | T31: - | U31: - | V31: - | W31: -
A33: Existing Monthly Charge | D33: ='I5.1 Misc Data'!D26 -> 11.91 | E33: ='I5.1 Misc Data'!E26 -> 29.9 | F33: ='I5.1 Misc Data'!F26 -> 247.49 | I33: ='I5.1 Misc Data'!I26 -> 6311.79 | J33: ='I5.1 Misc Data'!J26 -> 3.16 | K33: ='I5.1 Misc Data'!K26 -> 3.73 | L33: ='I5.1 Misc Data'!L26 -> 11.1
A34: Existing Distribution kWh Rate | D34: 0.0116 | E34: 0.009 | L34: 0.1464
A35: Existing Distribution kW Rate | F35: 2.4354 | I35: 0.7373 | J35: 13.188 | K35: 17.83
A36: Existing TFOA Rate | F36: 0.6
A37: Additional Charges
A39: Distribution Revenue from Rates | C39: =SUM(D39:W39) -> 14608007.24 | D39: =D34*D25+D35*D26+D33*MAX('I6.2 Customer Data'!D18,'I6.2 Customer Data'!D19,'I6.2 Customer Data'!D21)*12+D37 -> 7966779.79 | E39: =E34*E25+E35*E26+E33*MAX('I6.2 Customer Data'!E18,'I6.2 Customer Data'!E19,'I6.2 Customer Data'!E21)*12+E37 -> 2286361.069 | F39: =F34*F26+F35*F26+F33*MAX('I6.2 Customer Data'!F18,'I6.2 Customer Data'!F19,'I6.2 Customer Data'!F21)*12+F37 -> 3267948.617 | G39: =G34*G26+G35*G26+G33*MAX('I6.2 Customer Data'!G18,'I6.2 Customer Data'!G19,'I6.2 Customer Data'!G21)*12+G37 -> 0 | H39: =H34*H25+H35*H26+H33*MAX('I6.2 Customer Data'!H18,'I6.2 Customer Data'!H19,'I6.2 Customer Data'!H21)*12+H37 -> 0 | I39: =I34*I25+I35*I26+I33*MAX('I6.2 Customer Data'!I18,'I6.2 Customer Data'!I19,'I6.2 Customer Data'!I21)*12+I37 -> 235898.5059 | J39: =J34*J26+J35*J26+J33*MAX('I6.2 Customer Data'!J18,'I6.2 Customer Data'!J19,'I6.2 Customer Data'!J21)*12+J37 -> 506843.6677 | K39: =K34*K26+K35*K26+K33*MAX('I6.2 Customer Data'!K18,'I6.2 Customer Data'!K19,'I6.2 Customer Data'!K21)*12+K37 -> 51979.00948 | L39: =L34*L25+L35*L26+L33*MAX('I6.2 Customer Data'!L18,'I6.2 Customer Data'!L19,'I6.2 Customer Data'!L21)*12+L37 -> 292196.5829 | M39: =M34*M25+M35*M26+M33*MAX('I6.2 Customer Data'!M18,'I6.2 Customer Data'!M19,'I6.2 Customer Data'!M21)*12+M37 -> 0 | N39: =N34*N25+N35*N26+N33*MAX('I6.2 Customer Data'!N18,'I6.2 Customer Data'!N19,'I6.2 Customer Data'!N21)*12+N37 -> 0 | O39: =O34*O25+O35*O26+O33*MAX('I6.2 Customer Data'!O18,'I6.2 Customer Data'!O19,'I6.2 Customer Data'!O21)*12+O37 -> 0 | P39: =P34*P25+P35*P26+P33*MAX('I6.2 Customer Data'!P18,'I6.2 Customer Data'!P19,'I6.2 Customer Data'!P21)*12+P37 -> 0 | Q39: =Q34*Q25+Q35*Q26+Q33*MAX('I6.2 Customer Data'!Q18,'I6.2 Customer Data'!Q19,'I6.2 Customer Data'!Q21)*12+Q37 -> 0 | R39: =R34*R25+R35*R26+R33*MAX('I6.2 Customer Data'!R18,'I6.2 Customer Data'!R19,'I6.2 Customer Data'!R21)*12+R37 -> 0 | S39: =S34*S25+S35*S26+S33*MAX('I6.2 Customer Data'!S18,'I6.2 Customer Data'!S19,'I6.2 Customer Data'!S21)*12+S37 -> 0 | T39: =T34*T25+T35*T26+T33*MAX('I6.2 Customer Data'!T18,'I6.2 Customer Data'!T19,'I6.2 Customer Data'!T21)*12+T37 -> 0 | U39: =U34*U25+U35*U26+U33*MAX('I6.2 Customer Data'!U18,'I6.2 Customer Data'!U19,'I6.2 Customer Data'!U21)*12+U37 -> 0 | V39: =V34*V25+V35*V26+V33*MAX('I6.2 Customer Data'!V18,'I6.2 Customer Data'!V19,'I6.2 Customer Data'!V21)*12+V37 -> 0 | W39: =W34*W25+W35*W26+W33*MAX('I6.2 Customer Data'!W18,'I6.2 Customer Data'!W19,'I6.2 Customer Data'!W21)*12+W37 -> 0
A40: Transformer Ownership Allowance | C40: =+SUM(D40:W40) -> 150246.4742 | D40: =D27*D36 -> 0 | E40: =E27*E36 -> 0 | F40: 150246.4742 | G40: 0 | H40: 0 | I40: 0 | J40: 0 | K40: 0 | L40: 0 | M40: 0 | N40: 0 | O40: 0 | P40: 0 | Q40: 0 | R40: 0 | S40: 0 | T40: 0 | U40: 0 | V40: 0 | W40: 0
A41: Net Class Revenue | B41: CREV | C41: =+SUM(D41:W41) -> 14457760.77 | D41: =D39-D40 -> 7966779.79 | E41: =E39-E40 -> 2286361.069 | F41: 3117702.143 | G41: 0 | H41: 0 | I41: 235898.5059 | J41: 506843.6677 | K41: 51979.00948 | L41: 292196.5829 | M41: 0 | N41: 0 | O41: 0 | P41: 0 | Q41: 0 | R41: 0 | S41: 0 | T41: 0 | U41: 0 | V41: 0 | W41: 0
A43: Data Mismatch Analysis
A44: Revenue with 30 year weather normalized kWh | C44: =SUM(D44:W44) -> 14457760.77 | D44: =IF(ISERROR(D31/D25*D41),0,D31/D25*D41) -> 7966779.79 | E44: 2286361.069 | F44: 3117702.143 | G44: 0 | H44: 0 | I44: 235898.5059 | J44: 506843.6677 | K44: 51979.00948 | L44: 292196.5829 | M44: 0 | N44: 0 | O44: 0 | P44: 0 | Q44: 0 | R44: 0 | S44: 0 | T44: 0 | U44: 0 | V44: 0 | W44: 0
A48: Weather Normalized Data from Hydro One | C48: Total | D48: =D22 -> Residential | E48: =E22 -> General Service < 50 kW | F48: General Service > 50 kW | G48: GS> 50-TOU | H48: GS >50-Intermediate | I48: Large Use >5MW | J48: Street Lighting | K48: Sentinel Lighting | L48: Unmetered Scattered Load | M48: Embedded Distributor | N48: Back-up/Standby Power | O48: Rate Class 1 | P48: Rate class 2 | Q48: Rate class 3 | R48: Rate class 4 | S48: Rate class 5 | T48: Rate class 6 | U48: Rate class 7 | V48: Rate class 8 | W48: Rate class 9
A50: =A31 -> kWh - 30 year weather normalized amount | C50: =SUM(D50:W50) -> 822696978.4 | D50: =D25 -> 295504809.5 | E50: =E25 -> 112640283.5 | F50: =F25 -> 352405231.9 | I50: =I25 -> 54338967.27 | J50: =J25 -> 5458081.929 | K50: =K25 -> 703467.6318 | L50: =L25 -> 1646136.65
A51: Loss Factor | D51: 1 | E51: 1 | F51: 1 | I51: 1 | J51: 1 | K51: 1 | L51: 1

Sheet I6.2 Customer Data
A5: ="Sheet I6.2 Customer Data Worksheet - "& 'I2 LDC class'!$C$17 -> Sheet I6.2 Customer Data Worksheet -
D10: 1 | E10: 2 | F10: 3 | G10: 4 | H10: 5 | I10: 6 | J10: 7 | K10: 8 | L10: 9 | M10: 10 | N10: 11 | O10: 12 | P10: 13 | Q10: 14 | R10: 15 | S10: 16 | T10: 17 | U10: 18 | V10: 19 | W10: 20
B11: ID | C11: Total | D11: =IF('I2 LDC class'!$D20="",'I2 LDC class'!$C20,'I2 LDC class'!$D20) -> Residential | E11: =IF('I2 LDC class'!$D21="",'I2 LDC class'!$C21,'I2 LDC class'!$D21) -> General Service < 50 kW | F11: =IF('I2 LDC class'!$D22="",'I2 LDC class'!$C22,'I2 LDC class'!$D22) -> General Service > 50 kW | G11: =IF('I2 LDC class'!$D23="",'I2 LDC class'!$C23,'I2 LDC class'!$D23) -> GS> 50-TOU | H11: =IF('I2 LDC class'!$D24="",'I2 LDC class'!$C24,'I2 LDC class'!$D24) -> GS >50-Intermediate | I11: =IF('I2 LDC class'!$D25="",'I2 LDC class'!$C25,'I2 LDC class'!$D25) -> Large Use >5MW | J11: =IF('I2 LDC class'!$D26="",'I2 LDC class'!$C26,'I2 LDC class'!$D26) -> Street Lighting | K11: =IF('I2 LDC class'!$D27="",'I2 LDC class'!$C27,'I2 LDC class'!$D27) -> Sentinel Lighting | L11: =IF('I2 LDC class'!$D28="",'I2 LDC class'!$C28,'I2 LDC class'!$D28) -> Unmetered Scattered Load | M11: =IF('I2 LDC class'!$D29="",'I2 LDC class'!$C29,'I2 LDC class'!$D29) -> Embedded Distributor | N11: =IF('I2 LDC class'!$D30="",'I2 LDC class'!$C30,'I2 LDC class'!$D30) -> Back-up/Standby Power | O11: =IF('I2 LDC class'!$D31="",'I2 LDC class'!$C31,'I2 LDC class'!$D31) -> Rate Class 1 | P11: =IF('I2 LDC class'!$D32="",'I2 LDC class'!$C32,'I2 LDC class'!$D32) -> Rate class 2 | Q11: =IF('I2 LDC class'!$D33="",'I2 LDC class'!$C33,'I2 LDC class'!$D33) -> Rate class 3 | R11: =IF('I2 LDC class'!$D34="",'I2 LDC class'!$C34,'I2 LDC class'!$D34) -> Rate class 4 | S11: =IF('I2 LDC class'!$D35="",'I2 LDC class'!$C35,'I2 LDC class'!$D35) -> Rate class 5 | T11: =IF('I2 LDC class'!$D36="",'I2 LDC class'!$C36,'I2 LDC class'!$D36) -> Rate class 6 | U11: =IF('I2 LDC class'!$D37="",'I2 LDC class'!$C37,'I2 LDC class'!$D37) -> Rate class 7 | V11: =IF('I2 LDC class'!$D38="",'I2 LDC class'!$C38,'I2 LDC class'!$D38) -> Rate class 8 | W11: =IF('I2 LDC class'!$D39="",'I2 LDC class'!$C39,'I2 LDC class'!$D39) -> Rate class 9
A12: Billing Data
A14: Bad Debt 3 Year Historical Average | B14: BDHA | C14: =+SUM(D14:W14) -> 184606 | D14: =D41 -> 138057.3333 | E14: =E41 -> 14097.33333 | F14: 32451.33333 | G14: 0 | H14: 0 | I14: 0 | J14: 0 | K14: 0 | L14: 0 | M14: 0 | N14: 0 | O14: 0 | P14: 0 | Q14: 0 | R14: 0 | S14: 0 | T14: 0 | U14: 0 | V14: 0 | W14: 0
A15: Late Payment 3 Year Historical Average | B15: LPHA | C15: =+SUM(D15:W15) -> 200000.3774 | D15: 134687.3774 | E15: 30515 | F15: 30684 | I15: 4114
A17: Number of Bills | B17: CNB | C17: =+SUM(D17:W17) -> 430288.5889 | D17: =ccar*12 -> 381101.9311 | E17: =E21*12 -> 42561.82332 | F17: =F21*12 -> 4680.834468 | I17: 24 | J17: 48 | K17: 1776 | L17: 96
A18: Number of Devices | J18: 8149.609919 | K18: 360.8353987 | L18: 384.4007307
A19: Number of Connections (Unmetered) | B19: CCON | C19: =+SUM(D19:W19) -> 8682.010649 | J19: =J18 -> 8149.609919 | K19: 148 | L19: =L18 -> 384.4007307
A21: Total Number of Customers | B21: CCA | C21: =+SUM(D21:W21) -> 35697.38241 | D21: 31758.49426 | E21: 3546.81861 | F21: 390.069539 | I21: 2
A22: Bulk Customer Base | B22: CCB | C22: =+SUM(D22:W22) -> 0
A23: Primary Customer Base | B23: CCP | C23: =+SUM(D23:W23) -> 35697.38241 | D23: =ccar -> 31758.49426 | E23: =E21 -> 3546.81861 | F23: =F21 -> 390.069539 | I23: =I21 -> 2
A24: Line Transformer Customer Base | B24: CCLT | C24: =+SUM(D24:W24) -> 35643 | D24: 31758 | E24: 3511 | F24: 374
A25: Secondary Customer Base | B25: CCS | C25: =+SUM(D25:W25) -> 31226 | D25: 29712 | E25: 1514 | F25: 0
A27: Weighted - Services | B27: CWCS | C27: =+SUM(D27:W27) -> 39842.54823 | D27: =IF(D19>0,D19*'I5.2 Weighting Factors'!D11,'I5.2 Weighting Factors'!D11*D25) -> 29712 | E27: =IF(E19>0,E19*'I5.2 Weighting Factors'!E11,'I5.2 Weighting Factors'!E11*E25) -> 10007.54 | F27: =IF(F19>0,F19*'I5.2 Weighting Factors'!F11,'I5.2 Weighting Factors'!F11*F25) -> 0 | G27: =IF(G19>0,G19*'I5.2 Weighting Factors'!G11,'I5.2 Weighting Factors'!G11*G25) -> 0 | H27: =IF(H19>0,H19*'I5.2 Weighting Factors'!H11,'I5.2 Weighting Factors'!H11*H25) -> 0 | I27: =IF(I19>0,I19*'I5.2 Weighting Factors'!I11,'I5.2 Weighting Factors'!I11*I25) -> 0 | J27: =IF(J19>0,J19*'I5.2 Weighting Factors'!J11,'I5.2 Weighting Factors'!J11*J25) -> 0 | K27: =IF(K19>0,K19*'I5.2 Weighting Factors'!K11,'I5.2 Weighting Factors'!K11*K25) -> 0 | L27: =IF(L19>0,L19*'I5.2 Weighting Factors'!L11,'I5.2 Weighting Factors'!L11*L25) -> 123.0082338 | M27: =IF(M19>0,M19*'I5.2 Weighting Factors'!M11,'I5.2 Weighting Factors'!M11*M25) -> 0 | N27: =IF(N19>0,N19*'I5.2 Weighting Factors'!N11,'I5.2 Weighting Factors'!N11*N25) -> 0 | O27: =IF(O19>0,O19*'I5.2 Weighting Factors'!O11,'I5.2 Weighting Factors'!O11*O25) -> 0 | P27: =IF(P19>0,P19*'I5.2 Weighting Factors'!P11,'I5.2 Weighting Factors'!P11*P25) -> 0 | Q27: =IF(Q19>0,Q19*'I5.2 Weighting Factors'!Q11,'I5.2 Weighting Factors'!Q11*Q25) -> 0 | R27: =IF(R19>0,R19*'I5.2 Weighting Factors'!R11,'I5.2 Weighting Factors'!R11*R25) -> 0 | S27: =IF(S19>0,S19*'I5.2 Weighting Factors'!S11,'I5.2 Weighting Factors'!S11*S25) -> 0 | T27: =IF(T19>0,T19*'I5.2 Weighting Factors'!T11,'I5.2 Weighting Factors'!T11*T25) -> 0 | U27: =IF(U19>0,U19*'I5.2 Weighting Factors'!U11,'I5.2 Weighting Factors'!U11*U25) -> 0 | V27: =IF(V19>0,V19*'I5.2 Weighting Factors'!V11,'I5.2 Weighting Factors'!V11*V25) -> 0 | W27: =IF(W19>0,W19*'I5.2 Weighting Factors'!W11,'I5.2 Weighting Factors'!W11*W25) -> 0
A28: Weighted Meter -Capital | B28: CWMC | C28: =SUM(D28:W28) -> 4917791.858 | D28: ='I7.1 Meter Capital'!F22 -> 2762989.001 | E28: ='I7.1 Meter Capital'!I22 -> 1078232.857 | F28: ='I7.1 Meter Capital'!L22 -> 1056570 | G28: ='I7.1 Meter Capital'!O22 -> 0 | H28: ='I7.1 Meter Capital'!R22 -> 0 | I28: ='I7.1 Meter Capital'!U22 -> 20000 | J28: ='I7.1 Meter Capital'!X22 -> 0 | K28: ='I7.1 Meter Capital'!AA22 -> 0 | L28: ='I7.1 Meter Capital'!AD22 -> 0 | M28: ='I7.1 Meter Capital'!AG22 -> 0 | N28: ='I7.1 Meter Capital'!AJ22 -> 0 | O28: ='I7.1 Meter Capital'!AM22 -> 0 | P28: ='I7.1 Meter Capital'!AP22 -> 0 | Q28: ='I7.1 Meter Capital'!AS22 -> 0 | R28: ='I7.1 Meter Capital'!AV22 -> 0 | S28: ='I7.1 Meter Capital'!AY22 -> 0 | T28: ='I7.1 Meter Capital'!BB22 -> 0 | U28: ='I7.1 Meter Capital'!BE22 -> 0 | V28: ='I7.1 Meter Capital'!BH22 -> 0 | W28: ='I7.1 Meter Capital'!BK22 -> 0
A29: Weighted Meter Reading | B29: CWMR | C29: =SUM(D29:W29) -> 35697.31287 | D29: ='I7.2 Meter Reading'!E20 -> 31758.49426 | E29: ='I7.2 Meter Reading'!H20 -> 3546.81861 | F29: ='I7.2 Meter Reading'!K20 -> 390 | G29: ='I7.2 Meter Reading'!N20 -> 0 | H29: ='I7.2 Meter Reading'!Q20 -> 0 | I29: ='I7.2 Meter Reading'!T20 -> 2 | J29: ='I7.2 Meter Reading'!W20 -> 0 | K29: ='I7.2 Meter Reading'!Z20 -> 0 | L29: ='I7.2 Meter Reading'!AC20 -> 0 | M29: ='I7.2 Meter Reading'!AF20 -> 0 | N29: ='I7.2 Meter Reading'!AI20 -> 0 | O29: ='I7.2 Meter Reading'!AL20 -> 0 | P29: ='I7.2 Meter Reading'!AO20 -> 0 | Q29: ='I7.2 Meter Reading'!AR20 -> 0 | R29: ='I7.2 Meter Reading'!AU20 -> 0 | S29: ='I7.2 Meter Reading'!AX20 -> 0 | T29: ='I7.2 Meter Reading'!BA20 -> 0 | U29: ='I7.2 Meter Reading'!BD20 -> 0 | V29: ='I7.2 Meter Reading'!BG20 -> 0 | W29: ='I7.2 Meter Reading'!BJ20 -> 0
A30: Weighted Bills | B30: CWNB | C30: =SUM(D30:W30) -> 424066.4535 | D30: ='I5.2 Weighting Factors'!D15*D17 -> 381101.9311 | E30: ='I5.2 Weighting Factors'!E15*E17 -> 37028.78629 | F30: ='I5.2 Weighting Factors'!F15*F17 -> 4353.176056 | G30: ='I5.2 Weighting Factors'!G15*G17 -> 0 | H30: ='I5.2 Weighting Factors'!H15*H17 -> 0 | I30: ='I5.2 Weighting Factors'!I15*I17 -> 17.76 | J30: ='I5.2 Weighting Factors'!J15*J17 -> 29.76 | K30: ='I5.2 Weighting Factors'!K15*K17 -> 1456.32 | L30: ='I5.2 Weighting Factors'!L15*L17 -> 78.72 | M30: ='I5.2 Weighting Factors'!M15*M17 -> 0 | N30: ='I5.2 Weighting Factors'!N15*N17 -> 0 | O30: ='I5.2 Weighting Factors'!O15*O17 -> 0 | P30: ='I5.2 Weighting Factors'!P15*P17 -> 0 | Q30: ='I5.2 Weighting Factors'!Q15*Q17 -> 0 | R30: ='I5.2 Weighting Factors'!R15*R17 -> 0 | S30: ='I5.2 Weighting Factors'!S15*S17 -> 0 | T30: ='I5.2 Weighting Factors'!T15*T17 -> 0 | U30: ='I5.2 Weighting Factors'!U15*U17 -> 0 | V30: ='I5.2 Weighting Factors'!V15*V17 -> 0 | W30: ='I5.2 Weighting Factors'!W15*W17 -> 0
A33: Bad Debt Data
A38: Historic Year: | B38: 2009 | C38: =+SUM(D38:W38) -> 232960 | D38: 143978 | E38: 2003 | F38: 86979
A39: Historic Year: | B39: 2010 | C39: =+SUM(D39:W39) -> 165761 | D39: 139328 | E39: 19987 | F39: 6446
A40: Historic Year: | B40: 2011 | C40: =+SUM(D40:W40) -> 155097 | D40: 130866 | E40: 20302 | F40: 3929
A41: Three-year average | C41: =+SUM(D41:W41) -> 184606 | D41: =SUM(D38:D40)/3 -> 138057.3333 | E41: =SUM(E33:E40)/3 -> 14097.33333 | F41: 32451.33333 | G41: 0 | H41: 0 | I41: 0 | J41: 0 | K41: 0 | L41: 0 | M41: 0 | N41: 0 | O41: 0 | P41: 0 | Q41: 0 | R41: 0 | S41: 0 | T41: 0 | U41: 0 | V41: 0 | W41: 0

Sheet I7.1 Meter Capital
A5: ="Sheet I7.1 Meter Capital Worksheet - "& 'I2 LDC class'!$C$17 -> Sheet I7.1 Meter Capital Worksheet -
E13: 1 | H13: 2 | K13: 3 | N13: 4 | Q13: 5 | T13: 6 | W13: 7 | Z13: 8 | AC13: 9 | AF13: 10 | AI13: 11 | AL13: 12 | AO13: 13 | AR13: 14 | AU13: 15 | AX13: 16 | BA13: 17 | BD13: 18 | BG13: 19 | BJ13: 20
E14: =IF('I2 LDC class'!$D$20="",'I2 LDC class'!$C$20,'I2 LDC class'!$D$20) -> Residential | H14: =IF('I2 LDC class'!$D$21="",'I2 LDC class'!$C$21,'I2 LDC class'!$D$21) -> General Service < 50 kW | K14: =IF('I2 LDC class'!$D$22="",'I2 LDC class'!$C$22,'I2 LDC class'!$D$22) -> General Service > 50 kW | N14: =IF('I2 LDC class'!$D$23="",'I2 LDC class'!$C$23,'I2 LDC class'!$D$23) -> GS> 50-TOU | Q14: =IF('I2 LDC class'!$D$24="",'I2 LDC class'!$C$24,'I2 LDC class'!$D$24) -> GS >50-Intermediate | T14: =IF('I2 LDC class'!$D$25="",'I2 LDC class'!$C$25,'I2 LDC class'!$D$25) -> Large Use >5MW | W14: =IF('I2 LDC class'!$D$26="",'I2 LDC class'!$C$26,'I2 LDC class'!$D$26) -> Street Lighting | Z14: =IF('I2 LDC class'!$D$27="",'I2 LDC class'!$C$27,'I2 LDC class'!$D$27) -> Sentinel Lighting | AC14: =IF('I2 LDC class'!$D$28="",'I2 LDC class'!$C$28,'I2 LDC class'!$D$28) -> Unmetered Scattered Load | AF14: =IF('I2 LDC class'!$D$29="",'I2 LDC class'!$C$29,'I2 LDC class'!$D$29) -> Embedded Distributor | AI14: =IF('I2 LDC class'!$D$30="",'I2 LDC class'!$C$30,'I2 LDC class'!$D$30) -> Back-up/Standby Power | AL14: =IF('I2 LDC class'!$D$31="",'I2 LDC class'!$C$31,'I2 LDC class'!$D$31) -> Rate Class 1 | AO14: =IF('I2 LDC class'!$D$32="",'I2 LDC class'!$C$32,'I2 LDC class'!$D$32) -> Rate class 2 | AR14: =IF('I2 LDC class'!$D$33="",'I2 LDC class'!$C$33,'I2 LDC class'!$D$33) -> Rate class 3 | AU14: =IF('I2 LDC class'!$D$34="",'I2 LDC class'!$C$34,'I2 LDC class'!$D$34) -> Rate class 4 | AX14: =IF('I2 LDC class'!$D$35="",'I2 LDC class'!$C$35,'I2 LDC class'!$D$35) -> Rate class 5 | BA14: =IF('I2 LDC class'!$D$36="",'I2 LDC class'!$C$36,'I2 LDC class'!$D$36) -> Rate class 6 | BD14: =IF('I2 LDC class'!$D$37="",'I2 LDC class'!$C$37,'I2 LDC class'!$D$37) -> Rate class 7 | BG14: =IF('I2 LDC class'!$D$38="",'I2 LDC class'!$C$38,'I2 LDC class'!$D$38) -> Rate class 8 | BJ14: =IF('I2 LDC class'!$D$39="",'I2 LDC class'!$C$39,'I2 LDC class'!$D$39) -> Rate class 9 | BM14: TOTAL
E15: 1 | F15: 2 | G15: 3 | H15: 1 | I15: 2 | J15: 3 | K15: 1 | L15: 2 | M15: 3 | N15: 1 | O15: 2 | P15: 3 | Q15: 1 | R15: 2 | S15: 3 | T15: 1 | U15: 2 | V15: 3 | W15: 1 | X15: 2 | Y15: 3 | Z15: 1 | AA15: 2 | AB15: 3 | AC15: 1 | AD15: 2 | AE15: 3 | AF15: 1 | AG15: 2 | AH15: 3 | AI15: 1 | AJ15: 2 | AK15: 3 | AL15: 1 | AM15: 2 | AN15: 3 | AO15: 1 | AP15: 2 | AQ15: 3 | AR15: 1 | AS15: 2 | AT15: 3 | AU15: 1 | AV15: 2 | AW15: 3 | AX15: 1 | AY15: 2 | AZ15: 3 | BA15: 1 | BB15: 2 | BC15: 3 | BD15: 1 | BE15: 2 | BF15: 3 | BG15: 1 | BH15: 2 | BI15: 3 | BJ15: 1 | BK15: 2 | BL15: 3 | BM15: 1 | BN15: 2 | BO15: 3
E17: Number of Meters | F17: Weighted Metering Costs (1) | G17: Weighted Average Costs (2) | H17: Number of Meters | I17: Weighted Metering Costs (1) | J17: Weighted Average Costs (2) | K17: Number of Meters | L17: Weighted Metering Costs (1) | M17: Weighted Average Costs (2) | N17: Number of Meters | O17: Weighted Metering Costs (1) | P17: Weighted Average Costs (2) | Q17: Number of Meters | R17: Weighted Metering Costs (1) | S17: Weighted Average Costs (2) | T17: Number of Meters | U17: Weighted Metering Costs (1) | V17: Weighted Average Costs (2) | W17: Number of Meters | X17: Weighted Metering Costs (1) | Y17: Weighted Average Costs (2) | Z17: Number of Meters | AA17: Weighted Metering Costs (1) | AB17: Weighted Average Costs (2) | AC17: Number of Meters | AD17: Weighted Metering Costs (1) | AE17: Weighted Average Costs (2) | AF17: Number of Meters | AG17: Weighted Metering Costs (1) | AH17: Weighted Average Costs (2) | AI17: Number of Meters | AJ17: Weighted Metering Costs (1) | AK17: Weighted Average Costs (2) | AL17: Number of Meters | AM17: Weighted Metering Costs (1) | AN17: Weighted Average Costs (2) | AO17: Number of Meters | AP17: Weighted Metering Costs (1) | AQ17: Weighted Average Costs (2) | AR17: Number of Meters | AS17: Weighted Metering Costs (1) | AT17: Weighted Average Costs (2) | AU17: Number of Meters | AV17: Weighted Metering Costs (1) | AW17: Weighted Average Costs (2) | AX17: Number of Meters | AY17: Weighted Metering Costs (1) | AZ17: Weighted Average Costs (2) | BA17: Number of Meters | BB17: Weighted Metering Costs (1) | BC17: Weighted Average Costs (2) | BD17: Number of Meters | BE17: Weighted Metering Costs (1) | BF17: Weighted Average Costs (2) | BG17: Number of Meters | BH17: Weighted Metering Costs (1) | BI17: Weighted Average Costs (2) | BJ17: Number of Meters | BK17: Weighted Metering Costs (1) | BL17: Weighted Average Costs (2) | BM17: Number of Meters | BN17: Weighted Metering Costs (1) | BO17: Weighted Average Costs (2)
D20: Allocation Percentage Weighted Factor | G20: =IF(ISERROR(F22/$BN$22), "-", F22/$BN$22) -> 0.5618352871 | J20: =IF(ISERROR(I22/$BN$22), "-", I22/$BN$22) -> 0.2192514219 | M20: =IF(ISERROR(L22/$BN$22), "-", L22/$BN$22) -> 0.2148464251 | P20: =IF(ISERROR(O22/$BN$22), "-", O22/$BN$22) -> 0 | S20: =IF(ISERROR(R22/$BN$22), "-", R22/$BN$22) -> 0 | V20: =IF(ISERROR(U22/$BN$22), "-", U22/$BN$22) -> 0.004066865898 | Y20: =IF(ISERROR(X22/$BN$22), "-", X22/$BN$22) -> 0 | AB20: =IF(ISERROR(AA22/$BN$22), "-", AA22/$BN$22) -> 0 | AE20: =IF(ISERROR(AD22/$BN$22), "-", AD22/$BN$22) -> 0 | AH20: =IF(ISERROR(AG22/$BN$22), "-", AG22/$BN$22) -> 0 | AK20: =IF(ISERROR(AJ22/$BN$22), "-", AJ22/$BN$22) -> 0 | AN20: =IF(ISERROR(AM22/$BN$22), "-", AM22/$BN$22) -> 0 | AQ20: =IF(ISERROR(AP22/$BN$22), "-", AP22/$BN$22) -> 0 | AT20: =IF(ISERROR(AS22/$BN$22), "-", AS22/$BN$22) -> 0 | AW20: =IF(ISERROR(AV22/$BN$22), "-", AV22/$BN$22) -> 0 | AZ20: =IF(ISERROR(AY22/$BN$22), "-", AY22/$BN$22) -> 0 | BC20: =IF(ISERROR(BB22/$BN$22), "-", BB22/$BN$22) -> 0 | BF20: =IF(ISERROR(BE22/$BN$22), "-", BE22/$BN$22) -> 0 | BI20: =IF(ISERROR(BH22/$BN$22), "-", BH22/$BN$22) -> 0 | BL20: =IF(ISERROR(BK22/$BN$22), "-", BK22/$BN$22) -> 0 | BO20: =IF(ISERROR(BN22/$BN$22), "-", BN22/$BN$22) -> 1
D21: Cost Relative to Residential Average Cost | G21: =IF(ISERROR(G22/$G$22),"-", (G22/$G$22)) -> 1 | J21: =IF(ISERROR(J22/$G$22),"-", (J22/$G$22)) -> 3.494252874 | M21: =IF(ISERROR(M22/$G$22),"-", (M22/$G$22)) -> 31.13969938 | P21: =IF(ISERROR(P22/$G$22),"-", (P22/$G$22)) -> - | S21: =IF(ISERROR(S22/$G$22),"-", (S22/$G$22)) -> - | V21: =IF(ISERROR(V22/$G$22),"-", (V22/$G$22)) -> 114.9425287 | Y21: =IF(ISERROR(Y22/$G$22),"-", (Y22/$G$22)) -> - | AB21: =IF(ISERROR(AB22/$G$22),"-", (AB22/$G$22)) -> - | AE21: =IF(ISERROR(AE22/$G$22),"-", (AE22/$G$22)) -> - | AH21: =IF(ISERROR(AH22/$G$22),"-", (AH22/$G$22)) -> - | AK21: =IF(ISERROR(AK22/$G$22),"-", (AK22/$G$22)) -> - | AN21: =IF(ISERROR(AN22/$G$22),"-", (AN22/$G$22)) -> - | AQ21: =IF(ISERROR(AQ22/$G$22),"-", (AQ22/$G$22)) -> - | AT21: =IF(ISERROR(AT22/$G$22),"-", (AT22/$G$22)) -> - | AW21: =IF(ISERROR(AW22/$G$22),"-", (AW22/$G$22)) -> - | AZ21: =IF(ISERROR(AZ22/$G$22),"-", (AZ22/$G$22)) -> - | BC21: =IF(ISERROR(BC22/$G$22),"-", (BC22/$G$22)) -> - | BF21: =IF(ISERROR(BF22/$G$22),"-", (BF22/$G$22)) -> - | BI21: =IF(ISERROR(BI22/$G$22),"-", (BI22/$G$22)) -> - | BL21: =IF(ISERROR(BL22/$G$22),"-", (BL22/$G$22)) -> - | BO21: =IF(ISERROR(BO22/$G$22),"-", (BO22/$G$22)) -> 1.583490147
D22: Total | E22: =+SUM(E24:E37) -> 31758.49426 | F22: =+SUM(F24:F37) -> 2762989.001 | G22: =IF(ISERROR(+F22/E22), "-", +F22/E22) -> 87 | H22: =+SUM(H24:H37) -> 3546.81861 | I22: =+SUM(I24:I37) -> 1078232.857 | J22: =IF(ISERROR(+I22/H22), "-", +I22/H22) -> 304 | K22: =+SUM(K24:K37) -> 390 | L22: =+SUM(L24:L37) -> 1056570 | M22: =IF(ISERROR(+L22/K22), "-", +L22/K22) -> 2709.153846 | N22: =+SUM(N24:N37) -> 0 | O22: =+SUM(O24:O37) -> 0 | P22: =IF(ISERROR(+O22/N22), "-", +O22/N22) -> - | Q22: =+SUM(Q24:Q37) -> 0 | R22: =+SUM(R24:R37) -> 0 | S22: =IF(ISERROR(+R22/Q22), "-", +R22/Q22) -> - | T22: =+SUM(T24:T37) -> 2 | U22: =+SUM(U24:U37) -> 20000 | V22: =IF(ISERROR(+U22/T22), "-", +U22/T22) -> 10000 | W22: =+SUM(W24:W37) -> 0 | X22: =+SUM(X24:X37) -> 0 | Y22: =IF(ISERROR(+X22/W22), "-", +X22/W22) -> - | Z22: =+SUM(Z24:Z37) -> 0 | AA22: =+SUM(AA24:AA37) -> 0 | AB22: =IF(ISERROR(+AA22/Z22), "-", +AA22/Z22) -> - | AC22: =+SUM(AC24:AC37) -> 0 | AD22: =+SUM(AD24:AD37) -> 0 | AE22: =IF(ISERROR(+AD22/AC22), "-", +AD22/AC22) -> - | AF22: =+SUM(AF24:AF37) -> 0 | AG22: =+SUM(AG24:AG37) -> 0 | AH22: =IF(ISERROR(+AG22/AF22), "-", +AG22/AF22) -> - | AI22: =+SUM(AI24:AI37) -> 0 | AJ22: =+SUM(AJ24:AJ37) -> 0 | AK22: =IF(ISERROR(+AJ22/AI22), "-", +AJ22/AI22) -> - | AL22: =+SUM(AL24:AL37) -> 0 | AM22: =+SUM(AM24:AM37) -> 0 | AN22: =IF(ISERROR(+AM22/AL22), "-", +AM22/AL22) -> - | AO22: =+SUM(AO24:AO37) -> 0 | AP22: =+SUM(AP24:AP37) -> 0 | AQ22: =IF(ISERROR(+AP22/AO22), "-", +AP22/AO22) -> - | AR22: =+SUM(AR24:AR37) -> 0 | AS22: =+SUM(AS24:AS37) -> 0 | AT22: =IF(ISERROR(+AS22/AR22), "-", +AS22/AR22) -> - | AU22: =+SUM(AU24:AU37) -> 0 | AV22: =+SUM(AV24:AV37) -> 0 | AW22: =IF(ISERROR(+AV22/AU22), "-", +AV22/AU22) -> - | AX22: =+SUM(AX24:AX37) -> 0 | AY22: =+SUM(AY24:AY37) -> 0 | AZ22: =IF(ISERROR(+AY22/AX22), "-", +AY22/AX22) -> - | BA22: =+SUM(BA24:BA37) -> 0 | BB22: =+SUM(BB24:BB37) -> 0 | BC22: =IF(ISERROR(+BB22/BA22), "-", +BB22/BA22) -> - | BD22: =+SUM(BD24:BD37) -> 0 | BE22: =+SUM(BE24:BE37) -> 0 | BF22: =IF(ISERROR(+BE22/BD22), "-", +BE22/BD22) -> - | BG22: =+SUM(BG24:BG37) -> 0 | BH22: =+SUM(BH24:BH37) -> 0 | BI22: =IF(ISERROR(+BH22/BG22), "-", +BH22/BG22) -> - | BJ22: =+SUM(BJ24:BJ37) -> 0 | BK22: =+SUM(BK24:BK37) -> 0 | BL22: =IF(ISERROR(+BK22/BJ22), "-", +BK22/BJ22) -> - | BM22: =+E22+H22+K22+N22+Q22+T22+W22+Z22+AC22+AF22+AI22+AL22+AO22+AR22+AU22+AX22+BA22+BD22+BG22 -> 35697.31287 | BN22: =+F22+I22+L22+O22+R22+U22+X22+AA22+AD22+AG22+AJ22+AM22+AP22+AS22+AV22+AY22+BB22+BE22+BH22 -> 4917791.858 | BO22: =IF(ISERROR(+BN22/BM22), "-", +BN22/BM22) -> 137.7636428
C23: Meter Types | D23: Cost per Meter (Installed)
C24: Single Phase 200 Amp - Urban | F24: =+$D24*E24 -> 0 | I24: =+$D24*H24 -> 0 | L24: =+$D24*K24 -> 0 | O24: =+$D24*N24 -> 0 | R24: =+$D24*Q24 -> 0 | U24: =+$D24*T24 -> 0 | X24: =+$D24*W24 -> 0 | AA24: =+$D24*Z24 -> 0 | AD24: =+$D24*AC24 -> 0 | AG24: =+$D24*AF24 -> 0 | AJ24: =+$D24*AI24 -> 0 | AM24: =+$D24*AL24 -> 0 | AP24: =+$D24*AO24 -> 0 | AS24: =+$D24*AR24 -> 0 | AV24: =+$D24*AU24 -> 0 | AY24: =+$D24*AX24 -> 0 | BB24: =+$D24*BA24 -> 0 | BE24: =+$D24*BD24 -> 0 | BH24: =+$D24*BG24 -> 0 | BK24: =+$D24*BJ24 -> 0 | BM24: =+E24+H24+K24+N24+Q24+T24+W24+Z24+AC24+AF24+AI24+AL24+AO24+AR24+AU24+AX24+BA24+BD24+BG24 -> 0 | BN24: =+F24+I24+L24+O24+R24+U24+X24+AA24+AD24+AG24+AJ24+AM24+AP24+AS24+AV24+AY24+BB24+BE24+BH24 -> 0
C25: Single Phase 200 Amp - Rural | F25: =+$D25*E25 -> 0 | I25: =+$D25*H25 -> 0 | L25: =+$D25*K25 -> 0 | O25: =+$D25*N25 -> 0 | R25: =+$D25*Q25 -> 0 | U25: =+$D25*T25 -> 0 | X25: =+$D25*W25 -> 0 | AA25: =+$D25*Z25 -> 0 | AD25: =+$D25*AC25 -> 0 | AG25: =+$D25*AF25 -> 0 | AJ25: =+$D25*AI25 -> 0 | AM25: =+$D25*AL25 -> 0 | AP25: =+$D25*AO25 -> 0 | AS25: =+$D25*AR25 -> 0 | AV25: =+$D25*AU25 -> 0 | AY25: =+$D25*AX25 -> 0 | BB25: =+$D25*BA25 -> 0 | BE25: =+$D25*BD25 -> 0 | BH25: =+$D25*BG25 -> 0 | BK25: =+$D25*BJ25 -> 0 | BM25: 0 | BN25: 0
C26: Central Meter | F26: 0 | I26: 0 | L26: 0 | O26: 0 | R26: 0 | U26: 0 | X26: 0 | AA26: 0 | AD26: 0 | AG26: 0 | AJ26: 0 | AM26: 0 | AP26: 0 | AS26: 0 | AV26: 0 | AY26: 0 | BB26: 0 | BE26: 0 | BH26: 0 | BK26: 0 | BM26: 0 | BN26: 0
C27: Network Meter (Costs to be updated) | F27: 0 | I27: 0 | L27: 0 | O27: 0 | R27: 0 | U27: 0 | X27: 0 | AA27: 0 | AD27: 0 | AG27: 0 | AJ27: 0 | AM27: 0 | AP27: 0 | AS27: 0 | AV27: 0 | AY27: 0 | BB27: 0 | BE27: 0 | BH27: 0 | BK27: 0 | BM27: 0 | BN27: 0
C28: Three-phase - No demand | F28: 0 | I28: 0 | L28: 0 | O28: 0 | R28: 0 | U28: 0 | X28: 0 | AA28: 0 | AD28: 0 | AG28: 0 | AJ28: 0 | AM28: 0 | AP28: 0 | AS28: 0 | AV28: 0 | AY28: 0 | BB28: 0 | BE28: 0 | BH28: 0 | BK28: 0 | BM28: 0 | BN28: 0
C29: Smart Meters | F29: 0 | I29: 0 | L29: 0 | O29: 0 | R29: 0 | U29: 0 | X29: 0 | AA29: 0 | AD29: 0 | AG29: 0 | AJ29: 0 | AM29: 0 | AP29: 0 | AS29: 0 | AV29: 0 | AY29: 0 | BB29: 0 | BE29: 0 | BH29: 0 | BK29: 0 | BM29: 0 | BN29: 0
C30: Demand without IT (usually three-phase) | F30: 0 | I30: 0 | L30: 0 | O30: 0 | R30: 0 | U30: 0 | X30: 0 | AA30: 0 | AD30: 0 | AG30: 0 | AJ30: 0 | AM30: 0 | AP30: 0 | AS30: 0 | AV30: 0 | AY30: 0 | BB30: 0 | BE30: 0 | BH30: 0 | BK30: 0 | BM30: 0 | BN30: 0
C31: Demand with IT | D31: 2170 | F31: =+$D31*E31 -> 0 | I31: 0 | K31: 321 | L31: 696570 | O31: 0 | R31: 0 | U31: 0 | X31: 0 | AA31: 0 | AD31: 0 | AG31: 0 | AJ31: 0 | AM31: 0 | AP31: 0 | AS31: 0 | AV31: 0 | AY31: 0 | BB31: 0 | BE31: 0 | BH31: 0 | BK31: 0 | BM31: =+E31+H31+K31+N31+Q31+T31+W31+Z31+AC31+AF31+AI31+AL31+AO31+AR31+AU31+AX31+BA31+BD31+BG31 -> 321 | BN31: 696570
C32: Demand with IT and Interval Capability - Secondary | D32: 2500 | F32: 0 | I32: 0 | K32: 44 | L32: 110000 | O32: 0 | R32: 0 | U32: 0 | X32: 0 | AA32: 0 | AD32: 0 | AG32: 0 | AJ32: 0 | AM32: 0 | AP32: 0 | AS32: 0 | AV32: 0 | AY32: 0 | BB32: 0 | BE32: 0 | BH32: 0 | BK32: 0 | BM32: 44 | BN32: 110000
C33: Demand with IT and Interval Capability - Primary | D33: 10000 | F33: 0 | I33: 0 | K33: 25 | L33: 250000 | O33: 0 | R33: 0 | T33: 2 | U33: 20000 | X33: 0 | AA33: 0 | AD33: 0 | AG33: 0 | AJ33: 0 | AM33: 0 | AP33: 0 | AS33: 0 | AV33: 0 | AY33: 0 | BB33: 0 | BE33: 0 | BH33: 0 | BK33: 0 | BM33: 27 | BN33: 270000
C34: Demand with IT and Interval Capability -Special (WMP) | F34: 0 | I34: 0 | L34: 0 | O34: 0 | R34: 0 | U34: 0 | X34: 0 | AA34: 0 | AD34: 0 | AG34: 0 | AJ34: 0 | AM34: 0 | AP34: 0 | AS34: 0 | AV34: 0 | AY34: 0 | BB34: 0 | BE34: 0 | BH34: 0 | BK34: 0 | BM34: 0 | BN34: 0
C35: Smart Meters - Residential | D35: 87 | E35: =ccar -> 31758.49426 | F35: 2762989.001 | I35: 0 | L35: 0 | O35: 0 | R35: 0 | U35: 0 | X35: 0 | AA35: 0 | AD35: 0 | AG35: 0 | AJ35: 0 | AM35: 0 | AP35: 0 | AS35: 0 | AV35: 0 | AY35: 0 | BB35: 0 | BE35: 0 | BH35: 0 | BK35: 0 | BM35: 31758.49426 | BN35: 2762989.001
C36: Smart Meters _ GS < 50 | D36: 304 | F36: 0 | H36: ='I6.2 Customer Data'!E21 -> 3546.81861 | I36: 1078232.857 | L36: 0 | O36: 0 | R36: 0 | U36: 0 | X36: 0 | AA36: 0 | AD36: 0 | AG36: 0 | AJ36: 0 | AM36: 0 | AP36: 0 | AS36: 0 | AV36: 0 | AY36: 0 | BB36: 0 | BE36: 0 | BH36: 0 | BK36: 0 | BM36: 3546.81861 | BN36: 1078232.857
C37: LDC Specific 3 | F37: 0 | I37: 0 | L37: 0 | O37: 0 | R37: 0 | U37: 0 | X37: 0 | AA37: 0 | AD37: 0 | AG37: 0 | AJ37: 0 | AM37: 0 | AP37: 0 | AS37: 0 | AV37: 0 | AY37: 0 | BB37: 0 | BE37: 0 | BH37: 0 | BK37: 0 | BM37: 0 | BN37: 0

Sheet I7.2 Meter Reading
A5: ="Sheet I7.2 Meter Reading Worksheet - "& 'I2 LDC class'!$C$17 -> Sheet I7.2 Meter Reading Worksheet -
A12: Weighting Factors based on Contractor Pricing
D14: 1 | G14: 2 | J14: 3 | M14: 4 | P14: 5 | S14: 6 | V14: 7 | Y14: 8 | AB14: 9 | AE14: 10 | AH14: 11 | AK14: 12 | AN14: 13 | AQ14: 14 | AT14: 15 | AW14: 16 | AZ14: 17 | BC14: 18 | BF14: 19 | BI14: 20
A15: Description | D15: =IF('I2 LDC class'!$D$20="",'I2 LDC class'!$C$20,'I2 LDC class'!$D$20) -> Residential | G15: =IF('I2 LDC class'!$D$21="",'I2 LDC class'!$C$21,'I2 LDC class'!$D$21) -> General Service < 50 kW | J15: =IF('I2 LDC class'!$D$22="",'I2 LDC class'!$C$22,'I2 LDC class'!$D$22) -> General Service > 50 kW | M15: =IF('I2 LDC class'!$D$23="",'I2 LDC class'!$C$23,'I2 LDC class'!$D$23) -> GS> 50-TOU | P15: =IF('I2 LDC class'!$D$24="",'I2 LDC class'!$C$24,'I2 LDC class'!$D$24) -> GS >50-Intermediate | S15: =IF('I2 LDC class'!$D$25="",'I2 LDC class'!$C$25,'I2 LDC class'!$D$25) -> Large Use >5MW | V15: =IF('I2 LDC class'!$D$26="",'I2 LDC class'!$C$26,'I2 LDC class'!$D$26) -> Street Lighting | Y15: =IF('I2 LDC class'!$D$27="",'I2 LDC class'!$C$27,'I2 LDC class'!$D$27) -> Sentinel Lighting | AB15: =IF('I2 LDC class'!$D$28="",'I2 LDC class'!$C$28,'I2 LDC class'!$D$28) -> Unmetered Scattered Load | AE15: =IF('I2 LDC class'!$D$29="",'I2 LDC class'!$C$29,'I2 LDC class'!$D$29) -> Embedded Distributor | AH15: =IF('I2 LDC class'!$D$30="",'I2 LDC class'!$C$30,'I2 LDC class'!$D$30) -> Back-up/Standby Power | AK15: =IF('I2 LDC class'!$D$31="",'I2 LDC class'!$C$31,'I2 LDC class'!$D$31) -> Rate Class 1 | AN15: =IF('I2 LDC class'!$D$32="",'I2 LDC class'!$C$32,'I2 LDC class'!$D$32) -> Rate class 2 | AQ15: =IF('I2 LDC class'!$D$33="",'I2 LDC class'!$C$33,'I2 LDC class'!$D$33) -> Rate class 3 | AT15: =IF('I2 LDC class'!$D$34="",'I2 LDC class'!$C$34,'I2 LDC class'!$D$34) -> Rate class 4 | AW15: =IF('I2 LDC class'!$D$35="",'I2 LDC class'!$C$35,'I2 LDC class'!$D$35) -> Rate class 5 | AZ15: =IF('I2 LDC class'!$D$36="",'I2 LDC class'!$C$36,'I2 LDC class'!$D$36) -> Rate class 6 | BC15: =IF('I2 LDC class'!$D$37="",'I2 LDC class'!$C$37,'I2 LDC class'!$D$37) -> Rate class 7 | BF15: =IF('I2 LDC class'!$D$38="",'I2 LDC class'!$C$38,'I2 LDC class'!$D$38) -> Rate class 8 | BI15: =IF('I2 LDC class'!$D$39="",'I2 LDC class'!$C$39,'I2 LDC class'!$D$39) -> Rate class 9 | BL15: TOTAL
D16: Units | E16: Weighted Factor | F16: Weighted Average Costs | G16: Units | H16: Weighted Factor | I16: Weighted Average Costs | J16: Units | K16: Weighted Factor | L16: Weighted Average Costs | M16: Units | N16: Weighted Factor | O16: Weighted Average Costs | P16: Units | Q16: Weighted Factor | R16: Weighted Average Costs | S16: Units | T16: Weighted Factor | U16: Weighted Average Costs | V16: Units | W16: Weighted Factor | X16: Weighted Average Costs | Y16: Units | Z16: Weighted Factor | AA16: Weighted Average Costs | AB16: Units | AC16: Weighted Factor | AD16: Weighted Average Costs | AE16: Units | AF16: Weighted Factor | AG16: Weighted Average Costs | AH16: Units | AI16: Weighted Factor | AJ16: Weighted Average Costs | AK16: Units | AL16: Weighted Factor | AM16: Weighted Average Costs | AN16: Units | AO16: Weighted Factor | AP16: Weighted Average Costs | AQ16: Units | AR16: Weighted Factor | AS16: Weighted Average Costs | AT16: Units | AU16: Weighted Factor | AV16: Weighted Average Costs | AW16: Units | AX16: Weighted Factor | AY16: Weighted Average Costs | AZ16: Units | BA16: Weighted Factor | BB16: Weighted Average Costs | BC16: Units | BD16: Weighted Factor | BE16: Weighted Average Costs | BF16: Units | BG16: Weighted Factor | BH16: Weighted Average Costs | BI16: Units | BJ16: Weighted Factor | BK16: Weighted Average Costs | BL16: Units | BM16: Weighted Factor | BN16: Weighted Average Costs
B18: Allocation Percentage Weighted Factor | F18: =IF(ISERROR(+E20/$BM20), "-", +E20/$BM20) -> 0.8896606413 | I18: =IF(ISERROR(+H20/$BM20), "-", +H20/$BM20) -> 0.09935814 | L18: =IF(ISERROR(+K20/$BM20), "-", +K20/$BM20) -> 0.01092519208 | O18: =IF(ISERROR(+N20/$BM20), "-", +N20/$BM20) -> 0 | R18: =IF(ISERROR(+Q20/$BM20), "-", +Q20/$BM20) -> 0 | U18: =IF(ISERROR(+T20/$BM20), "-", +T20/$BM20) -> 5.602662607e-05 | X18: =IF(ISERROR(+W20/$BM20), "-", +W20/$BM20) -> 0 | AA18: =IF(ISERROR(+Z20/$BM20), "-", +Z20/$BM20) -> 0 | AD18: =IF(ISERROR(+AC20/$BM20), "-", +AC20/$BM20) -> 0 | AG18: =IF(ISERROR(+AF20/$BM20), "-", +AF20/$BM20) -> 0 | AJ18: =IF(ISERROR(+AI20/$BM20), "-", +AI20/$BM20) -> 0 | AM18: =IF(ISERROR(+AL20/$BM20), "-", +AL20/$BM20) -> 0 | AP18: =IF(ISERROR(+AO20/$BM20), "-", +AO20/$BM20) -> 0 | AS18: =IF(ISERROR(+AR20/$BM20), "-", +AR20/$BM20) -> 0 | AV18: =IF(ISERROR(+AU20/$BM20), "-", +AU20/$BM20) -> 0 | AY18: =IF(ISERROR(+AX20/$BM20), "-", +AX20/$BM20) -> 0 | BB18: =IF(ISERROR(+BA20/$BM20), "-", +BA20/$BM20) -> 0 | BE18: =IF(ISERROR(+BD20/$BM20), "-", +BD20/$BM20) -> 0 | BH18: =IF(ISERROR(+BG20/$BM20), "-", +BG20/$BM20) -> 0 | BK18: =IF(ISERROR(+BJ20/$BM20), "-", +BJ20/$BM20) -> 0 | BN18: =IF(ISERROR(+BM20/$BM20), "-", +BM20/$BM20) -> 1
B19: Cost Relative to Residential Average Cost | F19: =IF(ISERROR(F20/$F20), "0", (F20/$F20)) -> 1 | I19: =IF(ISERROR(I20/$F20), "0", (I20/$F20)) -> 1 | L19: =IF(ISERROR(L20/$F20), "0", (L20/$F20)) -> 1 | O19: =IF(ISERROR(O20/$F20), "0", (O20/$F20)) -> 0 | R19: =IF(ISERROR(R20/$F20), "0", (R20/$F20)) -> 0 | U19: =IF(ISERROR(U20/$F20), "0", (U20/$F20)) -> 1 | X19: =IF(ISERROR(X20/$F20), "0", (X20/$F20)) -> 0 | AA19: =IF(ISERROR(AA20/$F20), "0", (AA20/$F20)) -> 0 | AD19: =IF(ISERROR(AD20/$F20), "0", (AD20/$F20)) -> 0 | AG19: =IF(ISERROR(AG20/$F20), "0", (AG20/$F20)) -> 0 | AJ19: =IF(ISERROR(AJ20/$F20), "0", (AJ20/$F20)) -> 0 | AM19: =IF(ISERROR(AM20/$F20), "0", (AM20/$F20)) -> 0 | AP19: =IF(ISERROR(AP20/$F20), "0", (AP20/$F20)) -> 0 | AS19: =IF(ISERROR(AS20/$F20), "0", (AS20/$F20)) -> 0 | AV19: =IF(ISERROR(AV20/$F20), "0", (AV20/$F20)) -> 0 | AY19: =IF(ISERROR(AY20/$F20), "0", (AY20/$F20)) -> 0 | BB19: =IF(ISERROR(BB20/$F20), "0", (BB20/$F20)) -> 0 | BE19: =IF(ISERROR(BE20/$F20), "0", (BE20/$F20)) -> 0 | BH19: =IF(ISERROR(BH20/$F20), "0", (BH20/$F20)) -> 0 | BK19: =IF(ISERROR(BK20/$F20), "0", (BK20/$F20)) -> 0 | BN19: =IF(ISERROR(BN20/$F20), "0", (BN20/$F20)) -> 4
B20: Total | D20: =SUM(D22:D38) -> 31758.49426 | E20: =SUM(E22:E38) -> 31758.49426 | F20: =IF(ISERROR(E20/D20), "0", (E20/D20)) -> 1 | G20: =SUM(G22:G38) -> 3546.81861 | H20: =SUM(H22:H38) -> 3546.81861 | I20: =IF(ISERROR(H20/G20), "0", (H20/G20)) -> 1 | J20: =SUM(J22:J38) -> 390 | K20: =SUM(K22:K38) -> 390 | L20: =IF(ISERROR(K20/J20), "0", (K20/J20)) -> 1 | M20: =SUM(M22:M38) -> 0 | N20: =SUM(N22:N38) -> 0 | O20: =IF(ISERROR(N20/M20), "0", (N20/M20)) -> 0 | P20: =SUM(P22:P38) -> 0 | Q20: =SUM(Q22:Q38) -> 0 | R20: =IF(ISERROR(Q20/P20), "0", (Q20/P20)) -> 0 | S20: =SUM(S22:S38) -> 2 | T20: =SUM(T22:T38) -> 2 | U20: =IF(ISERROR(T20/S20), "0", (T20/S20)) -> 1 | V20: =SUM(V22:V38) -> 0 | W20: =SUM(W22:W38) -> 0 | X20: =IF(ISERROR(W20/V20), "0", (W20/V20)) -> 0 | Y20: =SUM(Y22:Y38) -> 0 | Z20: =SUM(Z22:Z38) -> 0 | AA20: =IF(ISERROR(Z20/Y20), "0", (Z20/Y20)) -> 0 | AB20: =SUM(AB22:AB38) -> 0 | AC20: =SUM(AC22:AC38) -> 0 | AD20: =IF(ISERROR(AC20/AB20), "0", (AC20/AB20)) -> 0 | AE20: =SUM(AE22:AE38) -> 0 | AF20: =SUM(AF22:AF38) -> 0 | AG20: =IF(ISERROR(AF20/AE20), "0", (AF20/AE20)) -> 0 | AH20: =SUM(AH22:AH38) -> 0 | AI20: =SUM(AI22:AI38) -> 0 | AJ20: =IF(ISERROR(AI20/AH20), "0", (AI20/AH20)) -> 0 | AK20: =SUM(AK22:AK38) -> 0 | AL20: =SUM(AL22:AL38) -> 0 | AM20: =IF(ISERROR(AL20/AK20), "0", (AL20/AK20)) -> 0 | AN20: =SUM(AN22:AN38) -> 0 | AO20: =SUM(AO22:AO38) -> 0 | AP20: =IF(ISERROR(AO20/AN20), "0", (AO20/AN20)) -> 0 | AQ20: =SUM(AQ22:AQ38) -> 0 | AR20: =SUM(AR22:AR38) -> 0 | AS20: =IF(ISERROR(AR20/AQ20), "0", (AR20/AQ20)) -> 0 | AT20: =SUM(AT22:AT38) -> 0 | AU20: =SUM(AU22:AU38) -> 0 | AV20: =IF(ISERROR(AU20/AT20), "0", (AU20/AT20)) -> 0 | AW20: =SUM(AW22:AW38) -> 0 | AX20: =SUM(AX22:AX38) -> 0 | AY20: =IF(ISERROR(AX20/AW20), "0", (AX20/AW20)) -> 0 | AZ20: =SUM(AZ22:AZ38) -> 0 | BA20: =SUM(BA22:BA38) -> 0 | BB20: =IF(ISERROR(BA20/AZ20), "0", (BA20/AZ20)) -> 0 | BC20: =SUM(BC22:BC38) -> 0 | BD20: =SUM(BD22:BD38) -> 0 | BE20: =IF(ISERROR(BD20/BC20), "0", (BD20/BC20)) -> 0 | BF20: =SUM(BF22:BF38) -> 0 | BG20: =SUM(BG22:BG38) -> 0 | BH20: =IF(ISERROR(BG20/BF20), "0", (BG20/BF20)) -> 0 | BI20: =SUM(BI22:BI38) -> 0 | BJ20: =SUM(BJ22:BJ38) -> 0 | BK20: =IF(ISERROR(BJ20/BI20), "0", (BJ20/BI20)) -> 0 | BL20: =+D20+G20+J20+M20+P20+S20+V20+Y20+AB20+AE20+AH20+AK20+AN20+AQ20+AT20+AW20+AZ20+BC20+BF20+BI20 -> 35697.31287 | BM20: =+E20+H20+K20+N20+Q20+T20+W20+Z20+AC20+AF20+AI20+AL20+AO20+AR20+AU20+AX20+BA20+BD20+BG20+BJ20 -> 35697.31287 | BN20: =+F20+I20+L20+O20+R20+U20+X20+AA20+AD20+AG20+AJ20+AM20+AP20+AS20+AV20+AY20+BB20+BE20+BH20+BK20 -> 4
C21: Factor
A22: Residential - Urban - Outside | E22: =+D22*$C22 -> 0 | H22: =+G22*$C22 -> 0 | K22: =+J22*$C22 -> 0 | N22: =+M22*$C22 -> 0 | Q22: =+P22*$C22 -> 0 | T22: =+S22*$C22 -> 0 | W22: =+V22*$C22 -> 0 | Z22: =+Y22*$C22 -> 0 | AC22: =+AB22*$C22 -> 0 | AF22: =+AE22*$C22 -> 0 | AI22: =+AH22*$C22 -> 0 | AL22: =+AK22*$C22 -> 0 | AO22: =+AN22*$C22 -> 0 | AR22: =+AQ22*$C22 -> 0 | AU22: =+AT22*$C22 -> 0 | AX22: =+AW22*$C22 -> 0 | BA22: =+AZ22*$C22 -> 0 | BD22: =+BC22*$C22 -> 0 | BG22: =+BF22*$C22 -> 0 | BJ22: =+BI22*$C22 -> 0 | BL22: =+D22+G22+J22+M22+P22+S22+V22+Y22+AB22+AE22+AH22+AK22+AN22+AQ22+AT22+AW22+AZ22+BC22+BF22+BI22 -> 0 | BM22: =+E22+H22+K22+N22+Q22+T22+W22+Z22+AC22+AF22+AI22+AL22+AO22+AR22+AU22+AX22+BA22+BD22+BG22+BJ22 -> 0
A23: Residential - Urban - Outside with other services | E23: =+D23*$C23 -> 0 | H23: =+G23*$C23 -> 0 | K23: =+J23*$C23 -> 0 | N23: =+M23*$C23 -> 0 | Q23: =+P23*$C23 -> 0 | T23: =+S23*$C23 -> 0 | W23: =+V23*$C23 -> 0 | Z23: =+Y23*$C23 -> 0 | AC23: =+AB23*$C23 -> 0 | AF23: =+AE23*$C23 -> 0 | AI23: =+AH23*$C23 -> 0 | AL23: =+AK23*$C23 -> 0 | AO23: =+AN23*$C23 -> 0 | AR23: =+AQ23*$C23 -> 0 | AU23: =+AT23*$C23 -> 0 | AX23: =+AW23*$C23 -> 0 | BA23: =+AZ23*$C23 -> 0 | BD23: =+BC23*$C23 -> 0 | BG23: =+BF23*$C23 -> 0 | BJ23: =+BI23*$C23 -> 0 | BL23: 0 | BM23: 0
A24: Residential - Urban - Inside | E24: 0 | H24: 0 | K24: 0 | N24: 0 | Q24: 0 | T24: 0 | W24: 0 | Z24: 0 | AC24: 0 | AF24: 0 | AI24: 0 | AL24: 0 | AO24: 0 | AR24: 0 | AU24: 0 | AX24: 0 | BA24: 0 | BD24: 0 | BG24: 0 | BJ24: 0 | BL24: 0 | BM24: 0
A25: Residential - Urban - Inside - with other services | E25: 0 | H25: 0 | K25: 0 | N25: 0 | Q25: 0 | T25: 0 | W25: 0 | Z25: 0 | AC25: 0 | AF25: 0 | AI25: 0 | AL25: 0 | AO25: 0 | AR25: 0 | AU25: 0 | AX25: 0 | BA25: 0 | BD25: 0 | BG25: 0 | BJ25: 0 | BL25: 0 | BM25: 0
A26: Residential - Rural - Outside | E26: 0 | H26: 0 | K26: 0 | N26: 0 | Q26: 0 | T26: 0 | W26: 0 | Z26: 0 | AC26: 0 | AF26: 0 | AI26: 0 | AL26: 0 | AO26: 0 | AR26: 0 | AU26: 0 | AX26: 0 | BA26: 0 | BD26: 0 | BG26: 0 | BJ26: 0 | BL26: 0 | BM26: 0
A27: Residential - Rural - Outside with other services | E27: 0 | H27: 0 | K27: 0 | N27: 0 | Q27: 0 | T27: 0 | W27: 0 | Z27: 0 | AC27: 0 | AF27: 0 | AI27: 0 | AL27: 0 | AO27: 0 | AR27: 0 | AU27: 0 | AX27: 0 | BA27: 0 | BD27: 0 | BG27: 0 | BJ27: 0 | BL27: 0 | BM27: 0
A28: Smart Meter | C28: 1 | D28: =ccar -> 31758.49426 | E28: 31758.49426 | G28: ='I6.2 Customer Data'!E21 -> 3546.81861 | H28: 3546.81861 | J28: 390 | K28: 390 | N28: 0 | Q28: 0 | S28: 2 | T28: 2 | W28: 0 | Z28: 0 | AC28: 0 | AF28: 0 | AI28: 0 | AL28: 0 | AO28: 0 | AR28: 0 | AU28: 0 | AX28: 0 | BA28: 0 | BD28: 0 | BG28: 0 | BJ28: 0 | BL28: 35697.31287 | BM28: 35697.31287
A29: Smart Meter with Demand | E29: 0 | H29: 0 | K29: 0 | N29: 0 | Q29: 0 | T29: 0 | W29: 0 | Z29: 0 | AC29: 0 | AF29: 0 | AI29: 0 | AL29: 0 | AO29: 0 | AR29: 0 | AU29: 0 | AX29: 0 | BA29: 0 | BD29: 0 | BG29: 0 | BJ29: 0 | BL29: 0 | BM29: 0
A30: GS - Walking | E30: 0 | H30: 0 | K30: 0 | N30: 0 | Q30: 0 | T30: 0 | W30: 0 | Z30: 0 | AC30: 0 | AF30: 0 | AI30: 0 | AL30: 0 | AO30: 0 | AR30: 0 | AU30: 0 | AX30: 0 | BA30: 0 | BD30: 0 | BG30: 0 | BJ30: 0 | BL30: 0 | BM30: 0
A31: GS - Walking - with other services | E31: 0 | H31: 0 | K31: 0 | N31: 0 | Q31: 0 | T31: 0 | W31: 0 | Z31: 0 | AC31: 0 | AF31: 0 | AI31: 0 | AL31: 0 | AO31: 0 | AR31: 0 | AU31: 0 | AX31: 0 | BA31: 0 | BD31: 0 | BG31: 0 | BJ31: 0 | BL31: 0 | BM31: 0
A32: GS - Vehicle with other services --- TOU Read | E32: 0 | H32: 0 | K32: 0 | N32: 0 | Q32: 0 | T32: 0 | W32: 0 | Z32: 0 | AC32: 0 | AF32: 0 | AI32: 0 | AL32: 0 | AO32: 0 | AR32: 0 | AU32: 0 | AX32: 0 | BA32: 0 | BD32: 0 | BG32: 0 | BJ32: 0 | BL32: 0 | BM32: 0
A33: GS - Vehicle with other services | E33: 0 | H33: 0 | K33: 0 | N33: 0 | Q33: 0 | T33: 0 | W33: 0 | Z33: 0 | AC33: 0 | AF33: 0 | AI33: 0 | AL33: 0 | AO33: 0 | AR33: 0 | AU33: 0 | AX33: 0 | BA33: 0 | BD33: 0 | BG33: 0 | BJ33: 0 | BL33: 0 | BM33: 0
A34: LDC Specific 3 | E34: 0 | H34: 0 | K34: 0 | N34: 0 | Q34: 0 | T34: 0 | W34: 0 | Z34: 0 | AC34: 0 | AF34: 0 | AI34: 0 | AL34: 0 | AO34: 0 | AR34: 0 | AU34: 0 | AX34: 0 | BA34: 0 | BD34: 0 | BG34: 0 | BJ34: 0 | BL34: 0 | BM34: 0
A35: LDC Specific 4 | E35: 0 | H35: 0 | K35: 0 | N35: 0 | Q35: 0 | T35: 0 | W35: 0 | Z35: 0 | AC35: 0 | AF35: 0 | AI35: 0 | AL35: 0 | AO35: 0 | AR35: 0 | AU35: 0 | AX35: 0 | BA35: 0 | BD35: 0 | BG35: 0 | BJ35: 0 | BL35: 0 | BM35: 0
A36: Interval | E36: 0 | H36: 0 | K36: 0 | N36: 0 | Q36: 0 | T36: 0 | W36: 0 | Z36: 0 | AC36: 0 | AF36: 0 | AI36: 0 | AL36: 0 | AO36: 0 | AR36: 0 | AU36: 0 | AX36: 0 | BA36: 0 | BD36: 0 | BG36: 0 | BJ36: 0 | BL36: 0 | BM36: 0
A37: LDC Specific 5 | E37: 0 | H37: 0 | K37: 0 | N37: 0 | Q37: 0 | T37: 0 | W37: 0 | Z37: 0 | AC37: 0 | AF37: 0 | AI37: 0 | AL37: 0 | AO37: 0 | AR37: 0 | AU37: 0 | AX37: 0 | BA37: 0 | BD37: 0 | BG37: 0 | BJ37: 0 | BL37: 0 | BM37: 0
A38: LDC Specific 6 | E38: 0 | H38: 0 | K38: 0 | N38: 0 | Q38: 0 | T38: 0 | W38: 0 | Z38: 0 | AC38: 0 | AF38: 0 | AI38: 0 | AL38: 0 | AO38: 0 | AR38: 0 | AU38: 0 | AX38: 0 | BA38: 0 | BD38: 0 | BG38: 0 | BJ38: 0 | BL38: 0 | BM38: 0
A50: Meter Reading Costs
B53: Model Defaults
A54: Based on Contractor Pricing
A55: August 2005 Data
A56: Description | B56: Combined | D56: Winter
B57: Relativity | C57: Relativity | D57: Relativity | E57: Relativity | F57: Recalculated
A58: Residential - Urban - Outside | B58: 1 | C58: 1 | D58: 1 | E58: 1 | F58: =IF((+B58+C58+D58+E58)/4<1,1,ROUND((+B58+C58+D58+E58)/4,0)) -> 1
A59: Residential - Urban - Outside With Water | B59: 0.7368421053 | F59: =IF((+B59)/1<1,1,ROUND((+B59)/1,0)) -> 1
A60: Residential - Urban - Inside | B60: 1.315789474 | C60: 2.184986595 | D60: 1.974630021 | E60: 1.76744186 | F60: =IF((+B60+C60+D60+E60)/4<1,1,ROUND((+B60+C60+D60+E60)/4,0)) -> 2
A61: Residential - Urban - Inside - With Water | B61: 1.052631579 | F61: =IF((+B61)/1<1,1,ROUND((+B61)/1,0)) -> 1
A62: Residential - Rural - Outside | B62: 3.078947368 | C62: 3.428954424 | D62: 3.264270613 | F62: =IF((+B62+C62+D62)/3<1,1,ROUND((+B62+C62+D62)/3,0)) -> 3
A63: Residential - Rural - Outside With Water | B63: 1.973684211 | F63: =IF((+B63)/1<1,1,ROUND((+B63)/1,0)) -> 2
A64: Residential with vehicle | E64: 2.674418605 | F64: =IF((+E64)/1<1,1,ROUND((+E64)/1,0)) -> 3
A65: GS - Walking | B65: 1.526315789 | F65: =IF((+B65)/1<1,1,ROUND((+B65)/1,0)) -> 2
A66: GS - Walking - With Water | B66: 1.263157895 | C66: 3.571045576 | D66: 3.143763214 | F66: =IF((+B66+C66+D66)/3<1,1,ROUND((+B66+C66+D66)/3,0)) -> 3
A67: GS - Vehicle | B67: 3.210526316 | F67: =IF((+B67)/1<1,1,ROUND((+B67)/1,0)) -> 3
A68: GS - Vehicle With Water | B68: 2.631578947 | E68: 3.325581395 | F68: =IF((+B68+E68)/2<1,1,ROUND((+B68+E68)/2,0)) -> 3
A69: Interval | B69: 48.68421053 | F69: =IF((+B69)/1<1,1,ROUND((+B69)/1,0)) -> 49
A70: Time of Use Read -- ignore | C70: 3.571045576 | D70: 3.378435518 | F70: =IF((C70+D70)/2<1,1,ROUND((C70+D70)/2,0)) -> 3
A71: Special Reads -- ignore | B71: let misc charges pick up the difference | E71: 8.139534884 | F71: =+E71 -> 8.139534884

Sheet I8 Demand Data
A5: ="Sheet I8 Demand Data Worksheet - "& 'I2 LDC class'!$C$17 -> Sheet I8 Demand Data Worksheet -
A14: CP TEST RESULTS | C14: =IF(OR(ISERROR(('I8 Demand Data'!$C$50/12)/'I8 Demand Data'!$C$40), (ISERROR(('I8 Demand Data'!$C$45/4)/'I8 Demand Data'!$C$40))),"-", IF(('I8 Demand Data'!$C$50/12)/'I8 Demand Data'!$C$40>=0.83,"12 CP",IF(('I8 Demand Data'!$C$45/4)/'I8 Demand Data'!$C$40>=0.83,"4 CP","1 CP"))) -> 12 CP
A15: NCP TEST RESULTS | C15: =IF(ISERROR(('I8 Demand Data'!$C$61/4)/'I8 Demand Data'!$C$55), "-", IF(('I8 Demand Data'!$C$61/4)/'I8 Demand Data'!$C$55>=0.83,"4 NCP","1 NCP")) -> 4 NCP
A17: Co-incident Peak | C17: Indicator
A18: 1 CP | C18: CP 1
A19: 4 CP | C19: CP 4
A20: 12 CP | C20: CP 12
A22: 4 NCP | C22: NCP 4
A23: 12 NCP | C23: NCP 12
A24: Non-co-incident Peak | C24: Indicator
A25: 1 NCP | C25: NCP 1
A26: 4 NCP | C26: NCP 4
A27: 12 NCP | C27: NCP 12
D30: 1 | E30: 2 | F30: 3 | G30: 4 | H30: 5 | I30: 6 | J30: 7 | K30: 8 | L30: 9 | M30: 10 | N30: 11 | O30: 12 | P30: 13 | Q30: 14 | R30: 15 | S30: 16 | T30: 17 | U30: 18 | V30: 19 | W30: 20
A31: Customer Classes | C31: Total | D31: =IF('I2 LDC class'!$D$20="",'I2 LDC class'!$C$20,'I2 LDC class'!$D$20) -> Residential | E31: =IF('I2 LDC class'!$D$21="",'I2 LDC class'!$C$21,'I2 LDC class'!$D$21) -> General Service < 50 kW | F31: =IF('I2 LDC class'!$D$22="",'I2 LDC class'!$C$22,'I2 LDC class'!$D$22) -> General Service > 50 kW | G31: =IF('I2 LDC class'!$D$23="",'I2 LDC class'!$C$23,'I2 LDC class'!$D$23) -> GS> 50-TOU | H31: =IF('I2 LDC class'!$D$24="",'I2 LDC class'!$C$24,'I2 LDC class'!$D$24) -> GS >50-Intermediate | I31: =IF('I2 LDC class'!$D$25="",'I2 LDC class'!$C$25,'I2 LDC class'!$D$25) -> Large Use >5MW | J31: =IF('I2 LDC class'!$D$26="",'I2 LDC class'!$C$26,'I2 LDC class'!$D$26) -> Street Lighting | K31: =IF('I2 LDC class'!$D$27="",'I2 LDC class'!$C$27,'I2 LDC class'!$D$27) -> Sentinel Lighting | L31: =IF('I2 LDC class'!$D$28="",'I2 LDC class'!$C$28,'I2 LDC class'!$D$28) -> Unmetered Scattered Load | M31: =IF('I2 LDC class'!$D$29="",'I2 LDC class'!$C$29,'I2 LDC class'!$D$29) -> Embedded Distributor | N31: =IF('I2 LDC class'!$D$30="",'I2 LDC class'!$C$30,'I2 LDC class'!$D$30) -> Back-up/Standby Power | O31: =IF('I2 LDC class'!$D$31="",'I2 LDC class'!$C$31,'I2 LDC class'!$D$31) -> Rate Class 1 | P31: =IF('I2 LDC class'!$D$32="",'I2 LDC class'!$C$32,'I2 LDC class'!$D$32) -> Rate class 2 | Q31: =IF('I2 LDC class'!$D$33="",'I2 LDC class'!$C$33,'I2 LDC class'!$D$33) -> Rate class 3 | R31: =IF('I2 LDC class'!$D$34="",'I2 LDC class'!$C$34,'I2 LDC class'!$D$34) -> Rate class 4 | S31: =IF('I2 LDC class'!$D$35="",'I2 LDC class'!$C$35,'I2 LDC class'!$D$35) -> Rate class 5 | T31: =IF('I2 LDC class'!$D$36="",'I2 LDC class'!$C$36,'I2 LDC class'!$D$36) -> Rate class 6 | U31: =IF('I2 LDC class'!$D$37="",'I2 LDC class'!$C$37,'I2 LDC class'!$D$37) -> Rate class 7 | V31: =IF('I2 LDC class'!$D$38="",'I2 LDC class'!$C$38,'I2 LDC class'!$D$38) -> Rate class 8 | W31: =IF('I2 LDC class'!$D$39="",'I2 LDC class'!$C$39,'I2 LDC class'!$D$39) -> Rate class 9
A35: CO-INCIDENT PEAK
A37: 1 CP
A38: Transformation CP | B38: TCP1 | C38: =SUM(D38:W38) -> 145393.3842 | D38: 72588.97913 | E38: 12846.57608 | F38: 50914.47372 | I38: 7145.529434 | J38: 1351.050508 | K38: 171.9804799 | L38: 374.7948768
A39: Bulk Delivery CP | B39: BCP1 | C39: =SUM(D39:W39) -> 145393.3842 | D39: =D38 -> 72588.97913 | E39: 12846.57608 | F39: 50914.47372 | I39: =I38 -> 7145.529434 | J39: 1351.050508 | K39: 171.9804799 | L39: 374.7948768
A40: Total Sytem CP | B40: DCP1 | C40: =SUM(D40:W40) -> 145393.3842 | D40: 72588.97913 | E40: 12846.57608 | F40: 50914.47372 | I40: 7145.529434 | J40: 1351.050508 | K40: 171.9804799 | L40: 374.7948768
A42: 4 CP
A43: Transformation CP | B43: TCP4 | C43: =SUM(D43:W43) -> 557227.4045 | D43: 250002.6674 | E43: 62425.49955 | F43: 210793.3836 | I43: 28606.76418 | J43: 3857.513915 | K43: 497.1204596 | L43: 1044.455449
A44: Bulk Delivery CP | B44: BCP4 | C44: =SUM(D44:W44) -> 557227.4045 | D44: =D43 -> 250002.6674 | E44: 62425.49955 | F44: 210793.3836 | I44: =I43 -> 28606.76418 | J44: 3857.513915 | K44: 497.1204596 | L44: 1044.455449
A45: Total Sytem CP | B45: DCP4 | C45: =SUM(D45:W45) -> 557227.4045 | D45: 250002.6674 | E45: 62425.49955 | F45: 210793.3836 | I45: 28606.76418 | J45: 3857.513915 | K45: 497.1204596 | L45: 1044.455449
A47: 12 CP
A48: Transformation CP | B48: TCP12 | C48: =SUM(D48:W48) -> 1524324.211 | D48: 609120.4617 | E48: 207903.8306 | F48: 608411.5177 | I48: 86422.8991 | J48: 8831.891161 | K48: 1138.410544 | L48: 2495.200008
A49: Bulk Delivery CP | B49: BCP12 | C49: =SUM(D49:W49) -> 1524324.211 | D49: =D48 -> 609120.4617 | E49: 207903.8306 | F49: 608411.5177 | I49: =I48 -> 86422.8991 | J49: 8831.891161 | K49: 1138.410544 | L49: 2495.200008
A50: Total Sytem CP | B50: DCP12 | C50: =SUM(D50:W50) -> 1524324.211 | D50: 609120.4617 | E50: 207903.8306 | F50: 608411.5177 | I50: 86422.8991 | J50: 8831.891161 | K50: 1138.410544 | L50: 2495.200008
A52: NON CO_INCIDENT PEAK
A54: 1 NCP
A55: Classification NCP from Load Data Provider | B55: DNCP1 | C55: =SUM(D55:W55) -> 179745.3962 | D55: 74357.74162 | E55: 29123.16305 | F55: 62899.2573 | I55: 9778.065039 | J55: 2553.683579 | K55: 325.0683263 | L55: 708.4172771
A56: Primary NCP | B56: PNCP1 | C56: =SUM(D56:W56) -> 179745.3962 | D56: =D55 -> 74357.74162 | E56: =E55 -> 29123.16305 | F56: =F55 -> 62899.2573 | I56: =I55 -> 9778.065039 | J56: =J55 -> 2553.683579 | K56: =K55 -> 325.0683263 | L56: =L55 -> 708.4172771
A57: Line Transformer NCP | B57: LTNCP1 | C57: =SUM(D57:W57) -> 167080.8293 | D57: =D56*'I6.2 Customer Data'!$D$24/'I6.2 Customer Data'!$D$23 -> 74356.58439 | E57: ='I6.2 Customer Data'!$E$24/'I6.2 Customer Data'!$E$23*'I8 Demand Data'!E56 -> 28829.05407 | F57: =F56*'I6.2 Customer Data'!$F$24/'I6.2 Customer Data'!$F$23 -> 60308.02171 | I57: 0 | J57: =J56 -> 2553.683579 | K57: 325.0683263 | L57: 708.4172771
A58: Secondary NCP | B58: SNCP1 | C58: =SUM(D58:W58) -> 85584.90654 | D58: =D56*'I6.2 Customer Data'!$D$25/'I6.2 Customer Data'!$D$23 -> 69566.18286 | E58: =E56*'I6.2 Customer Data'!$E$25/'I6.2 Customer Data'!$E$23 -> 12431.5545 | F58: =F56*'I6.2 Customer Data'!$F$25/'I6.2 Customer Data'!$F$23 -> 0 | I58: 0 | J58: 2553.683579 | K58: 325.0683263 | L58: 708.4172771
A60: 4 NCP
A61: Classification NCP from Load Data Provider | B61: DNCP4 | C61: =SUM(D61:W61) -> 685556.7773 | D61: 282928.4413 | E61: 111179.8151 | F61: 244767.0363 | I61: 37217.4607 | J61: 6504.873889 | K61: 832.1658285 | L61: 2126.984149
A62: Primary NCP | B62: PNCP4 | C62: =SUM(D62:W62) -> 686574.9034 | D62: =D61 -> 282928.4413 | E62: =E61 -> 111179.8151 | F62: =F61 -> 244767.0363 | I62: =I61 -> 37217.4607 | J62: 7523 | K62: =K61 -> 832.1658285 | L62: 2126.984149
A63: Line Transformer NCP | B63: LTNCP4 | C63: =SUM(D63:W63) -> 638146.6869 | D63: =D62*'I6.2 Customer Data'!$D$24/'I6.2 Customer Data'!$D$23 -> 282924.0381 | E63: ='I6.2 Customer Data'!$E$24/'I6.2 Customer Data'!$E$23*'I8 Demand Data'!E62 -> 110057.0324 | F63: =F62*'I6.2 Customer Data'!$F$24/'I6.2 Customer Data'!$F$23 -> 234683.4664 | I63: 0 | J63: 7523 | K63: 832.1658285 | L63: 2126.984149
A64: Secondary NCP | B64: SNCP4 | C64: =SUM(D64:W64) -> 322637.2613 | D64: =D62*'I6.2 Customer Data'!$D$25/'I6.2 Customer Data'!$D$23 -> 264696.7385 | E64: =E62*'I6.2 Customer Data'!$E$25/'I6.2 Customer Data'!$E$23 -> 47458.37285 | F64: =F62*'I6.2 Customer Data'!$F$25/'I6.2 Customer Data'!$F$23 -> 0 | I64: 0 | J64: 7523 | K64: 832.1658285 | L64: 2126.984149
A66: 12 NCP
A67: Classification NCP from Load Data Provider | B67: DNCP12 | C67: =SUM(D67:W67) -> 1799082.021 | D67: 696092.0259 | E67: 292656.3643 | F67: 681291.8057 | I67: 105175.0955 | J67: 16617.43118 | K67: 2143.963787 | L67: 5105.334705
A68: Primary NCP | B68: PNCP12 | C68: =SUM(D68:W68) -> 1801683.59 | D68: =D67 -> 696092.0259 | E68: =E67 -> 292656.3643 | F68: =F67 -> 681291.8057 | I68: =I67 -> 105175.0955 | J68: 19219 | K68: =K67 -> 2143.963787 | L68: 5105.334705
A69: Line Transformer NCP | B69: LTNCP12 | C69: =SUM(D69:W69) -> 1665475.277 | D69: =D68*'I6.2 Customer Data'!$D$24/'I6.2 Customer Data'!$D$23 -> 696081.1925 | E69: ='I6.2 Customer Data'!$E$24/'I6.2 Customer Data'!$E$23*'I8 Demand Data'!E68 -> 289700.8864 | F69: =F68*'I6.2 Customer Data'!$F$24/'I6.2 Customer Data'!$F$23 -> 653224.8992 | I69: 0 | J69: 19219 | K69: 2143.963787 | L69: 5105.334705
A70: Secondary NCP | B70: SNCP12 | C70: =SUM(D70:W70) -> 802628.3697 | D70: =D68*'I6.2 Customer Data'!$D$25/'I6.2 Customer Data'!$D$23 -> 651236.3623 | E70: =E68*'I6.2 Customer Data'!$E$25/'I6.2 Customer Data'!$E$23 -> 124923.7089 | F70: =F68*'I6.2 Customer Data'!$F$25/'I6.2 Customer Data'!$F$23 -> 0 | I70: 0 | J70: 19219 | K70: 2143.963787 | L70: 5105.334705

Sheet I9 Direct Allocation
A5: ="Sheet I9 Direct Allocation Worksheet - "& 'I2 LDC class'!$C$17 -> Sheet I9 Direct Allocation Worksheet -
E19: 1 | F19: 2 | G19: 3 | H19: 4 | I19: 5 | J19: 6 | K19: 7 | L19: 8 | M19: 9 | N19: 10 | O19: 11 | P19: 12 | Q19: 13 | R19: 14 | S19: 15 | T19: 16 | U19: 17 | V19: 18 | W19: 19 | X19: 20
A20: ='I3 TB Data'!A20:B20 -> USoA Account # | B20: ='I3 TB Data'!B20:D20 -> Accounts | C20: ='I3 TB Data'!G20 -> Direct Allocation | D20: Total Allocated to Rate Classifications? | E20: ='O4 Summary by Class & Accounts'!E18 -> Residential | F20: ='O4 Summary by Class & Accounts'!F18 -> General Service < 50 kW | G20: ='O4 Summary by Class & Accounts'!G18 -> General Service > 50 kW | H20: ='O4 Summary by Class & Accounts'!H18 -> GS> 50-TOU | I20: ='O4 Summary by Class & Accounts'!I18 -> GS >50-Intermediate | J20: ='O4 Summary by Class & Accounts'!J18 -> Large Use >5MW | K20: ='O4 Summary by Class & Accounts'!K18 -> Street Lighting | L20: ='O4 Summary by Class & Accounts'!L18 -> Sentinel Lighting | M20: ='O4 Summary by Class & Accounts'!M18 -> Unmetered Scattered Load | N20: ='O4 Summary by Class & Accounts'!N18 -> Embedded Distributor | O20: ='O4 Summary by Class & Accounts'!O18 -> Back-up/Standby Power | P20: ='O4 Summary by Class & Accounts'!P18 -> Rate Class 1 | Q20: ='O4 Summary by Class & Accounts'!Q18 -> Rate class 2 | R20: ='O4 Summary by Class & Accounts'!R18 -> Rate class 3 | S20: ='O4 Summary by Class & Accounts'!S18 -> Rate class 4 | T20: ='O4 Summary by Class & Accounts'!T18 -> Rate class 5 | U20: ='O4 Summary by Class & Accounts'!U18 -> Rate class 6 | V20: ='O4 Summary by Class & Accounts'!V18 -> Rate class 7 | W20: ='O4 Summary by Class & Accounts'!W18 -> Rate class 8 | X20: ='O4 Summary by Class & Accounts'!X18 -> Rate class 9
A23: ='I3 TB Data'!A154:B154 -> 1995 | B23: ='I3 TB Data'!B154:D154 -> Contributions and Grants - Credit | C23: ='I3 TB Data'!G154 -> 0 | D23: =IF(SUM(E23:X23)<>C23,"No","Yes") -> Yes
A27: ='I3 TB Data'!A116:B116 -> 1805 | B27: ='I3 TB Data'!B116:D116 -> Land | C27: ='I3 TB Data'!G116 -> 0 | D27: =IF(SUM(E27:X27)<>C27,"No","Yes") -> Yes
A28: ='I3 TB Data'!A117:B117 -> 1806 | B28: ='I3 TB Data'!B117:D117 -> Land Rights | C28: ='I3 TB Data'!G117 -> 0 | D28: Yes
A29: ='I3 TB Data'!A118:B118 -> 1808 | B29: ='I3 TB Data'!B118:D118 -> Buildings and Fixtures | C29: ='I3 TB Data'!G118 -> 0 | D29: Yes
A30: ='I3 TB Data'!A119:B119 -> 1810 | B30: ='I3 TB Data'!B119:D119 -> Leasehold Improvements | C30: ='I3 TB Data'!G119 -> 0 | D30: Yes
A31: ='I3 TB Data'!A120:B120 -> 1815 | B31: ='I3 TB Data'!B120:D120 -> Transformer Station Equipment - Normally Primary above 50 kV | C31: ='I3 TB Data'!G120 -> 0 | D31: Yes
A32: ='I3 TB Data'!A121:B121 -> 1820 | B32: ='I3 TB Data'!B121:D121 -> Distribution Station Equipment - Normally Primary below 50 kV | C32: ='I3 TB Data'!G121 -> 0 | D32: Yes
A33: ='I3 TB Data'!A122:B122 -> 1825 | B33: ='I3 TB Data'!B122:D122 -> Storage Battery Equipment | C33: ='I3 TB Data'!G122 -> 0 | D33: Yes
A34: ='I3 TB Data'!A123:B123 -> 1830 | B34: ='I3 TB Data'!B123:D123 -> Poles, Towers and Fixtures | C34: ='I3 TB Data'!G123 -> 0 | D34: Yes
A35: ='I3 TB Data'!A124:B124 -> 1835 | B35: ='I3 TB Data'!B124:D124 -> Overhead Conductors and Devices | C35: ='I3 TB Data'!G124 -> 0 | D35: Yes
A36: ='I3 TB Data'!A125:B125 -> 1840 | B36: ='I3 TB Data'!B125:D125 -> Underground Conduit | C36: ='I3 TB Data'!G125 -> 0 | D36: Yes
A37: ='I3 TB Data'!A126:B126 -> 1845 | B37: ='I3 TB Data'!B126:D126 -> Underground Conductors and Devices | C37: ='I3 TB Data'!G126 -> 0 | D37: Yes
A38: ='I3 TB Data'!A127:B127 -> 1850 | B38: ='I3 TB Data'!B127:D127 -> Line Transformers | C38: ='I3 TB Data'!G127 -> 0 | D38: Yes
A39: ='I3 TB Data'!A128:B128 -> 1855 | B39: ='I3 TB Data'!B128:D128 -> Services | C39: ='I3 TB Data'!G128 -> 0 | D39: Yes
A40: ='I3 TB Data'!A129:B129 -> 1860 | B40: ='I3 TB Data'!B129:D129 -> Meters | C40: ='I3 TB Data'!G129 -> 0 | D40: Yes
A41: 9999 | B41: ='I3 TB Data'!B130:D130 -> IFRS Placeholder Asset Account | C41: ='I3 TB Data'!G130 -> 0 | D41: =IF(SUM(E41:X41)<>C41,"No","Yes") -> Yes
A42: ='I3 TB Data'!A134:B134 -> 1905 | B42: ='I3 TB Data'!B134:D134 -> Land | C42: ='I3 TB Data'!G134 -> 0 | D42: Yes
A43: ='I3 TB Data'!A135:B135 -> 1906 | B43: ='I3 TB Data'!B135:D135 -> Land Rights | C43: ='I3 TB Data'!G135 -> 0 | D43: Yes
A44: ='I3 TB Data'!A136:B136 -> 1908 | B44: ='I3 TB Data'!B136:D136 -> Buildings and Fixtures | C44: ='I3 TB Data'!G136 -> 0 | D44: =IF(SUM(E44:X44)<>C44,"No","Yes") -> Yes
A45: ='I3 TB Data'!A137:B137 -> 1910 | B45: ='I3 TB Data'!B137:D137 -> Leasehold Improvements | C45: ='I3 TB Data'!G137 -> 0 | D45: Yes
A46: ='I3 TB Data'!A138:B138 -> 1915 | B46: ='I3 TB Data'!B138:D138 -> Office Furniture and Equipment | C46: ='I3 TB Data'!G138 -> 0 | D46: Yes
A47: ='I3 TB Data'!A139:B139 -> 1920 | B47: ='I3 TB Data'!B139:D139 -> Computer Equipment - Hardware | C47: ='I3 TB Data'!G139 -> 0 | D47: Yes
A48: ='I3 TB Data'!A140:B140 -> 1925 | B48: ='I3 TB Data'!B140:D140 -> Computer Software | C48: ='I3 TB Data'!G140 -> 0 | D48: Yes
A49: ='I3 TB Data'!A141:B141 -> 1930 | B49: ='I3 TB Data'!B141:D141 -> Transportation Equipment | C49: ='I3 TB Data'!G141 -> 0 | D49: Yes
A50: ='I3 TB Data'!A142:B142 -> 1935 | B50: ='I3 TB Data'!B142:D142 -> Stores Equipment | C50: ='I3 TB Data'!G142 -> 0 | D50: Yes
A51: ='I3 TB Data'!A143:B143 -> 1940 | B51: ='I3 TB Data'!B143:D143 -> Tools, Shop and Garage Equipment | C51: ='I3 TB Data'!G143 -> 0 | D51: Yes
A52: ='I3 TB Data'!A144:B144 -> 1945 | B52: ='I3 TB Data'!B144:D144 -> Measurement and Testing Equipment | C52: ='I3 TB Data'!G144 -> 0 | D52: Yes
A53: ='I3 TB Data'!A145:B145 -> 1950 | B53: ='I3 TB Data'!B145:D145 -> Power Operated Equipment | C53: ='I3 TB Data'!G145 -> 0 | D53: Yes
A54: ='I3 TB Data'!A146:B146 -> 1955 | B54: ='I3 TB Data'!B146:D146 -> Communication Equipment | C54: ='I3 TB Data'!G146 -> 0 | D54: Yes
A55: ='I3 TB Data'!A147:B147 -> 1960 | B55: ='I3 TB Data'!B147:D147 -> Miscellaneous Equipment | C55: ='I3 TB Data'!G147 -> 0 | D55: Yes
A56: ='I3 TB Data'!A149:B149 -> 1970 | B56: ='I3 TB Data'!B149:D149 -> Load Management Controls - Customer Premises | C56: ='I3 TB Data'!G149 -> 0 | D56: Yes
A57: ='I3 TB Data'!A150:B150 -> 1975 | B57: ='I3 TB Data'!B150:D150 -> Load Management Controls - Utility Premises | C57: ='I3 TB Data'!G150 -> 0 | D57: Yes
A58: ='I3 TB Data'!A151:B151 -> 1980 | B58: ='I3 TB Data'!B151:D151 -> System Supervisory Equipment | C58: ='I3 TB Data'!G151 -> 0 | D58: =IF(SUM(E58:X58)<>C58,"No","Yes") -> Yes
A59: ='I3 TB Data'!A153:B153 -> 1990 | B59: ='I3 TB Data'!B153:D153 -> Other Tangible Property | C59: ='I3 TB Data'!G153 -> 0 | D59: Yes
A60: ='I3 TB Data'!A155:B155 -> 2005 | B60: ='I3 TB Data'!B155:D155 -> Property Under Capital Leases | C60: ='I3 TB Data'!G155 -> 0 | D60: Yes
A61: ='I3 TB Data'!A156:B156 -> 2010 | B61: ='I3 TB Data'!B156:D156 -> Electric Plant Purchased or Sold | C61: ='I3 TB Data'!G156 -> 0 | D61: Yes
A62: ='I3 TB Data'!A160:B160 -> 2050 | B62: ='I3 TB Data'!B160:D160 -> Completed Construction Not Classified--Electric | C62: ='I3 TB Data'!G160 -> 0 | D62: Yes
A63: ='I3 TB Data'!A166:B166 -> 2105 | B63: ='I3 TB Data'!B166:D166 -> Accum. Amortization of Electric Utility Plant - Property, Plant, & Equipment | C63: ='I3 TB Data'!G166 -> 0 | D63: Yes
A64: ='I3 TB Data'!A167:B167 -> 2120 | B64: ='I3 TB Data'!B167:D167 -> Accumulated Amortization of Electric Utility Plant - Intangibles | C64: ='I3 TB Data'!G167 -> 0 | D64: =IF(SUM(E64:X64)<>C64,"No","Yes") -> Yes
B65: Directly Allocated Net Fixed Assets | E65: =SUM(E23:E64) -> 0 | F65: =SUM(F23:F64) -> 0 | G65: 0 | H65: 0 | I65: 0 | J65: 0 | K65: 0 | L65: 0 | M65: 0 | N65: 0 | O65: 0 | P65: 0 | Q65: 0 | R65: 0 | S65: 0 | T65: 0 | U65: 0 | V65: 0 | W65: 0 | X65: 0
A67: ='I3 TB Data'!A344:B344 -> 5005 | B67: ='I3 TB Data'!B344:D344 -> Operation Supervision and Engineering | C67: ='I3 TB Data'!G344 -> 0 | D67: =IF(SUM(E67:X67)<>C67,"No","Yes") -> Yes
A68: ='I3 TB Data'!A345:B345 -> 5010 | B68: ='I3 TB Data'!B345:D345 -> Load Dispatching | C68: ='I3 TB Data'!G345 -> 0 | D68: =IF(SUM(E68:X68)<>C68,"No","Yes") -> Yes
A69: ='I3 TB Data'!A346:B346 -> 5012 | B69: ='I3 TB Data'!B346:D346 -> Station Buildings and Fixtures Expense | C69: ='I3 TB Data'!G346 -> 0 | D69: =IF(SUM(E69:X69)<>C69,"No","Yes") -> Yes
A70: ='I3 TB Data'!A347:B347 -> 5014 | B70: ='I3 TB Data'!B347:D347 -> Transformer Station Equipment - Operation Labour | C70: ='I3 TB Data'!G347 -> 0 | D70: =IF(SUM(E70:X70)<>C70,"No","Yes") -> Yes
A71: ='I3 TB Data'!A348:B348 -> 5015 | B71: ='I3 TB Data'!B348:D348 -> Transformer Station Equipment - Operation Supplies and Expenses | C71: ='I3 TB Data'!G348 -> 0 | D71: =IF(SUM(E71:X71)<>C71,"No","Yes") -> Yes
A72: ='I3 TB Data'!A349:B349 -> 5016 | B72: ='I3 TB Data'!B349:D349 -> Distribution Station Equipment - Operation Labour | C72: ='I3 TB Data'!G349 -> 0 | D72: Yes
A73: ='I3 TB Data'!A350:B350 -> 5017 | B73: ='I3 TB Data'!B350:D350 -> Distribution Station Equipment - Operation Supplies and Expenses | C73: ='I3 TB Data'!G350 -> 0 | D73: Yes
A74: ='I3 TB Data'!A351:B351 -> 5020 | B74: ='I3 TB Data'!B351:D351 -> Overhead Distribution Lines and Feeders - Operation Labour | C74: ='I3 TB Data'!G351 -> 0 | D74: Yes
A75: ='I3 TB Data'!A352:B352 -> 5025 | B75: ='I3 TB Data'!B352:D352 -> Overhead Distribution Lines & Feeders - Operation Supplies and Expenses | C75: ='I3 TB Data'!G352 -> 0 | D75: Yes
A76: ='I3 TB Data'!A353:B353 -> 5030 | B76: ='I3 TB Data'!B353:D353 -> Overhead Subtransmission Feeders - Operation | C76: ='I3 TB Data'!G353 -> 0 | D76: Yes
A77: ='I3 TB Data'!A354:B354 -> 5035 | B77: ='I3 TB Data'!B354:D354 -> Overhead Distribution Transformers- Operation | C77: ='I3 TB Data'!G354 -> 0 | D77: Yes
A78: ='I3 TB Data'!A355:B355 -> 5040 | B78: ='I3 TB Data'!B355:D355 -> Underground Distribution Lines and Feeders - Operation Labour | C78: ='I3 TB Data'!G355 -> 0 | D78: Yes
A79: ='I3 TB Data'!A356:B356 -> 5045 | B79: ='I3 TB Data'!B356:D356 -> Underground Distribution Lines & Feeders - Operation Supplies & Expenses | C79: ='I3 TB Data'!G356 -> 0 | D79: Yes
A80: ='I3 TB Data'!A357:B357 -> 5050 | B80: ='I3 TB Data'!B357:D357 -> Underground Subtransmission Feeders - Operation | C80: ='I3 TB Data'!G357 -> 0 | D80: Yes
A81: ='I3 TB Data'!A358:B358 -> 5055 | B81: ='I3 TB Data'!B358:D358 -> Underground Distribution Transformers - Operation | C81: ='I3 TB Data'!G358 -> 0 | D81: Yes
A82: ='I3 TB Data'!A360:B360 -> 5065 | B82: ='I3 TB Data'!B360:D360 -> Meter Expense | C82: ='I3 TB Data'!G360 -> 0 | D82: Yes
A83: ='I3 TB Data'!A361:B361 -> 5070 | B83: ='I3 TB Data'!B361:D361 -> Customer Premises - Operation Labour | C83: ='I3 TB Data'!G361 -> 0 | D83: Yes
A84: ='I3 TB Data'!A362:B362 -> 5075 | B84: ='I3 TB Data'!B362:D362 -> Customer Premises - Materials and Expenses | C84: ='I3 TB Data'!G362 -> 0 | D84: Yes
A85: ='I3 TB Data'!A363:B363 -> 5085 | B85: ='I3 TB Data'!B363:D363 -> Miscellaneous Distribution Expense | C85: ='I3 TB Data'!G363 -> 0 | D85: Yes
A86: ='I3 TB Data'!A364:B364 -> 5090 | B86: ='I3 TB Data'!B364:D364 -> Underground Distribution Lines and Feeders - Rental Paid | C86: ='I3 TB Data'!G364 -> 0 | D86: Yes
A87: ='I3 TB Data'!A365:B365 -> 5095 | B87: ='I3 TB Data'!B365:D365 -> Overhead Distribution Lines and Feeders - Rental Paid | C87: ='I3 TB Data'!G365 -> 0 | D87: Yes
A88: ='I3 TB Data'!A366:B366 -> 5096 | B88: ='I3 TB Data'!B366:D366 -> Other Rent | C88: ='I3 TB Data'!G366 -> 0 | D88: Yes
A89: ='I3 TB Data'!A367:B367 -> 5105 | B89: ='I3 TB Data'!B367:D367 -> Maintenance Supervision and Engineering | C89: ='I3 TB Data'!G367 -> 0 | D89: Yes
A90: ='I3 TB Data'!A368:B368 -> 5110 | B90: ='I3 TB Data'!B368:D368 -> Maintenance of Buildings and Fixtures - Distribution Stations | C90: ='I3 TB Data'!G368 -> 0 | D90: Yes
A91: ='I3 TB Data'!A369:B369 -> 5112 | B91: ='I3 TB Data'!B369:D369 -> Maintenance of Transformer Station Equipment | C91: ='I3 TB Data'!G369 -> 0 | D91: Yes
A92: ='I3 TB Data'!A370:B370 -> 5114 | B92: ='I3 TB Data'!B370:D370 -> Maintenance of Distribution Station Equipment | C92: ='I3 TB Data'!G370 -> 0 | D92: Yes
A93: ='I3 TB Data'!A371:B371 -> 5120 | B93: ='I3 TB Data'!B371:D371 -> Maintenance of Poles, Towers and Fixtures | C93: ='I3 TB Data'!G371 -> 0 | D93: Yes
A94: ='I3 TB Data'!A372:B372 -> 5125 | B94: ='I3 TB Data'!B372:D372 -> Maintenance of Overhead Conductors and Devices | C94: ='I3 TB Data'!G372 -> 0 | D94: Yes
A95: ='I3 TB Data'!A373:B373 -> 5130 | B95: ='I3 TB Data'!B373:D373 -> Maintenance of Overhead Services | C95: ='I3 TB Data'!G373 -> 0 | D95: Yes
A96: ='I3 TB Data'!A374:B374 -> 5135 | B96: ='I3 TB Data'!B374:D374 -> Overhead Distribution Lines and Feeders - Right of Way | C96: ='I3 TB Data'!G374 -> 0 | D96: Yes
A97: ='I3 TB Data'!A375:B375 -> 5145 | B97: ='I3 TB Data'!B375:D375 -> Maintenance of Underground Conduit | C97: ='I3 TB Data'!G375 -> 0 | D97: Yes
A98: ='I3 TB Data'!A376:B376 -> 5150 | B98: ='I3 TB Data'!B376:D376 -> Maintenance of Underground Conductors and Devices | C98: ='I3 TB Data'!G376 -> 0 | D98: Yes
A99: ='I3 TB Data'!A377:B377 -> 5155 | B99: ='I3 TB Data'!B377:D377 -> Maintenance of Underground Services | C99: ='I3 TB Data'!G377 -> 0 | D99: Yes
A100: ='I3 TB Data'!A378:B378 -> 5160 | B100: ='I3 TB Data'!B378:D378 -> Maintenance of Line Transformers | C100: ='I3 TB Data'!G378 -> 0 | D100: Yes
A101: ='I3 TB Data'!A382:B382 -> 5175 | B101: ='I3 TB Data'!B382:D382 -> Maintenance of Meters | C101: ='I3 TB Data'!G382 -> 0 | D101: Yes
A102: ='I3 TB Data'!A392:B392 -> 5305 | B102: ='I3 TB Data'!B392:D392 -> Supervision | C102: ='I3 TB Data'!G392 -> 0 | D102: Yes
A103: ='I3 TB Data'!A393:B393 -> 5310 | B103: ='I3 TB Data'!B393:D393 -> Meter Reading Expense | C103: ='I3 TB Data'!G393 -> 0 | D103: Yes
A104: ='I3 TB Data'!A394:B394 -> 5315 | B104: ='I3 TB Data'!B394:D394 -> Customer Billing | C104: ='I3 TB Data'!G394 -> 0 | D104: Yes
A105: ='I3 TB Data'!A395:B395 -> 5320 | B105: ='I3 TB Data'!B395:D395 -> Collecting | C105: ='I3 TB Data'!G395 -> 0 | D105: Yes
A106: ='I3 TB Data'!A396:B396 -> 5325 | B106: ='I3 TB Data'!B396:D396 -> Collecting- Cash Over and Short | C106: ='I3 TB Data'!G396 -> 0 | D106: Yes
A107: ='I3 TB Data'!A397:B397 -> 5330 | B107: ='I3 TB Data'!B397:D397 -> Collection Charges | C107: ='I3 TB Data'!G397 -> 0 | D107: Yes
A108: ='I3 TB Data'!A398:B398 -> 5335 | B108: ='I3 TB Data'!B398:D398 -> Bad Debt Expense | C108: ='I3 TB Data'!G398 -> 0 | D108: Yes
A109: ='I3 TB Data'!A399:B399 -> 5340 | B109: ='I3 TB Data'!B399:D399 -> Miscellaneous Customer Accounts Expenses | C109: ='I3 TB Data'!G399 -> 0 | D109: Yes
A110: ='I3 TB Data'!A400:B400 -> 5405 | B110: ='I3 TB Data'!B400:D400 -> Supervision | C110: ='I3 TB Data'!G400 -> 0 | D110: Yes
A111: ='I3 TB Data'!A401:B401 -> 5410 | B111: ='I3 TB Data'!B401:D401 -> Community Relations - Sundry | C111: ='I3 TB Data'!G401 -> 0 | D111: Yes
A112: ='I3 TB Data'!A402:B402 -> 5415 | B112: ='I3 TB Data'!B402:D402 -> Energy Conservation | C112: ='I3 TB Data'!G402 -> 0 | D112: Yes
A113: ='I3 TB Data'!A403:B403 -> 5420 | B113: ='I3 TB Data'!B403:D403 -> Community Safety Program | C113: ='I3 TB Data'!G403 -> 0 | D113: Yes
A114: ='I3 TB Data'!A404:B404 -> 5425 | B114: ='I3 TB Data'!B404:D404 -> Miscellaneous Customer Service and Informational Expenses | C114: ='I3 TB Data'!G404 -> 0 | D114: Yes
A115: ='I3 TB Data'!A405:B405 -> 5505 | B115: ='I3 TB Data'!B405:D405 -> Supervision | C115: ='I3 TB Data'!G405 -> 0 | D115: Yes
A116: ='I3 TB Data'!A406:B406 -> 5510 | B116: ='I3 TB Data'!B406:D406 -> Demonstrating and Selling Expense | C116: ='I3 TB Data'!G406 -> 0 | D116: Yes
A117: ='I3 TB Data'!A407:B407 -> 5515 | B117: ='I3 TB Data'!B407:D407 -> Advertising Expense | C117: ='I3 TB Data'!G407 -> 0 | D117: Yes
A118: ='I3 TB Data'!A408:B408 -> 5520 | B118: ='I3 TB Data'!B408:D408 -> Miscellaneous Sales Expense | C118: ='I3 TB Data'!G408 -> 0 | D118: Yes
A119: ='I3 TB Data'!A409:B409 -> 5605 | B119: ='I3 TB Data'!B409:D409 -> Executive Salaries and Expenses | C119: ='I3 TB Data'!G409 -> 0 | D119: Yes
A120: ='I3 TB Data'!A410:B410 -> 5610 | B120: ='I3 TB Data'!B410:D410 -> Management Salaries and Expenses | C120: ='I3 TB Data'!G410 -> 0 | D120: Yes
A121: ='I3 TB Data'!A411:B411 -> 5615 | B121: ='I3 TB Data'!B411:D411 -> General Administrative Salaries and Expenses | C121: ='I3 TB Data'!G411 -> 0 | D121: Yes
A122: ='I3 TB Data'!A412:B412 -> 5620 | B122: ='I3 TB Data'!B412:D412 -> Office Supplies and Expenses | C122: ='I3 TB Data'!G412 -> 0 | D122: =IF(SUM(E122:X122)<>C122,"No","Yes") -> Yes
A123: ='I3 TB Data'!A413:B413 -> 5625 | B123: ='I3 TB Data'!B413:D413 -> Administrative Expense Transferred Credit | C123: ='I3 TB Data'!G413 -> 0 | D123: Yes
A124: ='I3 TB Data'!A414:B414 -> 5630 | B124: ='I3 TB Data'!B414:D414 -> Outside Services Employed | C124: ='I3 TB Data'!G414 -> 0 | D124: Yes
A125: ='I3 TB Data'!A415:B415 -> 5635 | B125: ='I3 TB Data'!B415:D415 -> Property Insurance | C125: ='I3 TB Data'!G415 -> 0 | D125: Yes
A126: ='I3 TB Data'!A416:B416 -> 5640 | B126: ='I3 TB Data'!B416:D416 -> Injuries and Damages | C126: ='I3 TB Data'!G416 -> 0 | D126: Yes
A127: ='I3 TB Data'!A417:B417 -> 5645 | B127: ='I3 TB Data'!B417:D417 -> Employee Pensions and Benefits | C127: ='I3 TB Data'!G417 -> 0 | D127: Yes
A128: ='I3 TB Data'!A418:B418 -> 5650 | B128: ='I3 TB Data'!B418:D418 -> Franchise Requirements | C128: ='I3 TB Data'!G418 -> 0 | D128: Yes
A129: ='I3 TB Data'!A419:B419 -> 5655 | B129: ='I3 TB Data'!B419:D419 -> Regulatory Expenses | C129: ='I3 TB Data'!G419 -> 0 | D129: Yes
A130: ='I3 TB Data'!A420:B420 -> 5660 | B130: ='I3 TB Data'!B420:D420 -> General Advertising Expenses | C130: ='I3 TB Data'!G420 -> 0 | D130: Yes
A131: ='I3 TB Data'!A421:B421 -> 5665 | B131: ='I3 TB Data'!B421:D421 -> Miscellaneous General Expenses | C131: ='I3 TB Data'!G421 -> 0 | D131: Yes
A132: ='I3 TB Data'!A422:B422 -> 5670 | B132: ='I3 TB Data'!B422:D422 -> Rent | C132: ='I3 TB Data'!G422 -> 0 | D132: Yes
A133: ='I3 TB Data'!A423:B423 -> 5675 | B133: ='I3 TB Data'!B423:D423 -> Maintenance of General Plant | C133: ='I3 TB Data'!G423 -> 0 | D133: Yes
A134: ='I3 TB Data'!A424:B424 -> 5680 | B134: ='I3 TB Data'!B424:D424 -> Electrical Safety Authority Fees | C134: ='I3 TB Data'!G424 -> 0 | D134: Yes
A135: ='I3 TB Data'!A426:B426 -> 5682 | B135: ='I3 TB Data'!B426:D426 -> IFRS Placeholder Expense Account | C135: ='I3 TB Data'!G426 -> 0 | D135: =IF(SUM(E135:X135)<>C135,"No","Yes") -> Yes
A136: ='I3 TB Data'!A430:B430 -> 5705 | B136: ='I3 TB Data'!B430:D430 -> Amortization Expense - Property, Plant, and Equipment | C136: ='I3 TB Data'!G430 -> 0 | D136: Yes
A137: ='I3 TB Data'!A431:B431 -> 5710 | B137: ='I3 TB Data'!B431:D431 -> Amortization of Limited Term Electric Plant | C137: ='I3 TB Data'!G431 -> 0 | D137: Yes
A138: ='I3 TB Data'!A432:B432 -> 5715 | B138: ='I3 TB Data'!B432:D432 -> Amortization of Intangibles and Other Electric Plant | C138: ='I3 TB Data'!G432 -> 0 | D138: Yes
A139: ='I3 TB Data'!A433:B433 -> 5720 | B139: ='I3 TB Data'!B433:D433 -> Amortization of Electric Plant Acquisition Adjustments | C139: ='I3 TB Data'!G433 -> 0 | D139: Yes
A140: ='I3 TB Data'!A448:B448 -> 6105 | B140: ='I3 TB Data'!B448:D448 -> Taxes Other Than Income Taxes | C140: ='I3 TB Data'!G448 -> 0 | D140: Yes
A141: ='I3 TB Data'!A451:B451 -> 6205 | B141: ='I3 TB Data'!B451:D451 -> Donations | C141: ='I3 TB Data'!G451 -> 0 | D141: Yes
A142: ='I3 TB Data'!A452:B452 -> 6210 | B142: ='I3 TB Data'!B452:D452 -> Life Insurance | C142: ='I3 TB Data'!G452 -> 0 | D142: Yes
A143: ='I3 TB Data'!A453:B453 -> 6215 | B143: ='I3 TB Data'!B453:D453 -> Penalties | C143: ='I3 TB Data'!G453 -> 0 | D143: Yes
A144: ='I3 TB Data'!A454:B454 -> 6225 | B144: ='I3 TB Data'!B454:D454 -> Other Deductions | C144: ='I3 TB Data'!G454 -> 0 | D144: Yes
B145: Total Expenses | E145: =SUM(E67:E144) -> 0 | F145: =SUM(F67:F144) -> 0 | G145: 0 | H145: 0 | I145: 0 | J145: 0 | K145: 0 | L145: 0 | M145: 0 | N145: 0 | O145: 0 | P145: 0 | Q145: 0 | R145: 0 | S145: 0 | T145: 0 | U145: 0 | V145: 0 | W145: 0 | X145: 0
B146: Depreciation Expense | E146: =SUM(E136:E139) -> 0 | F146: =SUM(F136:F139) -> 0 | G146: 0 | H146: 0 | I146: 0 | J146: 0 | K146: 0 | L146: 0 | M146: 0 | N146: 0 | O146: 0 | P146: 0 | Q146: 0 | R146: 0 | S146: 0 | T146: 0 | U146: 0 | V146: 0 | W146: 0 | X146: 0
B148: Total Net Fixed Assets Excluding Gen Plant | C148: ='I4 BO ASSETS'!C59 -> 105292225 | D148: Allocated | E148: =E20 -> Residential | F148: =F20 -> General Service < 50 kW | G148: General Service > 50 kW | H148: GS> 50-TOU | I148: GS >50-Intermediate | J148: Large Use >5MW | K148: Street Lighting | L148: Sentinel Lighting | M148: Unmetered Scattered Load | N148: Embedded Distributor | O148: Back-up/Standby Power | P148: Rate Class 1 | Q148: Rate class 2 | R148: Rate class 3 | S148: Rate class 4 | T148: Rate class 5 | U148: Rate class 6 | V148: Rate class 7 | W148: Rate class 8 | X148: Rate class 9
B149: Approved Total PILs | C149: ='I3 TB Data'!F11 -> 266650.4823 | D149: =IF(ISERROR(SUM(E149:X149)), "-", SUM(E149:X149)) -> 0 | E149: =IF(ISERROR(E65/$C$148*$C$149), "-", E65/$C$148*$C$149) -> 0 | F149: =IF(ISERROR(F65/$C$148*$C$149), "-", F65/$C$148*$C$149) -> 0 | G149: 0 | H149: 0 | I149: 0 | J149: 0 | K149: 0 | L149: 0 | M149: 0 | N149: 0 | O149: 0 | P149: 0 | Q149: 0 | R149: 0 | S149: 0 | T149: 0 | U149: 0 | V149: 0 | W149: 0 | X149: 0
B150: Approved Total Return on Debt | C150: ='I3 TB Data'!F12 -> 1632716.439 | D150: =IF(ISERROR(SUM(E150:X150)), "-", SUM(E150:X150)) -> 0 | E150: =IF(ISERROR(E65/$C$148*$C$150), "-", E65/$C$148*$C$150) -> 0 | F150: =IF(ISERROR(F65/$C$148*$C$150), "-", F65/$C$148*$C$150) -> 0 | G150: 0 | H150: 0 | I150: 0 | J150: 0 | K150: 0 | L150: 0 | M150: 0 | N150: 0 | O150: 0 | P150: 0 | Q150: 0 | R150: 0 | S150: 0 | T150: 0 | U150: 0 | V150: 0 | W150: 0 | X150: 0
B151: Approved Total Return on Equity | C151: ='I3 TB Data'!F10 -> 2359554.012 | D151: =IF(ISERROR(SUM(E151:X151)), "-", SUM(E151:X151)) -> 0 | E151: =IF(ISERROR(E65/$C$148*$C$151), "-", E65/$C$148*$C$151) -> 0 | F151: =IF(ISERROR(F65/$C$148*$C$151), "-", F65/$C$148*$C$151) -> 0 | G151: 0 | H151: 0 | I151: 0 | J151: 0 | K151: 0 | L151: 0 | M151: 0 | N151: 0 | O151: 0 | P151: 0 | Q151: 0 | R151: 0 | S151: 0 | T151: 0 | U151: 0 | V151: 0 | W151: 0 | X151: 0
D153: Total | E153: =E145+SUM(E149:E151) -> 0 | F153: =F145+SUM(F149:F151) -> 0 | G153: 0 | H153: 0 | I153: 0 | J153: 0 | K153: 0 | L153: 0 | M153: 0 | N153: 0 | O153: 0 | P153: 0 | Q153: 0 | R153: 0 | S153: 0 | T153: 0 | U153: 0 | V153: 0 | W153: 0 | X153: 0

Sheet O1 Revenue to cost|RR
A5: ="Sheet O1 Revenue to Cost Summary Worksheet - "& 'I2 LDC class'!$C$17 -> Sheet O1 Revenue to Cost Summary Worksheet -
D16: 1 | E16: 2 | F16: 3 | G16: 4 | H16: 5 | I16: 6 | J16: 7 | K16: 8 | L16: 9 | M16: 10 | N16: 11 | O16: 12 | P16: 13 | Q16: 14 | R16: 15 | S16: 16 | T16: 17 | U16: 18 | V16: 19 | W16: 20
A17: Rate Base Assets | C17: Total | D17: =IF('I2 LDC class'!$D$20="",'I2 LDC class'!$C$20,'I2 LDC class'!$D$20) -> Residential | E17: =IF('I2 LDC class'!$D$21="",'I2 LDC class'!$C$21,'I2 LDC class'!$D$21) -> General Service < 50 kW | F17: =IF('I2 LDC class'!$D$22="",'I2 LDC class'!$C$22,'I2 LDC class'!$D$22) -> General Service > 50 kW | G17: =IF('I2 LDC class'!$D$23="",'I2 LDC class'!$C$23,'I2 LDC class'!$D$23) -> GS> 50-TOU | H17: =IF('I2 LDC class'!$D$24="",'I2 LDC class'!$C$24,'I2 LDC class'!$D$24) -> GS >50-Intermediate | I17: =IF('I2 LDC class'!$D$25="",'I2 LDC class'!$C$25,'I2 LDC class'!$D$25) -> Large Use >5MW | J17: =IF('I2 LDC class'!$D$26="",'I2 LDC class'!$C$26,'I2 LDC class'!$D$26) -> Street Lighting | K17: =IF('I2 LDC class'!$D$27="",'I2 LDC class'!$C$27,'I2 LDC class'!$D$27) -> Sentinel Lighting | L17: =IF('I2 LDC class'!$D$28="",'I2 LDC class'!$C$28,'I2 LDC class'!$D$28) -> Unmetered Scattered Load | M17: =IF('I2 LDC class'!$D$29="",'I2 LDC class'!$C$29,'I2 LDC class'!$D$29) -> Embedded Distributor | N17: =IF('I2 LDC class'!$D$30="",'I2 LDC class'!$C$30,'I2 LDC class'!$D$30) -> Back-up/Standby Power | O17: =IF('I2 LDC class'!$D$31="",'I2 LDC class'!$C$31,'I2 LDC class'!$D$31) -> Rate Class 1 | P17: =IF('I2 LDC class'!$D$32="",'I2 LDC class'!$C$32,'I2 LDC class'!$D$32) -> Rate class 2 | Q17: =IF('I2 LDC class'!$D$33="",'I2 LDC class'!$C$33,'I2 LDC class'!$D$33) -> Rate class 3 | R17: =IF('I2 LDC class'!$D$34="",'I2 LDC class'!$C$34,'I2 LDC class'!$D$34) -> Rate class 4 | S17: =IF('I2 LDC class'!$D$35="",'I2 LDC class'!$C$35,'I2 LDC class'!$D$35) -> Rate class 5 | T17: =IF('I2 LDC class'!$D$36="",'I2 LDC class'!$C$36,'I2 LDC class'!$D$36) -> Rate class 6 | U17: =IF('I2 LDC class'!$D$37="",'I2 LDC class'!$C$37,'I2 LDC class'!$D$37) -> Rate class 7 | V17: =IF('I2 LDC class'!$D$38="",'I2 LDC class'!$C$38,'I2 LDC class'!$D$38) -> Rate class 8 | W17: =IF('I2 LDC class'!$D$39="",'I2 LDC class'!$C$39,'I2 LDC class'!$D$39) -> Rate class 9
A18: crev | B18: Distribution Revenue at Existing Rates | C18: =SUM(D18:W18) -> 14457760.77 | D18: ='I6.1 Revenue'!D41 -> 7966779.79 | E18: ='I6.1 Revenue'!E41 -> 2286361.069 | F18: ='I6.1 Revenue'!F41 -> 3117702.143 | G18: ='I6.1 Revenue'!G41 -> 0 | H18: ='I6.1 Revenue'!H41 -> 0 | I18: ='I6.1 Revenue'!I41 -> 235898.5059 | J18: ='I6.1 Revenue'!J41 -> 506843.6677 | K18: ='I6.1 Revenue'!K41 -> 51979.00948 | L18: ='I6.1 Revenue'!L41 -> 292196.5829 | M18: =-SUMIF('O4 Summary by Class & Accounts'!$C$19:$C$217, 'O1 Revenue to cost|RR'!$A18,'O4 Summary by Class & Accounts'!N$19:N$217) -> 0 | N18: =-SUMIF('O4 Summary by Class & Accounts'!$C$19:$C$217, 'O1 Revenue to cost|RR'!$A18,'O4 Summary by Class & Accounts'!O$19:O$217) -> 0 | O18: =-SUMIF('O4 Summary by Class & Accounts'!$C$19:$C$217, 'O1 Revenue to cost|RR'!$A18,'O4 Summary by Class & Accounts'!P$19:P$217) -> 0 | P18: =-SUMIF('O4 Summary by Class & Accounts'!$C$19:$C$217, 'O1 Revenue to cost|RR'!$A18,'O4 Summary by Class & Accounts'!Q$19:Q$217) -> 0 | Q18: =-SUMIF('O4 Summary by Class & Accounts'!$C$19:$C$217, 'O1 Revenue to cost|RR'!$A18,'O4 Summary by Class & Accounts'!R$19:R$217) -> 0 | R18: =-SUMIF('O4 Summary by Class & Accounts'!$C$19:$C$217, 'O1 Revenue to cost|RR'!$A18,'O4 Summary by Class & Accounts'!S$19:S$217) -> 0 | S18: =-SUMIF('O4 Summary by Class & Accounts'!$C$19:$C$217, 'O1 Revenue to cost|RR'!$A18,'O4 Summary by Class & Accounts'!T$19:T$217) -> 0 | T18: =-SUMIF('O4 Summary by Class & Accounts'!$C$19:$C$217, 'O1 Revenue to cost|RR'!$A18,'O4 Summary by Class & Accounts'!U$19:U$217) -> 0 | U18: =-SUMIF('O4 Summary by Class & Accounts'!$C$19:$C$217, 'O1 Revenue to cost|RR'!$A18,'O4 Summary by Class & Accounts'!V$19:V$217) -> 0 | V18: =-SUMIF('O4 Summary by Class & Accounts'!$C$19:$C$217, 'O1 Revenue to cost|RR'!$A18,'O4 Summary by Class & Accounts'!W$19:W$217) -> 0 | W18: =-SUMIF('O4 Summary by Class & Accounts'!$C$19:$C$217, 'O1 Revenue to cost|RR'!$A18,'O4 Summary by Class & Accounts'!X$19:X$217) -> 0
A19: mi | B19: Miscellaneous Revenue (mi) | C19: =SUM(D19:W19) -> 1322234 | D19: =-SUMIF('O4 Summary by Class & Accounts'!$C$19:$C$217,'O1 Revenue to cost|RR'!$A19,'O4 Summary by Class & Accounts'!E$19:E$217) -> 921357.7024 | E19: =-SUMIF('O4 Summary by Class & Accounts'!$C$19:$C$217,'O1 Revenue to cost|RR'!$A19,'O4 Summary by Class & Accounts'!F$19:F$217) -> 170422.4145 | F19: =-SUMIF('O4 Summary by Class & Accounts'!$C$19:$C$217,'O1 Revenue to cost|RR'!$A19,'O4 Summary by Class & Accounts'!G$19:G$217) -> 163154.3566 | G19: =-SUMIF('O4 Summary by Class & Accounts'!$C$19:$C$217,'O1 Revenue to cost|RR'!$A19,'O4 Summary by Class & Accounts'!H$19:H$217) -> 0 | H19: =-SUMIF('O4 Summary by Class & Accounts'!$C$19:$C$217,'O1 Revenue to cost|RR'!$A19,'O4 Summary by Class & Accounts'!I$19:I$217) -> 0 | I19: =-SUMIF('O4 Summary by Class & Accounts'!$C$19:$C$217,'O1 Revenue to cost|RR'!$A19,'O4 Summary by Class & Accounts'!J$19:J$217) -> 19824.12574 | J19: =-SUMIF('O4 Summary by Class & Accounts'!$C$19:$C$217,'O1 Revenue to cost|RR'!$A19,'O4 Summary by Class & Accounts'!K$19:K$217) -> 41553.70313 | K19: =-SUMIF('O4 Summary by Class & Accounts'!$C$19:$C$217,'O1 Revenue to cost|RR'!$A19,'O4 Summary by Class & Accounts'!L$19:L$217) -> 2541.059431 | L19: =-SUMIF('O4 Summary by Class & Accounts'!$C$19:$C$217,'O1 Revenue to cost|RR'!$A19,'O4 Summary by Class & Accounts'!M$19:M$217) -> 3380.638196 | M19: =-SUMIF('O4 Summary by Class & Accounts'!$C$19:$C$217,'O1 Revenue to cost|RR'!$A19,'O4 Summary by Class & Accounts'!N$19:N$217) -> 0 | N19: =-SUMIF('O4 Summary by Class & Accounts'!$C$19:$C$217,'O1 Revenue to cost|RR'!$A19,'O4 Summary by Class & Accounts'!O$19:O$217) -> 0 | O19: =-SUMIF('O4 Summary by Class & Accounts'!$C$19:$C$217,'O1 Revenue to cost|RR'!$A19,'O4 Summary by Class & Accounts'!P$19:P$217) -> 0 | P19: =-SUMIF('O4 Summary by Class & Accounts'!$C$19:$C$217,'O1 Revenue to cost|RR'!$A19,'O4 Summary by Class & Accounts'!Q$19:Q$217) -> 0 | Q19: =-SUMIF('O4 Summary by Class & Accounts'!$C$19:$C$217,'O1 Revenue to cost|RR'!$A19,'O4 Summary by Class & Accounts'!R$19:R$217) -> 0 | R19: =-SUMIF('O4 Summary by Class & Accounts'!$C$19:$C$217,'O1 Revenue to cost|RR'!$A19,'O4 Summary by Class & Accounts'!S$19:S$217) -> 0 | S19: =-SUMIF('O4 Summary by Class & Accounts'!$C$19:$C$217,'O1 Revenue to cost|RR'!$A19,'O4 Summary by Class & Accounts'!T$19:T$217) -> 0 | T19: =-SUMIF('O4 Summary by Class & Accounts'!$C$19:$C$217,'O1 Revenue to cost|RR'!$A19,'O4 Summary by Class & Accounts'!U$19:U$217) -> 0 | U19: =-SUMIF('O4 Summary by Class & Accounts'!$C$19:$C$217,'O1 Revenue to cost|RR'!$A19,'O4 Summary by Class & Accounts'!V$19:V$217) -> 0 | V19: =-SUMIF('O4 Summary by Class & Accounts'!$C$19:$C$217,'O1 Revenue to cost|RR'!$A19,'O4 Summary by Class & Accounts'!W$19:W$217) -> 0 | W19: =-SUMIF('O4 Summary by Class & Accounts'!$C$19:$C$217,'O1 Revenue to cost|RR'!$A19,'O4 Summary by Class & Accounts'!X$19:X$217) -> 0
C20: =IF(ISERROR(ROUND('I6.1 Revenue'!B19-C19,-1)=0), "-", IF(ROUND('I6.1 Revenue'!B19-C19,-1)=0,"Miscellaneous Revenue Input equals Output","Miscellaneous Revenue Input Does Not Equal Output")) -> Miscellaneous Revenue Input equals Output
B21: Total Revenue at Existing Rates | C21: =C18+C19 -> 15779994.77 | D21: 8888137.492 | E21: 2456783.484 | F21: 3280856.499 | G21: 0 | H21: 0 | I21: 255722.6316 | J21: 548397.3708 | K21: 54520.06891 | L21: 295577.2211 | M21: 0 | N21: 0 | O21: 0 | P21: 0 | Q21: 0 | R21: 0 | S21: 0 | T21: 0 | U21: 0 | V21: 0 | W21: 0
B22: Factor required to recover deficiency (1 + D) | C22: =IF(ISERROR((C40-C19)/C18), 0, (C40-C19)/C18) -> 1.034223153
B23: Distribution Revenue at Status Quo Rates | C23: =SUM(D23:W23) -> 14952550.93 | D23: =IF(ISERROR(($C$40-$C$19)/$C$18*D18), 0, ($C$40-$C$19)/$C$18*D18) -> 8239428.117 | E23: =IF(ISERROR(($C$40-$C$19)/$C$18*E18), 0, ($C$40-$C$19)/$C$18*E18) -> 2364607.555 | F23: 3224399.741 | G23: 0 | H23: 0 | I23: 243971.6966 | J23: 524189.4563 | K23: 53757.8951 | L23: 302196.4714 | M23: 0 | N23: 0 | O23: 0 | P23: 0 | Q23: 0 | R23: 0 | S23: 0 | T23: 0 | U23: 0 | V23: 0 | W23: 0
B24: Miscellaneous Revenue (mi) | C24: =SUM(D24:W24) -> 1322234 | D24: =D19 -> 921357.7024 | E24: =E19 -> 170422.4145 | F24: 163154.3566 | G24: 0 | H24: 0 | I24: 19824.12574 | J24: 41553.70313 | K24: 2541.059431 | L24: 3380.638196 | M24: 0 | N24: 0 | O24: 0 | P24: 0 | Q24: 0 | R24: 0 | S24: 0 | T24: 0 | U24: 0 | V24: 0 | W24: 0
B25: Total Revenue at Status Quo Rates | C25: =C23+C24 -> 16274784.93 | D25: 9160785.82 | E25: 2535029.969 | F25: 3387554.098 | G25: 0 | H25: 0 | I25: 263795.8224 | J25: 565743.1594 | K25: 56298.95453 | L25: 305577.1096 | M25: 0 | N25: 0 | O25: 0 | P25: 0 | Q25: 0 | R25: 0 | S25: 0 | T25: 0 | U25: 0 | V25: 0 | W25: 0
B27: Expenses
A28: di | B28: Distribution Costs (di) | C28: =SUM(D28:W28) -> 3042793 | D28: =SUMIF('O4 Summary by Class & Accounts'!$C$19:$C$217, 'O1 Revenue to cost|RR'!$A28,'O4 Summary by Class & Accounts'!E$19:E$217) -> 1713745.768 | E28: =SUMIF('O4 Summary by Class & Accounts'!$C$19:$C$217, 'O1 Revenue to cost|RR'!$A28,'O4 Summary by Class & Accounts'!F$19:F$217) -> 501460.1466 | F28: =SUMIF('O4 Summary by Class & Accounts'!$C$19:$C$217, 'O1 Revenue to cost|RR'!$A28,'O4 Summary by Class & Accounts'!G$19:G$217) -> 624971.4913 | G28: =SUMIF('O4 Summary by Class & Accounts'!$C$19:$C$217, 'O1 Revenue to cost|RR'!$A28,'O4 Summary by Class & Accounts'!H$19:H$217) -> 0 | H28: =SUMIF('O4 Summary by Class & Accounts'!$C$19:$C$217, 'O1 Revenue to cost|RR'!$A28,'O4 Summary by Class & Accounts'!I$19:I$217) -> 0 | I28: =SUMIF('O4 Summary by Class & Accounts'!$C$19:$C$217, 'O1 Revenue to cost|RR'!$A28,'O4 Summary by Class & Accounts'!J$19:J$217) -> 79486.89388 | J28: =SUMIF('O4 Summary by Class & Accounts'!$C$19:$C$217, 'O1 Revenue to cost|RR'!$A28,'O4 Summary by Class & Accounts'!K$19:K$217) -> 106058.0505 | K28: =SUMIF('O4 Summary by Class & Accounts'!$C$19:$C$217, 'O1 Revenue to cost|RR'!$A28,'O4 Summary by Class & Accounts'!L$19:L$217) -> 4361.536035 | L28: =SUMIF('O4 Summary by Class & Accounts'!$C$19:$C$217, 'O1 Revenue to cost|RR'!$A28,'O4 Summary by Class & Accounts'!M$19:M$217) -> 12709.11328 | M28: =SUMIF('O4 Summary by Class & Accounts'!$C$19:$C$217, 'O1 Revenue to cost|RR'!$A28,'O4 Summary by Class & Accounts'!N$19:N$217) -> 0 | N28: =SUMIF('O4 Summary by Class & Accounts'!$C$19:$C$217, 'O1 Revenue to cost|RR'!$A28,'O4 Summary by Class & Accounts'!O$19:O$217) -> 0 | O28: =SUMIF('O4 Summary by Class & Accounts'!$C$19:$C$217, 'O1 Revenue to cost|RR'!$A28,'O4 Summary by Class & Accounts'!P$19:P$217) -> 0 | P28: =SUMIF('O4 Summary by Class & Accounts'!$C$19:$C$217, 'O1 Revenue to cost|RR'!$A28,'O4 Summary by Class & Accounts'!Q$19:Q$217) -> 0 | Q28: =SUMIF('O4 Summary by Class & Accounts'!$C$19:$C$217, 'O1 Revenue to cost|RR'!$A28,'O4 Summary by Class & Accounts'!R$19:R$217) -> 0 | R28: =SUMIF('O4 Summary by Class & Accounts'!$C$19:$C$217, 'O1 Revenue to cost|RR'!$A28,'O4 Summary by Class & Accounts'!S$19:S$217) -> 0 | S28: =SUMIF('O4 Summary by Class & Accounts'!$C$19:$C$217, 'O1 Revenue to cost|RR'!$A28,'O4 Summary by Class & Accounts'!T$19:T$217) -> 0 | T28: =SUMIF('O4 Summary by Class & Accounts'!$C$19:$C$217, 'O1 Revenue to cost|RR'!$A28,'O4 Summary by Class & Accounts'!U$19:U$217) -> 0 | U28: =SUMIF('O4 Summary by Class & Accounts'!$C$19:$C$217, 'O1 Revenue to cost|RR'!$A28,'O4 Summary by Class & Accounts'!V$19:V$217) -> 0 | V28: =SUMIF('O4 Summary by Class & Accounts'!$C$19:$C$217, 'O1 Revenue to cost|RR'!$A28,'O4 Summary by Class & Accounts'!W$19:W$217) -> 0 | W28: =SUMIF('O4 Summary by Class & Accounts'!$C$19:$C$217, 'O1 Revenue to cost|RR'!$A28,'O4 Summary by Class & Accounts'!X$19:X$217) -> 0
A29: cu | B29: Customer Related Costs (cu) | C29: 2812006 | D29: =SUMIF('O4 Summary by Class & Accounts'!$C$19:$C$217, 'O1 Revenue to cost|RR'!$A29,'O4 Summary by Class & Accounts'!E$19:E$217) -> 2372465.477 | E29: =SUMIF('O4 Summary by Class & Accounts'!$C$19:$C$217, 'O1 Revenue to cost|RR'!$A29,'O4 Summary by Class & Accounts'!F$19:F$217) -> 289523.8795 | F29: =SUMIF('O4 Summary by Class & Accounts'!$C$19:$C$217, 'O1 Revenue to cost|RR'!$A29,'O4 Summary by Class & Accounts'!G$19:G$217) -> 141081.9046 | G29: =SUMIF('O4 Summary by Class & Accounts'!$C$19:$C$217, 'O1 Revenue to cost|RR'!$A29,'O4 Summary by Class & Accounts'!H$19:H$217) -> 0 | H29: =SUMIF('O4 Summary by Class & Accounts'!$C$19:$C$217, 'O1 Revenue to cost|RR'!$A29,'O4 Summary by Class & Accounts'!I$19:I$217) -> 0 | I29: =SUMIF('O4 Summary by Class & Accounts'!$C$19:$C$217, 'O1 Revenue to cost|RR'!$A29,'O4 Summary by Class & Accounts'!J$19:J$217) -> 1468.170194 | J29: =SUMIF('O4 Summary by Class & Accounts'!$C$19:$C$217, 'O1 Revenue to cost|RR'!$A29,'O4 Summary by Class & Accounts'!K$19:K$217) -> 142.0022202 | K29: =SUMIF('O4 Summary by Class & Accounts'!$C$19:$C$217, 'O1 Revenue to cost|RR'!$A29,'O4 Summary by Class & Accounts'!L$19:L$217) -> 6948.947358 | L29: =SUMIF('O4 Summary by Class & Accounts'!$C$19:$C$217, 'O1 Revenue to cost|RR'!$A29,'O4 Summary by Class & Accounts'!M$19:M$217) -> 375.6187761 | M29: =SUMIF('O4 Summary by Class & Accounts'!$C$19:$C$217, 'O1 Revenue to cost|RR'!$A29,'O4 Summary by Class & Accounts'!N$19:N$217) -> 0 | N29: =SUMIF('O4 Summary by Class & Accounts'!$C$19:$C$217, 'O1 Revenue to cost|RR'!$A29,'O4 Summary by Class & Accounts'!O$19:O$217) -> 0 | O29: =SUMIF('O4 Summary by Class & Accounts'!$C$19:$C$217, 'O1 Revenue to cost|RR'!$A29,'O4 Summary by Class & Accounts'!P$19:P$217) -> 0 | P29: =SUMIF('O4 Summary by Class & Accounts'!$C$19:$C$217, 'O1 Revenue to cost|RR'!$A29,'O4 Summary by Class & Accounts'!Q$19:Q$217) -> 0 | Q29: =SUMIF('O4 Summary by Class & Accounts'!$C$19:$C$217, 'O1 Revenue to cost|RR'!$A29,'O4 Summary by Class & Accounts'!R$19:R$217) -> 0 | R29: =SUMIF('O4 Summary by Class & Accounts'!$C$19:$C$217, 'O1 Revenue to cost|RR'!$A29,'O4 Summary by Class & Accounts'!S$19:S$217) -> 0 | S29: =SUMIF('O4 Summary by Class & Accounts'!$C$19:$C$217, 'O1 Revenue to cost|RR'!$A29,'O4 Summary by Class & Accounts'!T$19:T$217) -> 0 | T29: =SUMIF('O4 Summary by Class & Accounts'!$C$19:$C$217, 'O1 Revenue to cost|RR'!$A29,'O4 Summary by Class & Accounts'!U$19:U$217) -> 0 | U29: =SUMIF('O4 Summary by Class & Accounts'!$C$19:$C$217, 'O1 Revenue to cost|RR'!$A29,'O4 Summary by Class & Accounts'!V$19:V$217) -> 0 | V29: =SUMIF('O4 Summary by Class & Accounts'!$C$19:$C$217, 'O1 Revenue to cost|RR'!$A29,'O4 Summary by Class & Accounts'!W$19:W$217) -> 0 | W29: =SUMIF('O4 Summary by Class & Accounts'!$C$19:$C$217, 'O1 Revenue to cost|RR'!$A29,'O4 Summary by Class & Accounts'!X$19:X$217) -> 0
A30: ad | B30: General and Administration (ad) | C30: 3488992 | D30: =SUMIF('O4 Summary by Class & Accounts'!$C$19:$C$217, 'O1 Revenue to cost|RR'!$A30,'O4 Summary by Class & Accounts'!E$19:E$217) -> 2410084.473 | E30: =SUMIF('O4 Summary by Class & Accounts'!$C$19:$C$217, 'O1 Revenue to cost|RR'!$A30,'O4 Summary by Class & Accounts'!F$19:F$217) -> 477471.5691 | F30: =SUMIF('O4 Summary by Class & Accounts'!$C$19:$C$217, 'O1 Revenue to cost|RR'!$A30,'O4 Summary by Class & Accounts'!G$19:G$217) -> 468661.0053 | G30: =SUMIF('O4 Summary by Class & Accounts'!$C$19:$C$217, 'O1 Revenue to cost|RR'!$A30,'O4 Summary by Class & Accounts'!H$19:H$217) -> 0 | H30: =SUMIF('O4 Summary by Class & Accounts'!$C$19:$C$217, 'O1 Revenue to cost|RR'!$A30,'O4 Summary by Class & Accounts'!I$19:I$217) -> 0 | I30: =SUMIF('O4 Summary by Class & Accounts'!$C$19:$C$217, 'O1 Revenue to cost|RR'!$A30,'O4 Summary by Class & Accounts'!J$19:J$217) -> 49278.57667 | J30: =SUMIF('O4 Summary by Class & Accounts'!$C$19:$C$217, 'O1 Revenue to cost|RR'!$A30,'O4 Summary by Class & Accounts'!K$19:K$217) -> 68628.59654 | K30: =SUMIF('O4 Summary by Class & Accounts'!$C$19:$C$217, 'O1 Revenue to cost|RR'!$A30,'O4 Summary by Class & Accounts'!L$19:L$217) -> 6642.009021 | L30: =SUMIF('O4 Summary by Class & Accounts'!$C$19:$C$217, 'O1 Revenue to cost|RR'!$A30,'O4 Summary by Class & Accounts'!M$19:M$217) -> 8225.770237 | M30: =SUMIF('O4 Summary by Class & Accounts'!$C$19:$C$217, 'O1 Revenue to cost|RR'!$A30,'O4 Summary by Class & Accounts'!N$19:N$217) -> 0 | N30: =SUMIF('O4 Summary by Class & Accounts'!$C$19:$C$217, 'O1 Revenue to cost|RR'!$A30,'O4 Summary by Class & Accounts'!O$19:O$217) -> 0 | O30: =SUMIF('O4 Summary by Class & Accounts'!$C$19:$C$217, 'O1 Revenue to cost|RR'!$A30,'O4 Summary by Class & Accounts'!P$19:P$217) -> 0 | P30: =SUMIF('O4 Summary by Class & Accounts'!$C$19:$C$217, 'O1 Revenue to cost|RR'!$A30,'O4 Summary by Class & Accounts'!Q$19:Q$217) -> 0 | Q30: =SUMIF('O4 Summary by Class & Accounts'!$C$19:$C$217, 'O1 Revenue to cost|RR'!$A30,'O4 Summary by Class & Accounts'!R$19:R$217) -> 0 | R30: =SUMIF('O4 Summary by Class & Accounts'!$C$19:$C$217, 'O1 Revenue to cost|RR'!$A30,'O4 Summary by Class & Accounts'!S$19:S$217) -> 0 | S30: =SUMIF('O4 Summary by Class & Accounts'!$C$19:$C$217, 'O1 Revenue to cost|RR'!$A30,'O4 Summary by Class & Accounts'!T$19:T$217) -> 0 | T30: =SUMIF('O4 Summary by Class & Accounts'!$C$19:$C$217, 'O1 Revenue to cost|RR'!$A30,'O4 Summary by Class & Accounts'!U$19:U$217) -> 0 | U30: =SUMIF('O4 Summary by Class & Accounts'!$C$19:$C$217, 'O1 Revenue to cost|RR'!$A30,'O4 Summary by Class & Accounts'!V$19:V$217) -> 0 | V30: =SUMIF('O4 Summary by Class & Accounts'!$C$19:$C$217, 'O1 Revenue to cost|RR'!$A30,'O4 Summary by Class & Accounts'!W$19:W$217) -> 0 | W30: =SUMIF('O4 Summary by Class & Accounts'!$C$19:$C$217, 'O1 Revenue to cost|RR'!$A30,'O4 Summary by Class & Accounts'!X$19:X$217) -> 0
A31: dep | B31: Depreciation and Amortization (dep) | C31: =IF(ISERROR(SUM(D31:W31)), "-", SUM(D31:W31)) -> 2672073 | D31: =IF(ISERROR(SUMIF('O4 Summary by Class & Accounts'!$C$19:$C$217, 'O1 Revenue to cost|RR'!$A31,'O4 Summary by Class & Accounts'!E$19:E$217)), "-", SUMIF('O4 Summary by Class & Accounts'!$C$19:$C$217, 'O1 Revenue to cost|RR'!$A31,'O4 Summary by Class & Accounts'!E$19:E$217)) -> 1516698.222 | E31: =IF(ISERROR(SUMIF('O4 Summary by Class & Accounts'!$C$19:$C$217, 'O1 Revenue to cost|RR'!$A31,'O4 Summary by Class & Accounts'!F$19:F$217)), "-", SUMIF('O4 Summary by Class & Accounts'!$C$19:$C$217, 'O1 Revenue to cost|RR'!$A31,'O4 Summary by Class & Accounts'!F$19:F$217)) -> 443231.4001 | F31: =IF(ISERROR(SUMIF('O4 Summary by Class & Accounts'!$C$19:$C$217, 'O1 Revenue to cost|RR'!$A31,'O4 Summary by Class & Accounts'!G$19:G$217)), "-", SUMIF('O4 Summary by Class & Accounts'!$C$19:$C$217, 'O1 Revenue to cost|RR'!$A31,'O4 Summary by Class & Accounts'!G$19:G$217)) -> 542846.9407 | G31: =IF(ISERROR(SUMIF('O4 Summary by Class & Accounts'!$C$19:$C$217, 'O1 Revenue to cost|RR'!$A31,'O4 Summary by Class & Accounts'!H$19:H$217)), "-", SUMIF('O4 Summary by Class & Accounts'!$C$19:$C$217, 'O1 Revenue to cost|RR'!$A31,'O4 Summary by Class & Accounts'!H$19:H$217)) -> 0 | H31: =IF(ISERROR(SUMIF('O4 Summary by Class & Accounts'!$C$19:$C$217, 'O1 Revenue to cost|RR'!$A31,'O4 Summary by Class & Accounts'!I$19:I$217)), "-", SUMIF('O4 Summary by Class & Accounts'!$C$19:$C$217, 'O1 Revenue to cost|RR'!$A31,'O4 Summary by Class & Accounts'!I$19:I$217)) -> 0 | I31: =IF(ISERROR(SUMIF('O4 Summary by Class & Accounts'!$C$19:$C$217, 'O1 Revenue to cost|RR'!$A31,'O4 Summary by Class & Accounts'!J$19:J$217)), "-", SUMIF('O4 Summary by Class & Accounts'!$C$19:$C$217, 'O1 Revenue to cost|RR'!$A31,'O4 Summary by Class & Accounts'!J$19:J$217)) -> 48201.39545 | J31: =IF(ISERROR(SUMIF('O4 Summary by Class & Accounts'!$C$19:$C$217, 'O1 Revenue to cost|RR'!$A31,'O4 Summary by Class & Accounts'!K$19:K$217)), "-", SUMIF('O4 Summary by Class & Accounts'!$C$19:$C$217, 'O1 Revenue to cost|RR'!$A31,'O4 Summary by Class & Accounts'!K$19:K$217)) -> 107181.8702 | K31: =IF(ISERROR(SUMIF('O4 Summary by Class & Accounts'!$C$19:$C$217, 'O1 Revenue to cost|RR'!$A31,'O4 Summary by Class & Accounts'!L$19:L$217)), "-", SUMIF('O4 Summary by Class & Accounts'!$C$19:$C$217, 'O1 Revenue to cost|RR'!$A31,'O4 Summary by Class & Accounts'!L$19:L$217)) -> 3676.282797 | L31: =IF(ISERROR(SUMIF('O4 Summary by Class & Accounts'!$C$19:$C$217, 'O1 Revenue to cost|RR'!$A31,'O4 Summary by Class & Accounts'!M$19:M$217)), "-", SUMIF('O4 Summary by Class & Accounts'!$C$19:$C$217, 'O1 Revenue to cost|RR'!$A31,'O4 Summary by Class & Accounts'!M$19:M$217)) -> 10236.88864 | M31: =IF(ISERROR(SUMIF('O4 Summary by Class & Accounts'!$C$19:$C$217, 'O1 Revenue to cost|RR'!$A31,'O4 Summary by Class & Accounts'!N$19:N$217)), "-", SUMIF('O4 Summary by Class & Accounts'!$C$19:$C$217, 'O1 Revenue to cost|RR'!$A31,'O4 Summary by Class & Accounts'!N$19:N$217)) -> 0 | N31: =IF(ISERROR(SUMIF('O4 Summary by Class & Accounts'!$C$19:$C$217, 'O1 Revenue to cost|RR'!$A31,'O4 Summary by Class & Accounts'!O$19:O$217)), "-", SUMIF('O4 Summary by Class & Accounts'!$C$19:$C$217, 'O1 Revenue to cost|RR'!$A31,'O4 Summary by Class & Accounts'!O$19:O$217)) -> 0 | O31: =IF(ISERROR(SUMIF('O4 Summary by Class & Accounts'!$C$19:$C$217, 'O1 Revenue to cost|RR'!$A31,'O4 Summary by Class & Accounts'!P$19:P$217)), "-", SUMIF('O4 Summary by Class & Accounts'!$C$19:$C$217, 'O1 Revenue to cost|RR'!$A31,'O4 Summary by Class & Accounts'!P$19:P$217)) -> 0 | P31: =IF(ISERROR(SUMIF('O4 Summary by Class & Accounts'!$C$19:$C$217, 'O1 Revenue to cost|RR'!$A31,'O4 Summary by Class & Accounts'!Q$19:Q$217)), "-", SUMIF('O4 Summary by Class & Accounts'!$C$19:$C$217, 'O1 Revenue to cost|RR'!$A31,'O4 Summary by Class & Accounts'!Q$19:Q$217)) -> 0 | Q31: =IF(ISERROR(SUMIF('O4 Summary by Class & Accounts'!$C$19:$C$217, 'O1 Revenue to cost|RR'!$A31,'O4 Summary by Class & Accounts'!R$19:R$217)), "-", SUMIF('O4 Summary by Class & Accounts'!$C$19:$C$217, 'O1 Revenue to cost|RR'!$A31,'O4 Summary by Class & Accounts'!R$19:R$217)) -> 0 | R31: =IF(ISERROR(SUMIF('O4 Summary by Class & Accounts'!$C$19:$C$217, 'O1 Revenue to cost|RR'!$A31,'O4 Summary by Class & Accounts'!S$19:S$217)), "-", SUMIF('O4 Summary by Class & Accounts'!$C$19:$C$217, 'O1 Revenue to cost|RR'!$A31,'O4 Summary by Class & Accounts'!S$19:S$217)) -> 0 | S31: =IF(ISERROR(SUMIF('O4 Summary by Class & Accounts'!$C$19:$C$217, 'O1 Revenue to cost|RR'!$A31,'O4 Summary by Class & Accounts'!T$19:T$217)), "-", SUMIF('O4 Summary by Class & Accounts'!$C$19:$C$217, 'O1 Revenue to cost|RR'!$A31,'O4 Summary by Class & Accounts'!T$19:T$217)) -> 0 | T31: =IF(ISERROR(SUMIF('O4 Summary by Class & Accounts'!$C$19:$C$217, 'O1 Revenue to cost|RR'!$A31,'O4 Summary by Class & Accounts'!U$19:U$217)), "-", SUMIF('O4 Summary by Class & Accounts'!$C$19:$C$217, 'O1 Revenue to cost|RR'!$A31,'O4 Summary by Class & Accounts'!U$19:U$217)) -> 0 | U31: =IF(ISERROR(SUMIF('O4 Summary by Class & Accounts'!$C$19:$C$217, 'O1 Revenue to cost|RR'!$A31,'O4 Summary by Class & Accounts'!V$19:V$217)), "-", SUMIF('O4 Summary by Class & Accounts'!$C$19:$C$217, 'O1 Revenue to cost|RR'!$A31,'O4 Summary by Class & Accounts'!V$19:V$217)) -> 0 | V31: =IF(ISERROR(SUMIF('O4 Summary by Class & Accounts'!$C$19:$C$217, 'O1 Revenue to cost|RR'!$A31,'O4 Summary by Class & Accounts'!W$19:W$217)), "-", SUMIF('O4 Summary by Class & Accounts'!$C$19:$C$217, 'O1 Revenue to cost|RR'!$A31,'O4 Summary by Class & Accounts'!W$19:W$217)) -> 0 | W31: =IF(ISERROR(SUMIF('O4 Summary by Class & Accounts'!$C$19:$C$217, 'O1 Revenue to cost|RR'!$A31,'O4 Summary by Class & Accounts'!X$19:X$217)), "-", SUMIF('O4 Summary by Class & Accounts'!$C$19:$C$217, 'O1 Revenue to cost|RR'!$A31,'O4 Summary by Class & Accounts'!X$19:X$217)) -> 0
A32: INPUT | B32: PILs (INPUT) | C32: 266650.4823 | D32: =SUMIF('O4 Summary by Class & Accounts'!$C$19:$C$217, 'O1 Revenue to cost|RR'!$A32,'O4 Summary by Class & Accounts'!E$19:E$217) -> 153135.2825 | E32: =SUMIF('O4 Summary by Class & Accounts'!$C$19:$C$217, 'O1 Revenue to cost|RR'!$A32,'O4 Summary by Class & Accounts'!F$19:F$217) -> 43031.20716 | F32: =SUMIF('O4 Summary by Class & Accounts'!$C$19:$C$217, 'O1 Revenue to cost|RR'!$A32,'O4 Summary by Class & Accounts'!G$19:G$217) -> 52125.5407 | G32: =SUMIF('O4 Summary by Class & Accounts'!$C$19:$C$217, 'O1 Revenue to cost|RR'!$A32,'O4 Summary by Class & Accounts'!H$19:H$217) -> 0 | H32: =SUMIF('O4 Summary by Class & Accounts'!$C$19:$C$217, 'O1 Revenue to cost|RR'!$A32,'O4 Summary by Class & Accounts'!I$19:I$217) -> 0 | I32: =SUMIF('O4 Summary by Class & Accounts'!$C$19:$C$217, 'O1 Revenue to cost|RR'!$A32,'O4 Summary by Class & Accounts'!J$19:J$217) -> 5189.785939 | J32: =SUMIF('O4 Summary by Class & Accounts'!$C$19:$C$217, 'O1 Revenue to cost|RR'!$A32,'O4 Summary by Class & Accounts'!K$19:K$217) -> 11647.60551 | K32: =SUMIF('O4 Summary by Class & Accounts'!$C$19:$C$217, 'O1 Revenue to cost|RR'!$A32,'O4 Summary by Class & Accounts'!L$19:L$217) -> 399.9167488 | L32: =SUMIF('O4 Summary by Class & Accounts'!$C$19:$C$217, 'O1 Revenue to cost|RR'!$A32,'O4 Summary by Class & Accounts'!M$19:M$217) -> 1121.143699 | M32: =SUMIF('O4 Summary by Class & Accounts'!$C$19:$C$217, 'O1 Revenue to cost|RR'!$A32,'O4 Summary by Class & Accounts'!N$19:N$217) -> 0 | N32: =SUMIF('O4 Summary by Class & Accounts'!$C$19:$C$217, 'O1 Revenue to cost|RR'!$A32,'O4 Summary by Class & Accounts'!O$19:O$217) -> 0 | O32: =SUMIF('O4 Summary by Class & Accounts'!$C$19:$C$217, 'O1 Revenue to cost|RR'!$A32,'O4 Summary by Class & Accounts'!P$19:P$217) -> 0 | P32: =SUMIF('O4 Summary by Class & Accounts'!$C$19:$C$217, 'O1 Revenue to cost|RR'!$A32,'O4 Summary by Class & Accounts'!Q$19:Q$217) -> 0 | Q32: =SUMIF('O4 Summary by Class & Accounts'!$C$19:$C$217, 'O1 Revenue to cost|RR'!$A32,'O4 Summary by Class & Accounts'!R$19:R$217) -> 0 | R32: =SUMIF('O4 Summary by Class & Accounts'!$C$19:$C$217, 'O1 Revenue to cost|RR'!$A32,'O4 Summary by Class & Accounts'!S$19:S$217) -> 0 | S32: =SUMIF('O4 Summary by Class & Accounts'!$C$19:$C$217, 'O1 Revenue to cost|RR'!$A32,'O4 Summary by Class & Accounts'!T$19:T$217) -> 0 | T32: =SUMIF('O4 Summary by Class & Accounts'!$C$19:$C$217, 'O1 Revenue to cost|RR'!$A32,'O4 Summary by Class & Accounts'!U$19:U$217) -> 0 | U32: =SUMIF('O4 Summary by Class & Accounts'!$C$19:$C$217, 'O1 Revenue to cost|RR'!$A32,'O4 Summary by Class & Accounts'!V$19:V$217) -> 0 | V32: =SUMIF('O4 Summary by Class & Accounts'!$C$19:$C$217, 'O1 Revenue to cost|RR'!$A32,'O4 Summary by Class & Accounts'!W$19:W$217) -> 0 | W32: =SUMIF('O4 Summary by Class & Accounts'!$C$19:$C$217, 'O1 Revenue to cost|RR'!$A32,'O4 Summary by Class & Accounts'!X$19:X$217) -> 0
A33: INT | B33: Interest | C33: 1632716.439 | D33: =SUMIF('O4 Summary by Class & Accounts'!$C$19:$C$217, 'O1 Revenue to cost|RR'!$A33,'O4 Summary by Class & Accounts'!E$19:E$217) -> 937656.2568 | E33: =SUMIF('O4 Summary by Class & Accounts'!$C$19:$C$217, 'O1 Revenue to cost|RR'!$A33,'O4 Summary by Class & Accounts'!F$19:F$217) -> 263482.5886 | F33: =SUMIF('O4 Summary by Class & Accounts'!$C$19:$C$217, 'O1 Revenue to cost|RR'!$A33,'O4 Summary by Class & Accounts'!G$19:G$217) -> 319167.7226 | G33: =SUMIF('O4 Summary by Class & Accounts'!$C$19:$C$217, 'O1 Revenue to cost|RR'!$A33,'O4 Summary by Class & Accounts'!H$19:H$217) -> 0 | H33: =SUMIF('O4 Summary by Class & Accounts'!$C$19:$C$217, 'O1 Revenue to cost|RR'!$A33,'O4 Summary by Class & Accounts'!I$19:I$217) -> 0 | I33: =SUMIF('O4 Summary by Class & Accounts'!$C$19:$C$217, 'O1 Revenue to cost|RR'!$A33,'O4 Summary by Class & Accounts'!J$19:J$217) -> 31777.36167 | J33: =SUMIF('O4 Summary by Class & Accounts'!$C$19:$C$217, 'O1 Revenue to cost|RR'!$A33,'O4 Summary by Class & Accounts'!K$19:K$217) -> 71318.96715 | K33: =SUMIF('O4 Summary by Class & Accounts'!$C$19:$C$217, 'O1 Revenue to cost|RR'!$A33,'O4 Summary by Class & Accounts'!L$19:L$217) -> 2448.713553 | L33: =SUMIF('O4 Summary by Class & Accounts'!$C$19:$C$217, 'O1 Revenue to cost|RR'!$A33,'O4 Summary by Class & Accounts'!M$19:M$217) -> 6864.828192 | M33: =SUMIF('O4 Summary by Class & Accounts'!$C$19:$C$217, 'O1 Revenue to cost|RR'!$A33,'O4 Summary by Class & Accounts'!N$19:N$217) -> 0 | N33: =SUMIF('O4 Summary by Class & Accounts'!$C$19:$C$217, 'O1 Revenue to cost|RR'!$A33,'O4 Summary by Class & Accounts'!O$19:O$217) -> 0 | O33: =SUMIF('O4 Summary by Class & Accounts'!$C$19:$C$217, 'O1 Revenue to cost|RR'!$A33,'O4 Summary by Class & Accounts'!P$19:P$217) -> 0 | P33: =SUMIF('O4 Summary by Class & Accounts'!$C$19:$C$217, 'O1 Revenue to cost|RR'!$A33,'O4 Summary by Class & Accounts'!Q$19:Q$217) -> 0 | Q33: =SUMIF('O4 Summary by Class & Accounts'!$C$19:$C$217, 'O1 Revenue to cost|RR'!$A33,'O4 Summary by Class & Accounts'!R$19:R$217) -> 0 | R33: =SUMIF('O4 Summary by Class & Accounts'!$C$19:$C$217, 'O1 Revenue to cost|RR'!$A33,'O4 Summary by Class & Accounts'!S$19:S$217) -> 0 | S33: =SUMIF('O4 Summary by Class & Accounts'!$C$19:$C$217, 'O1 Revenue to cost|RR'!$A33,'O4 Summary by Class & Accounts'!T$19:T$217) -> 0 | T33: =SUMIF('O4 Summary by Class & Accounts'!$C$19:$C$217, 'O1 Revenue to cost|RR'!$A33,'O4 Summary by Class & Accounts'!U$19:U$217) -> 0 | U33: =SUMIF('O4 Summary by Class & Accounts'!$C$19:$C$217, 'O1 Revenue to cost|RR'!$A33,'O4 Summary by Class & Accounts'!V$19:V$217) -> 0 | V33: =SUMIF('O4 Summary by Class & Accounts'!$C$19:$C$217, 'O1 Revenue to cost|RR'!$A33,'O4 Summary by Class & Accounts'!W$19:W$217) -> 0 | W33: =SUMIF('O4 Summary by Class & Accounts'!$C$19:$C$217, 'O1 Revenue to cost|RR'!$A33,'O4 Summary by Class & Accounts'!X$19:X$217) -> 0
B34: Total Expenses | C34: =SUM(C28:C33) -> 13915230.92 | D34: =SUM(D28:D33) -> 9103785.48 | E34: 2018200.791 | F34: 2148854.605 | G34: 0 | H34: 0 | I34: 215402.1838 | J34: 364977.0921 | K34: 24477.40551 | L34: 39533.36282 | M34: 0 | N34: 0 | O34: 0 | P34: 0 | Q34: 0 | R34: 0 | S34: 0 | T34: 0 | U34: 0 | V34: 0 | W34: 0
B36: Direct Allocation | C36: =SUM(D36:W36) -> 0 | D36: ='I9 Direct Allocation'!E153 -> 0 | E36: ='I9 Direct Allocation'!F153 -> 0 | F36: ='I9 Direct Allocation'!G153 -> 0 | G36: ='I9 Direct Allocation'!H153 -> 0 | H36: ='I9 Direct Allocation'!I153 -> 0 | I36: ='I9 Direct Allocation'!J153 -> 0 | J36: ='I9 Direct Allocation'!K153 -> 0 | K36: ='I9 Direct Allocation'!L153 -> 0 | L36: ='I9 Direct Allocation'!M153 -> 0 | M36: ='I9 Direct Allocation'!N153 -> 0 | N36: ='I9 Direct Allocation'!O153 -> 0 | O36: ='I9 Direct Allocation'!P153 -> 0 | P36: ='I9 Direct Allocation'!Q153 -> 0 | Q36: ='I9 Direct Allocation'!R153 -> 0 | R36: ='I9 Direct Allocation'!S153 -> 0 | S36: ='I9 Direct Allocation'!T153 -> 0 | T36: ='I9 Direct Allocation'!U153 -> 0 | U36: ='I9 Direct Allocation'!V153 -> 0 | V36: ='I9 Direct Allocation'!W153 -> 0 | W36: ='I9 Direct Allocation'!X153 -> 0
A38: NI | B38: Allocated Net Income (NI) | C38: =SUM(D38:W38) -> 2359554.012 | D38: =-SUMIF('O4 Summary by Class & Accounts'!$C$19:$C$217, 'O1 Revenue to cost|RR'!$A38,'O4 Summary by Class & Accounts'!E$19:E$217) -> 1355073.38 | E38: =-SUMIF('O4 Summary by Class & Accounts'!$C$19:$C$217, 'O1 Revenue to cost|RR'!$A38,'O4 Summary by Class & Accounts'!F$19:F$217) -> 380777.3256 | F38: =-SUMIF('O4 Summary by Class & Accounts'!$C$19:$C$217, 'O1 Revenue to cost|RR'!$A38,'O4 Summary by Class & Accounts'!G$19:G$217) -> 461251.8516 | G38: =-SUMIF('O4 Summary by Class & Accounts'!$C$19:$C$217, 'O1 Revenue to cost|RR'!$A38,'O4 Summary by Class & Accounts'!H$19:H$217) -> 0 | H38: =-SUMIF('O4 Summary by Class & Accounts'!$C$19:$C$217, 'O1 Revenue to cost|RR'!$A38,'O4 Summary by Class & Accounts'!I$19:I$217) -> 0 | I38: =-SUMIF('O4 Summary by Class & Accounts'!$C$19:$C$217, 'O1 Revenue to cost|RR'!$A38,'O4 Summary by Class & Accounts'!J$19:J$217) -> 45923.71306 | J38: =-SUMIF('O4 Summary by Class & Accounts'!$C$19:$C$217, 'O1 Revenue to cost|RR'!$A38,'O4 Summary by Class & Accounts'!K$19:K$217) -> 103068.084 | K38: =-SUMIF('O4 Summary by Class & Accounts'!$C$19:$C$217, 'O1 Revenue to cost|RR'!$A38,'O4 Summary by Class & Accounts'!L$19:L$217) -> 3538.80916 | L38: =-SUMIF('O4 Summary by Class & Accounts'!$C$19:$C$217, 'O1 Revenue to cost|RR'!$A38,'O4 Summary by Class & Accounts'!M$19:M$217) -> 9920.848789 | M38: =-SUMIF('O4 Summary by Class & Accounts'!$C$19:$C$217, 'O1 Revenue to cost|RR'!$A38,'O4 Summary by Class & Accounts'!N$19:N$217) -> 0 | N38: =-SUMIF('O4 Summary by Class & Accounts'!$C$19:$C$217, 'O1 Revenue to cost|RR'!$A38,'O4 Summary by Class & Accounts'!O$19:O$217) -> 0 | O38: =-SUMIF('O4 Summary by Class & Accounts'!$C$19:$C$217, 'O1 Revenue to cost|RR'!$A38,'O4 Summary by Class & Accounts'!P$19:P$217) -> 0 | P38: =-SUMIF('O4 Summary by Class & Accounts'!$C$19:$C$217, 'O1 Revenue to cost|RR'!$A38,'O4 Summary by Class & Accounts'!Q$19:Q$217) -> 0 | Q38: =-SUMIF('O4 Summary by Class & Accounts'!$C$19:$C$217, 'O1 Revenue to cost|RR'!$A38,'O4 Summary by Class & Accounts'!R$19:R$217) -> 0 | R38: =-SUMIF('O4 Summary by Class & Accounts'!$C$19:$C$217, 'O1 Revenue to cost|RR'!$A38,'O4 Summary by Class & Accounts'!S$19:S$217) -> 0 | S38: =-SUMIF('O4 Summary by Class & Accounts'!$C$19:$C$217, 'O1 Revenue to cost|RR'!$A38,'O4 Summary by Class & Accounts'!T$19:T$217) -> 0 | T38: =-SUMIF('O4 Summary by Class & Accounts'!$C$19:$C$217, 'O1 Revenue to cost|RR'!$A38,'O4 Summary by Class & Accounts'!U$19:U$217) -> 0 | U38: =-SUMIF('O4 Summary by Class & Accounts'!$C$19:$C$217, 'O1 Revenue to cost|RR'!$A38,'O4 Summary by Class & Accounts'!V$19:V$217) -> 0 | V38: =-SUMIF('O4 Summary by Class & Accounts'!$C$19:$C$217, 'O1 Revenue to cost|RR'!$A38,'O4 Summary by Class & Accounts'!W$19:W$217) -> 0 | W38: =-SUMIF('O4 Summary by Class & Accounts'!$C$19:$C$217, 'O1 Revenue to cost|RR'!$A38,'O4 Summary by Class & Accounts'!X$19:X$217) -> 0
B40: Revenue Requirement (includes NI) | C40: =SUM(D40:W40) -> 16274784.93 | D40: =D34+D36+D38 -> 10458858.86 | E40: 2398978.117 | F40: 2610106.457 | G40: 0 | H40: 0 | I40: 261325.8969 | J40: 468045.1761 | K40: 28016.21467 | L40: 49454.21161 | M40: 0 | N40: 0 | O40: 0 | P40: 0 | Q40: 0 | R40: 0 | S40: 0 | T40: 0 | U40: 0 | V40: 0 | W40: 0
C41: =IF(ISERROR(ROUND('I3 TB Data'!G15-C40,-1)=0), "-", IF(ROUND('I3 TB Data'!G15-C40,-1)=0,"Revenue Requirement Input equals Output","Revenue Requirement Input Does Not Equal Output")) -> Revenue Requirement Input equals Output
B44: Rate Base Calculation
B46: Net Assets
A47: dp | B47: Distribution Plant - Gross | C47: =SUM(D47:W47) -> 105292225 | D47: =SUMIF('O4 Summary by Class & Accounts'!$C$19:$C$217, 'O1 Revenue to cost|RR'!$A47,'O4 Summary by Class & Accounts'!E$19:E$217) -> 61380200.04 | E47: =SUMIF('O4 Summary by Class & Accounts'!$C$19:$C$217, 'O1 Revenue to cost|RR'!$A47,'O4 Summary by Class & Accounts'!F$19:F$217) -> 17165677.37 | F47: =SUMIF('O4 Summary by Class & Accounts'!$C$19:$C$217, 'O1 Revenue to cost|RR'!$A47,'O4 Summary by Class & Accounts'!G$19:G$217) -> 19576524.79 | G47: =SUMIF('O4 Summary by Class & Accounts'!$C$19:$C$217, 'O1 Revenue to cost|RR'!$A47,'O4 Summary by Class & Accounts'!H$19:H$217) -> 0 | H47: =SUMIF('O4 Summary by Class & Accounts'!$C$19:$C$217, 'O1 Revenue to cost|RR'!$A47,'O4 Summary by Class & Accounts'!I$19:I$217) -> 0 | I47: =SUMIF('O4 Summary by Class & Accounts'!$C$19:$C$217, 'O1 Revenue to cost|RR'!$A47,'O4 Summary by Class & Accounts'!J$19:J$217) -> 1928484.766 | J47: =SUMIF('O4 Summary by Class & Accounts'!$C$19:$C$217, 'O1 Revenue to cost|RR'!$A47,'O4 Summary by Class & Accounts'!K$19:K$217) -> 4630658.625 | K47: =SUMIF('O4 Summary by Class & Accounts'!$C$19:$C$217, 'O1 Revenue to cost|RR'!$A47,'O4 Summary by Class & Accounts'!L$19:L$217) -> 157674.8661 | L47: =SUMIF('O4 Summary by Class & Accounts'!$C$19:$C$217, 'O1 Revenue to cost|RR'!$A47,'O4 Summary by Class & Accounts'!M$19:M$217) -> 453004.541 | M47: =SUMIF('O4 Summary by Class & Accounts'!$C$19:$C$217, 'O1 Revenue to cost|RR'!$A47,'O4 Summary by Class & Accounts'!N$19:N$217) -> 0 | N47: =SUMIF('O4 Summary by Class & Accounts'!$C$19:$C$217, 'O1 Revenue to cost|RR'!$A47,'O4 Summary by Class & Accounts'!O$19:O$217) -> 0 | O47: =SUMIF('O4 Summary by Class & Accounts'!$C$19:$C$217, 'O1 Revenue to cost|RR'!$A47,'O4 Summary by Class & Accounts'!P$19:P$217) -> 0 | P47: =SUMIF('O4 Summary by Class & Accounts'!$C$19:$C$217, 'O1 Revenue to cost|RR'!$A47,'O4 Summary by Class & Accounts'!Q$19:Q$217) -> 0 | Q47: =SUMIF('O4 Summary by Class & Accounts'!$C$19:$C$217, 'O1 Revenue to cost|RR'!$A47,'O4 Summary by Class & Accounts'!R$19:R$217) -> 0 | R47: =SUMIF('O4 Summary by Class & Accounts'!$C$19:$C$217, 'O1 Revenue to cost|RR'!$A47,'O4 Summary by Class & Accounts'!S$19:S$217) -> 0 | S47: =SUMIF('O4 Summary by Class & Accounts'!$C$19:$C$217, 'O1 Revenue to cost|RR'!$A47,'O4 Summary by Class & Accounts'!T$19:T$217) -> 0 | T47: =SUMIF('O4 Summary by Class & Accounts'!$C$19:$C$217, 'O1 Revenue to cost|RR'!$A47,'O4 Summary by Class & Accounts'!U$19:U$217) -> 0 | U47: =SUMIF('O4 Summary by Class & Accounts'!$C$19:$C$217, 'O1 Revenue to cost|RR'!$A47,'O4 Summary by Class & Accounts'!V$19:V$217) -> 0 | V47: =SUMIF('O4 Summary by Class & Accounts'!$C$19:$C$217, 'O1 Revenue to cost|RR'!$A47,'O4 Summary by Class & Accounts'!W$19:W$217) -> 0 | W47: =SUMIF('O4 Summary by Class & Accounts'!$C$19:$C$217, 'O1 Revenue to cost|RR'!$A47,'O4 Summary by Class & Accounts'!X$19:X$217) -> 0
A48: gp | B48: General Plant - Gross | C48: =SUM(D48:W48) -> 2900192 | D48: =SUMIF('O4 Summary by Class & Accounts'!$C$19:$C$217, 'O1 Revenue to cost|RR'!$A48,'O4 Summary by Class & Accounts'!E$19:E$217) -> 1708017.029 | E48: =SUMIF('O4 Summary by Class & Accounts'!$C$19:$C$217, 'O1 Revenue to cost|RR'!$A48,'O4 Summary by Class & Accounts'!F$19:F$217) -> 480121.5867 | F48: =SUMIF('O4 Summary by Class & Accounts'!$C$19:$C$217, 'O1 Revenue to cost|RR'!$A48,'O4 Summary by Class & Accounts'!G$19:G$217) -> 520974.3223 | G48: =SUMIF('O4 Summary by Class & Accounts'!$C$19:$C$217, 'O1 Revenue to cost|RR'!$A48,'O4 Summary by Class & Accounts'!H$19:H$217) -> 0 | H48: =SUMIF('O4 Summary by Class & Accounts'!$C$19:$C$217, 'O1 Revenue to cost|RR'!$A48,'O4 Summary by Class & Accounts'!I$19:I$217) -> 0 | I48: =SUMIF('O4 Summary by Class & Accounts'!$C$19:$C$217, 'O1 Revenue to cost|RR'!$A48,'O4 Summary by Class & Accounts'!J$19:J$217) -> 51809.63644 | J48: =SUMIF('O4 Summary by Class & Accounts'!$C$19:$C$217, 'O1 Revenue to cost|RR'!$A48,'O4 Summary by Class & Accounts'!K$19:K$217) -> 122736.5067 | K48: =SUMIF('O4 Summary by Class & Accounts'!$C$19:$C$217, 'O1 Revenue to cost|RR'!$A48,'O4 Summary by Class & Accounts'!L$19:L$217) -> 4211.404155 | L48: =SUMIF('O4 Summary by Class & Accounts'!$C$19:$C$217, 'O1 Revenue to cost|RR'!$A48,'O4 Summary by Class & Accounts'!M$19:M$217) -> 12321.51511 | M48: =SUMIF('O4 Summary by Class & Accounts'!$C$19:$C$217, 'O1 Revenue to cost|RR'!$A48,'O4 Summary by Class & Accounts'!N$19:N$217) -> 0 | N48: =SUMIF('O4 Summary by Class & Accounts'!$C$19:$C$217, 'O1 Revenue to cost|RR'!$A48,'O4 Summary by Class & Accounts'!O$19:O$217) -> 0 | O48: =SUMIF('O4 Summary by Class & Accounts'!$C$19:$C$217, 'O1 Revenue to cost|RR'!$A48,'O4 Summary by Class & Accounts'!P$19:P$217) -> 0 | P48: =SUMIF('O4 Summary by Class & Accounts'!$C$19:$C$217, 'O1 Revenue to cost|RR'!$A48,'O4 Summary by Class & Accounts'!Q$19:Q$217) -> 0 | Q48: =SUMIF('O4 Summary by Class & Accounts'!$C$19:$C$217, 'O1 Revenue to cost|RR'!$A48,'O4 Summary by Class & Accounts'!R$19:R$217) -> 0 | R48: =SUMIF('O4 Summary by Class & Accounts'!$C$19:$C$217, 'O1 Revenue to cost|RR'!$A48,'O4 Summary by Class & Accounts'!S$19:S$217) -> 0 | S48: =SUMIF('O4 Summary by Class & Accounts'!$C$19:$C$217, 'O1 Revenue to cost|RR'!$A48,'O4 Summary by Class & Accounts'!T$19:T$217) -> 0 | T48: =SUMIF('O4 Summary by Class & Accounts'!$C$19:$C$217, 'O1 Revenue to cost|RR'!$A48,'O4 Summary by Class & Accounts'!U$19:U$217) -> 0 | U48: =SUMIF('O4 Summary by Class & Accounts'!$C$19:$C$217, 'O1 Revenue to cost|RR'!$A48,'O4 Summary by Class & Accounts'!V$19:V$217) -> 0 | V48: =SUMIF('O4 Summary by Class & Accounts'!$C$19:$C$217, 'O1 Revenue to cost|RR'!$A48,'O4 Summary by Class & Accounts'!W$19:W$217) -> 0 | W48: =SUMIF('O4 Summary by Class & Accounts'!$C$19:$C$217, 'O1 Revenue to cost|RR'!$A48,'O4 Summary by Class & Accounts'!X$19:X$217) -> 0
A49: accum dep | B49: Accumulated Depreciation | C49: =IF(ISERROR(SUM(D49:W49)), "-", SUM(D49:W49)) -> -40738125.5 | D49: =IF(ISERROR(SUMIF('O4 Summary by Class & Accounts'!$C$19:$C$217, 'O1 Revenue to cost|RR'!$A49,'O4 Summary by Class & Accounts'!E$19:E$217)), "-", SUMIF('O4 Summary by Class & Accounts'!$C$19:$C$217, 'O1 Revenue to cost|RR'!$A49,'O4 Summary by Class & Accounts'!E$19:E$217)) -> -23362199.44 | E49: =IF(ISERROR(SUMIF('O4 Summary by Class & Accounts'!$C$19:$C$217, 'O1 Revenue to cost|RR'!$A49,'O4 Summary by Class & Accounts'!F$19:F$217)), "-", SUMIF('O4 Summary by Class & Accounts'!$C$19:$C$217, 'O1 Revenue to cost|RR'!$A49,'O4 Summary by Class & Accounts'!F$19:F$217)) -> -6478861.922 | F49: =IF(ISERROR(SUMIF('O4 Summary by Class & Accounts'!$C$19:$C$217, 'O1 Revenue to cost|RR'!$A49,'O4 Summary by Class & Accounts'!G$19:G$217)), "-", SUMIF('O4 Summary by Class & Accounts'!$C$19:$C$217, 'O1 Revenue to cost|RR'!$A49,'O4 Summary by Class & Accounts'!G$19:G$217)) -> -7980386.241 | G49: =IF(ISERROR(SUMIF('O4 Summary by Class & Accounts'!$C$19:$C$217, 'O1 Revenue to cost|RR'!$A49,'O4 Summary by Class & Accounts'!H$19:H$217)), "-", SUMIF('O4 Summary by Class & Accounts'!$C$19:$C$217, 'O1 Revenue to cost|RR'!$A49,'O4 Summary by Class & Accounts'!H$19:H$217)) -> 0 | H49: =IF(ISERROR(SUMIF('O4 Summary by Class & Accounts'!$C$19:$C$217, 'O1 Revenue to cost|RR'!$A49,'O4 Summary by Class & Accounts'!I$19:I$217)), "-", SUMIF('O4 Summary by Class & Accounts'!$C$19:$C$217, 'O1 Revenue to cost|RR'!$A49,'O4 Summary by Class & Accounts'!I$19:I$217)) -> 0 | I49: =IF(ISERROR(SUMIF('O4 Summary by Class & Accounts'!$C$19:$C$217, 'O1 Revenue to cost|RR'!$A49,'O4 Summary by Class & Accounts'!J$19:J$217)), "-", SUMIF('O4 Summary by Class & Accounts'!$C$19:$C$217, 'O1 Revenue to cost|RR'!$A49,'O4 Summary by Class & Accounts'!J$19:J$217)) -> -775276.832 | J49: =IF(ISERROR(SUMIF('O4 Summary by Class & Accounts'!$C$19:$C$217, 'O1 Revenue to cost|RR'!$A49,'O4 Summary by Class & Accounts'!K$19:K$217)), "-", SUMIF('O4 Summary by Class & Accounts'!$C$19:$C$217, 'O1 Revenue to cost|RR'!$A49,'O4 Summary by Class & Accounts'!K$19:K$217)) -> -1898720.648 | K49: =IF(ISERROR(SUMIF('O4 Summary by Class & Accounts'!$C$19:$C$217, 'O1 Revenue to cost|RR'!$A49,'O4 Summary by Class & Accounts'!L$19:L$217)), "-", SUMIF('O4 Summary by Class & Accounts'!$C$19:$C$217, 'O1 Revenue to cost|RR'!$A49,'O4 Summary by Class & Accounts'!L$19:L$217)) -> -63935.07133 | L49: =IF(ISERROR(SUMIF('O4 Summary by Class & Accounts'!$C$19:$C$217, 'O1 Revenue to cost|RR'!$A49,'O4 Summary by Class & Accounts'!M$19:M$217)), "-", SUMIF('O4 Summary by Class & Accounts'!$C$19:$C$217, 'O1 Revenue to cost|RR'!$A49,'O4 Summary by Class & Accounts'!M$19:M$217)) -> -178745.3497 | M49: =IF(ISERROR(SUMIF('O4 Summary by Class & Accounts'!$C$19:$C$217, 'O1 Revenue to cost|RR'!$A49,'O4 Summary by Class & Accounts'!N$19:N$217)), "-", SUMIF('O4 Summary by Class & Accounts'!$C$19:$C$217, 'O1 Revenue to cost|RR'!$A49,'O4 Summary by Class & Accounts'!N$19:N$217)) -> 0 | N49: =IF(ISERROR(SUMIF('O4 Summary by Class & Accounts'!$C$19:$C$217, 'O1 Revenue to cost|RR'!$A49,'O4 Summary by Class & Accounts'!O$19:O$217)), "-", SUMIF('O4 Summary by Class & Accounts'!$C$19:$C$217, 'O1 Revenue to cost|RR'!$A49,'O4 Summary by Class & Accounts'!O$19:O$217)) -> 0 | O49: =IF(ISERROR(SUMIF('O4 Summary by Class & Accounts'!$C$19:$C$217, 'O1 Revenue to cost|RR'!$A49,'O4 Summary by Class & Accounts'!P$19:P$217)), "-", SUMIF('O4 Summary by Class & Accounts'!$C$19:$C$217, 'O1 Revenue to cost|RR'!$A49,'O4 Summary by Class & Accounts'!P$19:P$217)) -> 0 | P49: =IF(ISERROR(SUMIF('O4 Summary by Class & Accounts'!$C$19:$C$217, 'O1 Revenue to cost|RR'!$A49,'O4 Summary by Class & Accounts'!Q$19:Q$217)), "-", SUMIF('O4 Summary by Class & Accounts'!$C$19:$C$217, 'O1 Revenue to cost|RR'!$A49,'O4 Summary by Class & Accounts'!Q$19:Q$217)) -> 0 | Q49: =IF(ISERROR(SUMIF('O4 Summary by Class & Accounts'!$C$19:$C$217, 'O1 Revenue to cost|RR'!$A49,'O4 Summary by Class & Accounts'!R$19:R$217)), "-", SUMIF('O4 Summary by Class & Accounts'!$C$19:$C$217, 'O1 Revenue to cost|RR'!$A49,'O4 Summary by Class & Accounts'!R$19:R$217)) -> 0 | R49: =IF(ISERROR(SUMIF('O4 Summary by Class & Accounts'!$C$19:$C$217, 'O1 Revenue to cost|RR'!$A49,'O4 Summary by Class & Accounts'!S$19:S$217)), "-", SUMIF('O4 Summary by Class & Accounts'!$C$19:$C$217, 'O1 Revenue to cost|RR'!$A49,'O4 Summary by Class & Accounts'!S$19:S$217)) -> 0 | S49: =IF(ISERROR(SUMIF('O4 Summary by Class & Accounts'!$C$19:$C$217, 'O1 Revenue to cost|RR'!$A49,'O4 Summary by Class & Accounts'!T$19:T$217)), "-", SUMIF('O4 Summary by Class & Accounts'!$C$19:$C$217, 'O1 Revenue to cost|RR'!$A49,'O4 Summary by Class & Accounts'!T$19:T$217)) -> 0 | T49: =IF(ISERROR(SUMIF('O4 Summary by Class & Accounts'!$C$19:$C$217, 'O1 Revenue to cost|RR'!$A49,'O4 Summary by Class & Accounts'!U$19:U$217)), "-", SUMIF('O4 Summary by Class & Accounts'!$C$19:$C$217, 'O1 Revenue to cost|RR'!$A49,'O4 Summary by Class & Accounts'!U$19:U$217)) -> 0 | U49: =IF(ISERROR(SUMIF('O4 Summary by Class & Accounts'!$C$19:$C$217, 'O1 Revenue to cost|RR'!$A49,'O4 Summary by Class & Accounts'!V$19:V$217)), "-", SUMIF('O4 Summary by Class & Accounts'!$C$19:$C$217, 'O1 Revenue to cost|RR'!$A49,'O4 Summary by Class & Accounts'!V$19:V$217)) -> 0 | V49: =IF(ISERROR(SUMIF('O4 Summary by Class & Accounts'!$C$19:$C$217, 'O1 Revenue to cost|RR'!$A49,'O4 Summary by Class & Accounts'!W$19:W$217)), "-", SUMIF('O4 Summary by Class & Accounts'!$C$19:$C$217, 'O1 Revenue to cost|RR'!$A49,'O4 Summary by Class & Accounts'!W$19:W$217)) -> 0 | W49: =IF(ISERROR(SUMIF('O4 Summary by Class & Accounts'!$C$19:$C$217, 'O1 Revenue to cost|RR'!$A49,'O4 Summary by Class & Accounts'!X$19:X$217)), "-", SUMIF('O4 Summary by Class & Accounts'!$C$19:$C$217, 'O1 Revenue to cost|RR'!$A49,'O4 Summary by Class & Accounts'!X$19:X$217)) -> 0
A50: co | B50: Capital Contribution | C50: =IF(ISERROR(SUM(D50:W50)), "-", SUM(D50:W50)) -> -13853111 | D50: =IF(ISERROR(SUMIF('O4 Summary by Class & Accounts'!$C$19:$C$217, 'O1 Revenue to cost|RR'!$A50,'O4 Summary by Class & Accounts'!E$19:E$217)), "-", SUMIF('O4 Summary by Class & Accounts'!$C$19:$C$217, 'O1 Revenue to cost|RR'!$A50,'O4 Summary by Class & Accounts'!E$19:E$217)) -> -8934522.699 | E50: =IF(ISERROR(SUMIF('O4 Summary by Class & Accounts'!$C$19:$C$217, 'O1 Revenue to cost|RR'!$A50,'O4 Summary by Class & Accounts'!F$19:F$217)), "-", SUMIF('O4 Summary by Class & Accounts'!$C$19:$C$217, 'O1 Revenue to cost|RR'!$A50,'O4 Summary by Class & Accounts'!F$19:F$217)) -> -2514453.828 | F50: =IF(ISERROR(SUMIF('O4 Summary by Class & Accounts'!$C$19:$C$217, 'O1 Revenue to cost|RR'!$A50,'O4 Summary by Class & Accounts'!G$19:G$217)), "-", SUMIF('O4 Summary by Class & Accounts'!$C$19:$C$217, 'O1 Revenue to cost|RR'!$A50,'O4 Summary by Class & Accounts'!G$19:G$217)) -> -1648492.042 | G50: =IF(ISERROR(SUMIF('O4 Summary by Class & Accounts'!$C$19:$C$217, 'O1 Revenue to cost|RR'!$A50,'O4 Summary by Class & Accounts'!H$19:H$217)), "-", SUMIF('O4 Summary by Class & Accounts'!$C$19:$C$217, 'O1 Revenue to cost|RR'!$A50,'O4 Summary by Class & Accounts'!H$19:H$217)) -> 0 | H50: =IF(ISERROR(SUMIF('O4 Summary by Class & Accounts'!$C$19:$C$217, 'O1 Revenue to cost|RR'!$A50,'O4 Summary by Class & Accounts'!I$19:I$217)), "-", SUMIF('O4 Summary by Class & Accounts'!$C$19:$C$217, 'O1 Revenue to cost|RR'!$A50,'O4 Summary by Class & Accounts'!I$19:I$217)) -> 0 | I50: =IF(ISERROR(SUMIF('O4 Summary by Class & Accounts'!$C$19:$C$217, 'O1 Revenue to cost|RR'!$A50,'O4 Summary by Class & Accounts'!J$19:J$217)), "-", SUMIF('O4 Summary by Class & Accounts'!$C$19:$C$217, 'O1 Revenue to cost|RR'!$A50,'O4 Summary by Class & Accounts'!J$19:J$217)) -> -162740.5442 | J50: =IF(ISERROR(SUMIF('O4 Summary by Class & Accounts'!$C$19:$C$217, 'O1 Revenue to cost|RR'!$A50,'O4 Summary by Class & Accounts'!K$19:K$217)), "-", SUMIF('O4 Summary by Class & Accounts'!$C$19:$C$217, 'O1 Revenue to cost|RR'!$A50,'O4 Summary by Class & Accounts'!K$19:K$217)) -> -514126.213 | K50: =IF(ISERROR(SUMIF('O4 Summary by Class & Accounts'!$C$19:$C$217, 'O1 Revenue to cost|RR'!$A50,'O4 Summary by Class & Accounts'!L$19:L$217)), "-", SUMIF('O4 Summary by Class & Accounts'!$C$19:$C$217, 'O1 Revenue to cost|RR'!$A50,'O4 Summary by Class & Accounts'!L$19:L$217)) -> -17589.79463 | L50: =IF(ISERROR(SUMIF('O4 Summary by Class & Accounts'!$C$19:$C$217, 'O1 Revenue to cost|RR'!$A50,'O4 Summary by Class & Accounts'!M$19:M$217)), "-", SUMIF('O4 Summary by Class & Accounts'!$C$19:$C$217, 'O1 Revenue to cost|RR'!$A50,'O4 Summary by Class & Accounts'!M$19:M$217)) -> -61185.87945 | M50: =IF(ISERROR(SUMIF('O4 Summary by Class & Accounts'!$C$19:$C$217, 'O1 Revenue to cost|RR'!$A50,'O4 Summary by Class & Accounts'!N$19:N$217)), "-", SUMIF('O4 Summary by Class & Accounts'!$C$19:$C$217, 'O1 Revenue to cost|RR'!$A50,'O4 Summary by Class & Accounts'!N$19:N$217)) -> 0 | N50: =IF(ISERROR(SUMIF('O4 Summary by Class & Accounts'!$C$19:$C$217, 'O1 Revenue to cost|RR'!$A50,'O4 Summary by Class & Accounts'!O$19:O$217)), "-", SUMIF('O4 Summary by Class & Accounts'!$C$19:$C$217, 'O1 Revenue to cost|RR'!$A50,'O4 Summary by Class & Accounts'!O$19:O$217)) -> 0 | O50: =IF(ISERROR(SUMIF('O4 Summary by Class & Accounts'!$C$19:$C$217, 'O1 Revenue to cost|RR'!$A50,'O4 Summary by Class & Accounts'!P$19:P$217)), "-", SUMIF('O4 Summary by Class & Accounts'!$C$19:$C$217, 'O1 Revenue to cost|RR'!$A50,'O4 Summary by Class & Accounts'!P$19:P$217)) -> 0 | P50: =IF(ISERROR(SUMIF('O4 Summary by Class & Accounts'!$C$19:$C$217, 'O1 Revenue to cost|RR'!$A50,'O4 Summary by Class & Accounts'!Q$19:Q$217)), "-", SUMIF('O4 Summary by Class & Accounts'!$C$19:$C$217, 'O1 Revenue to cost|RR'!$A50,'O4 Summary by Class & Accounts'!Q$19:Q$217)) -> 0 | Q50: =IF(ISERROR(SUMIF('O4 Summary by Class & Accounts'!$C$19:$C$217, 'O1 Revenue to cost|RR'!$A50,'O4 Summary by Class & Accounts'!R$19:R$217)), "-", SUMIF('O4 Summary by Class & Accounts'!$C$19:$C$217, 'O1 Revenue to cost|RR'!$A50,'O4 Summary by Class & Accounts'!R$19:R$217)) -> 0 | R50: =IF(ISERROR(SUMIF('O4 Summary by Class & Accounts'!$C$19:$C$217, 'O1 Revenue to cost|RR'!$A50,'O4 Summary by Class & Accounts'!S$19:S$217)), "-", SUMIF('O4 Summary by Class & Accounts'!$C$19:$C$217, 'O1 Revenue to cost|RR'!$A50,'O4 Summary by Class & Accounts'!S$19:S$217)) -> 0 | S50: =IF(ISERROR(SUMIF('O4 Summary by Class & Accounts'!$C$19:$C$217, 'O1 Revenue to cost|RR'!$A50,'O4 Summary by Class & Accounts'!T$19:T$217)), "-", SUMIF('O4 Summary by Class & Accounts'!$C$19:$C$217, 'O1 Revenue to cost|RR'!$A50,'O4 Summary by Class & Accounts'!T$19:T$217)) -> 0 | T50: =IF(ISERROR(SUMIF('O4 Summary by Class & Accounts'!$C$19:$C$217, 'O1 Revenue to cost|RR'!$A50,'O4 Summary by Class & Accounts'!U$19:U$217)), "-", SUMIF('O4 Summary by Class & Accounts'!$C$19:$C$217, 'O1 Revenue to cost|RR'!$A50,'O4 Summary by Class & Accounts'!U$19:U$217)) -> 0 | U50: =IF(ISERROR(SUMIF('O4 Summary by Class & Accounts'!$C$19:$C$217, 'O1 Revenue to cost|RR'!$A50,'O4 Summary by Class & Accounts'!V$19:V$217)), "-", SUMIF('O4 Summary by Class & Accounts'!$C$19:$C$217, 'O1 Revenue to cost|RR'!$A50,'O4 Summary by Class & Accounts'!V$19:V$217)) -> 0 | V50: =IF(ISERROR(SUMIF('O4 Summary by Class & Accounts'!$C$19:$C$217, 'O1 Revenue to cost|RR'!$A50,'O4 Summary by Class & Accounts'!W$19:W$217)), "-", SUMIF('O4 Summary by Class & Accounts'!$C$19:$C$217, 'O1 Revenue to cost|RR'!$A50,'O4 Summary by Class & Accounts'!W$19:W$217)) -> 0 | W50: =IF(ISERROR(SUMIF('O4 Summary by Class & Accounts'!$C$19:$C$217, 'O1 Revenue to cost|RR'!$A50,'O4 Summary by Class & Accounts'!X$19:X$217)), "-", SUMIF('O4 Summary by Class & Accounts'!$C$19:$C$217, 'O1 Revenue to cost|RR'!$A50,'O4 Summary by Class & Accounts'!X$19:X$217)) -> 0
B51: Total Net Plant | C51: =SUM(C47:C50) -> 53601180.5 | D51: 30791494.94 | E51: 8652483.211 | F51: 10468620.83 | G51: 0 | H51: 0 | I51: 1042277.027 | J51: 2340548.271 | K51: 80361.40428 | L51: 225394.8269 | M51: 0 | N51: 0 | O51: 0 | P51: 0 | Q51: 0 | R51: 0 | S51: 0 | T51: 0 | U51: 0 | V51: 0 | W51: 0
B53: Directly Allocated Net Fixed Assets | C53: =SUM(D53:W53) -> 0 | D53: ='I9 Direct Allocation'!E65 -> 0 | E53: ='I9 Direct Allocation'!F65 -> 0 | F53: ='I9 Direct Allocation'!G65 -> 0 | G53: ='I9 Direct Allocation'!H65 -> 0 | H53: ='I9 Direct Allocation'!I65 -> 0 | I53: ='I9 Direct Allocation'!J65 -> 0 | J53: ='I9 Direct Allocation'!K65 -> 0 | K53: ='I9 Direct Allocation'!L65 -> 0 | L53: ='I9 Direct Allocation'!M65 -> 0 | M53: ='I9 Direct Allocation'!N65 -> 0 | N53: ='I9 Direct Allocation'!O65 -> 0 | O53: ='I9 Direct Allocation'!P65 -> 0 | P53: ='I9 Direct Allocation'!Q65 -> 0 | Q53: ='I9 Direct Allocation'!R65 -> 0 | R53: ='I9 Direct Allocation'!S65 -> 0 | S53: ='I9 Direct Allocation'!T65 -> 0 | T53: ='I9 Direct Allocation'!U65 -> 0 | U53: ='I9 Direct Allocation'!V65 -> 0 | V53: ='I9 Direct Allocation'!W65 -> 0 | W53: ='I9 Direct Allocation'!X65 -> 0
A56: COP | B56: Cost of Power (COP) | C56: =SUM(D56:W56) -> 83640535 | D56: ='O6 Source Data for E2'!D179 -> 30042872.42 | E56: ='O6 Source Data for E2'!E179 -> 11451717.73 | F56: ='O6 Source Data for E2'!F179 -> 35827726.25 | G56: ='O6 Source Data for E2'!G179 -> 0 | H56: ='O6 Source Data for E2'!H179 -> 0 | I56: ='O6 Source Data for E2'!I179 -> 5524440.241 | J56: ='O6 Source Data for E2'!J179 -> 554902.8435 | K56: ='O6 Source Data for E2'!K179 -> 71518.93178 | L56: ='O6 Source Data for E2'!L179 -> 167356.5769 | M56: ='O6 Source Data for E2'!M179 -> 0 | N56: ='O6 Source Data for E2'!N179 -> 0 | O56: ='O6 Source Data for E2'!O179 -> 0 | P56: ='O6 Source Data for E2'!P179 -> 0 | Q56: ='O6 Source Data for E2'!Q179 -> 0 | R56: ='O6 Source Data for E2'!R179 -> 0 | S56: ='O6 Source Data for E2'!S179 -> 0 | T56: ='O6 Source Data for E2'!T179 -> 0 | U56: ='O6 Source Data for E2'!U179 -> 0 | V56: ='O6 Source Data for E2'!V179 -> 0 | W56: ='O6 Source Data for E2'!W179 -> 0
B57: OM&A Expenses | C57: =SUM(D57:W57) -> 9343791 | D57: =SUM(D28:D30) -> 6496295.719 | E57: =SUM(E28:E30) -> 1268455.595 | F57: 1234714.401 | G57: 0 | H57: 0 | I57: 130233.6407 | J57: 174828.6492 | K57: 17952.49241 | L57: 21310.50229 | M57: 0 | N57: 0 | O57: 0 | P57: 0 | Q57: 0 | R57: 0 | S57: 0 | T57: 0 | U57: 0 | V57: 0 | W57: 0
B58: Directly Allocated Expenses | C58: =SUM(D58:W58) -> 0 | D58: ='I9 Direct Allocation'!E145-'I9 Direct Allocation'!E146 -> 0 | E58: ='I9 Direct Allocation'!F145-'I9 Direct Allocation'!F146 -> 0 | F58: ='I9 Direct Allocation'!G145-'I9 Direct Allocation'!G146 -> 0 | G58: ='I9 Direct Allocation'!H145-'I9 Direct Allocation'!H146 -> 0 | H58: ='I9 Direct Allocation'!I145-'I9 Direct Allocation'!I146 -> 0 | I58: ='I9 Direct Allocation'!J145-'I9 Direct Allocation'!J146 -> 0 | J58: ='I9 Direct Allocation'!K145-'I9 Direct Allocation'!K146 -> 0 | K58: ='I9 Direct Allocation'!L145-'I9 Direct Allocation'!L146 -> 0 | L58: ='I9 Direct Allocation'!M145-'I9 Direct Allocation'!M146 -> 0 | M58: ='I9 Direct Allocation'!N145-'I9 Direct Allocation'!N146 -> 0 | N58: ='I9 Direct Allocation'!O145-'I9 Direct Allocation'!O146 -> 0 | O58: ='I9 Direct Allocation'!P145-'I9 Direct Allocation'!P146 -> 0 | P58: ='I9 Direct Allocation'!Q145-'I9 Direct Allocation'!Q146 -> 0 | Q58: ='I9 Direct Allocation'!R145-'I9 Direct Allocation'!R146 -> 0 | R58: ='I9 Direct Allocation'!S145-'I9 Direct Allocation'!S146 -> 0 | S58: ='I9 Direct Allocation'!T145-'I9 Direct Allocation'!T146 -> 0 | T58: ='I9 Direct Allocation'!U145-'I9 Direct Allocation'!U146 -> 0 | U58: ='I9 Direct Allocation'!V145-'I9 Direct Allocation'!V146 -> 0 | V58: ='I9 Direct Allocation'!W145-'I9 Direct Allocation'!W146 -> 0 | W58: ='I9 Direct Allocation'!X145-'I9 Direct Allocation'!X146 -> 0
B59: Subtotal | C59: =SUM(D59:W59) -> 92984326 | D59: =SUM(D56:D58) -> 36539168.14 | E59: =SUM(E56:E58) -> 12720173.33 | F59: 37062440.65 | G59: 0 | H59: 0 | I59: 5654673.882 | J59: 729731.4927 | K59: 89471.4242 | L59: 188667.0792 | M59: 0 | N59: 0 | O59: 0 | P59: 0 | Q59: 0 | R59: 0 | S59: 0 | T59: 0 | U59: 0 | V59: 0 | W59: 0
B61: Working Capital | C61: =SUM(D61:W61) -> 12087962.38 | D61: =D59*'I5.1 Misc Data'!$D$19 -> 4750091.858 | E61: =E59*'I5.1 Misc Data'!$D$19 -> 1653622.533 | F61: =F59*'I5.1 Misc Data'!$D$19 -> 4818117.285 | G61: =G59*'I5.1 Misc Data'!$D$19 -> 0 | H61: =H59*'I5.1 Misc Data'!$D$19 -> 0 | I61: =I59*'I5.1 Misc Data'!$D$19 -> 735107.6046 | J61: =J59*'I5.1 Misc Data'!$D$19 -> 94865.09405 | K61: =K59*'I5.1 Misc Data'!$D$19 -> 11631.28515 | L61: =L59*'I5.1 Misc Data'!$D$19 -> 24526.72029 | M61: =M59*'I5.1 Misc Data'!$D$19 -> 0 | N61: =N59*'I5.1 Misc Data'!$D$19 -> 0 | O61: =O59*'I5.1 Misc Data'!$D$19 -> 0 | P61: =P59*'I5.1 Misc Data'!$D$19 -> 0 | Q61: =Q59*'I5.1 Misc Data'!$D$19 -> 0 | R61: =R59*'I5.1 Misc Data'!$D$19 -> 0 | S61: =S59*'I5.1 Misc Data'!$D$19 -> 0 | T61: =T59*'I5.1 Misc Data'!$D$19 -> 0 | U61: =U59*'I5.1 Misc Data'!$D$19 -> 0 | V61: =V59*'I5.1 Misc Data'!$D$19 -> 0 | W61: =W59*'I5.1 Misc Data'!$D$19 -> 0
B63: Total Rate Base | C63: =SUM(D63:W63) -> 65689142.88 | D63: =D51+D53+D61 -> 35541586.79 | E63: =E51+E53+E61 -> 10306105.74 | F63: 15286738.11 | G63: 0 | H63: 0 | I63: 1777384.631 | J63: 2435413.365 | K63: 91992.68942 | L63: 249921.5472 | M63: 0 | N63: 0 | O63: 0 | P63: 0 | Q63: 0 | R63: 0 | S63: 0 | T63: 0 | U63: 0 | V63: 0 | W63: 0
C64: =IF(ROUND('I3 TB Data'!G17-C63,-1)=0,"Rate Base Input equals Output","Rate Base Input Does Not Equal Output") -> Rate Base Input equals Output
B65: Equity Component of Rate Base | C65: =SUM(D65:W65) -> 26275657.15 | D65: =D63*'I5.1 Misc Data'!$D$17 -> 14216634.72 | E65: =E63*'I5.1 Misc Data'!$D$17 -> 4122442.297 | F65: =F63*'I5.1 Misc Data'!$D$17 -> 6114695.244 | G65: =G63*'I5.1 Misc Data'!$D$17 -> 0 | H65: =H63*'I5.1 Misc Data'!$D$17 -> 0 | I65: =I63*'I5.1 Misc Data'!$D$17 -> 710953.8526 | J65: =J63*'I5.1 Misc Data'!$D$17 -> 974165.3458 | K65: =K63*'I5.1 Misc Data'!$D$17 -> 36797.07577 | L65: =L63*'I5.1 Misc Data'!$D$17 -> 99968.61889 | M65: =M63*'I5.1 Misc Data'!$D$17 -> 0 | N65: =N63*'I5.1 Misc Data'!$D$17 -> 0 | O65: =O63*'I5.1 Misc Data'!$D$17 -> 0 | P65: =P63*'I5.1 Misc Data'!$D$17 -> 0 | Q65: =Q63*'I5.1 Misc Data'!$D$17 -> 0 | R65: =R63*'I5.1 Misc Data'!$D$17 -> 0 | S65: =S63*'I5.1 Misc Data'!$D$17 -> 0 | T65: =T63*'I5.1 Misc Data'!$D$17 -> 0 | U65: =U63*'I5.1 Misc Data'!$D$17 -> 0 | V65: =V63*'I5.1 Misc Data'!$D$17 -> 0 | W65: =W63*'I5.1 Misc Data'!$D$17 -> 0
B67: Net Income on Allocated Assets | C67: =SUM(D67:W67) -> 2359554.012 | D67: =D25-(D34 +D36) -> 57000.33954 | E67: =E25-(E34 +E36) -> 516829.1782 | F67: 1238699.493 | G67: 0 | H67: 0 | I67: 48393.63855 | J67: 200766.0673 | K67: 31821.54902 | L67: 266043.7468 | M67: =M21-(M34 +M36) -> 0 | N67: 0 | O67: 0 | P67: 0 | Q67: 0 | R67: 0 | S67: 0 | T67: 0 | U67: 0 | V67: 0 | W67: 0
B69: Net Income on Direct Allocation Assets | C69: =SUM(D69:W69) -> 0 | D69: ='I9 Direct Allocation'!E151 -> 0 | E69: ='I9 Direct Allocation'!F151 -> 0 | F69: ='I9 Direct Allocation'!G151 -> 0 | G69: ='I9 Direct Allocation'!H151 -> 0 | H69: ='I9 Direct Allocation'!I151 -> 0 | I69: ='I9 Direct Allocation'!J151 -> 0 | J69: ='I9 Direct Allocation'!K151 -> 0 | K69: ='I9 Direct Allocation'!L151 -> 0 | L69: ='I9 Direct Allocation'!M151 -> 0 | M69: ='I9 Direct Allocation'!N151 -> 0 | N69: ='I9 Direct Allocation'!O151 -> 0 | O69: ='I9 Direct Allocation'!P151 -> 0 | P69: ='I9 Direct Allocation'!Q151 -> 0 | Q69: ='I9 Direct Allocation'!R151 -> 0 | R69: ='I9 Direct Allocation'!S151 -> 0 | S69: ='I9 Direct Allocation'!T151 -> 0 | T69: ='I9 Direct Allocation'!U151 -> 0 | U69: ='I9 Direct Allocation'!V151 -> 0 | V69: ='I9 Direct Allocation'!W151 -> 0 | W69: ='I9 Direct Allocation'!X151 -> 0
B71: Net Income | C71: =SUM(D71:W71) -> 2359554.012 | D71: =SUM(D67:D69) -> 57000.33954 | E71: =SUM(E67:E69) -> 516829.1782 | F71: 1238699.493 | G71: 0 | H71: 0 | I71: 48393.63855 | J71: 200766.0673 | K71: 31821.54902 | L71: 266043.7468 | M71: 0 | N71: 0 | O71: 0 | P71: 0 | Q71: 0 | R71: 0 | S71: 0 | T71: 0 | U71: 0 | V71: 0 | W71: 0
B73: RATIOS ANALYSIS
B75: REVENUE TO EXPENSES STATUS QUO% | C75: =IF(ISERROR(C25/C$40),"0.00%", (C25/C$40)) -> 1 | D75: 0.8758876989 | E75: 1.056712419 | F75: 1.29786051 | G75: 0.00% | H75: 0.00% | I75: 1.009451514 | J75: 1.208736225 | K75: 2.009513248 | L75: 6.17899062 | M75: 0.00% | N75: 0.00% | O75: 0.00% | P75: 0.00% | Q75: 0.00% | R75: 0.00% | S75: 0.00% | T75: 0.00% | U75: 0.00% | V75: 0.00% | W75: 0.00%
B77: EXISTING REVENUE MINUS ALLOCATED COSTS | C77: =SUM(D77:W77) -> -494790.1657 | D77: =D21-D40 -> -1570721.368 | E77: 57805.3668 | F77: 670750.0422 | G77: 0 | H77: 0 | I77: -5603.265286 | J77: 80352.19466 | K77: 26503.85424 | L77: 246123.0095 | M77: 0 | N77: 0 | O77: 0 | P77: 0 | Q77: 0 | R77: 0 | S77: 0 | T77: 0 | U77: 0 | V77: 0 | W77: 0
C78: =IF(ROUND('I6.1 Revenue'!B16-C77,-1)=0,"Deficiency Input equals Output","Deficiency Input Does Not Equal Output") -> Deficiency Input equals Output
B79: STATUS QUO REVENUE MINUS ALLOCATED COSTS | C79: =SUM(D79:W79) -> 1.426087692e-09 | D79: =D25-D40 -> -1298073.04 | E79: =E25-E40 -> 136051.8526 | F79: 777447.6412 | G79: 0 | H79: 0 | I79: 2469.925484 | J79: 97697.98328 | K79: 28282.73986 | L79: 256122.898 | M79: 0 | N79: 0 | O79: 0 | P79: 0 | Q79: 0 | R79: 0 | S79: 0 | T79: 0 | U79: 0 | V79: 0 | W79: 0
B81: RETURN ON EQUITY COMPONENT OF RATE BASE | C81: =IF(ISERROR(C71/C65),"0.00%", (C71/C65)) -> 0.0898 | D81: =IF(ISERROR(D71/D65),"0.00%", (D71/D65)) -> 0.004009411557 | E81: 0.1253696573 | F81: 0.2025774701 | G81: 0.00% | H81: 0.00% | I81: 0.06806860722 | J81: 0.20609034 | K81: 0.8647847242 | L81: 2.661272605 | M81: 0.00% | N81: 0.00% | O81: 0.00% | P81: 0.00% | Q81: 0.00% | R81: 0.00% | S81: 0.00% | T81: 0.00% | U81: 0.00% | V81: 0.00% | W81: 0.00%

Sheet O2 Fixed Charge|Floor|Ceiling
A5: ="Sheet O2 Monthly Fixed Charge Min. & Max. Worksheet - "& 'I2 LDC class'!$C$17 -> Sheet O2 Monthly Fixed Charge Min. & Max. Worksheet -
D12: 1 | E12: 2 | F12: 3 | G12: 4 | H12: 5 | I12: 6 | J12: 7 | K12: 8 | L12: 9 | M12: 10 | N12: 11 | O12: 12 | P12: 13 | Q12: 14 | R12: 15 | S12: 16 | T12: 17 | U12: 18 | V12: 19 | W12: 20
B13: Summary | D13: =IF('I2 LDC class'!$D$20="",'I2 LDC class'!$C$20,'I2 LDC class'!$D$20) -> Residential | E13: =IF('I2 LDC class'!$D$21="",'I2 LDC class'!$C$21,'I2 LDC class'!$D$21) -> General Service < 50 kW | F13: =IF('I2 LDC class'!$D$22="",'I2 LDC class'!$C$22,'I2 LDC class'!$D$22) -> General Service > 50 kW | G13: =IF('I2 LDC class'!$D$23="",'I2 LDC class'!$C$23,'I2 LDC class'!$D$23) -> GS> 50-TOU | H13: =IF('I2 LDC class'!$D$24="",'I2 LDC class'!$C$24,'I2 LDC class'!$D$24) -> GS >50-Intermediate | I13: =IF('I2 LDC class'!$D$25="",'I2 LDC class'!$C$25,'I2 LDC class'!$D$25) -> Large Use >5MW | J13: =IF('I2 LDC class'!$D$26="",'I2 LDC class'!$C$26,'I2 LDC class'!$D$26) -> Street Lighting | K13: =IF('I2 LDC class'!$D$27="",'I2 LDC class'!$C$27,'I2 LDC class'!$D$27) -> Sentinel Lighting | L13: =IF('I2 LDC class'!$D$28="",'I2 LDC class'!$C$28,'I2 LDC class'!$D$28) -> Unmetered Scattered Load | M13: =IF('I2 LDC class'!$D$29="",'I2 LDC class'!$C$29,'I2 LDC class'!$D$29) -> Embedded Distributor | N13: =IF('I2 LDC class'!$D$30="",'I2 LDC class'!$C$30,'I2 LDC class'!$D$30) -> Back-up/Standby Power | O13: =IF('I2 LDC class'!$D$31="",'I2 LDC class'!$C$31,'I2 LDC class'!$D$31) -> Rate Class 1 | P13: =IF('I2 LDC class'!$D$32="",'I2 LDC class'!$C$32,'I2 LDC class'!$D$32) -> Rate class 2 | Q13: =IF('I2 LDC class'!$D$33="",'I2 LDC class'!$C$33,'I2 LDC class'!$D$33) -> Rate class 3 | R13: =IF('I2 LDC class'!$D$34="",'I2 LDC class'!$C$34,'I2 LDC class'!$D$34) -> Rate class 4 | S13: =IF('I2 LDC class'!$D$35="",'I2 LDC class'!$C$35,'I2 LDC class'!$D$35) -> Rate class 5 | T13: =IF('I2 LDC class'!$D$36="",'I2 LDC class'!$C$36,'I2 LDC class'!$D$36) -> Rate class 6 | U13: =IF('I2 LDC class'!$D$37="",'I2 LDC class'!$C$37,'I2 LDC class'!$D$37) -> Rate class 7 | V13: =IF('I2 LDC class'!$D$38="",'I2 LDC class'!$C$38,'I2 LDC class'!$D$38) -> Rate class 8 | W13: =IF('I2 LDC class'!$D$39="",'I2 LDC class'!$C$39,'I2 LDC class'!$D$39) -> Rate class 9
B14: Customer Unit Cost per month - Avoided Cost | D14: =IF(ISERROR(D85/'E3 PLCC'!C19/12),"0",(D85/'E3 PLCC'!C19/12)) -> 5.890554302 | E14: =IF(ISERROR(E85/'E3 PLCC'!D19/12),"0",(E85/'E3 PLCC'!D19/12)) -> 9.157952187 | F14: =IF(ISERROR(F85/'E3 PLCC'!E19/12),"0",(F85/'E3 PLCC'!E19/12)) -> 49.45582571 | G14: =IF(ISERROR(G85/'E3 PLCC'!F19/12),"0",(G85/'E3 PLCC'!F19/12)) -> 0 | H14: =IF(ISERROR(H85/'E3 PLCC'!G19/12),"0",(H85/'E3 PLCC'!G19/12)) -> 0 | I14: =IF(ISERROR(I85/'E3 PLCC'!H19/12),"0",(I85/'E3 PLCC'!H19/12)) -> 4.436274685 | J14: =IF(ISERROR(J85/'E3 PLCC'!I19/12),"0",(J85/'E3 PLCC'!I19/12)) -> -0.006153113652 | K14: =IF(ISERROR(K85/'E3 PLCC'!J19/12),"0",(K85/'E3 PLCC'!J19/12)) -> 3.380988549 | L14: =IF(ISERROR(L85/'E3 PLCC'!K19/12),"0",(L85/'E3 PLCC'!K19/12)) -> 0.0520535013 | M14: =IF(ISERROR(M85/'E3 PLCC'!L19/12),"0",(M85/'E3 PLCC'!L19/12)) -> 0 | N14: =IF(ISERROR(N85/'E3 PLCC'!M19/12),"0",(N85/'E3 PLCC'!M19/12)) -> 0 | O14: =IF(ISERROR(O85/'E3 PLCC'!N19/12),"0",(O85/'E3 PLCC'!N19/12)) -> 0 | P14: =IF(ISERROR(P85/'E3 PLCC'!O19/12),"0",(P85/'E3 PLCC'!O19/12)) -> 0 | Q14: =IF(ISERROR(Q85/'E3 PLCC'!P19/12),"0",(Q85/'E3 PLCC'!P19/12)) -> 0 | R14: =IF(ISERROR(R85/'E3 PLCC'!Q19/12),"0",(R85/'E3 PLCC'!Q19/12)) -> 0 | S14: =IF(ISERROR(S85/'E3 PLCC'!R19/12),"0",(S85/'E3 PLCC'!R19/12)) -> 0 | T14: =IF(ISERROR(T85/'E3 PLCC'!S19/12),"0",(T85/'E3 PLCC'!S19/12)) -> 0 | U14: =IF(ISERROR(U85/'E3 PLCC'!T19/12),"0",(U85/'E3 PLCC'!T19/12)) -> 0 | V14: =IF(ISERROR(V85/'E3 PLCC'!U19/12),"0",(V85/'E3 PLCC'!U19/12)) -> 0 | W14: =IF(ISERROR(W85/'E3 PLCC'!V19/12),"0",(W85/'E3 PLCC'!V19/12)) -> 0
B16: Customer Unit Cost per month - Directly Related | D16: =IF(ISERROR(D136/'E3 PLCC'!C$19/12),"0",(D136/'E3 PLCC'!C$19/12)) -> 8.943676282 | E16: =IF(ISERROR(E136/'E3 PLCC'!D$19/12),"0",(E136/'E3 PLCC'!D$19/12)) -> 12.78980116 | F16: =IF(ISERROR(F136/'E3 PLCC'!E$19/12),"0",(F136/'E3 PLCC'!E$19/12)) -> 62.54667729 | G16: =IF(ISERROR(G136/'E3 PLCC'!F$19/12),"0",(G136/'E3 PLCC'!F$19/12)) -> 0 | H16: =IF(ISERROR(H136/'E3 PLCC'!G$19/12),"0",(H136/'E3 PLCC'!G$19/12)) -> 0 | I16: =IF(ISERROR(I136/'E3 PLCC'!H$19/12),"0",(I136/'E3 PLCC'!H$19/12)) -> 44.96247621 | J16: =IF(ISERROR(J136/'E3 PLCC'!I$19/12),"0",(J136/'E3 PLCC'!I$19/12)) -> -0.005332226114 | K16: =IF(ISERROR(K136/'E3 PLCC'!J$19/12),"0",(K136/'E3 PLCC'!J$19/12)) -> 5.391101979 | L16: =IF(ISERROR(L136/'E3 PLCC'!K$19/12),"0",(L136/'E3 PLCC'!K$19/12)) -> 0.09683718296 | M16: =IF(ISERROR(M136/'E3 PLCC'!L$19/12),"0",(M136/'E3 PLCC'!L$19/12)) -> 0 | N16: =IF(ISERROR(N136/'E3 PLCC'!M$19/12),"0",(N136/'E3 PLCC'!M$19/12)) -> 0 | O16: =IF(ISERROR(O136/'E3 PLCC'!N$19/12),"0",(O136/'E3 PLCC'!N$19/12)) -> 0 | P16: =IF(ISERROR(P136/'E3 PLCC'!O$19/12),"0",(P136/'E3 PLCC'!O$19/12)) -> 0 | Q16: =IF(ISERROR(Q136/'E3 PLCC'!P$19/12),"0",(Q136/'E3 PLCC'!P$19/12)) -> 0 | R16: =IF(ISERROR(R136/'E3 PLCC'!Q$19/12),"0",(R136/'E3 PLCC'!Q$19/12)) -> 0 | S16: =IF(ISERROR(S136/'E3 PLCC'!R$19/12),"0",(S136/'E3 PLCC'!R$19/12)) -> 0 | T16: =IF(ISERROR(T136/'E3 PLCC'!S$19/12),"0",(T136/'E3 PLCC'!S$19/12)) -> 0 | U16: =IF(ISERROR(U136/'E3 PLCC'!T$19/12),"0",(U136/'E3 PLCC'!T$19/12)) -> 0 | V16: =IF(ISERROR(V136/'E3 PLCC'!U$19/12),"0",(V136/'E3 PLCC'!U$19/12)) -> 0 | W16: =IF(ISERROR(W136/'E3 PLCC'!V$19/12),"0",(W136/'E3 PLCC'!V$19/12)) -> 0
B17: Customer Unit Cost per month - Minimum System with PLCC Adjustment | D17: =IF(ISERROR(D237/'E3 PLCC'!C19/12),"0",(D237/'E3 PLCC'!C19/12)) -> 16.75554296 | E17: =IF(ISERROR(E237/'E3 PLCC'!D19/12),"0",(E237/'E3 PLCC'!D19/12)) -> 26.01752512 | F17: =IF(ISERROR(F237/'E3 PLCC'!E19/12),"0",(F237/'E3 PLCC'!E19/12)) -> 86.34370928 | G17: =IF(ISERROR(G237/'E3 PLCC'!F19/12),"0",(G237/'E3 PLCC'!F19/12)) -> 0 | H17: =IF(ISERROR(H237/'E3 PLCC'!G19/12),"0",(H237/'E3 PLCC'!G19/12)) -> 0 | I17: =IF(ISERROR(I237/'E3 PLCC'!H19/12),"0",(I237/'E3 PLCC'!H19/12)) -> 185.9566024 | J17: =IF(ISERROR(J237/'E3 PLCC'!I19/12),"0",(J237/'E3 PLCC'!I19/12)) -> 4.764080018 | K17: =IF(ISERROR(K237/'E3 PLCC'!J19/12),"0",(K237/'E3 PLCC'!J19/12)) -> 9.245054437 | L17: =IF(ISERROR(L237/'E3 PLCC'!K19/12),"0",(L237/'E3 PLCC'!K19/12)) -> 4.260667694 | M17: =IF(ISERROR(M237/'E3 PLCC'!L19/12),"0",(M237/'E3 PLCC'!L19/12)) -> 0 | N17: =IF(ISERROR(N237/'E3 PLCC'!M19/12),"0",(N237/'E3 PLCC'!M19/12)) -> 0 | O17: =IF(ISERROR(O237/'E3 PLCC'!N19/12),"0",(O237/'E3 PLCC'!N19/12)) -> 0 | P17: =IF(ISERROR(P237/'E3 PLCC'!O19/12),"0",(P237/'E3 PLCC'!O19/12)) -> 0 | Q17: =IF(ISERROR(Q237/'E3 PLCC'!P19/12),"0",(Q237/'E3 PLCC'!P19/12)) -> 0 | R17: =IF(ISERROR(R237/'E3 PLCC'!Q19/12),"0",(R237/'E3 PLCC'!Q19/12)) -> 0 | S17: =IF(ISERROR(S237/'E3 PLCC'!R19/12),"0",(S237/'E3 PLCC'!R19/12)) -> 0 | T17: =IF(ISERROR(T237/'E3 PLCC'!S19/12),"0",(T237/'E3 PLCC'!S19/12)) -> 0 | U17: =IF(ISERROR(U237/'E3 PLCC'!T19/12),"0",(U237/'E3 PLCC'!T19/12)) -> 0 | V17: =IF(ISERROR(V237/'E3 PLCC'!U19/12),"0",(V237/'E3 PLCC'!U19/12)) -> 0 | W17: =IF(ISERROR(W237/'E3 PLCC'!V19/12),"0",(W237/'E3 PLCC'!V19/12)) -> 0
B18: Existing Approved Fixed Charge | D18: ='I5.1 Misc Data'!D26 -> 11.91 | E18: ='I5.1 Misc Data'!E26 -> 29.9 | F18: ='I5.1 Misc Data'!F26 -> 247.49 | G18: ='I5.1 Misc Data'!G26 -> 0 | H18: ='I5.1 Misc Data'!H26 -> 0 | I18: ='I5.1 Misc Data'!I26 -> 6311.79 | J18: ='I5.1 Misc Data'!J26 -> 3.16 | K18: ='I5.1 Misc Data'!K26 -> 3.73 | L18: ='I5.1 Misc Data'!L26 -> 11.1 | M18: ='I5.1 Misc Data'!M26 -> 0 | N18: ='I5.1 Misc Data'!N26 -> 0 | O18: ='I5.1 Misc Data'!O26 -> 0 | P18: ='I5.1 Misc Data'!P26 -> 0 | Q18: ='I5.1 Misc Data'!Q26 -> 0 | R18: ='I5.1 Misc Data'!R26 -> 0 | S18: ='I5.1 Misc Data'!S26 -> 0 | T18: ='I5.1 Misc Data'!T26 -> 0 | U18: ='I5.1 Misc Data'!U26 -> 0 | V18: ='I5.1 Misc Data'!V26 -> 0 | W18: ='I5.1 Misc Data'!W26 -> 0
D22: 1 | E22: 2 | F22: 3 | G22: 4 | H22: 5 | I22: 6 | J22: 7 | K22: 8 | L22: 9 | M22: 10 | N22: 11 | O22: 12 | P22: 13 | Q22: 14 | R22: 15 | S22: 16 | T22: 17 | U22: 18 | V22: 19 | W22: 20
A23: Information to be Used to Allocate PILs, ROD, ROE and A&G | C23: Total | D23: =IF('I2 LDC class'!$D$20="",'I2 LDC class'!$C$20,'I2 LDC class'!$D$20) -> Residential | E23: =IF('I2 LDC class'!$D$21="",'I2 LDC class'!$C$21,'I2 LDC class'!$D$21) -> General Service < 50 kW | F23: =IF('I2 LDC class'!$D$22="",'I2 LDC class'!$C$22,'I2 LDC class'!$D$22) -> General Service > 50 kW | G23: =IF('I2 LDC class'!$D$23="",'I2 LDC class'!$C$23,'I2 LDC class'!$D$23) -> GS> 50-TOU | H23: =IF('I2 LDC class'!$D$24="",'I2 LDC class'!$C$24,'I2 LDC class'!$D$24) -> GS >50-Intermediate | I23: =IF('I2 LDC class'!$D$25="",'I2 LDC class'!$C$25,'I2 LDC class'!$D$25) -> Large Use >5MW | J23: =IF('I2 LDC class'!$D$26="",'I2 LDC class'!$C$26,'I2 LDC class'!$D$26) -> Street Lighting | K23: =IF('I2 LDC class'!$D$27="",'I2 LDC class'!$C$27,'I2 LDC class'!$D$27) -> Sentinel Lighting | L23: =IF('I2 LDC class'!$D$28="",'I2 LDC class'!$C$28,'I2 LDC class'!$D$28) -> Unmetered Scattered Load | M23: =IF('I2 LDC class'!$D$29="",'I2 LDC class'!$C$29,'I2 LDC class'!$D$29) -> Embedded Distributor | N23: =IF('I2 LDC class'!$D$30="",'I2 LDC class'!$C$30,'I2 LDC class'!$D$30) -> Back-up/Standby Power | O23: =IF('I2 LDC class'!$D$31="",'I2 LDC class'!$C$31,'I2 LDC class'!$D$31) -> Rate Class 1 | P23: =IF('I2 LDC class'!$D$32="",'I2 LDC class'!$C$32,'I2 LDC class'!$D$32) -> Rate class 2 | Q23: =IF('I2 LDC class'!$D$33="",'I2 LDC class'!$C$33,'I2 LDC class'!$D$33) -> Rate class 3 | R23: =IF('I2 LDC class'!$D$34="",'I2 LDC class'!$C$34,'I2 LDC class'!$D$34) -> Rate class 4 | S23: =IF('I2 LDC class'!$D$35="",'I2 LDC class'!$C$35,'I2 LDC class'!$D$35) -> Rate class 5 | T23: =IF('I2 LDC class'!$D$36="",'I2 LDC class'!$C$36,'I2 LDC class'!$D$36) -> Rate class 6 | U23: =IF('I2 LDC class'!$D$37="",'I2 LDC class'!$C$37,'I2 LDC class'!$D$37) -> Rate class 7 | V23: =IF('I2 LDC class'!$D$38="",'I2 LDC class'!$C$38,'I2 LDC class'!$D$38) -> Rate class 8 | W23: =IF('I2 LDC class'!$D$39="",'I2 LDC class'!$C$39,'I2 LDC class'!$D$39) -> Rate class 9
B26: General Plant - Gross Assets | C26: =SUM(D26:W26) -> 2900192 | D26: =SUM('O4 Summary by Class & Accounts'!E61:E74)+SUM('O4 Summary by Class & Accounts'!E75:E77)+SUM('O4 Summary by Class & Accounts'!E78) +SUM('O4 Summary by Class & Accounts'!E80:E81) -> 1708017.029 | E26: =SUM('O4 Summary by Class & Accounts'!F61:F74)+SUM('O4 Summary by Class & Accounts'!F75:F77)+SUM('O4 Summary by Class & Accounts'!F78) +SUM('O4 Summary by Class & Accounts'!F80:F81) -> 480121.5867 | F26: =SUM('O4 Summary by Class & Accounts'!G61:G74)+SUM('O4 Summary by Class & Accounts'!G75:G77)+SUM('O4 Summary by Class & Accounts'!G78) +SUM('O4 Summary by Class & Accounts'!G80:G81) -> 520974.3223 | G26: =SUM('O4 Summary by Class & Accounts'!H61:H74)+SUM('O4 Summary by Class & Accounts'!H75:H77)+SUM('O4 Summary by Class & Accounts'!H78) +SUM('O4 Summary by Class & Accounts'!H80:H81) -> 0 | H26: =SUM('O4 Summary by Class & Accounts'!I61:I74)+SUM('O4 Summary by Class & Accounts'!I75:I77)+SUM('O4 Summary by Class & Accounts'!I78) +SUM('O4 Summary by Class & Accounts'!I80:I81) -> 0 | I26: =SUM('O4 Summary by Class & Accounts'!J61:J74)+SUM('O4 Summary by Class & Accounts'!J75:J77)+SUM('O4 Summary by Class & Accounts'!J78) +SUM('O4 Summary by Class & Accounts'!J80:J81) -> 51809.63644 | J26: =SUM('O4 Summary by Class & Accounts'!K61:K74)+SUM('O4 Summary by Class & Accounts'!K75:K77)+SUM('O4 Summary by Class & Accounts'!K78) +SUM('O4 Summary by Class & Accounts'!K80:K81) -> 122736.5067 | K26: =SUM('O4 Summary by Class & Accounts'!L61:L74)+SUM('O4 Summary by Class & Accounts'!L75:L77)+SUM('O4 Summary by Class & Accounts'!L78) +SUM('O4 Summary by Class & Accounts'!L80:L81) -> 4211.404155 | L26: =SUM('O4 Summary by Class & Accounts'!M61:M74)+SUM('O4 Summary by Class & Accounts'!M75:M77)+SUM('O4 Summary by Class & Accounts'!M78) +SUM('O4 Summary by Class & Accounts'!M80:M81) -> 12321.51511 | M26: =SUM('O4 Summary by Class & Accounts'!N61:N74)+SUM('O4 Summary by Class & Accounts'!N75:N77)+SUM('O4 Summary by Class & Accounts'!N78) +SUM('O4 Summary by Class & Accounts'!N80:N81) -> 0 | N26: =SUM('O4 Summary by Class & Accounts'!O61:O74)+SUM('O4 Summary by Class & Accounts'!O75:O77)+SUM('O4 Summary by Class & Accounts'!O78) +SUM('O4 Summary by Class & Accounts'!O80:O81) -> 0 | O26: =SUM('O4 Summary by Class & Accounts'!P61:P74)+SUM('O4 Summary by Class & Accounts'!P75:P77)+SUM('O4 Summary by Class & Accounts'!P78) +SUM('O4 Summary by Class & Accounts'!P80:P81) -> 0 | P26: =SUM('O4 Summary by Class & Accounts'!Q61:Q74)+SUM('O4 Summary by Class & Accounts'!Q75:Q77)+SUM('O4 Summary by Class & Accounts'!Q78) +SUM('O4 Summary by Class & Accounts'!Q80:Q81) -> 0 | Q26: =SUM('O4 Summary by Class & Accounts'!R61:R74)+SUM('O4 Summary by Class & Accounts'!R75:R77)+SUM('O4 Summary by Class & Accounts'!R78) +SUM('O4 Summary by Class & Accounts'!R80:R81) -> 0 | R26: =SUM('O4 Summary by Class & Accounts'!S61:S74)+SUM('O4 Summary by Class & Accounts'!S75:S77)+SUM('O4 Summary by Class & Accounts'!S78) +SUM('O4 Summary by Class & Accounts'!S80:S81) -> 0 | S26: =SUM('O4 Summary by Class & Accounts'!T61:T74)+SUM('O4 Summary by Class & Accounts'!T75:T77)+SUM('O4 Summary by Class & Accounts'!T78) +SUM('O4 Summary by Class & Accounts'!T80:T81) -> 0 | T26: =SUM('O4 Summary by Class & Accounts'!U61:U74)+SUM('O4 Summary by Class & Accounts'!U75:U77)+SUM('O4 Summary by Class & Accounts'!U78) +SUM('O4 Summary by Class & Accounts'!U80:U81) -> 0 | U26: =SUM('O4 Summary by Class & Accounts'!V61:V74)+SUM('O4 Summary by Class & Accounts'!V75:V77)+SUM('O4 Summary by Class & Accounts'!V78) +SUM('O4 Summary by Class & Accounts'!V80:V81) -> 0 | V26: =SUM('O4 Summary by Class & Accounts'!W61:W74)+SUM('O4 Summary by Class & Accounts'!W75:W77)+SUM('O4 Summary by Class & Accounts'!W78) +SUM('O4 Summary by Class & Accounts'!W80:W81) -> 0 | W26: =SUM('O4 Summary by Class & Accounts'!X61:X74)+SUM('O4 Summary by Class & Accounts'!X75:X77)+SUM('O4 Summary by Class & Accounts'!X78) +SUM('O4 Summary by Class & Accounts'!X80:X81) -> 0
B27: General Plant - Accumulated Depreciation | C27: =SUM(D27:W27) -> -2302046.5 | D27: ='O7 Amortization'!AW81+'O7 Amortization'!AW152+'O7 Amortization'!AW223+'O7 Amortization'!AW294 -> -1355749.765 | E27: ='O7 Amortization'!AX81+'O7 Amortization'!AX152+'O7 Amortization'!AX223+'O7 Amortization'!AX294 -> -381099.6714 | F27: ='O7 Amortization'!AY81+'O7 Amortization'!AY152+'O7 Amortization'!AY223+'O7 Amortization'!AY294 -> -413526.7993 | G27: ='O7 Amortization'!AZ81+'O7 Amortization'!AZ152+'O7 Amortization'!AZ223+'O7 Amortization'!AZ294 -> 0 | H27: ='O7 Amortization'!BA81+'O7 Amortization'!BA152+'O7 Amortization'!BA223+'O7 Amortization'!BA294 -> 0 | I27: ='O7 Amortization'!BB81+'O7 Amortization'!BB152+'O7 Amortization'!BB223+'O7 Amortization'!BB294 -> -41124.24013 | J27: ='O7 Amortization'!BC81+'O7 Amortization'!BC152+'O7 Amortization'!BC223+'O7 Amortization'!BC294 -> -97422.9105 | K27: ='O7 Amortization'!BD81+'O7 Amortization'!BD152+'O7 Amortization'!BD223+'O7 Amortization'!BD294 -> -3342.829783 | L27: ='O7 Amortization'!BE81+'O7 Amortization'!BE152+'O7 Amortization'!BE223+'O7 Amortization'!BE294 -> -9780.283766 | M27: ='O7 Amortization'!BF81+'O7 Amortization'!BF152+'O7 Amortization'!BF223+'O7 Amortization'!BF294 -> 0 | N27: ='O7 Amortization'!BG81+'O7 Amortization'!BG152+'O7 Amortization'!BG223+'O7 Amortization'!BG294 -> 0 | O27: ='O7 Amortization'!BH81+'O7 Amortization'!BH152+'O7 Amortization'!BH223+'O7 Amortization'!BH294 -> 0 | P27: ='O7 Amortization'!BI81+'O7 Amortization'!BI152+'O7 Amortization'!BI223+'O7 Amortization'!BI294 -> 0 | Q27: ='O7 Amortization'!BJ81+'O7 Amortization'!BJ152+'O7 Amortization'!BJ223+'O7 Amortization'!BJ294 -> 0 | R27: ='O7 Amortization'!BK81+'O7 Amortization'!BK152+'O7 Amortization'!BK223+'O7 Amortization'!BK294 -> 0 | S27: ='O7 Amortization'!BL81+'O7 Amortization'!BL152+'O7 Amortization'!BL223+'O7 Amortization'!BL294 -> 0 | T27: ='O7 Amortization'!BM81+'O7 Amortization'!BM152+'O7 Amortization'!BM223+'O7 Amortization'!BM294 -> 0 | U27: ='O7 Amortization'!BN81+'O7 Amortization'!BN152+'O7 Amortization'!BN223+'O7 Amortization'!BN294 -> 0 | V27: ='O7 Amortization'!BO81+'O7 Amortization'!BO152+'O7 Amortization'!BO223+'O7 Amortization'!BO294 -> 0 | W27: ='O7 Amortization'!BP81+'O7 Amortization'!BP152+'O7 Amortization'!BP223+'O7 Amortization'!BP294 -> 0
B28: General Plant - Net Fixed Assets | C28: =SUM(D28:W28) -> 598145.5 | D28: =D26+D27 -> 352267.2635 | E28: =E26+E27 -> 99021.91529 | F28: 107447.523 | G28: 0 | H28: 0 | I28: 10685.39631 | J28: 25313.59619 | K28: 868.5743716 | L28: 2541.231345 | M28: 0 | N28: 0 | O28: 0 | P28: 0 | Q28: 0 | R28: 0 | S28: 0 | T28: 0 | U28: 0 | V28: 0 | W28: 0
B30: General Plant - Depreciation | C30: =SUM(D30:W30) -> 205921 | D30: ='O7 Amortization'!AW369+'O7 Amortization'!AW442+'O7 Amortization'!AW516+'O7 Amortization'!AW590 -> 121273.5483 | E30: ='O7 Amortization'!AX369+'O7 Amortization'!AX442+'O7 Amortization'!AX516+'O7 Amortization'!AX590 -> 34089.85242 | F30: ='O7 Amortization'!AY369+'O7 Amortization'!AY442+'O7 Amortization'!AY516+'O7 Amortization'!AY590 -> 36990.50043 | G30: ='O7 Amortization'!AZ369+'O7 Amortization'!AZ442+'O7 Amortization'!AZ516+'O7 Amortization'!AZ590 -> 0 | H30: ='O7 Amortization'!BA369+'O7 Amortization'!BA442+'O7 Amortization'!BA516+'O7 Amortization'!BA590 -> 0 | I30: ='O7 Amortization'!BB369+'O7 Amortization'!BB442+'O7 Amortization'!BB516+'O7 Amortization'!BB590 -> 3678.615811 | J30: ='O7 Amortization'!BC369+'O7 Amortization'!BC442+'O7 Amortization'!BC516+'O7 Amortization'!BC590 -> 8714.603789 | K30: ='O7 Amortization'!BD369+'O7 Amortization'!BD442+'O7 Amortization'!BD516+'O7 Amortization'!BD590 -> 299.0203941 | L30: ='O7 Amortization'!BE369+'O7 Amortization'!BE442+'O7 Amortization'!BE516+'O7 Amortization'!BE590 -> 874.8588759 | M30: ='O7 Amortization'!BF369+'O7 Amortization'!BF442+'O7 Amortization'!BF516+'O7 Amortization'!BF590 -> 0 | N30: ='O7 Amortization'!BG369+'O7 Amortization'!BG442+'O7 Amortization'!BG516+'O7 Amortization'!BG590 -> 0 | O30: ='O7 Amortization'!BH369+'O7 Amortization'!BH442+'O7 Amortization'!BH516+'O7 Amortization'!BH590 -> 0 | P30: ='O7 Amortization'!BI369+'O7 Amortization'!BI442+'O7 Amortization'!BI516+'O7 Amortization'!BI590 -> 0 | Q30: ='O7 Amortization'!BJ369+'O7 Amortization'!BJ442+'O7 Amortization'!BJ516+'O7 Amortization'!BJ590 -> 0 | R30: ='O7 Amortization'!BK369+'O7 Amortization'!BK442+'O7 Amortization'!BK516+'O7 Amortization'!BK590 -> 0 | S30: ='O7 Amortization'!BL369+'O7 Amortization'!BL442+'O7 Amortization'!BL516+'O7 Amortization'!BL590 -> 0 | T30: ='O7 Amortization'!BM369+'O7 Amortization'!BM442+'O7 Amortization'!BM516+'O7 Amortization'!BM590 -> 0 | U30: ='O7 Amortization'!BN369+'O7 Amortization'!BN442+'O7 Amortization'!BN516+'O7 Amortization'!BN590 -> 0 | V30: ='O7 Amortization'!BO369+'O7 Amortization'!BO442+'O7 Amortization'!BO516+'O7 Amortization'!BO590 -> 0 | W30: ='O7 Amortization'!BP369+'O7 Amortization'!BP442+'O7 Amortization'!BP516+'O7 Amortization'!BP590 -> 0
B32: Total Net Fixed Assets Excluding General Plant | C32: =SUM(D32:W32) -> 53003035 | D32: =IF(ISERROR('O6 Source Data for E2'!D104), "-", 'O6 Source Data for E2'!D104) -> 30439227.67 | E32: =IF(ISERROR('O6 Source Data for E2'!E104), "-", 'O6 Source Data for E2'!E104) -> 8553461.295 | F32: =IF(ISERROR('O6 Source Data for E2'!F104), "-", 'O6 Source Data for E2'!F104) -> 10361173.3 | G32: =IF(ISERROR('O6 Source Data for E2'!G104), "-", 'O6 Source Data for E2'!G104) -> 0 | H32: =IF(ISERROR('O6 Source Data for E2'!H104), "-", 'O6 Source Data for E2'!H104) -> 0 | I32: =IF(ISERROR('O6 Source Data for E2'!I104), "-", 'O6 Source Data for E2'!I104) -> 1031591.631 | J32: =IF(ISERROR('O6 Source Data for E2'!J104), "-", 'O6 Source Data for E2'!J104) -> 2315234.674 | K32: =IF(ISERROR('O6 Source Data for E2'!K104), "-", 'O6 Source Data for E2'!K104) -> 79492.82991 | L32: =IF(ISERROR('O6 Source Data for E2'!L104), "-", 'O6 Source Data for E2'!L104) -> 222853.5956 | M32: =IF(ISERROR('O6 Source Data for E2'!M104), "-", 'O6 Source Data for E2'!M104) -> 0 | N32: =IF(ISERROR('O6 Source Data for E2'!N104), "-", 'O6 Source Data for E2'!N104) -> 0 | O32: =IF(ISERROR('O6 Source Data for E2'!O104), "-", 'O6 Source Data for E2'!O104) -> 0 | P32: =IF(ISERROR('O6 Source Data for E2'!P104), "-", 'O6 Source Data for E2'!P104) -> 0 | Q32: =IF(ISERROR('O6 Source Data for E2'!Q104), "-", 'O6 Source Data for E2'!Q104) -> 0 | R32: =IF(ISERROR('O6 Source Data for E2'!R104), "-", 'O6 Source Data for E2'!R104) -> 0 | S32: =IF(ISERROR('O6 Source Data for E2'!S104), "-", 'O6 Source Data for E2'!S104) -> 0 | T32: =IF(ISERROR('O6 Source Data for E2'!T104), "-", 'O6 Source Data for E2'!T104) -> 0 | U32: =IF(ISERROR('O6 Source Data for E2'!U104), "-", 'O6 Source Data for E2'!U104) -> 0 | V32: =IF(ISERROR('O6 Source Data for E2'!V104), "-", 'O6 Source Data for E2'!V104) -> 0 | W32: =IF(ISERROR('O6 Source Data for E2'!W104), "-", 'O6 Source Data for E2'!W104) -> 0
B34: Total Administration and General Expense | C34: =SUM(D34:W34) -> 3488992 | D34: =SUM('O4 Summary by Class & Accounts'!E174:E203) + 'O4 Summary by Class & Accounts'!E212+ SUM('O4 Summary by Class & Accounts'!E214:E217) -> 2410084.473 | E34: =SUM('O4 Summary by Class & Accounts'!F174:F203) + 'O4 Summary by Class & Accounts'!F212+ SUM('O4 Summary by Class & Accounts'!F214:F217) -> 477471.5691 | F34: =SUM('O4 Summary by Class & Accounts'!G174:G203) + 'O4 Summary by Class & Accounts'!G212+ SUM('O4 Summary by Class & Accounts'!G214:G217) -> 468661.0053 | G34: =SUM('O4 Summary by Class & Accounts'!H174:H203) + 'O4 Summary by Class & Accounts'!H212+ SUM('O4 Summary by Class & Accounts'!H214:H217) -> 0 | H34: =SUM('O4 Summary by Class & Accounts'!I174:I203) + 'O4 Summary by Class & Accounts'!I212+ SUM('O4 Summary by Class & Accounts'!I214:I217) -> 0 | I34: =SUM('O4 Summary by Class & Accounts'!J174:J203) + 'O4 Summary by Class & Accounts'!J212+ SUM('O4 Summary by Class & Accounts'!J214:J217) -> 49278.57667 | J34: =SUM('O4 Summary by Class & Accounts'!K174:K203) + 'O4 Summary by Class & Accounts'!K212+ SUM('O4 Summary by Class & Accounts'!K214:K217) -> 68628.59654 | K34: =SUM('O4 Summary by Class & Accounts'!L174:L203) + 'O4 Summary by Class & Accounts'!L212+ SUM('O4 Summary by Class & Accounts'!L214:L217) -> 6642.009021 | L34: =SUM('O4 Summary by Class & Accounts'!M174:M203) + 'O4 Summary by Class & Accounts'!M212+ SUM('O4 Summary by Class & Accounts'!M214:M217) -> 8225.770237 | M34: =SUM('O4 Summary by Class & Accounts'!N174:N203) + 'O4 Summary by Class & Accounts'!N212+ SUM('O4 Summary by Class & Accounts'!N214:N217) -> 0 | N34: =SUM('O4 Summary by Class & Accounts'!O174:O203) + 'O4 Summary by Class & Accounts'!O212+ SUM('O4 Summary by Class & Accounts'!O214:O217) -> 0 | O34: =SUM('O4 Summary by Class & Accounts'!P174:P203) + 'O4 Summary by Class & Accounts'!P212+ SUM('O4 Summary by Class & Accounts'!P214:P217) -> 0 | P34: =SUM('O4 Summary by Class & Accounts'!Q174:Q203) + 'O4 Summary by Class & Accounts'!Q212+ SUM('O4 Summary by Class & Accounts'!Q214:Q217) -> 0 | Q34: =SUM('O4 Summary by Class & Accounts'!R174:R203) + 'O4 Summary by Class & Accounts'!R212+ SUM('O4 Summary by Class & Accounts'!R214:R217) -> 0 | R34: =SUM('O4 Summary by Class & Accounts'!S174:S203) + 'O4 Summary by Class & Accounts'!S212+ SUM('O4 Summary by Class & Accounts'!S214:S217) -> 0 | S34: =SUM('O4 Summary by Class & Accounts'!T174:T203) + 'O4 Summary by Class & Accounts'!T212+ SUM('O4 Summary by Class & Accounts'!T214:T217) -> 0 | T34: =SUM('O4 Summary by Class & Accounts'!U174:U203) + 'O4 Summary by Class & Accounts'!U212+ SUM('O4 Summary by Class & Accounts'!U214:U217) -> 0 | U34: =SUM('O4 Summary by Class & Accounts'!V174:V203) + 'O4 Summary by Class & Accounts'!V212+ SUM('O4 Summary by Class & Accounts'!V214:V217) -> 0 | V34: =SUM('O4 Summary by Class & Accounts'!W174:W203) + 'O4 Summary by Class & Accounts'!W212+ SUM('O4 Summary by Class & Accounts'!W214:W217) -> 0 | W34: =SUM('O4 Summary by Class & Accounts'!X174:X203) + 'O4 Summary by Class & Accounts'!X212+ SUM('O4 Summary by Class & Accounts'!X214:X217) -> 0
B36: Total O&M | C36: =SUM(D36:W36) -> 5854799 | D36: ='O6 Source Data for E2'!D165 -> 4086211.246 | E36: ='O6 Source Data for E2'!E165 -> 790984.0261 | F36: ='O6 Source Data for E2'!F165 -> 766053.396 | G36: ='O6 Source Data for E2'!G165 -> 0 | H36: ='O6 Source Data for E2'!H165 -> 0 | I36: ='O6 Source Data for E2'!I165 -> 80955.06408 | J36: ='O6 Source Data for E2'!J165 -> 106200.0527 | K36: ='O6 Source Data for E2'!K165 -> 11310.48339 | L36: ='O6 Source Data for E2'!L165 -> 13084.73205 | M36: ='O6 Source Data for E2'!M165 -> 0 | N36: ='O6 Source Data for E2'!N165 -> 0 | O36: ='O6 Source Data for E2'!O165 -> 0 | P36: ='O6 Source Data for E2'!P165 -> 0 | Q36: ='O6 Source Data for E2'!Q165 -> 0 | R36: ='O6 Source Data for E2'!R165 -> 0 | S36: ='O6 Source Data for E2'!S165 -> 0 | T36: ='O6 Source Data for E2'!T165 -> 0 | U36: ='O6 Source Data for E2'!U165 -> 0 | V36: ='O6 Source Data for E2'!V165 -> 0 | W36: ='O6 Source Data for E2'!W165 -> 0
A39: Scenario 1
A40: Accounts included in Avoided Costs Plus General Administration Allocation
D42: 1 | E42: 2 | F42: 3 | G42: 4 | H42: 5 | I42: 6 | J42: 7 | K42: 8 | L42: 9 | M42: 10 | N42: 11 | O42: 12 | P42: 13 | Q42: 14 | R42: 15 | S42: 16 | T42: 17 | U42: 18 | V42: 19 | W42: 20
A43: USoA Account # | B43: Accounts | C43: Total | D43: =IF('I2 LDC class'!$D$20="",'I2 LDC class'!$C$20,'I2 LDC class'!$D$20) -> Residential | E43: =IF('I2 LDC class'!$D$21="",'I2 LDC class'!$C$21,'I2 LDC class'!$D$21) -> General Service < 50 kW | F43: =IF('I2 LDC class'!$D$22="",'I2 LDC class'!$C$22,'I2 LDC class'!$D$22) -> General Service > 50 kW | G43: =IF('I2 LDC class'!$D$23="",'I2 LDC class'!$C$23,'I2 LDC class'!$D$23) -> GS> 50-TOU | H43: =IF('I2 LDC class'!$D$24="",'I2 LDC class'!$C$24,'I2 LDC class'!$D$24) -> GS >50-Intermediate | I43: =IF('I2 LDC class'!$D$25="",'I2 LDC class'!$C$25,'I2 LDC class'!$D$25) -> Large Use >5MW | J43: =IF('I2 LDC class'!$D$26="",'I2 LDC class'!$C$26,'I2 LDC class'!$D$26) -> Street Lighting | K43: =IF('I2 LDC class'!$D$27="",'I2 LDC class'!$C$27,'I2 LDC class'!$D$27) -> Sentinel Lighting | L43: =IF('I2 LDC class'!$D$28="",'I2 LDC class'!$C$28,'I2 LDC class'!$D$28) -> Unmetered Scattered Load | M43: =IF('I2 LDC class'!$D$29="",'I2 LDC class'!$C$29,'I2 LDC class'!$D$29) -> Embedded Distributor | N43: =IF('I2 LDC class'!$D$30="",'I2 LDC class'!$C$30,'I2 LDC class'!$D$30) -> Back-up/Standby Power | O43: =IF('I2 LDC class'!$D$31="",'I2 LDC class'!$C$31,'I2 LDC class'!$D$31) -> Rate Class 1 | P43: =IF('I2 LDC class'!$D$32="",'I2 LDC class'!$C$32,'I2 LDC class'!$D$32) -> Rate class 2 | Q43: =IF('I2 LDC class'!$D$33="",'I2 LDC class'!$C$33,'I2 LDC class'!$D$33) -> Rate class 3 | R43: =IF('I2 LDC class'!$D$34="",'I2 LDC class'!$C$34,'I2 LDC class'!$D$34) -> Rate class 4 | S43: =IF('I2 LDC class'!$D$35="",'I2 LDC class'!$C$35,'I2 LDC class'!$D$35) -> Rate class 5 | T43: =IF('I2 LDC class'!$D$36="",'I2 LDC class'!$C$36,'I2 LDC class'!$D$36) -> Rate class 6 | U43: =IF('I2 LDC class'!$D$37="",'I2 LDC class'!$C$37,'I2 LDC class'!$D$37) -> Rate class 7 | V43: =IF('I2 LDC class'!$D$38="",'I2 LDC class'!$C$38,'I2 LDC class'!$D$38) -> Rate class 8 | W43: =IF('I2 LDC class'!$D$39="",'I2 LDC class'!$C$39,'I2 LDC class'!$D$39) -> Rate class 9
B44: Distribution Plant
A45: 1860 | B45: Meters | C45: =SUM(D45:W45) -> 7009040 | D45: =D92 -> 3937926.001 | E45: =E92 -> 1536741.986 | F45: 1505867.187 | G45: 0 | H45: 0 | I45: 28504.82575 | J45: 0 | K45: 0 | L45: 0 | M45: 0 | N45: 0 | O45: 0 | P45: 0 | Q45: 0 | R45: 0 | S45: 0 | T45: 0 | U45: 0 | V45: 0 | W45: 0 | Z45: CWMC
B47: Accumulated Amortization
B48: Accum. Amortization of Electric Utility Plant - Meters only | C48: =SUM(D48:W48) -> -2226060 | D48: =D95 -> -1250679.059 | E48: =E95 -> -488066.8202 | F48: -478261.033 | G48: 0 | H48: 0 | I48: -9053.0875 | J48: 0 | K48: 0 | L48: 0 | M48: 0 | N48: 0 | O48: 0 | P48: 0 | Q48: 0 | R48: 0 | S48: 0 | T48: 0 | U48: 0 | V48: 0 | W48: 0
B49: Meter Net Fixed Assets | C49: =SUM(D49:W49) -> 4782980 | D49: =D45+D48 -> 2687246.942 | E49: 1048675.166 | F49: 1027606.154 | G49: 0 | H49: 0 | I49: 19451.73825 | J49: 0 | K49: 0 | L49: 0 | M49: 0 | N49: 0 | O49: 0 | P49: 0 | Q49: 0 | R49: 0 | S49: 0 | T49: 0 | U49: 0 | V49: 0 | W49: 0
B51: Misc Revenue
A52: 4082 | B52: Retail Services Revenues | C52: =SUM(D52:W52) -> -22000 | D52: =D101 -> -15295.55892 | E52: =E101 -> -2986.584684 | F52: -2907.140884 | G52: 0 | H52: 0 | I52: -306.6357217 | J52: -411.6348796 | K52: -42.2692281 | L52: -50.1756782 | M52: 0 | N52: 0 | O52: 0 | P52: 0 | Q52: 0 | R52: 0 | S52: 0 | T52: 0 | U52: 0 | V52: 0 | W52: 0 | Z52: CWNB
A53: 4084 | B53: Service Transaction Requests (STR) Revenues | C53: =SUM(D53:W53) -> -16800 | D53: =D102 -> -11680.245 | E53: -2280.664668 | F53: -2219.998493 | G53: 0 | H53: 0 | I53: -234.1581875 | J53: -314.3393626 | K53: -32.27831964 | L53: -38.31597245 | M53: 0 | N53: 0 | O53: 0 | P53: 0 | Q53: 0 | R53: 0 | S53: 0 | T53: 0 | U53: 0 | V53: 0 | W53: 0 | Z53: CWNB
A54: 4090 | B54: Electric Services Incidental to Energy Sales | C54: =SUM(D54:W54) -> 0 | D54: 0 | E54: 0 | F54: 0 | G54: 0 | H54: 0 | I54: 0 | J54: 0 | K54: 0 | L54: 0 | M54: 0 | N54: 0 | O54: 0 | P54: 0 | Q54: 0 | R54: 0 | S54: 0 | T54: 0 | U54: 0 | V54: 0 | W54: 0 | Z54: CWNB
A55: 4220 | B55: Other Electric Revenues | C55: =SUM(D55:W55) -> 0 | D55: 0 | E55: 0 | F55: 0 | G55: 0 | H55: 0 | I55: 0 | J55: 0 | K55: 0 | L55: 0 | M55: 0 | N55: 0 | O55: 0 | P55: 0 | Q55: 0 | R55: 0 | S55: 0 | T55: 0 | U55: 0 | V55: 0 | W55: 0 | Z55: NFA
A56: 4225 | B56: Late Payment Charges | C56: =SUM(D56:W56) -> -200000 | D56: -134687.1232 | E56: -30514.94243 | F56: -30683.94211 | G56: 0 | H56: 0 | I56: -4113.992238 | J56: 0 | K56: 0 | L56: 0 | M56: 0 | N56: 0 | O56: 0 | P56: 0 | Q56: 0 | R56: 0 | S56: 0 | T56: 0 | U56: 0 | V56: 0 | W56: 0 | Z56: LPHA
B58: Sub-total | C58: =+SUM(C52:C56) -> -238800 | D58: -161662.9271 | E58: -35782.19178 | F58: -35811.08148 | G58: 0 | H58: 0 | I58: -4654.786147 | J58: -725.9742422 | K58: -74.54754774 | L58: -88.49165065 | M58: 0 | N58: 0 | O58: 0 | P58: 0 | Q58: 0 | R58: 0 | S58: 0 | T58: 0 | U58: 0 | V58: 0 | W58: 0
B60: Operation
A61: 5065 | B61: Meter Expense | C61: =SUM(D61:W61) -> 335758 | D61: =D110 -> 188640.6923 | E61: =E110 -> 73615.41891 | F61: 72136.40599 | G61: 0 | H61: 0 | I61: 1365.48276 | J61: 0 | K61: 0 | L61: 0 | M61: 0 | N61: 0 | O61: 0 | P61: 0 | Q61: 0 | R61: 0 | S61: 0 | T61: 0 | U61: 0 | V61: 0 | W61: 0 | Z61: CWMC
A62: 5070 | B62: Customer Premises - Operation Labour | C62: =SUM(D62:W62) -> 0 | D62: =D111 -> 0 | E62: 0 | F62: 0 | G62: 0 | H62: 0 | I62: 0 | J62: 0 | K62: 0 | L62: 0 | M62: 0 | N62: 0 | O62: 0 | P62: 0 | Q62: 0 | R62: 0 | S62: 0 | T62: 0 | U62: 0 | V62: 0 | W62: 0 | Z62: CCA
A63: 5075 | B63: Customer Premises - Materials and Expenses | C63: =SUM(D63:W63) -> 0 | D63: 0 | E63: 0 | F63: 0 | G63: 0 | H63: 0 | I63: 0 | J63: 0 | K63: 0 | L63: 0 | M63: 0 | N63: 0 | O63: 0 | P63: 0 | Q63: 0 | R63: 0 | S63: 0 | T63: 0 | U63: 0 | V63: 0 | W63: 0 | Z63: CCA
B65: Sub-total | C65: =+SUM(C61:C64) -> 335758 | D65: 188640.6923 | E65: 73615.41891 | F65: 72136.40599 | G65: 0 | H65: 0 | I65: 1365.48276 | J65: 0 | K65: 0 | L65: 0 | M65: 0 | N65: 0 | O65: 0 | P65: 0 | Q65: 0 | R65: 0 | S65: 0 | T65: 0 | U65: 0 | V65: 0 | W65: 0
B67: Maintenance
A68: 5175 | B68: Maintenance of Meters | C68: =SUM(D68:W68) -> 1781 | D68: =D117 -> 1000.628646 | E68: =E117 -> 390.4867824 | F68: 382.6414831 | G68: 0 | H68: 0 | I68: 7.243088164 | J68: 0 | K68: 0 | L68: 0 | M68: 0 | N68: 0 | O68: 0 | P68: 0 | Q68: 0 | R68: 0 | S68: 0 | T68: 0 | U68: 0 | V68: 0 | W68: 0 | Z68: 1860
B70: Billing and Collection
A71: 5310 | B71: Meter Reading Expense | C71: =SUM(D71:W71) -> 191000 | D71: =D120 -> 169925.1825 | E71: =E120 -> 18977.40474 | F71: 2086.711688 | G71: 0 | H71: 0 | I71: 10.70108558 | J71: 0 | K71: 0 | L71: 0 | M71: 0 | N71: 0 | O71: 0 | P71: 0 | Q71: 0 | R71: 0 | S71: 0 | T71: 0 | U71: 0 | V71: 0 | W71: 0 | Z71: CWMR
A72: 5315 | B72: Customer Billing | C72: =SUM(D72:W72) -> 889326 | D72: =D121 -> 799223.4548 | E72: =E121 -> 77654.48581 | F72: 9129.212219 | G72: 0 | H72: 0 | I72: 37.24517615 | J72: 62.41083572 | K72: 3054.104445 | L72: 165.0867267 | M72: 0 | N72: 0 | O72: 0 | P72: 0 | Q72: 0 | R72: 0 | S72: 0 | T72: 0 | U72: 0 | V72: 0 | W72: 0 | Z72: CWNB
A73: 5320 | B73: Collecting | C73: =SUM(D73:W73) -> 880874 | D73: =D122 -> 791627.7737 | E73: 76916.47105 | F73: 9042.44977 | G73: 0 | H73: 0 | I73: 36.89120446 | J73: 61.81769396 | K73: 3025.078766 | L73: 163.5177711 | M73: 0 | N73: 0 | O73: 0 | P73: 0 | Q73: 0 | R73: 0 | S73: 0 | T73: 0 | U73: 0 | V73: 0 | W73: 0 | Z73: CWNB
A74: 5325 | B74: Collecting- Cash Over and Short | C74: =SUM(D74:W74) -> 0 | D74: =D123 -> 0 | E74: 0 | F74: 0 | G74: 0 | H74: 0 | I74: 0 | J74: 0 | K74: 0 | L74: 0 | M74: 0 | N74: 0 | O74: 0 | P74: 0 | Q74: 0 | R74: 0 | S74: 0 | T74: 0 | U74: 0 | V74: 0 | W74: 0 | Z74: CWNB
A75: 5330 | B75: Collection Charges | C75: =SUM(D75:W75) -> 0 | D75: =D124 -> 0 | E75: 0 | F75: 0 | G75: 0 | H75: 0 | I75: 0 | J75: 0 | K75: 0 | L75: 0 | M75: 0 | N75: 0 | O75: 0 | P75: 0 | Q75: 0 | R75: 0 | S75: 0 | T75: 0 | U75: 0 | V75: 0 | W75: 0 | Z75: CWNB
B77: Sub-total | C77: =+SUM(C71:C76) -> 1961200 | D77: 1760776.411 | E77: 173548.3616 | F77: 20258.37368 | G77: 0 | H77: 0 | I77: 84.83746619 | J77: 124.2285297 | K77: 6079.18321 | L77: 328.6044979 | M77: 0 | N77: 0 | O77: 0 | P77: 0 | Q77: 0 | R77: 0 | S77: 0 | T77: 0 | U77: 0 | V77: 0 | W77: 0
B78: Total Operation, Maintenance and Billing | C78: =C77+C68+C65 -> 2298739 | D78: =+D77+D68+D65 -> 1950417.732 | E78: 247554.2673 | F78: 92777.42115 | G78: 0 | H78: 0 | I78: 1457.563314 | J78: 124.2285297 | K78: 6079.18321 | L78: 328.6044979 | M78: 0 | N78: 0 | O78: 0 | P78: 0 | Q78: 0 | R78: 0 | S78: 0 | T78: 0 | U78: 0 | V78: 0 | W78: 0
B80: Amortization Expense - Meters | C80: =SUM(D80:W80) -> 431960 | D80: =D129 -> 242690.3706 | E80: =E129 -> 94707.84419 | F80: 92805.06178 | G80: 0 | H80: 0 | I80: 1756.723393 | J80: 0 | K80: 0 | L80: 0 | M80: 0 | N80: 0 | O80: 0 | P80: 0 | Q80: 0 | R80: 0 | S80: 0 | T80: 0 | U80: 0 | V80: 0 | W80: 0
B81: Allocated PILs | C81: =SUM(D81:W81) -> 23793.36372 | D81: =IF(ISERROR('O4 Summary by Class & Accounts'!E213*D49/(D32+D28)),0, ('O4 Summary by Class & Accounts'!E213*D49/(D32+D28))) -> 13364.48004 | E81: =IF(ISERROR('O4 Summary by Class & Accounts'!F213*E49/(E32+E28)),0, ('O4 Summary by Class & Accounts'!F213*E49/(E32+E28))) -> 5215.353467 | F81: =IF(ISERROR('O4 Summary by Class & Accounts'!G213*F49/(F32+F28)),0, ('O4 Summary by Class & Accounts'!G213*F49/(F32+F28))) -> 5116.674613 | G81: =IF(ISERROR('O4 Summary by Class & Accounts'!H213*G49/(G32+G28)),0, ('O4 Summary by Class & Accounts'!H213*G49/(G32+G28))) -> 0 | H81: =IF(ISERROR('O4 Summary by Class & Accounts'!I213*H49/(H32+H28)),0, ('O4 Summary by Class & Accounts'!I213*H49/(H32+H28))) -> 0 | I81: =IF(ISERROR('O4 Summary by Class & Accounts'!J213*I49/(I32+I28)),0, ('O4 Summary by Class & Accounts'!J213*I49/(I32+I28))) -> 96.85559124 | J81: =IF(ISERROR('O4 Summary by Class & Accounts'!K213*J49/(J32+J28)),0, ('O4 Summary by Class & Accounts'!K213*J49/(J32+J28))) -> 0 | K81: =IF(ISERROR('O4 Summary by Class & Accounts'!L213*K49/(K32+K28)),0, ('O4 Summary by Class & Accounts'!L213*K49/(K32+K28))) -> 0 | L81: =IF(ISERROR('O4 Summary by Class & Accounts'!M213*L49/(L32+L28)),0, ('O4 Summary by Class & Accounts'!M213*L49/(L32+L28))) -> 0 | M81: =IF(ISERROR('O4 Summary by Class & Accounts'!N213*M49/(M32+M28)),0, ('O4 Summary by Class & Accounts'!N213*M49/(M32+M28))) -> 0 | N81: =IF(ISERROR('O4 Summary by Class & Accounts'!O213*N49/(N32+N28)),0, ('O4 Summary by Class & Accounts'!O213*N49/(N32+N28))) -> 0 | O81: =IF(ISERROR('O4 Summary by Class & Accounts'!P213*O49/(O32+O28)),0, ('O4 Summary by Class & Accounts'!P213*O49/(O32+O28))) -> 0 | P81: =IF(ISERROR('O4 Summary by Class & Accounts'!Q213*P49/(P32+P28)),0, ('O4 Summary by Class & Accounts'!Q213*P49/(P32+P28))) -> 0 | Q81: =IF(ISERROR('O4 Summary by Class & Accounts'!R213*Q49/(Q32+Q28)),0, ('O4 Summary by Class & Accounts'!R213*Q49/(Q32+Q28))) -> 0 | R81: =IF(ISERROR('O4 Summary by Class & Accounts'!S213*R49/(R32+R28)),0, ('O4 Summary by Class & Accounts'!S213*R49/(R32+R28))) -> 0 | S81: =IF(ISERROR('O4 Summary by Class & Accounts'!T213*S49/(S32+S28)),0, ('O4 Summary by Class & Accounts'!T213*S49/(S32+S28))) -> 0 | T81: =IF(ISERROR('O4 Summary by Class & Accounts'!U213*T49/(T32+T28)),0, ('O4 Summary by Class & Accounts'!U213*T49/(T32+T28))) -> 0 | U81: =IF(ISERROR('O4 Summary by Class & Accounts'!V213*U49/(U32+U28)),0, ('O4 Summary by Class & Accounts'!V213*U49/(U32+U28))) -> 0 | V81: =IF(ISERROR('O4 Summary by Class & Accounts'!W213*V49/(V32+V28)),0, ('O4 Summary by Class & Accounts'!W213*V49/(V32+V28))) -> 0 | W81: =IF(ISERROR('O4 Summary by Class & Accounts'!X213*W49/(W32+W28)),0, ('O4 Summary by Class & Accounts'!X213*W49/(W32+W28))) -> 0
B82: Allocated Debt Return | C82: =SUM(D82:W82) -> 145688.1523 | D82: =IF(ISERROR('O4 Summary by Class & Accounts'!E211*D49/(D28+D32)),0,('O4 Summary by Class & Accounts'!E211*D49/(D28+D32))) -> 81831.48995 | E82: =IF(ISERROR('O4 Summary by Class & Accounts'!F211*E49/(E28+E32)),0,('O4 Summary by Class & Accounts'!F211*E49/(E28+E32))) -> 31933.91314 | F82: =IF(ISERROR('O4 Summary by Class & Accounts'!G211*F49/(F28+F32)),0,('O4 Summary by Class & Accounts'!G211*F49/(F28+F32))) -> 31329.69677 | G82: =IF(ISERROR('O4 Summary by Class & Accounts'!H211*G49/(G28+G32)),0,('O4 Summary by Class & Accounts'!H211*G49/(G28+G32))) -> 0 | H82: =IF(ISERROR('O4 Summary by Class & Accounts'!I211*H49/(H28+H32)),0,('O4 Summary by Class & Accounts'!I211*H49/(H28+H32))) -> 0 | I82: =IF(ISERROR('O4 Summary by Class & Accounts'!J211*I49/(I28+I32)),0,('O4 Summary by Class & Accounts'!J211*I49/(I28+I32))) -> 593.0524282 | J82: =IF(ISERROR('O4 Summary by Class & Accounts'!K211*J49/(J28+J32)),0,('O4 Summary by Class & Accounts'!K211*J49/(J28+J32))) -> 0 | K82: =IF(ISERROR('O4 Summary by Class & Accounts'!L211*K49/(K28+K32)),0,('O4 Summary by Class & Accounts'!L211*K49/(K28+K32))) -> 0 | L82: =IF(ISERROR('O4 Summary by Class & Accounts'!M211*L49/(L28+L32)),0,('O4 Summary by Class & Accounts'!M211*L49/(L28+L32))) -> 0 | M82: =IF(ISERROR('O4 Summary by Class & Accounts'!N211*M49/(M28+M32)),0,('O4 Summary by Class & Accounts'!N211*M49/(M28+M32))) -> 0 | N82: =IF(ISERROR('O4 Summary by Class & Accounts'!O211*N49/(N28+N32)),0,('O4 Summary by Class & Accounts'!O211*N49/(N28+N32))) -> 0 | O82: =IF(ISERROR('O4 Summary by Class & Accounts'!P211*O49/(O28+O32)),0,('O4 Summary by Class & Accounts'!P211*O49/(O28+O32))) -> 0 | P82: =IF(ISERROR('O4 Summary by Class & Accounts'!Q211*P49/(P28+P32)),0,('O4 Summary by Class & Accounts'!Q211*P49/(P28+P32))) -> 0 | Q82: =IF(ISERROR('O4 Summary by Class & Accounts'!R211*Q49/(Q28+Q32)),0,('O4 Summary by Class & Accounts'!R211*Q49/(Q28+Q32))) -> 0 | R82: =IF(ISERROR('O4 Summary by Class & Accounts'!S211*R49/(R28+R32)),0,('O4 Summary by Class & Accounts'!S211*R49/(R28+R32))) -> 0 | S82: =IF(ISERROR('O4 Summary by Class & Accounts'!T211*S49/(S28+S32)),0,('O4 Summary by Class & Accounts'!T211*S49/(S28+S32))) -> 0 | T82: =IF(ISERROR('O4 Summary by Class & Accounts'!U211*T49/(T28+T32)),0,('O4 Summary by Class & Accounts'!U211*T49/(T28+T32))) -> 0 | U82: =IF(ISERROR('O4 Summary by Class & Accounts'!V211*U49/(U28+U32)),0,('O4 Summary by Class & Accounts'!V211*U49/(U28+U32))) -> 0 | V82: =IF(ISERROR('O4 Summary by Class & Accounts'!W211*V49/(V28+V32)),0,('O4 Summary by Class & Accounts'!W211*V49/(V28+V32))) -> 0 | W82: =IF(ISERROR('O4 Summary by Class & Accounts'!X211*W49/(W28+W32)),0,('O4 Summary by Class & Accounts'!X211*W49/(W28+W32))) -> 0
B83: Allocated Equity Return | C83: =SUM(D83:W83) -> 210544.2538 | D83: =IF(ISERROR('O1 Revenue to cost|RR'!D38*D49/(D28+D32)),0,('O1 Revenue to cost|RR'!D38*D49/(D28+D32))) -> 118260.4743 | E83: =IF(ISERROR('O1 Revenue to cost|RR'!E38*E49/(E28+E32)),0,('O1 Revenue to cost|RR'!E38*E49/(E28+E32))) -> 46149.95665 | F83: =IF(ISERROR('O1 Revenue to cost|RR'!F38*F49/(F28+F32)),0,('O1 Revenue to cost|RR'!F38*F49/(F28+F32))) -> 45276.76084 | G83: =IF(ISERROR('O1 Revenue to cost|RR'!G38*G49/(G28+G32)),0,('O1 Revenue to cost|RR'!G38*G49/(G28+G32))) -> 0 | H83: =IF(ISERROR('O1 Revenue to cost|RR'!H38*H49/(H28+H32)),0,('O1 Revenue to cost|RR'!H38*H49/(H28+H32))) -> 0 | I83: =IF(ISERROR('O1 Revenue to cost|RR'!I38*I49/(I28+I32)),0,('O1 Revenue to cost|RR'!I38*I49/(I28+I32))) -> 857.0620124 | J83: =IF(ISERROR('O1 Revenue to cost|RR'!J38*J49/(J28+J32)),0,('O1 Revenue to cost|RR'!J38*J49/(J28+J32))) -> 0 | K83: =IF(ISERROR('O1 Revenue to cost|RR'!K38*K49/(K28+K32)),0,('O1 Revenue to cost|RR'!K38*K49/(K28+K32))) -> 0 | L83: =IF(ISERROR('O1 Revenue to cost|RR'!L38*L49/(L28+L32)),0,('O1 Revenue to cost|RR'!L38*L49/(L28+L32))) -> 0 | M83: =IF(ISERROR('O1 Revenue to cost|RR'!M38*M49/(M28+M32)),0,('O1 Revenue to cost|RR'!M38*M49/(M28+M32))) -> 0 | N83: =IF(ISERROR('O1 Revenue to cost|RR'!N38*N49/(N28+N32)),0,('O1 Revenue to cost|RR'!N38*N49/(N28+N32))) -> 0 | O83: =IF(ISERROR('O1 Revenue to cost|RR'!O38*O49/(O28+O32)),0,('O1 Revenue to cost|RR'!O38*O49/(O28+O32))) -> 0 | P83: =IF(ISERROR('O1 Revenue to cost|RR'!P38*P49/(P28+P32)),0,('O1 Revenue to cost|RR'!P38*P49/(P28+P32))) -> 0 | Q83: =IF(ISERROR('O1 Revenue to cost|RR'!Q38*Q49/(Q28+Q32)),0,('O1 Revenue to cost|RR'!Q38*Q49/(Q28+Q32))) -> 0 | R83: =IF(ISERROR('O1 Revenue to cost|RR'!R38*R49/(R28+R32)),0,('O1 Revenue to cost|RR'!R38*R49/(R28+R32))) -> 0 | S83: =IF(ISERROR('O1 Revenue to cost|RR'!S38*S49/(S28+S32)),0,('O1 Revenue to cost|RR'!S38*S49/(S28+S32))) -> 0 | T83: =IF(ISERROR('O1 Revenue to cost|RR'!T38*T49/(T28+T32)),0,('O1 Revenue to cost|RR'!T38*T49/(T28+T32))) -> 0 | U83: =IF(ISERROR('O1 Revenue to cost|RR'!U38*U49/(U28+U32)),0,('O1 Revenue to cost|RR'!U38*U49/(U28+U32))) -> 0 | V83: =IF(ISERROR('O1 Revenue to cost|RR'!V38*V49/(V28+V32)),0,('O1 Revenue to cost|RR'!V38*V49/(V28+V32))) -> 0 | W83: =IF(ISERROR('O1 Revenue to cost|RR'!W38*W49/(W28+W32)),0,('O1 Revenue to cost|RR'!W38*W49/(W28+W32))) -> 0
B85: Total | C85: =SUM(C78:C83) +C58 -> 2871924.77 | D85: 2244901.62 | E85: 389779.143 | F85: 231494.5337 | G85: 0 | H85: 0 | I85: 106.4705924 | J85: -601.7457126 | K85: 6004.635663 | L85: 240.1128472 | M85: 0 | N85: 0 | O85: 0 | P85: 0 | Q85: 0 | R85: 0 | S85: 0 | T85: 0 | U85: 0 | V85: 0 | W85: 0
A86: Scenario 2
A87: Accounts included in Directly Related Customer Costs Plus General Administration Allocation
D89: 1 | E89: 2 | F89: 3 | G89: 4 | H89: 5 | I89: 6 | J89: 7 | K89: 8 | L89: 9 | M89: 10 | N89: 11 | O89: 12 | P89: 13 | Q89: 14 | R89: 15 | S89: 16 | T89: 17 | U89: 18 | V89: 19 | W89: 20
A90: USoA Account # | B90: Accounts | C90: Total | D90: =IF('I2 LDC class'!$D$20="",'I2 LDC class'!$C$20,'I2 LDC class'!$D$20) -> Residential | E90: =IF('I2 LDC class'!$D$21="",'I2 LDC class'!$C$21,'I2 LDC class'!$D$21) -> General Service < 50 kW | F90: =IF('I2 LDC class'!$D$22="",'I2 LDC class'!$C$22,'I2 LDC class'!$D$22) -> General Service > 50 kW | G90: =IF('I2 LDC class'!$D$23="",'I2 LDC class'!$C$23,'I2 LDC class'!$D$23) -> GS> 50-TOU | H90: =IF('I2 LDC class'!$D$24="",'I2 LDC class'!$C$24,'I2 LDC class'!$D$24) -> GS >50-Intermediate | I90: =IF('I2 LDC class'!$D$25="",'I2 LDC class'!$C$25,'I2 LDC class'!$D$25) -> Large Use >5MW | J90: =IF('I2 LDC class'!$D$26="",'I2 LDC class'!$C$26,'I2 LDC class'!$D$26) -> Street Lighting | K90: =IF('I2 LDC class'!$D$27="",'I2 LDC class'!$C$27,'I2 LDC class'!$D$27) -> Sentinel Lighting | L90: =IF('I2 LDC class'!$D$28="",'I2 LDC class'!$C$28,'I2 LDC class'!$D$28) -> Unmetered Scattered Load | M90: =IF('I2 LDC class'!$D$29="",'I2 LDC class'!$C$29,'I2 LDC class'!$D$29) -> Embedded Distributor | N90: =IF('I2 LDC class'!$D$30="",'I2 LDC class'!$C$30,'I2 LDC class'!$D$30) -> Back-up/Standby Power | O90: =IF('I2 LDC class'!$D$31="",'I2 LDC class'!$C$31,'I2 LDC class'!$D$31) -> Rate Class 1 | P90: =IF('I2 LDC class'!$D$32="",'I2 LDC class'!$C$32,'I2 LDC class'!$D$32) -> Rate class 2 | Q90: =IF('I2 LDC class'!$D$33="",'I2 LDC class'!$C$33,'I2 LDC class'!$D$33) -> Rate class 3 | R90: =IF('I2 LDC class'!$D$34="",'I2 LDC class'!$C$34,'I2 LDC class'!$D$34) -> Rate class 4 | S90: =IF('I2 LDC class'!$D$35="",'I2 LDC class'!$C$35,'I2 LDC class'!$D$35) -> Rate class 5 | T90: =IF('I2 LDC class'!$D$36="",'I2 LDC class'!$C$36,'I2 LDC class'!$D$36) -> Rate class 6 | U90: =IF('I2 LDC class'!$D$37="",'I2 LDC class'!$C$37,'I2 LDC class'!$D$37) -> Rate class 7 | V90: =IF('I2 LDC class'!$D$38="",'I2 LDC class'!$C$38,'I2 LDC class'!$D$38) -> Rate class 8 | W90: =IF('I2 LDC class'!$D$39="",'I2 LDC class'!$C$39,'I2 LDC class'!$D$39) -> Rate class 9
B91: Distribution Plant
A92: 1860 | B92: Meters | C92: =SUM(D92:W92) -> 7009040 | D92: ='O4 Summary by Class & Accounts'!E59 -> 3937926.001 | E92: ='O4 Summary by Class & Accounts'!F59 -> 1536741.986 | F92: ='O4 Summary by Class & Accounts'!G59 -> 1505867.187 | G92: ='O4 Summary by Class & Accounts'!H59 -> 0 | H92: ='O4 Summary by Class & Accounts'!I59 -> 0 | I92: ='O4 Summary by Class & Accounts'!J59 -> 28504.82575 | J92: ='O4 Summary by Class & Accounts'!K59 -> 0 | K92: ='O4 Summary by Class & Accounts'!L59 -> 0 | L92: ='O4 Summary by Class & Accounts'!M59 -> 0 | M92: ='O4 Summary by Class & Accounts'!N59 -> 0 | N92: ='O4 Summary by Class & Accounts'!O59 -> 0 | O92: ='O4 Summary by Class & Accounts'!P59 -> 0 | P92: ='O4 Summary by Class & Accounts'!Q59 -> 0 | Q92: ='O4 Summary by Class & Accounts'!R59 -> 0 | R92: ='O4 Summary by Class & Accounts'!S59 -> 0 | S92: ='O4 Summary by Class & Accounts'!T59 -> 0 | T92: ='O4 Summary by Class & Accounts'!U59 -> 0 | U92: ='O4 Summary by Class & Accounts'!V59 -> 0 | V92: ='O4 Summary by Class & Accounts'!W59 -> 0 | W92: ='O4 Summary by Class & Accounts'!X59 -> 0 | Z92: CWMC
B94: Accumulated Amortization
B95: Accum. Amortization of Electric Utility Plant - Meters only | C95: =SUM(D95:W95) -> -2226060 | D95: ='O7 Amortization'!AB57+'O7 Amortization'!AB128+'O7 Amortization'!AB199+'O7 Amortization'!AB270 -> -1250679.059 | E95: ='O7 Amortization'!AC57+'O7 Amortization'!AC128+'O7 Amortization'!AC199+'O7 Amortization'!AC270 -> -488066.8202 | F95: ='O7 Amortization'!AD57+'O7 Amortization'!AD128+'O7 Amortization'!AD199+'O7 Amortization'!AD270 -> -478261.033 | G95: ='O7 Amortization'!AE57+'O7 Amortization'!AE128+'O7 Amortization'!AE199+'O7 Amortization'!AE270 -> 0 | H95: ='O7 Amortization'!AF57+'O7 Amortization'!AF128+'O7 Amortization'!AF199+'O7 Amortization'!AF270 -> 0 | I95: ='O7 Amortization'!AG57+'O7 Amortization'!AG128+'O7 Amortization'!AG199+'O7 Amortization'!AG270 -> -9053.0875 | J95: ='O7 Amortization'!AH57+'O7 Amortization'!AH128+'O7 Amortization'!AH199+'O7 Amortization'!AH270 -> 0 | K95: ='O7 Amortization'!AI57+'O7 Amortization'!AI128+'O7 Amortization'!AI199+'O7 Amortization'!AI270 -> 0 | L95: ='O7 Amortization'!AJ57+'O7 Amortization'!AJ128+'O7 Amortization'!AJ199+'O7 Amortization'!AJ270 -> 0 | M95: ='O7 Amortization'!AK57+'O7 Amortization'!AK128+'O7 Amortization'!AK199+'O7 Amortization'!AK270 -> 0 | N95: ='O7 Amortization'!AL57+'O7 Amortization'!AL128+'O7 Amortization'!AL199+'O7 Amortization'!AL270 -> 0 | O95: ='O7 Amortization'!AM57+'O7 Amortization'!AM128+'O7 Amortization'!AM199+'O7 Amortization'!AM270 -> 0 | P95: ='O7 Amortization'!AN57+'O7 Amortization'!AN128+'O7 Amortization'!AN199+'O7 Amortization'!AN270 -> 0 | Q95: ='O7 Amortization'!AO57+'O7 Amortization'!AO128+'O7 Amortization'!AO199+'O7 Amortization'!AO270 -> 0 | R95: ='O7 Amortization'!AP57+'O7 Amortization'!AP128+'O7 Amortization'!AP199+'O7 Amortization'!AP270 -> 0 | S95: ='O7 Amortization'!AQ57+'O7 Amortization'!AQ128+'O7 Amortization'!AQ199+'O7 Amortization'!AQ270 -> 0 | T95: ='O7 Amortization'!AR57+'O7 Amortization'!AR128+'O7 Amortization'!AR199+'O7 Amortization'!AR270 -> 0 | U95: ='O7 Amortization'!AS57+'O7 Amortization'!AS128+'O7 Amortization'!AS199+'O7 Amortization'!AS270 -> 0 | V95: ='O7 Amortization'!AT57+'O7 Amortization'!AT128+'O7 Amortization'!AT199+'O7 Amortization'!AT270 -> 0 | W95: ='O7 Amortization'!AU57+'O7 Amortization'!AU128+'O7 Amortization'!AU199+'O7 Amortization'!AU270 -> 0
B96: Meter Net Fixed Assets | C96: =SUM(D96:W96) -> 4782980 | D96: =D92+D95 -> 2687246.942 | E96: =E92+E95 -> 1048675.166 | F96: 1027606.154 | G96: 0 | H96: 0 | I96: 19451.73825 | J96: 0 | K96: 0 | L96: =L92+L95 -> 0 | M96: 0 | N96: 0 | O96: 0 | P96: 0 | Q96: 0 | R96: 0 | S96: 0 | T96: 0 | U96: 0 | V96: 0 | W96: 0
B97: Allocated General Plant Net Fixed Assets | C97: =SUM(D97:W97) -> 54097.28806 | D97: =IF(ISERROR(D96/D32*D28),0,D96/D32*D28) -> 31098.98637 | E97: 12140.32774 | F97: 10656.48963 | G97: 0 | H97: 0 | I97: 201.4843141 | J97: 0 | K97: 0 | L97: 0 | M97: 0 | N97: 0 | O97: 0 | P97: 0 | Q97: 0 | R97: 0 | S97: 0 | T97: 0 | U97: 0 | V97: 0 | W97: 0
B98: Meter Net Fixed Assets Including General Plant | C98: =SUM(D98:W98) -> 4837077.288 | D98: =SUM(D96:D97) -> 2718345.928 | E98: =SUM(E96:E97) -> 1060815.494 | F98: 1038262.644 | G98: 0 | H98: 0 | I98: 19653.22257 | J98: 0 | K98: 0 | L98: 0 | M98: 0 | N98: 0 | O98: 0 | P98: 0 | Q98: 0 | R98: 0 | S98: 0 | T98: 0 | U98: 0 | V98: 0 | W98: 0
B100: Misc Revenue
A101: 4082 | B101: Retail Services Revenues | C101: =SUM(D101:W101) -> -22000 | D101: ='O4 Summary by Class & Accounts'!E88 -> -15295.55892 | E101: ='O4 Summary by Class & Accounts'!F88 -> -2986.584684 | F101: ='O4 Summary by Class & Accounts'!G88 -> -2907.140884 | G101: ='O4 Summary by Class & Accounts'!H88 -> 0 | H101: ='O4 Summary by Class & Accounts'!I88 -> 0 | I101: ='O4 Summary by Class & Accounts'!J88 -> -306.6357217 | J101: ='O4 Summary by Class & Accounts'!K88 -> -411.6348796 | K101: ='O4 Summary by Class & Accounts'!L88 -> -42.2692281 | L101: ='O4 Summary by Class & Accounts'!M88 -> -50.1756782 | M101: ='O4 Summary by Class & Accounts'!N88 -> 0 | N101: ='O4 Summary by Class & Accounts'!O88 -> 0 | O101: ='O4 Summary by Class & Accounts'!P88 -> 0 | P101: ='O4 Summary by Class & Accounts'!Q88 -> 0 | Q101: ='O4 Summary by Class & Accounts'!R88 -> 0 | R101: ='O4 Summary by Class & Accounts'!S88 -> 0 | S101: ='O4 Summary by Class & Accounts'!T88 -> 0 | T101: ='O4 Summary by Class & Accounts'!U88 -> 0 | U101: ='O4 Summary by Class & Accounts'!V88 -> 0 | V101: ='O4 Summary by Class & Accounts'!W88 -> 0 | W101: ='O4 Summary by Class & Accounts'!X88 -> 0 | Z101: CWNB
A102: 4084 | B102: Service Transaction Requests (STR) Revenues | C102: =SUM(D102:W102) -> -16800 | D102: ='O4 Summary by Class & Accounts'!E89 -> -11680.245 | E102: ='O4 Summary by Class & Accounts'!F89 -> -2280.664668 | F102: ='O4 Summary by Class & Accounts'!G89 -> -2219.998493 | G102: ='O4 Summary by Class & Accounts'!H89 -> 0 | H102: ='O4 Summary by Class & Accounts'!I89 -> 0 | I102: ='O4 Summary by Class & Accounts'!J89 -> -234.1581875 | J102: ='O4 Summary by Class & Accounts'!K89 -> -314.3393626 | K102: ='O4 Summary by Class & Accounts'!L89 -> -32.27831964 | L102: ='O4 Summary by Class & Accounts'!M89 -> -38.31597245 | M102: ='O4 Summary by Class & Accounts'!N89 -> 0 | N102: ='O4 Summary by Class & Accounts'!O89 -> 0 | O102: ='O4 Summary by Class & Accounts'!P89 -> 0 | P102: ='O4 Summary by Class & Accounts'!Q89 -> 0 | Q102: ='O4 Summary by Class & Accounts'!R89 -> 0 | R102: ='O4 Summary by Class & Accounts'!S89 -> 0 | S102: ='O4 Summary by Class & Accounts'!T89 -> 0 | T102: ='O4 Summary by Class & Accounts'!U89 -> 0 | U102: ='O4 Summary by Class & Accounts'!V89 -> 0 | V102: ='O4 Summary by Class & Accounts'!W89 -> 0 | W102: ='O4 Summary by Class & Accounts'!X89 -> 0 | Z102: CWNB
A103: 4090 | B103: Electric Services Incidental to Energy Sales | C103: =SUM(D103:W103) -> 0 | D103: ='O4 Summary by Class & Accounts'!E90 -> 0 | E103: ='O4 Summary by Class & Accounts'!F90 -> 0 | F103: ='O4 Summary by Class & Accounts'!G90 -> 0 | G103: ='O4 Summary by Class & Accounts'!H90 -> 0 | H103: ='O4 Summary by Class & Accounts'!I90 -> 0 | I103: ='O4 Summary by Class & Accounts'!J90 -> 0 | J103: ='O4 Summary by Class & Accounts'!K90 -> 0 | K103: ='O4 Summary by Class & Accounts'!L90 -> 0 | L103: ='O4 Summary by Class & Accounts'!M90 -> 0 | M103: ='O4 Summary by Class & Accounts'!N90 -> 0 | N103: ='O4 Summary by Class & Accounts'!O90 -> 0 | O103: ='O4 Summary by Class & Accounts'!P90 -> 0 | P103: ='O4 Summary by Class & Accounts'!Q90 -> 0 | Q103: ='O4 Summary by Class & Accounts'!R90 -> 0 | R103: ='O4 Summary by Class & Accounts'!S90 -> 0 | S103: ='O4 Summary by Class & Accounts'!T90 -> 0 | T103: ='O4 Summary by Class & Accounts'!U90 -> 0 | U103: ='O4 Summary by Class & Accounts'!V90 -> 0 | V103: ='O4 Summary by Class & Accounts'!W90 -> 0 | W103: ='O4 Summary by Class & Accounts'!X90 -> 0 | Z103: CWNB
A104: 4220 | B104: Other Electric Revenues | C104: =SUM(D104:W104) -> 0 | D104: ='O4 Summary by Class & Accounts'!E94 -> 0 | E104: ='O4 Summary by Class & Accounts'!F94 -> 0 | F104: ='O4 Summary by Class & Accounts'!G94 -> 0 | G104: ='O4 Summary by Class & Accounts'!H94 -> 0 | H104: ='O4 Summary by Class & Accounts'!I94 -> 0 | I104: ='O4 Summary by Class & Accounts'!J94 -> 0 | J104: ='O4 Summary by Class & Accounts'!K94 -> 0 | K104: ='O4 Summary by Class & Accounts'!L94 -> 0 | L104: ='O4 Summary by Class & Accounts'!M94 -> 0 | M104: ='O4 Summary by Class & Accounts'!N94 -> 0 | N104: ='O4 Summary by Class & Accounts'!O94 -> 0 | O104: ='O4 Summary by Class & Accounts'!P94 -> 0 | P104: ='O4 Summary by Class & Accounts'!Q94 -> 0 | Q104: ='O4 Summary by Class & Accounts'!R94 -> 0 | R104: ='O4 Summary by Class & Accounts'!S94 -> 0 | S104: ='O4 Summary by Class & Accounts'!T94 -> 0 | T104: ='O4 Summary by Class & Accounts'!U94 -> 0 | U104: ='O4 Summary by Class & Accounts'!V94 -> 0 | V104: ='O4 Summary by Class & Accounts'!W94 -> 0 | W104: ='O4 Summary by Class & Accounts'!X94 -> 0 | Z104: NFA
A105: 4225 | B105: Late Payment Charges | C105: =SUM(D105:W105) -> -200000 | D105: ='O4 Summary by Class & Accounts'!E95 -> -134687.1232 | E105: ='O4 Summary by Class & Accounts'!F95 -> -30514.94243 | F105: ='O4 Summary by Class & Accounts'!G95 -> -30683.94211 | G105: ='O4 Summary by Class & Accounts'!H95 -> 0 | H105: ='O4 Summary by Class & Accounts'!I95 -> 0 | I105: ='O4 Summary by Class & Accounts'!J95 -> -4113.992238 | J105: ='O4 Summary by Class & Accounts'!K95 -> 0 | K105: ='O4 Summary by Class & Accounts'!L95 -> 0 | L105: ='O4 Summary by Class & Accounts'!M95 -> 0 | M105: ='O4 Summary by Class & Accounts'!N95 -> 0 | N105: ='O4 Summary by Class & Accounts'!O95 -> 0 | O105: ='O4 Summary by Class & Accounts'!P95 -> 0 | P105: ='O4 Summary by Class & Accounts'!Q95 -> 0 | Q105: ='O4 Summary by Class & Accounts'!R95 -> 0 | R105: ='O4 Summary by Class & Accounts'!S95 -> 0 | S105: ='O4 Summary by Class & Accounts'!T95 -> 0 | T105: ='O4 Summary by Class & Accounts'!U95 -> 0 | U105: ='O4 Summary by Class & Accounts'!V95 -> 0 | V105: ='O4 Summary by Class & Accounts'!W95 -> 0 | W105: ='O4 Summary by Class & Accounts'!X95 -> 0 | Z105: LPHA
B107: Sub-total | C107: =+SUM(C101:C105) -> -238800 | D107: -161662.9271 | E107: -35782.19178 | F107: -35811.08148 | G107: 0 | H107: 0 | I107: -4654.786147 | J107: -725.9742422 | K107: -74.54754774 | L107: -88.49165065 | M107: 0 | N107: 0 | O107: 0 | P107: 0 | Q107: 0 | R107: 0 | S107: 0 | T107: 0 | U107: 0 | V107: 0 | W107: 0
B109: Operation
A110: 5065 | B110: Meter Expense | C110: =SUM(D110:W110) -> 335758 | D110: ='O4 Summary by Class & Accounts'!E146 -> 188640.6923 | E110: ='O4 Summary by Class & Accounts'!F146 -> 73615.41891 | F110: ='O4 Summary by Class & Accounts'!G146 -> 72136.40599 | G110: ='O4 Summary by Class & Accounts'!H146 -> 0 | H110: ='O4 Summary by Class & Accounts'!I146 -> 0 | I110: ='O4 Summary by Class & Accounts'!J146 -> 1365.48276 | J110: ='O4 Summary by Class & Accounts'!K146 -> 0 | K110: ='O4 Summary by Class & Accounts'!L146 -> 0 | L110: ='O4 Summary by Class & Accounts'!M146 -> 0 | M110: ='O4 Summary by Class & Accounts'!N146 -> 0 | N110: ='O4 Summary by Class & Accounts'!O146 -> 0 | O110: ='O4 Summary by Class & Accounts'!P146 -> 0 | P110: ='O4 Summary by Class & Accounts'!Q146 -> 0 | Q110: ='O4 Summary by Class & Accounts'!R146 -> 0 | R110: ='O4 Summary by Class & Accounts'!S146 -> 0 | S110: ='O4 Summary by Class & Accounts'!T146 -> 0 | T110: ='O4 Summary by Class & Accounts'!U146 -> 0 | U110: ='O4 Summary by Class & Accounts'!V146 -> 0 | V110: ='O4 Summary by Class & Accounts'!W146 -> 0 | W110: ='O4 Summary by Class & Accounts'!X146 -> 0 | Z110: CWMC
A111: 5070 | B111: Customer Premises - Operation Labour | C111: =SUM(D111:W111) -> 0 | D111: ='O4 Summary by Class & Accounts'!E147 -> 0 | E111: ='O4 Summary by Class & Accounts'!F147 -> 0 | F111: ='O4 Summary by Class & Accounts'!G147 -> 0 | G111: ='O4 Summary by Class & Accounts'!H147 -> 0 | H111: ='O4 Summary by Class & Accounts'!I147 -> 0 | I111: ='O4 Summary by Class & Accounts'!J147 -> 0 | J111: ='O4 Summary by Class & Accounts'!K147 -> 0 | K111: ='O4 Summary by Class & Accounts'!L147 -> 0 | L111: ='O4 Summary by Class & Accounts'!M147 -> 0 | M111: ='O4 Summary by Class & Accounts'!N147 -> 0 | N111: ='O4 Summary by Class & Accounts'!O147 -> 0 | O111: ='O4 Summary by Class & Accounts'!P147 -> 0 | P111: ='O4 Summary by Class & Accounts'!Q147 -> 0 | Q111: ='O4 Summary by Class & Accounts'!R147 -> 0 | R111: ='O4 Summary by Class & Accounts'!S147 -> 0 | S111: ='O4 Summary by Class & Accounts'!T147 -> 0 | T111: ='O4 Summary by Class & Accounts'!U147 -> 0 | U111: ='O4 Summary by Class & Accounts'!V147 -> 0 | V111: ='O4 Summary by Class & Accounts'!W147 -> 0 | W111: ='O4 Summary by Class & Accounts'!X147 -> 0 | Z111: CCA
A112: 5075 | B112: Customer Premises - Materials and Expenses | C112: =SUM(D112:W112) -> 0 | D112: ='O4 Summary by Class & Accounts'!E148 -> 0 | E112: ='O4 Summary by Class & Accounts'!F148 -> 0 | F112: ='O4 Summary by Class & Accounts'!G148 -> 0 | G112: ='O4 Summary by Class & Accounts'!H148 -> 0 | H112: ='O4 Summary by Class & Accounts'!I148 -> 0 | I112: ='O4 Summary by Class & Accounts'!J148 -> 0 | J112: ='O4 Summary by Class & Accounts'!K148 -> 0 | K112: ='O4 Summary by Class & Accounts'!L148 -> 0 | L112: ='O4 Summary by Class & Accounts'!M148 -> 0 | M112: ='O4 Summary by Class & Accounts'!N148 -> 0 | N112: ='O4 Summary by Class & Accounts'!O148 -> 0 | O112: ='O4 Summary by Class & Accounts'!P148 -> 0 | P112: ='O4 Summary by Class & Accounts'!Q148 -> 0 | Q112: ='O4 Summary by Class & Accounts'!R148 -> 0 | R112: ='O4 Summary by Class & Accounts'!S148 -> 0 | S112: ='O4 Summary by Class & Accounts'!T148 -> 0 | T112: ='O4 Summary by Class & Accounts'!U148 -> 0 | U112: ='O4 Summary by Class & Accounts'!V148 -> 0 | V112: ='O4 Summary by Class & Accounts'!W148 -> 0 | W112: ='O4 Summary by Class & Accounts'!X148 -> 0 | Z112: CCA
B114: Sub-total | C114: =+SUM(C110:C113) -> 335758 | D114: =+SUM(D110:D113) -> 188640.6923 | E114: =+SUM(E110:E113) -> 73615.41891 | F114: 72136.40599 | G114: 0 | H114: 0 | I114: 1365.48276 | J114: 0 | K114: 0 | L114: 0 | M114: 0 | N114: 0 | O114: 0 | P114: 0 | Q114: 0 | R114: 0 | S114: 0 | T114: 0 | U114: 0 | V114: 0 | W114: 0
B116: Maintenance
A117: 5175 | B117: Maintenance of Meters | C117: =SUM(D117:W117) -> 1781 | D117: ='O4 Summary by Class & Accounts'!E165 -> 1000.628646 | E117: ='O4 Summary by Class & Accounts'!F165 -> 390.4867824 | F117: ='O4 Summary by Class & Accounts'!G165 -> 382.6414831 | G117: ='O4 Summary by Class & Accounts'!H165 -> 0 | H117: ='O4 Summary by Class & Accounts'!I165 -> 0 | I117: ='O4 Summary by Class & Accounts'!J165 -> 7.243088164 | J117: ='O4 Summary by Class & Accounts'!K165 -> 0 | K117: ='O4 Summary by Class & Accounts'!L165 -> 0 | L117: ='O4 Summary by Class & Accounts'!M165 -> 0 | M117: ='O4 Summary by Class & Accounts'!N165 -> 0 | N117: ='O4 Summary by Class & Accounts'!O165 -> 0 | O117: ='O4 Summary by Class & Accounts'!P165 -> 0 | P117: ='O4 Summary by Class & Accounts'!Q165 -> 0 | Q117: ='O4 Summary by Class & Accounts'!R165 -> 0 | R117: ='O4 Summary by Class & Accounts'!S165 -> 0 | S117: ='O4 Summary by Class & Accounts'!T165 -> 0 | T117: ='O4 Summary by Class & Accounts'!U165 -> 0 | U117: ='O4 Summary by Class & Accounts'!V165 -> 0 | V117: ='O4 Summary by Class & Accounts'!W165 -> 0 | W117: ='O4 Summary by Class & Accounts'!X165 -> 0 | Z117: 1860
B119: Billing and Collection
A120: 5310 | B120: Meter Reading Expense | C120: =SUM(D120:W120) -> 191000 | D120: ='O4 Summary by Class & Accounts'!E167 -> 169925.1825 | E120: ='O4 Summary by Class & Accounts'!F167 -> 18977.40474 | F120: ='O4 Summary by Class & Accounts'!G167 -> 2086.711688 | G120: ='O4 Summary by Class & Accounts'!H167 -> 0 | H120: ='O4 Summary by Class & Accounts'!I167 -> 0 | I120: ='O4 Summary by Class & Accounts'!J167 -> 10.70108558 | J120: ='O4 Summary by Class & Accounts'!K167 -> 0 | K120: ='O4 Summary by Class & Accounts'!L167 -> 0 | L120: ='O4 Summary by Class & Accounts'!M167 -> 0 | M120: ='O4 Summary by Class & Accounts'!N167 -> 0 | N120: ='O4 Summary by Class & Accounts'!O167 -> 0 | O120: ='O4 Summary by Class & Accounts'!P167 -> 0 | P120: ='O4 Summary by Class & Accounts'!Q167 -> 0 | Q120: ='O4 Summary by Class & Accounts'!R167 -> 0 | R120: ='O4 Summary by Class & Accounts'!S167 -> 0 | S120: ='O4 Summary by Class & Accounts'!T167 -> 0 | T120: ='O4 Summary by Class & Accounts'!U167 -> 0 | U120: ='O4 Summary by Class & Accounts'!V167 -> 0 | V120: ='O4 Summary by Class & Accounts'!W167 -> 0 | W120: ='O4 Summary by Class & Accounts'!X167 -> 0 | Z120: CWMR
A121: 5315 | B121: Customer Billing | C121: =SUM(D121:W121) -> 889326 | D121: ='O4 Summary by Class & Accounts'!E168 -> 799223.4548 | E121: ='O4 Summary by Class & Accounts'!F168 -> 77654.48581 | F121: ='O4 Summary by Class & Accounts'!G168 -> 9129.212219 | G121: ='O4 Summary by Class & Accounts'!H168 -> 0 | H121: ='O4 Summary by Class & Accounts'!I168 -> 0 | I121: ='O4 Summary by Class & Accounts'!J168 -> 37.24517615 | J121: ='O4 Summary by Class & Accounts'!K168 -> 62.41083572 | K121: ='O4 Summary by Class & Accounts'!L168 -> 3054.104445 | L121: ='O4 Summary by Class & Accounts'!M168 -> 165.0867267 | M121: ='O4 Summary by Class & Accounts'!N168 -> 0 | N121: ='O4 Summary by Class & Accounts'!O168 -> 0 | O121: ='O4 Summary by Class & Accounts'!P168 -> 0 | P121: ='O4 Summary by Class & Accounts'!Q168 -> 0 | Q121: ='O4 Summary by Class & Accounts'!R168 -> 0 | R121: ='O4 Summary by Class & Accounts'!S168 -> 0 | S121: ='O4 Summary by Class & Accounts'!T168 -> 0 | T121: ='O4 Summary by Class & Accounts'!U168 -> 0 | U121: ='O4 Summary by Class & Accounts'!V168 -> 0 | V121: ='O4 Summary by Class & Accounts'!W168 -> 0 | W121: ='O4 Summary by Class & Accounts'!X168 -> 0 | Z121: CWNB
A122: 5320 | B122: Collecting | C122: =SUM(D122:W122) -> 880874 | D122: ='O4 Summary by Class & Accounts'!E169 -> 791627.7737 | E122: ='O4 Summary by Class & Accounts'!F169 -> 76916.47105 | F122: ='O4 Summary by Class & Accounts'!G169 -> 9042.44977 | G122: ='O4 Summary by Class & Accounts'!H169 -> 0 | H122: ='O4 Summary by Class & Accounts'!I169 -> 0 | I122: ='O4 Summary by Class & Accounts'!J169 -> 36.89120446 | J122: ='O4 Summary by Class & Accounts'!K169 -> 61.81769396 | K122: ='O4 Summary by Class & Accounts'!L169 -> 3025.078766 | L122: ='O4 Summary by Class & Accounts'!M169 -> 163.5177711 | M122: ='O4 Summary by Class & Accounts'!N169 -> 0 | N122: ='O4 Summary by Class & Accounts'!O169 -> 0 | O122: ='O4 Summary by Class & Accounts'!P169 -> 0 | P122: ='O4 Summary by Class & Accounts'!Q169 -> 0 | Q122: ='O4 Summary by Class & Accounts'!R169 -> 0 | R122: ='O4 Summary by Class & Accounts'!S169 -> 0 | S122: ='O4 Summary by Class & Accounts'!T169 -> 0 | T122: ='O4 Summary by Class & Accounts'!U169 -> 0 | U122: ='O4 Summary by Class & Accounts'!V169 -> 0 | V122: ='O4 Summary by Class & Accounts'!W169 -> 0 | W122: ='O4 Summary by Class & Accounts'!X169 -> 0 | Z122: CWNB
A123: 5325 | B123: Collecting- Cash Over and Short | C123: =SUM(D123:W123) -> 0 | D123: ='O4 Summary by Class & Accounts'!E170 -> 0 | E123: ='O4 Summary by Class & Accounts'!F170 -> 0 | F123: ='O4 Summary by Class & Accounts'!G170 -> 0 | G123: ='O4 Summary by Class & Accounts'!H170 -> 0 | H123: ='O4 Summary by Class & Accounts'!I170 -> 0 | I123: ='O4 Summary by Class & Accounts'!J170 -> 0 | J123: ='O4 Summary by Class & Accounts'!K170 -> 0 | K123: ='O4 Summary by Class & Accounts'!L170 -> 0 | L123: ='O4 Summary by Class & Accounts'!M170 -> 0 | M123: ='O4 Summary by Class & Accounts'!N170 -> 0 | N123: ='O4 Summary by Class & Accounts'!O170 -> 0 | O123: ='O4 Summary by Class & Accounts'!P170 -> 0 | P123: ='O4 Summary by Class & Accounts'!Q170 -> 0 | Q123: ='O4 Summary by Class & Accounts'!R170 -> 0 | R123: ='O4 Summary by Class & Accounts'!S170 -> 0 | S123: ='O4 Summary by Class & Accounts'!T170 -> 0 | T123: ='O4 Summary by Class & Accounts'!U170 -> 0 | U123: ='O4 Summary by Class & Accounts'!V170 -> 0 | V123: ='O4 Summary by Class & Accounts'!W170 -> 0 | W123: ='O4 Summary by Class & Accounts'!X170 -> 0 | Z123: CWNB
A124: 5330 | B124: Collection Charges | C124: =SUM(D124:W124) -> 0 | D124: ='O4 Summary by Class & Accounts'!E171 -> 0 | E124: ='O4 Summary by Class & Accounts'!F171 -> 0 | F124: ='O4 Summary by Class & Accounts'!G171 -> 0 | G124: ='O4 Summary by Class & Accounts'!H171 -> 0 | H124: ='O4 Summary by Class & Accounts'!I171 -> 0 | I124: ='O4 Summary by Class & Accounts'!J171 -> 0 | J124: ='O4 Summary by Class & Accounts'!K171 -> 0 | K124: ='O4 Summary by Class & Accounts'!L171 -> 0 | L124: ='O4 Summary by Class & Accounts'!M171 -> 0 | M124: ='O4 Summary by Class & Accounts'!N171 -> 0 | N124: ='O4 Summary by Class & Accounts'!O171 -> 0 | O124: ='O4 Summary by Class & Accounts'!P171 -> 0 | P124: ='O4 Summary by Class & Accounts'!Q171 -> 0 | Q124: ='O4 Summary by Class & Accounts'!R171 -> 0 | R124: ='O4 Summary by Class & Accounts'!S171 -> 0 | S124: ='O4 Summary by Class & Accounts'!T171 -> 0 | T124: ='O4 Summary by Class & Accounts'!U171 -> 0 | U124: ='O4 Summary by Class & Accounts'!V171 -> 0 | V124: ='O4 Summary by Class & Accounts'!W171 -> 0 | W124: ='O4 Summary by Class & Accounts'!X171 -> 0 | Z124: CWNB
B126: Sub-total | C126: =+SUM(C120:C125) -> 1961200 | D126: =+SUM(D120:D125) -> 1760776.411 | E126: =+SUM(E120:E125) -> 173548.3616 | F126: 20258.37368 | G126: 0 | H126: 0 | I126: 84.83746619 | J126: 124.2285297 | K126: 6079.18321 | L126: 328.6044979 | M126: 0 | N126: 0 | O126: 0 | P126: 0 | Q126: 0 | R126: 0 | S126: 0 | T126: 0 | U126: 0 | V126: 0 | W126: 0
B127: Total Operation, Maintenance and Billing | C127: =SUM(C126,C117,C114) -> 2298739 | D127: =+D126+D117+D114 -> 1950417.732 | E127: 247554.2673 | F127: 92777.42115 | G127: 0 | H127: 0 | I127: 1457.563314 | J127: 124.2285297 | K127: 6079.18321 | L127: 328.6044979 | M127: 0 | N127: 0 | O127: 0 | P127: 0 | Q127: 0 | R127: 0 | S127: 0 | T127: 0 | U127: 0 | V127: 0 | W127: 0
B129: Amortization Expense - Meters | C129: =SUM(D129:W129) -> 431960 | D129: ='O7 Amortization'!AB344+'O7 Amortization'!AB418+'O7 Amortization'!AB492+'O7 Amortization'!AB566 -> 242690.3706 | E129: ='O7 Amortization'!AC344+'O7 Amortization'!AC418+'O7 Amortization'!AC492+'O7 Amortization'!AC566 -> 94707.84419 | F129: ='O7 Amortization'!AD344+'O7 Amortization'!AD418+'O7 Amortization'!AD492+'O7 Amortization'!AD566 -> 92805.06178 | G129: ='O7 Amortization'!AE344+'O7 Amortization'!AE418+'O7 Amortization'!AE492+'O7 Amortization'!AE566 -> 0 | H129: ='O7 Amortization'!AF344+'O7 Amortization'!AF418+'O7 Amortization'!AF492+'O7 Amortization'!AF566 -> 0 | I129: ='O7 Amortization'!AG344+'O7 Amortization'!AG418+'O7 Amortization'!AG492+'O7 Amortization'!AG566 -> 1756.723393 | J129: ='O7 Amortization'!AH344+'O7 Amortization'!AH418+'O7 Amortization'!AH492+'O7 Amortization'!AH566 -> 0 | K129: ='O7 Amortization'!AI344+'O7 Amortization'!AI418+'O7 Amortization'!AI492+'O7 Amortization'!AI566 -> 0 | L129: ='O7 Amortization'!AJ344+'O7 Amortization'!AJ418+'O7 Amortization'!AJ492+'O7 Amortization'!AJ566 -> 0 | M129: ='O7 Amortization'!AK344+'O7 Amortization'!AK418+'O7 Amortization'!AK492+'O7 Amortization'!AK566 -> 0 | N129: ='O7 Amortization'!AL344+'O7 Amortization'!AL418+'O7 Amortization'!AL492+'O7 Amortization'!AL566 -> 0 | O129: ='O7 Amortization'!AM344+'O7 Amortization'!AM418+'O7 Amortization'!AM492+'O7 Amortization'!AM566 -> 0 | P129: ='O7 Amortization'!AN344+'O7 Amortization'!AN418+'O7 Amortization'!AN492+'O7 Amortization'!AN566 -> 0 | Q129: ='O7 Amortization'!AO344+'O7 Amortization'!AO418+'O7 Amortization'!AO492+'O7 Amortization'!AO566 -> 0 | R129: ='O7 Amortization'!AP344+'O7 Amortization'!AP418+'O7 Amortization'!AP492+'O7 Amortization'!AP566 -> 0 | S129: ='O7 Amortization'!AQ344+'O7 Amortization'!AQ418+'O7 Amortization'!AQ492+'O7 Amortization'!AQ566 -> 0 | T129: ='O7 Amortization'!AR344+'O7 Amortization'!AR418+'O7 Amortization'!AR492+'O7 Amortization'!AR566 -> 0 | U129: ='O7 Amortization'!AS344+'O7 Amortization'!AS418+'O7 Amortization'!AS492+'O7 Amortization'!AS566 -> 0 | V129: ='O7 Amortization'!AT344+'O7 Amortization'!AT418+'O7 Amortization'!AT492+'O7 Amortization'!AT566 -> 0 | W129: ='O7 Amortization'!AU344+'O7 Amortization'!AU418+'O7 Amortization'!AU492+'O7 Amortization'!AU566 -> 0
B130: Amortization Expense - General Plant assigned to Meters | C130: 18623.84262 | D130: =IF(ISERROR(D97/D28*D30),0,D97/D28*D30) -> 10706.31539 | E130: 4179.498848 | F130: 3668.664231 | G130: 0 | H130: 0 | I130: 69.36414543 | J130: 0 | K130: 0 | L130: 0 | M130: 0 | N130: 0 | O130: 0 | P130: 0 | Q130: 0 | R130: 0 | S130: 0 | T130: 0 | U130: 0 | V130: 0 | W130: 0
B131: Admin and General | C131: 1361312.371 | D131: =IF(ISERROR(D127/D36*D34),0,D127/D36*D34) -> 1150374.077 | E131: 149434.275 | F131: 56759.95915 | G131: 0 | H131: 0 | I131: 887.2409202 | J131: 80.27895867 | K131: 3569.961452 | L131: 206.5785594 | M131: 0 | N131: 0 | O131: 0 | P131: 0 | Q131: 0 | R131: 0 | S131: 0 | T131: 0 | U131: 0 | V131: 0 | W131: 0
B132: Allocated PILs | C132: 24062.4697 | D132: =IF(ISERROR('O4 Summary by Class & Accounts'!E213*D98/(D32+D28)),0, ('O4 Summary by Class & Accounts'!E213*D98/(D32+D28))) -> 13519.14457 | E132: =IF(ISERROR('O4 Summary by Class & Accounts'!F213*E98/(E32+E28)),0, ('O4 Summary by Class & Accounts'!F213*E98/(E32+E28))) -> 5275.730695 | F132: =IF(ISERROR('O4 Summary by Class & Accounts'!G213*F98/(F32+F28)),0, ('O4 Summary by Class & Accounts'!G213*F98/(F32+F28))) -> 5169.735594 | G132: =IF(ISERROR('O4 Summary by Class & Accounts'!H213*G98/(G32+G28)),0, ('O4 Summary by Class & Accounts'!H213*G98/(G32+G28))) -> 0 | H132: =IF(ISERROR('O4 Summary by Class & Accounts'!I213*H98/(H32+H28)),0, ('O4 Summary by Class & Accounts'!I213*H98/(H32+H28))) -> 0 | I132: =IF(ISERROR('O4 Summary by Class & Accounts'!J213*I98/(I32+I28)),0, ('O4 Summary by Class & Accounts'!J213*I98/(I32+I28))) -> 97.85883744 | J132: =IF(ISERROR('O4 Summary by Class & Accounts'!K213*J98/(J32+J28)),0, ('O4 Summary by Class & Accounts'!K213*J98/(J32+J28))) -> 0 | K132: =IF(ISERROR('O4 Summary by Class & Accounts'!L213*K98/(K32+K28)),0, ('O4 Summary by Class & Accounts'!L213*K98/(K32+K28))) -> 0 | L132: =IF(ISERROR('O4 Summary by Class & Accounts'!M213*L98/(L32+L28)),0, ('O4 Summary by Class & Accounts'!M213*L98/(L32+L28))) -> 0 | M132: =IF(ISERROR('O4 Summary by Class & Accounts'!N213*M98/(M32+M28)),0, ('O4 Summary by Class & Accounts'!N213*M98/(M32+M28))) -> 0 | N132: =IF(ISERROR('O4 Summary by Class & Accounts'!O213*N98/(N32+N28)),0, ('O4 Summary by Class & Accounts'!O213*N98/(N32+N28))) -> 0 | O132: =IF(ISERROR('O4 Summary by Class & Accounts'!P213*O98/(O32+O28)),0, ('O4 Summary by Class & Accounts'!P213*O98/(O32+O28))) -> 0 | P132: =IF(ISERROR('O4 Summary by Class & Accounts'!Q213*P98/(P32+P28)),0, ('O4 Summary by Class & Accounts'!Q213*P98/(P32+P28))) -> 0 | Q132: =IF(ISERROR('O4 Summary by Class & Accounts'!R213*Q98/(Q32+Q28)),0, ('O4 Summary by Class & Accounts'!R213*Q98/(Q32+Q28))) -> 0 | R132: =IF(ISERROR('O4 Summary by Class & Accounts'!S213*R98/(R32+R28)),0, ('O4 Summary by Class & Accounts'!S213*R98/(R32+R28))) -> 0 | S132: =IF(ISERROR('O4 Summary by Class & Accounts'!T213*S98/(S32+S28)),0, ('O4 Summary by Class & Accounts'!T213*S98/(S32+S28))) -> 0 | T132: =IF(ISERROR('O4 Summary by Class & Accounts'!U213*T98/(T32+T28)),0, ('O4 Summary by Class & Accounts'!U213*T98/(T32+T28))) -> 0 | U132: =IF(ISERROR('O4 Summary by Class & Accounts'!V213*U98/(U32+U28)),0, ('O4 Summary by Class & Accounts'!V213*U98/(U32+U28))) -> 0 | V132: =IF(ISERROR('O4 Summary by Class & Accounts'!W213*V98/(V32+V28)),0, ('O4 Summary by Class & Accounts'!W213*V98/(V32+V28))) -> 0 | W132: =IF(ISERROR('O4 Summary by Class & Accounts'!X213*W98/(W32+W28)),0, ('O4 Summary by Class & Accounts'!X213*W98/(W32+W28))) -> 0
B133: Allocated Debt Return | C133: 147335.9039 | D133: =IF(ISERROR('O4 Summary by Class & Accounts'!E211*D98/(D28+D32)),0,('O4 Summary by Class & Accounts'!E211*D98/(D28+D32))) -> 82778.50988 | E133: =IF(ISERROR('O4 Summary by Class & Accounts'!F211*E98/(E28+E32)),0,('O4 Summary by Class & Accounts'!F211*E98/(E28+E32))) -> 32303.60642 | F133: =IF(ISERROR('O4 Summary by Class & Accounts'!G211*F98/(F28+F32)),0,('O4 Summary by Class & Accounts'!G211*F98/(F28+F32))) -> 31654.59224 | G133: =IF(ISERROR('O4 Summary by Class & Accounts'!H211*G98/(G28+G32)),0,('O4 Summary by Class & Accounts'!H211*G98/(G28+G32))) -> 0 | H133: =IF(ISERROR('O4 Summary by Class & Accounts'!I211*H98/(H28+H32)),0,('O4 Summary by Class & Accounts'!I211*H98/(H28+H32))) -> 0 | I133: =IF(ISERROR('O4 Summary by Class & Accounts'!J211*I98/(I28+I32)),0,('O4 Summary by Class & Accounts'!J211*I98/(I28+I32))) -> 599.1953631 | J133: =IF(ISERROR('O4 Summary by Class & Accounts'!K211*J98/(J28+J32)),0,('O4 Summary by Class & Accounts'!K211*J98/(J28+J32))) -> 0 | K133: =IF(ISERROR('O4 Summary by Class & Accounts'!L211*K98/(K28+K32)),0,('O4 Summary by Class & Accounts'!L211*K98/(K28+K32))) -> 0 | L133: =IF(ISERROR('O4 Summary by Class & Accounts'!M211*L98/(L28+L32)),0,('O4 Summary by Class & Accounts'!M211*L98/(L28+L32))) -> 0 | M133: =IF(ISERROR('O4 Summary by Class & Accounts'!N211*M98/(M28+M32)),0,('O4 Summary by Class & Accounts'!N211*M98/(M28+M32))) -> 0 | N133: =IF(ISERROR('O4 Summary by Class & Accounts'!O211*N98/(N28+N32)),0,('O4 Summary by Class & Accounts'!O211*N98/(N28+N32))) -> 0 | O133: =IF(ISERROR('O4 Summary by Class & Accounts'!P211*O98/(O28+O32)),0,('O4 Summary by Class & Accounts'!P211*O98/(O28+O32))) -> 0 | P133: =IF(ISERROR('O4 Summary by Class & Accounts'!Q211*P98/(P28+P32)),0,('O4 Summary by Class & Accounts'!Q211*P98/(P28+P32))) -> 0 | Q133: =IF(ISERROR('O4 Summary by Class & Accounts'!R211*Q98/(Q28+Q32)),0,('O4 Summary by Class & Accounts'!R211*Q98/(Q28+Q32))) -> 0 | R133: =IF(ISERROR('O4 Summary by Class & Accounts'!S211*R98/(R28+R32)),0,('O4 Summary by Class & Accounts'!S211*R98/(R28+R32))) -> 0 | S133: =IF(ISERROR('O4 Summary by Class & Accounts'!T211*S98/(S28+S32)),0,('O4 Summary by Class & Accounts'!T211*S98/(S28+S32))) -> 0 | T133: =IF(ISERROR('O4 Summary by Class & Accounts'!U211*T98/(T28+T32)),0,('O4 Summary by Class & Accounts'!U211*T98/(T28+T32))) -> 0 | U133: =IF(ISERROR('O4 Summary by Class & Accounts'!V211*U98/(U28+U32)),0,('O4 Summary by Class & Accounts'!V211*U98/(U28+U32))) -> 0 | V133: =IF(ISERROR('O4 Summary by Class & Accounts'!W211*V98/(V28+V32)),0,('O4 Summary by Class & Accounts'!W211*V98/(V28+V32))) -> 0 | W133: =IF(ISERROR('O4 Summary by Class & Accounts'!X211*W98/(W28+W32)),0,('O4 Summary by Class & Accounts'!X211*W98/(W28+W32))) -> 0
B134: Allocated Equity Return | C134: 212925.5362 | D134: =IF(ISERROR('O1 Revenue to cost|RR'!D38*D98/(D28+D32)),0,('O1 Revenue to cost|RR'!D38*D98/(D28+D32))) -> 119629.0798 | E134: =IF(ISERROR('O1 Revenue to cost|RR'!E38*E98/(E28+E32)),0,('O1 Revenue to cost|RR'!E38*E98/(E28+E32))) -> 46684.22657 | F134: =IF(ISERROR('O1 Revenue to cost|RR'!F38*F98/(F28+F32)),0,('O1 Revenue to cost|RR'!F38*F98/(F28+F32))) -> 45746.29027 | G134: =IF(ISERROR('O1 Revenue to cost|RR'!G38*G98/(G28+G32)),0,('O1 Revenue to cost|RR'!G38*G98/(G28+G32))) -> 0 | H134: =IF(ISERROR('O1 Revenue to cost|RR'!H38*H98/(H28+H32)),0,('O1 Revenue to cost|RR'!H38*H98/(H28+H32))) -> 0 | I134: =IF(ISERROR('O1 Revenue to cost|RR'!I38*I98/(I28+I32)),0,('O1 Revenue to cost|RR'!I38*I98/(I28+I32))) -> 865.9396021 | J134: =IF(ISERROR('O1 Revenue to cost|RR'!J38*J98/(J28+J32)),0,('O1 Revenue to cost|RR'!J38*J98/(J28+J32))) -> 0 | K134: =IF(ISERROR('O1 Revenue to cost|RR'!K38*K98/(K28+K32)),0,('O1 Revenue to cost|RR'!K38*K98/(K28+K32))) -> 0 | L134: =IF(ISERROR('O1 Revenue to cost|RR'!L38*L98/(L28+L32)),0,('O1 Revenue to cost|RR'!L38*L98/(L28+L32))) -> 0 | M134: =IF(ISERROR('O1 Revenue to cost|RR'!M38*M98/(M28+M32)),0,('O1 Revenue to cost|RR'!M38*M98/(M28+M32))) -> 0 | N134: =IF(ISERROR('O1 Revenue to cost|RR'!N38*N98/(N28+N32)),0,('O1 Revenue to cost|RR'!N38*N98/(N28+N32))) -> 0 | O134: =IF(ISERROR('O1 Revenue to cost|RR'!O38*O98/(O28+O32)),0,('O1 Revenue to cost|RR'!O38*O98/(O28+O32))) -> 0 | P134: =IF(ISERROR('O1 Revenue to cost|RR'!P38*P98/(P28+P32)),0,('O1 Revenue to cost|RR'!P38*P98/(P28+P32))) -> 0 | Q134: =IF(ISERROR('O1 Revenue to cost|RR'!Q38*Q98/(Q28+Q32)),0,('O1 Revenue to cost|RR'!Q38*Q98/(Q28+Q32))) -> 0 | R134: =IF(ISERROR('O1 Revenue to cost|RR'!R38*R98/(R28+R32)),0,('O1 Revenue to cost|RR'!R38*R98/(R28+R32))) -> 0 | S134: =IF(ISERROR('O1 Revenue to cost|RR'!S38*S98/(S28+S32)),0,('O1 Revenue to cost|RR'!S38*S98/(S28+S32))) -> 0 | T134: =IF(ISERROR('O1 Revenue to cost|RR'!T38*T98/(T28+T32)),0,('O1 Revenue to cost|RR'!T38*T98/(T28+T32))) -> 0 | U134: =IF(ISERROR('O1 Revenue to cost|RR'!U38*U98/(U28+U32)),0,('O1 Revenue to cost|RR'!U38*U98/(U28+U32))) -> 0 | V134: =IF(ISERROR('O1 Revenue to cost|RR'!V38*V98/(V28+V32)),0,('O1 Revenue to cost|RR'!V38*V98/(V28+V32))) -> 0 | W134: =IF(ISERROR('O1 Revenue to cost|RR'!W38*W98/(W28+W32)),0,('O1 Revenue to cost|RR'!W38*W98/(W28+W32))) -> 0
B136: Total | C136: =SUM(D136:W136) -> 4256159.124 | D136: =SUM(D127:D134) +D107 -> 3408452.303 | E136: =SUM(E127:E134) +E107 -> 544357.2572 | F136: 292770.6429 | G136: 0 | H136: 0 | I136: 1079.099429 | J136: -521.4667539 | K136: 9574.597115 | L136: 446.6914066 | M136: 0 | N136: 0 | O136: 0 | P136: 0 | Q136: 0 | R136: 0 | S136: 0 | T136: 0 | U136: 0 | V136: 0 | W136: 0
A137: Scenario 3
A138: Minimum System Customer Costs Adjusted for PLCC - High Limit Fixed Customer Charge
D140: 1 | E140: 2 | F140: 3 | G140: 4 | H140: 5 | I140: 6 | J140: 7 | K140: 8 | L140: 9 | M140: 10 | N140: 11 | O140: 12 | P140: 13 | Q140: 14 | R140: 15 | S140: 16 | T140: 17 | U140: 18 | V140: 19 | W140: 20
A141: USoA Account # | B141: Accounts | C141: Total | D141: =IF('I2 LDC class'!$D$20="",'I2 LDC class'!$C$20,'I2 LDC class'!$D$20) -> Residential | E141: =IF('I2 LDC class'!$D$21="",'I2 LDC class'!$C$21,'I2 LDC class'!$D$21) -> General Service < 50 kW | F141: =IF('I2 LDC class'!$D$22="",'I2 LDC class'!$C$22,'I2 LDC class'!$D$22) -> General Service > 50 kW | G141: =IF('I2 LDC class'!$D$23="",'I2 LDC class'!$C$23,'I2 LDC class'!$D$23) -> GS> 50-TOU | H141: =IF('I2 LDC class'!$D$24="",'I2 LDC class'!$C$24,'I2 LDC class'!$D$24) -> GS >50-Intermediate | I141: =IF('I2 LDC class'!$D$25="",'I2 LDC class'!$C$25,'I2 LDC class'!$D$25) -> Large Use >5MW | J141: =IF('I2 LDC class'!$D$26="",'I2 LDC class'!$C$26,'I2 LDC class'!$D$26) -> Street Lighting | K141: =IF('I2 LDC class'!$D$27="",'I2 LDC class'!$C$27,'I2 LDC class'!$D$27) -> Sentinel Lighting | L141: =IF('I2 LDC class'!$D$28="",'I2 LDC class'!$C$28,'I2 LDC class'!$D$28) -> Unmetered Scattered Load | M141: =IF('I2 LDC class'!$D$29="",'I2 LDC class'!$C$29,'I2 LDC class'!$D$29) -> Embedded Distributor | N141: =IF('I2 LDC class'!$D$30="",'I2 LDC class'!$C$30,'I2 LDC class'!$D$30) -> Back-up/Standby Power | O141: =IF('I2 LDC class'!$D$31="",'I2 LDC class'!$C$31,'I2 LDC class'!$D$31) -> Rate Class 1 | P141: =IF('I2 LDC class'!$D$32="",'I2 LDC class'!$C$32,'I2 LDC class'!$D$32) -> Rate class 2 | Q141: =IF('I2 LDC class'!$D$33="",'I2 LDC class'!$C$33,'I2 LDC class'!$D$33) -> Rate class 3 | R141: =IF('I2 LDC class'!$D$34="",'I2 LDC class'!$C$34,'I2 LDC class'!$D$34) -> Rate class 4 | S141: =IF('I2 LDC class'!$D$35="",'I2 LDC class'!$C$35,'I2 LDC class'!$D$35) -> Rate class 5 | T141: =IF('I2 LDC class'!$D$36="",'I2 LDC class'!$C$36,'I2 LDC class'!$D$36) -> Rate class 6 | U141: =IF('I2 LDC class'!$D$37="",'I2 LDC class'!$C$37,'I2 LDC class'!$D$37) -> Rate class 7 | V141: =IF('I2 LDC class'!$D$38="",'I2 LDC class'!$C$38,'I2 LDC class'!$D$38) -> Rate class 8 | W141: =IF('I2 LDC class'!$D$39="",'I2 LDC class'!$C$39,'I2 LDC class'!$D$39) -> Rate class 9
B142: Distribution Plant
A143: 1565 | B143: Conservation and Demand Management Expenditures and Recoveries | C143: =SUM(D143:W143) -> 0 | D143: ='O5 Details by Class & Accounts'!AD19 -> 0 | E143: ='O5 Details by Class & Accounts'!AE19 -> 0 | F143: ='O5 Details by Class & Accounts'!AF19 -> 0 | G143: ='O5 Details by Class & Accounts'!AG19 -> 0 | H143: ='O5 Details by Class & Accounts'!AH19 -> 0 | I143: ='O5 Details by Class & Accounts'!AI19 -> 0 | J143: ='O5 Details by Class & Accounts'!AJ19 -> 0 | K143: ='O5 Details by Class & Accounts'!AK19 -> 0 | L143: ='O5 Details by Class & Accounts'!AL19 -> 0 | M143: ='O5 Details by Class & Accounts'!AM19 -> 0 | N143: ='O5 Details by Class & Accounts'!AN19 -> 0 | O143: ='O5 Details by Class & Accounts'!AO19 -> 0 | P143: ='O5 Details by Class & Accounts'!AP19 -> 0 | Q143: ='O5 Details by Class & Accounts'!AQ19 -> 0 | R143: ='O5 Details by Class & Accounts'!AR19 -> 0 | S143: ='O5 Details by Class & Accounts'!AS19 -> 0 | T143: ='O5 Details by Class & Accounts'!AT19 -> 0 | U143: ='O5 Details by Class & Accounts'!AU19 -> 0 | V143: ='O5 Details by Class & Accounts'!AV19 -> 0 | W143: ='O5 Details by Class & Accounts'!AW19 -> 0 | Z143: CDMPP
A144: 1830 | B144: Poles, Towers and Fixtures | C144: =SUM(D144:W144) -> 0 | D144: ='O5 Details by Class & Accounts'!AD41 -> 0 | E144: ='O5 Details by Class & Accounts'!AE41 -> 0 | F144: ='O5 Details by Class & Accounts'!AF41 -> 0 | G144: ='O5 Details by Class & Accounts'!AG41 -> 0 | H144: ='O5 Details by Class & Accounts'!AH41 -> 0 | I144: ='O5 Details by Class & Accounts'!AI41 -> 0 | J144: ='O5 Details by Class & Accounts'!AJ41 -> 0 | K144: ='O5 Details by Class & Accounts'!AK41 -> 0 | L144: ='O5 Details by Class & Accounts'!AL41 -> 0 | M144: ='O5 Details by Class & Accounts'!AM41 -> 0 | N144: ='O5 Details by Class & Accounts'!AN41 -> 0 | O144: ='O5 Details by Class & Accounts'!AO41 -> 0 | P144: ='O5 Details by Class & Accounts'!AP41 -> 0 | Q144: ='O5 Details by Class & Accounts'!AQ41 -> 0 | R144: ='O5 Details by Class & Accounts'!AR41 -> 0 | S144: ='O5 Details by Class & Accounts'!AS41 -> 0 | T144: ='O5 Details by Class & Accounts'!AT41 -> 0 | U144: ='O5 Details by Class & Accounts'!AU41 -> 0 | V144: ='O5 Details by Class & Accounts'!AV41 -> 0 | W144: ='O5 Details by Class & Accounts'!AW41 -> 0
A145: 1830-3 | B145: Poles, Towers and Fixtures - Subtransmission Bulk Delivery | C145: 0 | D145: ='O5 Details by Class & Accounts'!AD42 -> 0 | E145: ='O5 Details by Class & Accounts'!AE42 -> 0 | F145: ='O5 Details by Class & Accounts'!AF42 -> 0 | G145: ='O5 Details by Class & Accounts'!AG42 -> 0 | H145: ='O5 Details by Class & Accounts'!AH42 -> 0 | I145: ='O5 Details by Class & Accounts'!AI42 -> 0 | J145: ='O5 Details by Class & Accounts'!AJ42 -> 0 | K145: ='O5 Details by Class & Accounts'!AK42 -> 0 | L145: ='O5 Details by Class & Accounts'!AL42 -> 0 | M145: ='O5 Details by Class & Accounts'!AM42 -> 0 | N145: ='O5 Details by Class & Accounts'!AN42 -> 0 | O145: ='O5 Details by Class & Accounts'!AO42 -> 0 | P145: ='O5 Details by Class & Accounts'!AP42 -> 0 | Q145: ='O5 Details by Class & Accounts'!AQ42 -> 0 | R145: ='O5 Details by Class & Accounts'!AR42 -> 0 | S145: ='O5 Details by Class & Accounts'!AS42 -> 0 | T145: ='O5 Details by Class & Accounts'!AT42 -> 0 | U145: ='O5 Details by Class & Accounts'!AU42 -> 0 | V145: ='O5 Details by Class & Accounts'!AV42 -> 0 | W145: ='O5 Details by Class & Accounts'!AW42 -> 0 | Z145: BCP
A146: 1830-4 | B146: Poles, Towers and Fixtures - Primary | C146: 5404541.175 | D146: ='O5 Details by Class & Accounts'!AD43 -> 3867562.805 | E146: ='O5 Details by Class & Accounts'!AE43 -> 431933.0639 | F146: ='O5 Details by Class & Accounts'!AF43 -> 47502.83272 | G146: ='O5 Details by Class & Accounts'!AG43 -> 0 | H146: ='O5 Details by Class & Accounts'!AH43 -> 0 | I146: ='O5 Details by Class & Accounts'!AI43 -> 243.5608422 | J146: ='O5 Details by Class & Accounts'!AJ43 -> 992462.9277 | K146: ='O5 Details by Class & Accounts'!AK43 -> 18023.50232 | L146: ='O5 Details by Class & Accounts'!AL43 -> 46812.48286 | M146: ='O5 Details by Class & Accounts'!AM43 -> 0 | N146: ='O5 Details by Class & Accounts'!AN43 -> 0 | O146: ='O5 Details by Class & Accounts'!AO43 -> 0 | P146: ='O5 Details by Class & Accounts'!AP43 -> 0 | Q146: ='O5 Details by Class & Accounts'!AQ43 -> 0 | R146: ='O5 Details by Class & Accounts'!AR43 -> 0 | S146: ='O5 Details by Class & Accounts'!AS43 -> 0 | T146: ='O5 Details by Class & Accounts'!AT43 -> 0 | U146: ='O5 Details by Class & Accounts'!AU43 -> 0 | V146: ='O5 Details by Class & Accounts'!AV43 -> 0 | W146: ='O5 Details by Class & Accounts'!AW43 -> 0 | Z146: PNCP
A147: 1830-5 | B147: Poles, Towers and Fixtures - Secondary | C147: 1801513.725 | D147: ='O5 Details by Class & Accounts'!AD44 -> 1341248.91 | E147: ='O5 Details by Class & Accounts'!AE44 -> 68344.46857 | F147: ='O5 Details by Class & Accounts'!AF44 -> 0 | G147: ='O5 Details by Class & Accounts'!AG44 -> 0 | H147: ='O5 Details by Class & Accounts'!AH44 -> 0 | I147: ='O5 Details by Class & Accounts'!AI44 -> 0 | J147: ='O5 Details by Class & Accounts'!AJ44 -> 367886.895 | K147: ='O5 Details by Class & Accounts'!AK44 -> 6680.965224 | L147: ='O5 Details by Class & Accounts'!AL44 -> 17352.4859 | M147: ='O5 Details by Class & Accounts'!AM44 -> 0 | N147: ='O5 Details by Class & Accounts'!AN44 -> 0 | O147: ='O5 Details by Class & Accounts'!AO44 -> 0 | P147: ='O5 Details by Class & Accounts'!AP44 -> 0 | Q147: ='O5 Details by Class & Accounts'!AQ44 -> 0 | R147: ='O5 Details by Class & Accounts'!AR44 -> 0 | S147: ='O5 Details by Class & Accounts'!AS44 -> 0 | T147: ='O5 Details by Class & Accounts'!AT44 -> 0 | U147: ='O5 Details by Class & Accounts'!AU44 -> 0 | V147: ='O5 Details by Class & Accounts'!AV44 -> 0 | W147: ='O5 Details by Class & Accounts'!AW44 -> 0 | Z147: SNCP
A148: 1835 | B148: Overhead Conductors and Devices | C148: 0 | D148: ='O5 Details by Class & Accounts'!AD45 -> 0 | E148: ='O5 Details by Class & Accounts'!AE45 -> 0 | F148: ='O5 Details by Class & Accounts'!AF45 -> 0 | G148: ='O5 Details by Class & Accounts'!AG45 -> 0 | H148: ='O5 Details by Class & Accounts'!AH45 -> 0 | I148: ='O5 Details by Class & Accounts'!AI45 -> 0 | J148: ='O5 Details by Class & Accounts'!AJ45 -> 0 | K148: ='O5 Details by Class & Accounts'!AK45 -> 0 | L148: ='O5 Details by Class & Accounts'!AL45 -> 0 | M148: ='O5 Details by Class & Accounts'!AM45 -> 0 | N148: ='O5 Details by Class & Accounts'!AN45 -> 0 | O148: ='O5 Details by Class & Accounts'!AO45 -> 0 | P148: ='O5 Details by Class & Accounts'!AP45 -> 0 | Q148: ='O5 Details by Class & Accounts'!AQ45 -> 0 | R148: ='O5 Details by Class & Accounts'!AR45 -> 0 | S148: ='O5 Details by Class & Accounts'!AS45 -> 0 | T148: ='O5 Details by Class & Accounts'!AT45 -> 0 | U148: ='O5 Details by Class & Accounts'!AU45 -> 0 | V148: ='O5 Details by Class & Accounts'!AV45 -> 0 | W148: ='O5 Details by Class & Accounts'!AW45 -> 0
A149: 1835-3 | B149: Overhead Conductors and Devices - Subtransmission Bulk Delivery | C149: 0 | D149: ='O5 Details by Class & Accounts'!AD46 -> 0 | E149: ='O5 Details by Class & Accounts'!AE46 -> 0 | F149: ='O5 Details by Class & Accounts'!AF46 -> 0 | G149: ='O5 Details by Class & Accounts'!AG46 -> 0 | H149: ='O5 Details by Class & Accounts'!AH46 -> 0 | I149: ='O5 Details by Class & Accounts'!AI46 -> 0 | J149: ='O5 Details by Class & Accounts'!AJ46 -> 0 | K149: ='O5 Details by Class & Accounts'!AK46 -> 0 | L149: ='O5 Details by Class & Accounts'!AL46 -> 0 | M149: ='O5 Details by Class & Accounts'!AM46 -> 0 | N149: ='O5 Details by Class & Accounts'!AN46 -> 0 | O149: ='O5 Details by Class & Accounts'!AO46 -> 0 | P149: ='O5 Details by Class & Accounts'!AP46 -> 0 | Q149: ='O5 Details by Class & Accounts'!AQ46 -> 0 | R149: ='O5 Details by Class & Accounts'!AR46 -> 0 | S149: ='O5 Details by Class & Accounts'!AS46 -> 0 | T149: ='O5 Details by Class & Accounts'!AT46 -> 0 | U149: ='O5 Details by Class & Accounts'!AU46 -> 0 | V149: ='O5 Details by Class & Accounts'!AV46 -> 0 | W149: ='O5 Details by Class & Accounts'!AW46 -> 0 | Z149: BCP
